{"text_format":"1","workbook":"xlsx","n_sheets":9,"sheets":["はじめに","マスタ変更","配点表","削除台帳","記入用","記録台帳","統計","宛名印刷","市報告書"],"not_rendered":{"charts":0,"images":9,"macros":1,"external_links":0,"defined_names":7,"comments":0,"pivot_tables":0},"unopened":[],"bounds":{"document_bytes":16777216,"sheet_cells":100000,"rows_first":2000,"rows_last":500,"rows_between":2000,"halvings":0,"cell_chars":16384,"cell_head_chars":4096},"cells_cut":0,"cells_raw":0,"read":"whole","date_system":"1900"}

{"sheet":"はじめに","index":0,"n_rows":119,"n_cols":11,"rows_kept":119,"cut":false,"hidden":false,"merged":[[0,3,0,6]]}
[null,null,null,"マクロ使用のための設定"]
[]
[null,null,null,"エクセル２０１０の場合"]
[null,null,null,null,null,null,null,"まず、ファイルを選び・・・"]
[]
[]
[]
[]
[]
[]
[]
[]
[]
[null,null,null,null,null,null,null,"オプションを選択します・・・"]
[]
[]
[]
[]
[]
[]
[null,null,null,null,null,null,null,null,null,null,"リボンのユーザー設定から・・・"]
[]
[]
[]
[]
[]
[null,null,null,null,null,null,null,null,null,null,"開発にチェックを入れます。"]
[]
[]
[null,null,null,"これでマクロの編集が可能になる開発タブが表示されるようになります。"]
[]
[null,null,null,"エクセル２００７の場合"]
[]
[null,null,null,"オフィスボタンを選び・・・"]
[]
[]
[]
[]
[]
[]
[]
[]
[]
[]
[]
[]
[]
[]
[]
[null,null,null,"エクセルのオプションを選択します・・・"]
[]
[]
[]
[null,null,null,null,null,null,null,null,null,null,"基本設定から・・・"]
[]
[]
[null,null,null,null,null,null,null,null,null,null,"開発タブをリボンに表示する（D)"]
[null,null,null,null,null,null,null,null,null,null,"にチェックを入れます。"]
[]
[]
[]
[]
[null,null,null,"これで２００７の設定も半分終了。これからは２０１０とほぼ同じ画面になります。"]
[]
[null,null,null,"２００７・２０１０共通"]
[null,null,null,"セキュリティセンター　→　セキュリティセンターの設定を選びます。"]
[]
[]
[]
[]
[]
[]
[]
[]
[]
[]
[]
[]
[]
[]
[]
[null,null,null,null,null,null,null,null,null,"マクロの設定を選びます。"]
[]
[]
[]
[]
[]
[]
[]
[null,null,null,null,null,null,null,null,null,null,"警告を表示してすべてのマクロを"]
[null,null,null,null,null,null,null,null,null,null,"無効にする（L)　を選びます。"]
[]
[]
[]
[]
[]
[]
[null,null,null,"ここまで終わったら、OKをクリックして一度エクセルを終了します。"]
[]
[]
[]
[]
[]
[null,null,null,"再度エクセルを立ち上げるとセキュリティの警告が出ます。"]
[null,null,null,"コンテンツの有効化を選んでください。"]
[]
[]
[]
[]
[]
[]
[]
[]
[]
[null,null,null,"これで準備完了です。"]
[null,null,null,"この作業により、このプログラムは自由に動くようになります。"]
[]
[]
[null,null,null,"このページは削除してもプログラムに影響はありません。"]

{"sheet":"マスタ変更","index":1,"n_rows":32,"n_cols":29,"rows_kept":32,"cut":false,"hidden":false,"merged":[[54,2,54,5],[54,7,54,8],[54,10,54,11],[54,13,54,16],[21,5,21,6],[21,7,21,8],[21,9,21,10],[21,11,21,13],[21,14,21,15],[21,16,21,17],[24,5,24,7],[24,8,24,10],[24,11,24,13],[24,14,24,16],[24,17,24,19],[23,2,23,4],[24,2,24,4],[25,2,25,4],[26,2,27,4],[26,5,27,7],[26,8,27,10],[26,11,27,13],[26,14,27,16],[26,17,27,19],[4,3,4,17],[11,5,11,7],[11,8,11,10],[11,11,11,13],[11,14,11,16],[11,17,11,19],[6,15,7,16],[6,17,7,18],[6,19,7,20],[8,15,9,16],[8,17,9,18],[8,19,9,20],[6,14,9,14],[11,2,12,4],[12,5,12,7],[12,8,12,10],[12,11,12,13],[12,14,12,16],[6,21,7,22],[8,23,9,24],[8,25,9,26],[8,27,9,28],[13,30,13,31],[10,30,10,31],[12,30,12,31],[13,17,13,18],[13,23,13,24],[12,23,12,25],[12,26,12,28],[14,23,14,25],[19,23,19,24],[19,25,19,26],[18,11,18,13],[18,14,18,16],[19,27,19,28],[14,17,14,19],[14,20,14,22],[18,17,18,19],[18,20,18,22],[17,17,17,19],[17,20,17,22],[14,26,14,28],[15,17,15,19],[15,20,15,22],[15,23,15,25],[15,26,15,28],[16,17,16,19],[16,20,16,22],[16,11,16,13],[16,14,16,16],[15,14,15,16],[17,5,17,7],[17,8,17,10],[17,11,17,13],[17,14,17,16],[8,21,9,22],[12,17,12,19],[12,20,12,22],[20,27,20,28],[19,5,19,6],[19,7,19,8],[19,9,19,10],[19,11,19,13],[19,14,19,15],[19,16,19,17],[19,18,19,19],[19,20,19,22],[20,9,20,10],[20,5,20,6],[20,7,20,8],[20,11,20,13],[20,14,20,15],[20,16,20,17],[20,18,20,19],[20,20,20,22],[20,23,20,24],[20,25,20,26],[21,23,21,24],[21,25,21,26],[21,27,21,28],[22,5,22,6],[22,7,22,8],[22,9,22,10],[22,11,22,13],[22,14,22,15],[22,16,22,17],[22,18,22,19],[22,20,22,22],[22,23,22,24],[22,25,22,26],[22,27,22,28],[21,18,21,19],[21,20,21,22],[24,23,24,25],[24,26,24,28],[25,5,25,7],[25,8,25,10],[25,11,25,13],[25,14,25,16],[25,17,25,19],[25,20,25,22],[25,23,25,25],[25,26,25,28],[24,20,24,22],[31,14,31,16],[13,5,13,6],[13,11,13,12],[22,2,22,4],[13,2,13,4],[14,2,14,4],[15,2,15,4],[16,2,16,4],[17,2,17,4],[18,2,18,4],[19,2,19,4],[18,5,18,7],[18,8,18,10],[20,2,20,4],[21,2,21,4],[15,5,15,7],[15,8,15,10],[15,11,15,13],[14,5,14,7],[14,8,14,10],[14,11,14,13],[14,14,14,16],[16,5,16,7],[16,8,16,10],[31,17,31,19],[31,20,31,22],[31,23,31,25],[31,26,31,28],[29,2,31,4],[29,5,29,7],[29,8,29,10],[29,11,29,13],[29,14,29,16],[29,17,29,19],[29,20,29,22],[29,23,29,25],[29,26,29,28],[30,5,30,7],[30,8,30,10],[30,11,30,13],[30,14,30,16],[30,17,30,19],[30,20,30,22],[30,23,30,25],[30,26,30,28],[31,5,31,7],[31,8,31,10],[31,11,31,13]]}
[]
[]
[]
[]
[null,null,null,"マスター変更シート"]
[null,null,null,"こちらのシートの変更は慎重に行ってください。"]
[null,null,null,null,null,null,null,null,null,null,null,null,null,null,"世帯状況","独居",0,"在宅で家族介護",0,"７５歳以上\n老々介護",0,"施設\n入所\n入院中",0]
[null,null,null,null,null,null,null,null,null,null,null,null,null,null,null,0,0,0,0,0,0,0,0]
[null,null,null,null,null,null,null,null,null,null,null,null,null,null,null,"介護者\n不在",null,"主介護者\n障害疾病\nなど",0,"就労\nのため\n介護困難",0,"育児のため\n介護困難",null,"障害者\n複数介護",0,"退院等を\n迫られ\nている",null,"遠距離\n訪問介護",0]
[null,null,null,null,null,null,null,null,null,null,null,null,null,null,null,null,null,0,0,0,0,null,null,0,0,null,null,0,0]
[]
[null,null,"医療関連",null,null,"インシュリン投与",0,0,"在宅酸素療法",{"$error":"#VALUE!"},{"$error":"#VALUE!"},"胃瘻",{"$error":"#VALUE!"},{"$error":"#VALUE!"},"喀痰吸引",null,null,"褥瘡処置",{"$error":"#VALUE!"},{"$error":"#VALUE!"}]
[null,null,null,null,null,"人工肛門処置",null,null,"腸瘻",null,null,"膀胱洗浄",null,null,"導尿",null,null,"ＩＶＨ",null,null,"透析",null,null,"尿カテーテル",null,null,"看取り"]
[null,null,"筋力低下\n麻痺等",null,null,"右手",null,"-","弱","中","強","左手",null,"-","弱","中","強","右足",null,"-","弱","中","強","左足",null,"-","弱","中","強"]
[null,null,"歩行・立位",null,null,"安定歩行",0,0,"なんとか歩く",null,null,"つかまり立つ\n支えれば歩く",0,0,"つかまれば\n移乗できる",0,0,"支持すれば\n立てる",0,0,"引き上げて\nなんとか立つ",0,0,"保持して\nやっと立つ",0,0,"できない",0,0]
[null,null,"尿意",null,null,"ある",0,0,"曖昧",0,0,"なし",0,0,"便意",null,null,"ある",0,0,"曖昧",0,0,"なし",0,0,"人工肛門\n尿カテーテル",0,0]
[null,null,"排泄（日中）",null,null,"自分で行く",0,0,"失敗あるが\n自分でする",0,0,"脱衣介助\n一部介助",null,null,"お尻を拭く\n体の支持",0,0,"抱えて移乗\nほぼ全介助",0,0,"寝たまま\nおむつ交換",0,0]
[null,null,"排泄（夜間）",null,null,"自分で行く",0,0,"失敗あるが\n自分でする",0,0,"脱衣介助\n一部介助",0,0,"お尻を拭く\n体の支持",0,0,"抱えて移乗\nほぼ全介助",0,0,"寝たまま\nおむつ交換",0,0]
[null,null,"食事介助",null,null,"常食",0,0,"刻み食\n柔らか食",0,0,"ミキサー食",0,0,"経管栄養",null,null,"半介助",null,null,"ほぼ全介助"]
[null,null,"物盗られ妄想\n被害妄想",null,null,"ときどき",0,"よくある",0,"耐え難い",0,"幻覚\n幻聴",null,null,"ときどき",0,"よくある",0,"耐え難い",0,"異食・収集",null,null,"ときどき",0,"よくある",0,"耐え難い",0]
[null,null,"精神科症状\nうつなど",null,null,"ときどき",0,"よくある",0,"耐え難い",0,"不眠行動\n昼夜逆転",null,null,"ときどき",0,"よくある",0,"耐え難い",0,"激しい抵抗\n暴力行為",null,null,"ときどき",0,"よくある",0,"耐え難い",0]
[null,null,"同じ話や\n行動繰り返し",null,null,"ときどき",0,"よくある",0,"耐え難い",0,"大声\n不快な音",null,null,"ときどき",0,"よくある",0,"耐え難い",0,"徘徊\n外に出たがる",null,null,"ときどき",0,"よくある",0,"耐え難い",0]
[null,null,"不潔行為\n弄便・放尿",null,null,"ときどき",0,"よくある",0,"耐え難い",0,"危険行為\n火の不始末",null,null,"ときどき",0,"よくある",0,"耐え難い",0,"セクハラ行為\nいじる・壊す",null,null,"ときどき",0,"よくある",0,"耐え難い",0]
[null,null,"その他の問題"]
[null,null,"日中の\n過ごし方",null,null,"近所なら\n自由に行動",0,0,"家の中なら\n自由に行動",0,0,"起きて生活\n屋外は補助",0,0,"伝い歩き\n寝たり起きたり",0,0,"介助あれば\n起きて生活",0,0,"介助により\n寝たり起きたり",0,0,"寝室中心\nの生活",0,0,"離床しない",0,0]
[null,null,"聴力",null,null,"問題なし",0,0,"遠い",0,0,"ひどく遠い",0,0,"聴力なし\n確認できない",0,0,"視力",null,null,"年齢相応",0,0,"かなり悪い\n半盲",0,0,"失明",0,0]
[null,null,"意思疎通",null,null,"問題なし",0,0,"なんとか通じる",0,0,"かなり厳しい",null,null,"ほぼ不可能",0,0,"錯乱状態",0,0]
[null,null,null,null,null,0,0,0,0,0,0,null,null,null,0,0,0,0,0,0]
[]
[null,null,"既往歴",null,null,"脳梗塞",null,null,"心臓疾患",null,null,"糖尿病",null,null,"癌",null,null,"認知症",null,null,"脳挫傷",null,null,"緑内障",null,null,"大腿部骨折"]
[null,null,null,null,null,"脳内出血",null,null,"呼吸器系疾患",null,null,"腎臓疾患",null,null,"リューマチ",null,null,"うつ病",null,null,"胆石",null,null,"白内障",null,null,"脊髄等損傷"]
[null,null,null,null,null,"高血圧症",null,null,"喘息",null,null,"肝炎・肝硬変",null,null,"パーキンソン",null,null,"統合失調症",null,null,"尿管結石等",null,null,"結核",null,null,"変形性膝関節症"]

{"sheet":"配点表","index":2,"n_rows":47,"n_cols":22,"rows_kept":47,"cut":false,"hidden":false,"merged":[[1,2,1,15],[21,1,22,1],[3,1,4,1],[6,1,7,1],[9,1,10,1],[9,2,10,2],[9,17,10,17],[12,1,13,1],[15,1,16,1],[15,5,16,5],[18,1,19,1],[9,7,10,7],[9,12,10,12],[24,1,25,1],[27,1,28,1],[27,5,28,5],[27,9,28,9],[30,1,31,1],[30,5,31,5],[30,9,31,9],[45,1,46,1],[42,6,43,6],[33,9,34,9],[36,1,37,1],[36,5,37,5],[36,9,37,9],[39,1,40,1],[42,1,43,1],[33,1,34,1],[33,5,34,5]]}
[]
[null,"配点表","このページの配点により、入所順位の参考となる点数が計算されます。配点を変えても呼出して再び転記を行うことで再計算がされます。"]
[]
[null,"世帯状況",{"$f":"マスタ変更!P7","v":"独居"},{"$f":"マスタ変更!R7","v":"在宅で家族介護"},{"$f":"マスタ変更!T7","v":"７５歳以上\n老々介護"},{"$f":"マスタ変更!V7","v":"施設\n入所\n入院中"},{"$f":"マスタ変更!P9","v":"介護者\n不在"},{"$f":"マスタ変更!R9","v":"主介護者\n障害疾病\nなど"},{"$f":"マスタ変更!T9","v":"就労\nのため\n介護困難"},{"$f":"マスタ変更!V9","v":"育児のため\n介護困難"},{"$f":"マスタ変更!X9","v":"障害者\n複数介護"},{"$f":"マスタ変更!Z9","v":"退院等を\n迫られ\nている"},{"$f":"マスタ変更!AB9","v":"遠距離\n訪問介護"}]
[null,null,9,3,6,0,9,3,5,4,5,1,3]
[]
[null,"医療関連",{"$f":"マスタ変更!F12","v":"インシュリン投与"},{"$f":"マスタ変更!I12","v":"在宅酸素療法"},{"$f":"マスタ変更!L12","v":"胃瘻"},{"$f":"マスタ変更!O12","v":"喀痰吸引"},{"$f":"マスタ変更!R12","v":"褥瘡処置"},null,{"$f":"マスタ変更!F13","v":"人工肛門処置"},{"$f":"マスタ変更!I13","v":"腸瘻"},{"$f":"マスタ変更!L13","v":"膀胱洗浄"},{"$f":"マスタ変更!O13","v":"導尿"},{"$f":"マスタ変更!R13","v":"ＩＶＨ"},{"$f":"マスタ変更!U13","v":"透析"},{"$f":"マスタ変更!X13","v":"尿カテーテル"},{"$f":"マスタ変更!AA13","v":"看取り"}]
[null,null,2,2,3,2,1,null,1,2,2,3,4,4,1,4]
[]
[null,"筋力低下\n麻痺等",{"$f":"マスタ変更!F14","v":"右手"},{"$f":"マスタ変更!H14","v":"-"},{"$f":"マスタ変更!I14","v":"弱"},{"$f":"マスタ変更!J14","v":"中"},{"$f":"マスタ変更!K14","v":"強"},{"$f":"マスタ変更!L14","v":"左手"},{"$f":"マスタ変更!N14","v":"-"},{"$f":"マスタ変更!O14","v":"弱"},{"$f":"マスタ変更!P14","v":"中"},{"$f":"マスタ変更!Q14","v":"強"},{"$f":"マスタ変更!R14","v":"右足"},{"$f":"マスタ変更!T14","v":"-"},{"$f":"マスタ変更!U14","v":"弱"},{"$f":"マスタ変更!V14","v":"中"},{"$f":"マスタ変更!W14","v":"強"},{"$f":"マスタ変更!X14","v":"左足"},{"$f":"マスタ変更!Z14","v":"-"},{"$f":"マスタ変更!AA14","v":"弱"},{"$f":"マスタ変更!AB14","v":"中"},{"$f":"マスタ変更!AC14","v":"強"}]
[null,null,null,0,2,3,4,null,0,1,2,3,null,0,2,4,6,null,0,2,4,6]
[]
[null,{"$f":"マスタ変更!C15","v":"歩行・立位"},{"$f":"マスタ変更!F15","v":"安定歩行"},{"$f":"マスタ変更!I15","v":"なんとか歩く"},{"$f":"マスタ変更!L15","v":"つかまり立つ\n支えれば歩く"},{"$f":"マスタ変更!O15","v":"つかまれば\n移乗できる"},{"$f":"マスタ変更!R15","v":"支持すれば\n立てる"},{"$f":"マスタ変更!U15","v":"引き上げて\nなんとか立つ"},{"$f":"マスタ変更!X15","v":"保持して\nやっと立つ"},{"$f":"マスタ変更!AA15","v":"できない"}]
[null,null,0,2,4,6,8,10,12,10]
[]
[null,{"$f":"マスタ変更!C16","v":"尿意"},{"$f":"マスタ変更!F16","v":"ある"},{"$f":"マスタ変更!I16","v":"曖昧"},{"$f":"マスタ変更!L16","v":"なし"},"便意",{"$f":"マスタ変更!R16","v":"ある"},{"$f":"マスタ変更!U16","v":"曖昧"},{"$f":"マスタ変更!X16","v":"なし"},{"$f":"マスタ変更!AA16","v":"人工肛門\n尿カテーテル"}]
[null,null,0,1,2,null,0,2,4,1]
[]
[null,{"$f":"マスタ変更!C17","v":"排泄（日中）"},{"$f":"マスタ変更!F17","v":"自分で行く"},{"$f":"マスタ変更!I17","v":"失敗あるが\n自分でする"},{"$f":"マスタ変更!L17","v":"脱衣介助\n一部介助"},{"$f":"マスタ変更!O17","v":"お尻を拭く\n体の支持"},{"$f":"マスタ変更!R17","v":"抱えて移乗\nほぼ全介助"},{"$f":"マスタ変更!U17","v":"寝たまま\nおむつ交換"}]
[null,null,0,2,4,6,10,8]
[]
[null,{"$f":"マスタ変更!C18","v":"排泄（夜間）"},{"$f":"マスタ変更!F18","v":"自分で行く"},{"$f":"マスタ変更!I18","v":"失敗あるが\n自分でする"},{"$f":"マスタ変更!L18","v":"脱衣介助\n一部介助"},{"$f":"マスタ変更!O18","v":"お尻を拭く\n体の支持"},{"$f":"マスタ変更!R18","v":"抱えて移乗\nほぼ全介助"},{"$f":"マスタ変更!U18","v":"寝たまま\nおむつ交換"},null,"排泄介助\n昼",null,"排泄介助\n夜"]
[null,null,0,3,5,7,11,9,null,"１回1点\n最高５点",null,"１回３点\n最高９点"]
[]
[null,{"$f":"マスタ変更!C19","v":"食事介助"},{"$f":"マスタ変更!F19","v":"常食"},{"$f":"マスタ変更!I19","v":"刻み食\n柔らか食"},{"$f":"マスタ変更!L19","v":"ミキサー食"},{"$f":"マスタ変更!O19","v":"経管栄養"},{"$f":"マスタ変更!R19","v":"半介助"},{"$f":"マスタ変更!U19","v":"ほぼ全介助"},null,"食事時間",null,"体重"]
[null,null,0,1,2,3,4,5,null,"10分1点\n最高６点",null,"50Kg以上は10Kgで1点"]
[]
[null,{"$f":"マスタ変更!C20","v":"物盗られ妄想\n被害妄想"},{"$f":"マスタ変更!F20","v":"ときどき"},{"$f":"マスタ変更!H20","v":"よくある"},{"$f":"マスタ変更!J20","v":"耐え難い"},{"$f":"マスタ変更!L20","v":"幻覚\n幻聴"},{"$f":"マスタ変更!O20","v":"ときどき"},{"$f":"マスタ変更!Q20","v":"よくある"},{"$f":"マスタ変更!S20","v":"耐え難い"},{"$f":"マスタ変更!U20","v":"異食・収集"},{"$f":"マスタ変更!X20","v":"ときどき"},{"$f":"マスタ変更!Z21","v":"よくある"},{"$f":"マスタ変更!AB20","v":"耐え難い"}]
[null,null,2,3,4,null,2,4,6,null,1,3,5]
[]
[null,{"$f":"マスタ変更!C21","v":"精神科症状\nうつなど"},{"$f":"マスタ変更!F21","v":"ときどき"},{"$f":"マスタ変更!H21","v":"よくある"},{"$f":"マスタ変更!J21","v":"耐え難い"},{"$f":"マスタ変更!L21","v":"不眠行動\n昼夜逆転"},{"$f":"マスタ変更!O21","v":"ときどき"},{"$f":"マスタ変更!Q21","v":"よくある"},{"$f":"マスタ変更!S21","v":"耐え難い"},{"$f":"マスタ変更!U21","v":"激しい抵抗\n暴力行為"},{"$f":"マスタ変更!X21","v":"ときどき"},{"$f":"マスタ変更!Z21","v":"よくある"},{"$f":"マスタ変更!AB21","v":"耐え難い"}]
[null,null,1,3,5,null,1,2,3,null,1,3,5]
[]
[null,{"$f":"マスタ変更!C22","v":"同じ話や\n行動繰り返し"},{"$f":"マスタ変更!F22","v":"ときどき"},{"$f":"マスタ変更!H22","v":"よくある"},{"$f":"マスタ変更!J22","v":"耐え難い"},{"$f":"マスタ変更!L22","v":"大声\n不快な音"},{"$f":"マスタ変更!O22","v":"ときどき"},{"$f":"マスタ変更!Q22","v":"よくある"},{"$f":"マスタ変更!S22","v":"耐え難い"},{"$f":"マスタ変更!U22","v":"徘徊\n外に出たがる"},{"$f":"マスタ変更!X22","v":"ときどき"},{"$f":"マスタ変更!Z22","v":"よくある"},{"$f":"マスタ変更!AB22","v":"耐え難い"}]
[null,null,1,3,5,null,1,3,5,null,3,6,9]
[]
[null,{"$f":"マスタ変更!C23","v":"不潔行為\n弄便・放尿"},{"$f":"マスタ変更!F23","v":"ときどき"},{"$f":"マスタ変更!H23","v":"よくある"},{"$f":"マスタ変更!J23","v":"耐え難い"},{"$f":"マスタ変更!L23","v":"危険行為\n火の不始末"},{"$f":"マスタ変更!O23","v":"ときどき"},{"$f":"マスタ変更!Q23","v":"よくある"},{"$f":"マスタ変更!S23","v":"耐え難い"},{"$f":"マスタ変更!U23","v":"セクハラ行為\nいじる・壊す"},{"$f":"マスタ変更!X23","v":"ときどき"},{"$f":"マスタ変更!Z23","v":"よくある"},{"$f":"マスタ変更!AB23","v":"耐え難い"}]
[null,null,2,4,6,null,1,2,4,null,1,2,4]
[]
[null,{"$f":"マスタ変更!C25","v":"日中の\n過ごし方"},{"$f":"マスタ変更!F25","v":"近所なら\n自由に行動"},{"$f":"マスタ変更!I25","v":"家の中なら\n自由に行動"},{"$f":"マスタ変更!L25","v":"起きて生活\n屋外は補助"},{"$f":"マスタ変更!O25","v":"伝い歩き\n寝たり起きたり"},{"$f":"マスタ変更!R25","v":"介助あれば\n起きて生活"},{"$f":"マスタ変更!U25","v":"介助により\n寝たり起きたり"},{"$f":"マスタ変更!X25","v":"寝室中心\nの生活"},{"$f":"マスタ変更!AA25","v":"離床しない"}]
[null,null,0,1,1,2,3,4,5,6]
[]
[null,{"$f":"マスタ変更!C26","v":"聴力"},{"$f":"マスタ変更!F26","v":"問題なし"},{"$f":"マスタ変更!I26","v":"遠い"},{"$f":"マスタ変更!L26","v":"ひどく遠い"},{"$f":"マスタ変更!O26","v":"聴力なし\n確認できない"},{"$f":"マスタ変更!R26","v":"視力"},{"$f":"マスタ変更!U26","v":"年齢相応"},{"$f":"マスタ変更!X26","v":"かなり悪い\n半盲"},{"$f":"マスタ変更!AA26","v":"失明"}]
[null,null,0,1,2,3,null,0,2,6]
[]
[null,{"$f":"マスタ変更!C27","v":"意思疎通"},{"$f":"マスタ変更!F27","v":"問題なし"},{"$f":"マスタ変更!I27","v":"なんとか通じる"},{"$f":"マスタ変更!L27","v":"かなり厳しい"},{"$f":"マスタ変更!O27","v":"ほぼ不可能"},{"$f":"マスタ変更!R27","v":"錯乱状態"},null,"介護度\n３．４．５\n以外"]
[null,null,0,1,2,3,4,null,0.85]

{"sheet":"削除台帳","index":3,"n_rows":1004,"n_cols":255,"rows_kept":1004,"cut":false,"hidden":false,"merged":[[1,10,1,11],[0,10,0,11]]}
[null,null,{"$f":"NOW()","v":"2014-11-02T18:12:19.670"},null,null,null,null,null,"削除番号",null,"削除者氏名"]
[null,null,"削除者名簿",null,null,"削除",null,null,null,null,{"$f":"IF(I2=\"\",\"\",VLOOKUP(I2,B4:DL505,3))","v":""}]
[]
[null,0,"日付",{"$f":"記録台帳!F4","v":"本人氏名"},{"$f":"記録台帳!G4","v":"フリガナ"},"削除理由",{"$f":"記録台帳!I4","v":"〒"},{"$f":"記録台帳!J4","v":"住所"},{"$f":"記録台帳!K4","v":"電話"},{"$f":"記録台帳!L4","v":"生　年　月　日"},{"$f":"記録台帳!M4","v":"介護度"},{"$f":"記録台帳!N4","v":"介護保険証被保険者番号"},{"$f":"記録台帳!O4","v":"保険者市町村名"},{"$f":"記録台帳!P4","v":"連絡先\n家族氏名"},{"$f":"記録台帳!Q4","v":"予備"},{"$f":"記録台帳!R4","v":"続柄"},{"$f":"記録台帳!S4","v":"〒"},{"$f":"記録台帳!T4","v":"住所"},{"$f":"記録台帳!U4","v":"電話"},{"$f":"記録台帳!V4","v":"携帯"},{"$f":"記録台帳!W4","v":"概況報告"},{"$f":"記録台帳!X4","v":"独居"},{"$f":"記録台帳!Y4","v":"自宅\n介護"},{"$f":"記録台帳!Z4","v":"施設\n入所\n入院中"},{"$f":"記録台帳!AA4","v":"施設\n入所\n入院中"},{"$f":"記録台帳!AB4","v":"予備"},{"$f":"記録台帳!AC4","v":"介護者\nなし"},{"$f":"記録台帳!AD4","v":"主介護者\n高齢障害\n疾病など"},{"$f":"記録台帳!AE4","v":"就労\nのため\n介護困難"},{"$f":"記録台帳!AF4","v":"身体的\n精神的\n負担大"},{"$f":"記録台帳!AG4","v":"居住環境\n事情から\n介護困難"},{"$f":"記録台帳!AH4","v":"退去を\n求められ\nている"},{"$f":"記録台帳!AI4","v":"障害者\n複数世帯"},{"$f":"記録台帳!AJ4","v":"介護（協力）者の人数・続柄・頻度など"},{"$f":"記録台帳!AK4","v":"同居家族が介護協力困難である具体的理由"},{"$f":"記録台帳!AL4","v":"非同居家族が介護協力困難である具体的理由・居住地"},{"$f":"記録台帳!AM4","v":"居宅介護支援事業所"},{"$f":"記録台帳!AN4","v":"ショートステイ"},{"$f":"記録台帳!AO4","v":"事業所名"},{"$f":"記録台帳!AP4","v":"デイケア・デイサービス"},{"$f":"記録台帳!AQ4","v":"事業所名"},{"$f":"記録台帳!AR4","v":"訪問看護・ヘルパー"},{"$f":"記録台帳!AS4","v":"事業所名"},{"$f":"記録台帳!AT4","v":"その他"},{"$f":"記録台帳!AU4","v":"既往歴\n持病・障害\n入院経緯"},{"$f":"記録台帳!AV4","v":"主事病院"},{"$f":"記録台帳!AW4","v":"インシュリン投与"},{"$f":"記録台帳!AX4","v":"在宅酸素療法"},{"$f":"記録台帳!AY4","v":"経管栄養"},{"$f":"記録台帳!AZ4","v":"喀痰吸引"},{"$f":"記録台帳!BA4","v":"褥瘡処置"},{"$f":"記録台帳!BB4","v":"部位等"},{"$f":"記録台帳!BC4","v":"-"},{"$f":"記録台帳!BD4","v":"弱"},{"$f":"記録台帳!BE4","v":"中"},{"$f":"記録台帳!BF4","v":"強"},{"$f":"記録台帳!BG4","v":"-"},{"$f":"記録台帳!BH4","v":"弱"},{"$f":"記録台帳!BI4","v":"中"},{"$f":"記録台帳!BJ4","v":"強"},{"$f":"記録台帳!BK4","v":"-"},{"$f":"記録台帳!BL4","v":"弱"},{"$f":"記録台帳!BM4","v":"中"},{"$f":"記録台帳!BN4","v":"強"},{"$f":"記録台帳!BO4","v":"-"},{"$f":"記録台帳!BP4","v":"弱"},{"$f":"記録台帳!BQ4","v":"中"},{"$f":"記録台帳!BR4","v":"強"},{"$f":"記録台帳!BS4","v":"安定歩行"},{"$f":"記録台帳!BT4","v":"シルバーカー\n歩行器"},{"$f":"記録台帳!BU4","v":"つきそい支持\n手引き歩行"},{"$f":"記録台帳!BV4","v":"車椅子自力\n移譲・移動"},{"$f":"記録台帳!BW4","v":"移乗支援\n自力移動"},{"$f":"記録台帳!BX4","v":"抱えて移乗\n自力移動"},{"$f":"記録台帳!BY4","v":"抱えて移乗\n移動介助"},{"$f":"記録台帳!BZ4","v":"寝たきり\nストレッチャー"},{"$f":"記録台帳!CA4","v":"ある"},{"$f":"記録台帳!CB4","v":"なし"},{"$f":"記録台帳!CC4","v":"曖昧"},{"$f":"記録台帳!CD4","v":"ある"},{"$f":"記録台帳!CE4","v":"なし"},{"$f":"記録台帳!CF4","v":"曖昧"},{"$f":"記録台帳!CG4","v":"人工肛門\n尿カテーテル"},{"$f":"記録台帳!#REF!","v":{"$error":"#REF!"}},{"$f":"記録台帳!#REF!","v":{"$error":"#REF!"}},{"$f":"記録台帳!#REF!","v":{"$error":"#REF!"}},{"$f":"記録台帳!#REF!","v":{"$error":"#REF!"}},{"$f":"記録台帳!#REF!","v":{"$error":"#REF!"}},{"$f":"記録台帳!#REF!","v":{"$error":"#REF!"}},{"$f":"記録台帳!CN4","v":"介助\n頻度"},{"$f":"記録台帳!CH4","v":"自分で行く"},{"$f":"記録台帳!CI4","v":"失敗あるが\n自分でする"},{"$f":"記録台帳!CJ4","v":"脱衣介助\n一部介助"},{"$f":"記録台帳!CK4","v":"お尻を拭く\n体の支持"},{"$f":"記録台帳!CL4","v":"抱えて移乗\nほぼ全介助"},{"$f":"記録台帳!CM4","v":"寝たまま\nおむつ交換"},{"$f":"記録台帳!CU4","v":"介助\n頻度"},{"$f":"記録台帳!CV4","v":"常食"},{"$f":"記録台帳!CW4","v":"おかゆ\n柔らか食"},{"$f":"記録台帳!CX4","v":"ミキサー食"},{"$f":"記録台帳!CY4","v":"経管栄養"},{"$f":"記録台帳!CZ4","v":"半介助"},{"$f":"記録台帳!DA4","v":"ほぼ全介助"},{"$f":"記録台帳!DB4","v":"直接介助に\nかかる時間"},{"$f":"記録台帳!DC4","v":"ときどき"},{"$f":"記録台帳!DD4","v":"よくある"},{"$f":"記録台帳!DE4","v":"耐え難い"},{"$f":"記録台帳!DF4","v":"ときどき"},{"$f":"記録台帳!DG4","v":"よくある"},{"$f":"記録台帳!DH4","v":"耐え難い"},{"$f":"記録台帳!DI4","v":"ときどき"},{"$f":"記録台帳!DJ4","v":"よくある"},{"$f":"記録台帳!DK4","v":"耐え難い"},{"$f":"記録台帳!DL4","v":"ときどき"},{"$f":"記録台帳!DM4","v":"よくある"},{"$f":"記録台帳!DN4","v":"耐え難い"},{"$f":"記録台帳!DO4","v":"ときどき"},{"$f":"記録台帳!DP4","v":"よくある"},{"$f":"記録台帳!DQ4","v":"耐え難い"},{"$f":"記録台帳!DR4","v":"ときどき"},{"$f":"記録台帳!DS4","v":"よくある"},{"$f":"記録台帳!DT4","v":"耐え難い"},{"$f":"記録台帳!DU4","v":"ときどき"},{"$f":"記録台帳!DV4","v":"よくある"},{"$f":"記録台帳!DW4","v":"耐え難い"},{"$f":"記録台帳!DX4","v":"ときどき"},{"$f":"記録台帳!DY4","v":"よくある"},{"$f":"記録台帳!DZ4","v":"耐え難い"},{"$f":"記録台帳!EA4","v":"ときどき"},{"$f":"記録台帳!EB4","v":"よくある"},{"$f":"記録台帳!EC4","v":"耐え難い"},{"$f":"記録台帳!ED4","v":"ときどき"},{"$f":"記録台帳!EE4","v":"よくある"},{"$f":"記録台帳!EF4","v":"耐え難い"},{"$f":"記録台帳!EG4","v":"ときどき"},{"$f":"記録台帳!EH4","v":"よくある"},{"$f":"記録台帳!EI4","v":"耐え難い"},{"$f":"記録台帳!EJ4","v":"良い"},{"$f":"記録台帳!EK4","v":"やや悪い"},{"$f":"記録台帳!EL4","v":"悪い"},{"$f":"記録台帳!EM4","v":"その他の問題"},{"$f":"記録台帳!EN4","v":"近所なら\n自由に行動"},{"$f":"記録台帳!EO4","v":"家の中なら\n自由に行動"},{"$f":"記録台帳!EP4","v":"起きて生活\n屋外は補助"},{"$f":"記録台帳!EQ4","v":"伝い歩き\n寝たり起きたり"},{"$f":"記録台帳!ER4","v":"介助あれば\n起きて生活"},{"$f":"記録台帳!ES4","v":"介助により\n寝たり起きたり"},{"$f":"記録台帳!ET4","v":"寝室中心\nの生活"},{"$f":"記録台帳!EU4","v":"離床しない"},{"$f":"記録台帳!EV4","v":"問題なし"},{"$f":"記録台帳!EW4","v":"遠い"},{"$f":"記録台帳!EX4","v":"ひどく遠い"},{"$f":"記録台帳!EY4","v":"聴力なし\n確認できない"},{"$f":"記録台帳!EZ4","v":"年齢相応"},{"$f":"記録台帳!FA4","v":"かなり悪い\n半盲"},{"$f":"記録台帳!FB4","v":"失明"},{"$f":"記録台帳!FC4","v":"問題なし"},{"$f":"記録台帳!FD4","v":"なんとか通じる"},{"$f":"記録台帳!FE4","v":"かなり厳しい"},{"$f":"記録台帳!FF4","v":"ほぼ不可能"},{"$f":"記録台帳!FG4","v":"錯乱状態"},{"$f":"記録台帳!FH4","v":"身長"},{"$f":"記録台帳!FI4","v":"体重"},{"$f":"記録台帳!FJ4","v":"本人月収"},{"$f":"記録台帳!FK4","v":"1ヶ月に本人と親族が\n支出できる限界金額"},{"$f":"記録台帳!FL4","v":"特別な\n事情"},{"$f":"記録台帳!FM4","v":"申し込み済施設1"},{"$f":"記録台帳!FN4","v":"申し込み済施設2"},{"$f":"記録台帳!FO4","v":"申し込み済施設3"},{"$f":"記録台帳!FP4","v":"申し込み済施設4"},{"$f":"記録台帳!FQ4","v":"申し込み済施設5"},{"$f":"記録台帳!FR4","v":"申し込み済施設6"},{"$f":"記録台帳!FS4","v":"申し込み済施設7"},{"$f":"記録台帳!FT4","v":"申し込み済施設8"},{"$f":"記録台帳!FU4","v":"申し込み予定施設1"},{"$f":"記録台帳!FV4","v":"申し込み予定施設2"},{"$f":"記録台帳!FW4","v":"申し込み予定施設3"},{"$f":"記録台帳!FX4","v":"申し込み予定施設4"},{"$f":"記録台帳!FY4","v":"申し込み予定施設5"},{"$f":"記録台帳!FZ4","v":"申し込み予定施設6"},{"$f":"記録台帳!GA4","v":"申し込み予定施設7"},{"$f":"記録台帳!GB4","v":"申し込み予定施設8"},{"$f":"記録台帳!GC4","v":"脳梗塞"},{"$f":"記録台帳!GD4","v":"心臓疾患"},{"$f":"記録台帳!GE4","v":"糖尿病"},{"$f":"記録台帳!GF4","v":"癌"},{"$f":"記録台帳!GG4","v":"認知症"},{"$f":"記録台帳!GH4","v":"脳挫傷"},{"$f":"記録台帳!GI4","v":"緑内障"},{"$f":"記録台帳!GJ4","v":"大腿部骨折"},{"$f":"記録台帳!GK4","v":"脳内出血"},{"$f":"記録台帳!GL4","v":"呼吸器系疾患"},{"$f":"記録台帳!GM4","v":"腎臓疾患"},{"$f":"記録台帳!GN4","v":"リューマチ"},{"$f":"記録台帳!GO4","v":"うつ病"},{"$f":"記録台帳!GP4","v":"胆石"},{"$f":"記録台帳!GQ4","v":"白内障"},{"$f":"記録台帳!GR4","v":"脊髄等損傷"},{"$f":"記録台帳!GS4","v":"高血圧症"},{"$f":"記録台帳!GT4","v":"喘息"},{"$f":"記録台帳!GU4","v":"肝炎・肝硬変"},{"$f":"記録台帳!GV4","v":"パーキンソン"},{"$f":"記録台帳!GW4","v":"統合失調症"},{"$f":"記録台帳!GX4","v":"尿管結石等"},{"$f":"記録台帳!GY4","v":"結核"},{"$f":"記録台帳!GZ4","v":"変形性膝関節症"},{"$f":"記録台帳!HA4","v":"人工肛門処置"},{"$f":"記録台帳!HB4","v":"腸瘻"},{"$f":"記録台帳!HC4","v":"膀胱洗浄"},{"$f":"記録台帳!HD4","v":"導尿"},{"$f":"記録台帳!HE4","v":"ＩＶＨ"},{"$f":"記録台帳!HF4","v":"透析"},{"$f":"記録台帳!HG4","v":"尿カテーテル"},{"$f":"記録台帳!HH4","v":"看取り"},{"$f":"記録台帳!HI4","v":"非常に多い"},{"$f":"記録台帳!HJ4","v":"やや多い"},{"$f":"記録台帳!HK4","v":"少しあり"},{"$f":"記録台帳!HL4","v":"なし"},{"$f":"記録台帳!HM4","v":"６０％以上"},{"$f":"記録台帳!HN4","v":"５０％以上"},{"$f":"記録台帳!HO4","v":"３０％以上"},{"$f":"記録台帳!HP4","v":"３０％未満"},{"$f":"記録台帳!HQ4","v":"７０歳以上"},{"$f":"記録台帳!HR4","v":"６０歳以上"},{"$f":"記録台帳!HS4","v":"６０歳未満"},"重い","やや重い","軽い","なし","介護困難","多少困難","介護可能","なし","フルタイム\n高齢のため","４時間以上","４時間未満","なし","常時","半日程度","随時","なし","介護拒否","非常に消極的","やや消極的","ふつう","ほとんどなし","随時あり","常時あり","ほとんどなし","随時あり","常時あり","ほとんどなし","随時あり","常時あり","独自点数"]
[null,{"$f":"IF(E5=\"\",\"\",ROW()-4)","v":""}]
[null,{"$f":"IF(E6=\"\",\"\",ROW()-4)","v":""}]
[null,{"$f":"IF(E7=\"\",\"\",ROW()-4)","v":""}]
[null,{"$f":"IF(E8=\"\",\"\",ROW()-4)","v":""}]
[null,{"$f":"IF(E9=\"\",\"\",ROW()-4)","v":""}]
[null,{"$f":"IF(E10=\"\",\"\",ROW()-4)","v":""}]
[null,{"$f":"IF(E11=\"\",\"\",ROW()-4)","v":""}]
[]
[]
[]
[]
[]
[]
[]
[]
[]
[]
[]
[]
[]
[]
[]
[]
[]
[]
[]
[]
[]
[]
[]
[]
[]
[]
[]
[]
[]
[]
[]
[]
[]
[]
[]
[]
[]
[]
[]
[]
[]
[]
[]
[]
[]
[]
[]
[]
[]
[]
[]
[]
[]
[]
[]
[]
[]
[]
[]
[]
[]
[]
[]
[]
[]
[]
[]
[]
[]
[]
[]
[]
[]
[]
[]
[]
[]
[]
[]
[]
[]
[]
[]
[]
[]
[]
[]
[]
[]
[]
[]
[]
[]
[]
[]
[]
[]
[]
[]
[]
[]
[]
[]
[]
[]
[]
[]
[]
[]
[]
[]
[]
[]
[]
[]
[]
[]
[]
[]
[]
[]
[]
[]
[]
[]
[]
[]
[]
[]
[]
[]
[]
[]
[]
[]
[]
[]
[]
[]
[]
[]
[]
[]
[]
[]
[]
[]
[]
[]
[]
[]
[]
[]
[]
[]
[]
[]
[]
[]
[]
[]
[]
[]
[]
[]
[]
[]
[]
[]
[]
[]
[]
[]
[]
[]
[]
[]
[]
[]
[]
[]
[]
[]
[]
[]
[]
[]
[]
[]
[]
[]
[]
[]
[]
[]
[]
[]
[]
[]
[]
[]
[]
[]
[]
[]
[]
[]
[]
[]
[]
[]
[]
[]
[]
[]
[]
[]
[]
[]
[]
[]
[]
[]
[]
[]
[]
[]
[]
[]
[]
[]
[]
[]
[]
[]
[]
[]
[]
[]
[]
[]
[]
[]
[]
[]
[]
[]
[]
[]
[]
[]
[]
[]
[]
[]
[]
[]
[]
[]
[]
[]
[]
[]
[]
[]
[]
[]
[]
[]
[]
[]
[]
[]
[]
[]
[]
[]
[]
[]
[]
[]
[]
[]
[]
[]
[]
[]
[]
[]
[]
[]
[]
[]
[]
[]
[]
[]
[]
[]
[]
[]
[]
[]
[]
[]
[]
[]
[]
[]
[]
[]
[]
[]
[]
[]
[]
[]
[]
[]
[]
[]
[]
[]
[]
[]
[]
[]
[]
[]
[]
[]
[]
[]
[]
[]
[]
[]
[]
[]
[]
[]
[]
[]
[]
[]
[]
[]
[]
[]
[]
[]
[]
[]
[]
[]
[]
[]
[]
[]
[]
[]
[]
[]
[]
[]
[]
[]
[]
[]
[]
[]
[]
[]
[]
[]
[]
[]
[]
[]
[]
[]
[]
[]
[]
[]
[]
[]
[]
[]
[]
[]
[]
[]
[]
[]
[]
[]
[]
[]
[]
[]
[]
[]
[]
[]
[]
[]
[]
[]
[]
[]
[]
[]
[]
[]
[]
[]
[]
[]
[]
[]
[]
[]
[]
[]
[]
[]
[]
[]
[]
[]
[]
[]
[]
[]
[]
[]
[]
[]
[]
[]
[]
[]
[]
[]
[]
[]
[]
[]
[]
[]
[]
[]
[]
[]
[]
[]
[]
[]
[]
[]
[]
[]
[]
[]
[]
[]
[]
[]
[]
[]
[]
[]
[]
[]
[]
[]
[]
[]
[]
[]
[]
[]
[]
[]
[]
[]
[]
[]
[]
[]
[]
[]
[]
[]
[]
[]
[]
[]
[]
[]
[]
[]
[]
[]
[]
[]
[]
[]
[]
[]
[]
[]
[]
[]
[]
[]
[]
[]
[]
[]
[]
[]
[]
[]
[]
[]
[]
[]
[]
[]
[]
[]
[]
[]
[]
[]
[]
[]
[]
[]
[]
[]
[]
[]
[]
[]
[]
[]
[]
[]
[]
[]
[]
[]
[]
[]
[]
[]
[]
[]
[]
[]
[]
[]
[]
[]
[]
[null,null,null,null,null,null,null,null,null,null,null,null,null,null,null,null,null,null,null,null,{"$f":"IF(C580=\"\",0,(NOW()-C580)/(NOW()-MIN($C$5:$C$1004))*20)","v":"00:00:00"},{"$f":"IF(OR(L580=\"自立\",L580=\"要支援\",L580=\"未申請\"),0,L580)+(IF(OR(M580=\"自立\",M580=\"要支援\"),0,M580))*2","v":0},{"$f":"N580*(N580-1)","v":0},{"$f":"O580*4","v":0},{"$f":"IF(P580=\"\",0,((5-P580)*6))","v":0},{"$f":"IF(J580=\"市原市\",5)+IF(K580=\"○\",3)","v":0}]
[null,null,null,null,null,null,null,null,null,null,null,null,null,null,null,null,null,null,null,null,"00:00:00",0,{"$f":"N581*(N581-1)","v":0},{"$f":"O581*4","v":0},{"$f":"IF(P581=\"\",0,((5-P581)*6))","v":0},{"$f":"IF(J581=\"市原市\",5)+IF(K581=\"○\",3)","v":0}]
[null,null,null,null,null,null,null,null,null,null,null,null,null,null,null,null,null,null,null,null,"00:00:00",0,0,0,0,0]
[null,null,null,null,null,null,null,null,null,null,null,null,null,null,null,null,null,null,null,null,"00:00:00",0,0,0,0,0]
[null,null,null,null,null,null,null,null,null,null,null,null,null,null,null,null,null,null,null,null,"00:00:00",0,0,0,0,0]
[null,null,null,null,null,null,null,null,null,null,null,null,null,null,null,null,null,null,null,null,"00:00:00",0,0,0,0,0]
[null,null,null,null,null,null,null,null,null,null,null,null,null,null,null,null,null,null,null,null,"00:00:00",0,0,0,0,0]
[null,null,null,null,null,null,null,null,null,null,null,null,null,null,null,null,null,null,null,null,"00:00:00",0,0,0,0,0]
[null,null,null,null,null,null,null,null,null,null,null,null,null,null,null,null,null,null,null,null,"00:00:00",0,0,0,0,0]
[null,null,null,null,null,null,null,null,null,null,null,null,null,null,null,null,null,null,null,null,"00:00:00",0,0,0,0,0]
[null,null,null,null,null,null,null,null,null,null,null,null,null,null,null,null,null,null,null,null,"00:00:00",0,0,0,0,0]
[null,null,null,null,null,null,null,null,null,null,null,null,null,null,null,null,null,null,null,null,"00:00:00",0,0,0,0,0]
[null,null,null,null,null,null,null,null,null,null,null,null,null,null,null,null,null,null,null,null,"00:00:00",0,0,0,0,0]
[null,null,null,null,null,null,null,null,null,null,null,null,null,null,null,null,null,null,null,null,"00:00:00",0,0,0,0,0]
[null,null,null,null,null,null,null,null,null,null,null,null,null,null,null,null,null,null,null,null,"00:00:00",0,0,0,0,0]
[null,null,null,null,null,null,null,null,null,null,null,null,null,null,null,null,null,null,null,null,"00:00:00",0,0,0,0,0]
[null,null,null,null,null,null,null,null,null,null,null,null,null,null,null,null,null,null,null,null,"00:00:00",0,0,0,0,0]
[null,null,null,null,null,null,null,null,null,null,null,null,null,null,null,null,null,null,null,null,"00:00:00",0,0,0,0,0]
[null,null,null,null,null,null,null,null,null,null,null,null,null,null,null,null,null,null,null,null,"00:00:00",0,0,0,0,0]
[null,null,null,null,null,null,null,null,null,null,null,null,null,null,null,null,null,null,null,null,"00:00:00",0,0,0,0,0]
[null,null,null,null,null,null,null,null,null,null,null,null,null,null,null,null,null,null,null,null,"00:00:00",0,0,0,0,0]
[null,null,null,null,null,null,null,null,null,null,null,null,null,null,null,null,null,null,null,null,"00:00:00",0,0,0,0,0]
[null,null,null,null,null,null,null,null,null,null,null,null,null,null,null,null,null,null,null,null,"00:00:00",0,0,0,0,0]
[null,null,null,null,null,null,null,null,null,null,null,null,null,null,null,null,null,null,null,null,"00:00:00",0,0,0,0,0]
[null,null,null,null,null,null,null,null,null,null,null,null,null,null,null,null,null,null,null,null,"00:00:00",0,0,0,0,0]
[null,null,null,null,null,null,null,null,null,null,null,null,null,null,null,null,null,null,null,null,"00:00:00",0,0,0,0,0]
[null,null,null,null,null,null,null,null,null,null,null,null,null,null,null,null,null,null,null,null,"00:00:00",0,0,0,0,0]
[null,null,null,null,null,null,null,null,null,null,null,null,null,null,null,null,null,null,null,null,"00:00:00",0,0,0,0,0]
[null,null,null,null,null,null,null,null,null,null,null,null,null,null,null,null,null,null,null,null,"00:00:00",0,0,0,0,0]
[null,null,null,null,null,null,null,null,null,null,null,null,null,null,null,null,null,null,null,null,"00:00:00",0,0,0,0,0]
[null,null,null,null,null,null,null,null,null,null,null,null,null,null,null,null,null,null,null,null,"00:00:00",0,0,0,0,0]
[null,null,null,null,null,null,null,null,null,null,null,null,null,null,null,null,null,null,null,null,"00:00:00",0,0,0,0,0]
[null,null,null,null,null,null,null,null,null,null,null,null,null,null,null,null,null,null,null,null,"00:00:00",0,0,0,0,0]
[null,null,null,null,null,null,null,null,null,null,null,null,null,null,null,null,null,null,null,null,"00:00:00",0,0,0,0,0]
[null,null,null,null,null,null,null,null,null,null,null,null,null,null,null,null,null,null,null,null,"00:00:00",0,0,0,0,0]
[null,null,null,null,null,null,null,null,null,null,null,null,null,null,null,null,null,null,null,null,"00:00:00",0,0,0,0,0]
[null,null,null,null,null,null,null,null,null,null,null,null,null,null,null,null,null,null,null,null,"00:00:00",0,0,0,0,0]
[null,null,null,null,null,null,null,null,null,null,null,null,null,null,null,null,null,null,null,null,"00:00:00",0,0,0,0,0]
[null,null,null,null,null,null,null,null,null,null,null,null,null,null,null,null,null,null,null,null,"00:00:00",0,0,0,0,0]
[null,null,null,null,null,null,null,null,null,null,null,null,null,null,null,null,null,null,null,null,"00:00:00",0,0,0,0,0]
[null,null,null,null,null,null,null,null,null,null,null,null,null,null,null,null,null,null,null,null,"00:00:00",0,0,0,0,0]
[null,null,null,null,null,null,null,null,null,null,null,null,null,null,null,null,null,null,null,null,"00:00:00",0,0,0,0,0]
[null,null,null,null,null,null,null,null,null,null,null,null,null,null,null,null,null,null,null,null,"00:00:00",0,0,0,0,0]
[null,null,null,null,null,null,null,null,null,null,null,null,null,null,null,null,null,null,null,null,"00:00:00",0,0,0,0,0]
[null,null,null,null,null,null,null,null,null,null,null,null,null,null,null,null,null,null,null,null,"00:00:00",0,0,0,0,0]
[null,null,null,null,null,null,null,null,null,null,null,null,null,null,null,null,null,null,null,null,"00:00:00",0,0,0,0,0]
[null,null,null,null,null,null,null,null,null,null,null,null,null,null,null,null,null,null,null,null,"00:00:00",0,0,0,0,0]
[null,null,null,null,null,null,null,null,null,null,null,null,null,null,null,null,null,null,null,null,"00:00:00",0,0,0,0,0]
[null,null,null,null,null,null,null,null,null,null,null,null,null,null,null,null,null,null,null,null,"00:00:00",0,0,0,0,0]
[null,null,null,null,null,null,null,null,null,null,null,null,null,null,null,null,null,null,null,null,"00:00:00",0,0,0,0,0]
[null,null,null,null,null,null,null,null,null,null,null,null,null,null,null,null,null,null,null,null,"00:00:00",0,0,0,0,0]
[null,null,null,null,null,null,null,null,null,null,null,null,null,null,null,null,null,null,null,null,"00:00:00",0,0,0,0,0]
[null,null,null,null,null,null,null,null,null,null,null,null,null,null,null,null,null,null,null,null,"00:00:00",0,0,0,0,0]
[null,null,null,null,null,null,null,null,null,null,null,null,null,null,null,null,null,null,null,null,"00:00:00",0,0,0,0,0]
[null,null,null,null,null,null,null,null,null,null,null,null,null,null,null,null,null,null,null,null,"00:00:00",0,0,0,0,0]
[null,null,null,null,null,null,null,null,null,null,null,null,null,null,null,null,null,null,null,null,"00:00:00",0,0,0,0,0]
[null,null,null,null,null,null,null,null,null,null,null,null,null,null,null,null,null,null,null,null,"00:00:00",0,0,0,0,0]
[null,null,null,null,null,null,null,null,null,null,null,null,null,null,null,null,null,null,null,null,"00:00:00",0,0,0,0,0]
[null,null,null,null,null,null,null,null,null,null,null,null,null,null,null,null,null,null,null,null,"00:00:00",0,0,0,0,0]
[null,null,null,null,null,null,null,null,null,null,null,null,null,null,null,null,null,null,null,null,"00:00:00",0,0,0,0,0]
[null,null,null,null,null,null,null,null,null,null,null,null,null,null,null,null,null,null,null,null,"00:00:00",0,0,0,0,0]
[null,null,null,null,null,null,null,null,null,null,null,null,null,null,null,null,null,null,null,null,"00:00:00",0,0,0,0,0]
[null,null,null,null,null,null,null,null,null,null,null,null,null,null,null,null,null,null,null,null,"00:00:00",0,0,0,0,0]
[null,null,null,null,null,null,null,null,null,null,null,null,null,null,null,null,null,null,null,null,"00:00:00",0,0,0,0,0]
[null,null,null,null,null,null,null,null,null,null,null,null,null,null,null,null,null,null,null,null,{"$f":"IF(C644=\"\",0,(NOW()-C644)/(NOW()-MIN($C$5:$C$1004))*20)","v":"00:00:00"},{"$f":"IF(OR(L644=\"自立\",L644=\"要支援\",L644=\"未申請\"),0,L644)+(IF(OR(M644=\"自立\",M644=\"要支援\"),0,M644))*2","v":0},0,0,0,0]
[null,null,null,null,null,null,null,null,null,null,null,null,null,null,null,null,null,null,null,null,"00:00:00",0,{"$f":"N645*(N645-1)","v":0},{"$f":"O645*4","v":0},{"$f":"IF(P645=\"\",0,((5-P645)*6))","v":0},{"$f":"IF(J645=\"市原市\",5)+IF(K645=\"○\",3)","v":0}]
[null,null,null,null,null,null,null,null,null,null,null,null,null,null,null,null,null,null,null,null,"00:00:00",0,0,0,0,0]
[null,null,null,null,null,null,null,null,null,null,null,null,null,null,null,null,null,null,null,null,"00:00:00",0,0,0,0,0]
[null,null,null,null,null,null,null,null,null,null,null,null,null,null,null,null,null,null,null,null,"00:00:00",0,0,0,0,0]
[null,null,null,null,null,null,null,null,null,null,null,null,null,null,null,null,null,null,null,null,"00:00:00",0,0,0,0,0]
[null,null,null,null,null,null,null,null,null,null,null,null,null,null,null,null,null,null,null,null,"00:00:00",0,0,0,0,0]
[null,null,null,null,null,null,null,null,null,null,null,null,null,null,null,null,null,null,null,null,"00:00:00",0,0,0,0,0]
[null,null,null,null,null,null,null,null,null,null,null,null,null,null,null,null,null,null,null,null,"00:00:00",0,0,0,0,0]
[null,null,null,null,null,null,null,null,null,null,null,null,null,null,null,null,null,null,null,null,"00:00:00",0,0,0,0,0]
[null,null,null,null,null,null,null,null,null,null,null,null,null,null,null,null,null,null,null,null,"00:00:00",0,0,0,0,0]
[null,null,null,null,null,null,null,null,null,null,null,null,null,null,null,null,null,null,null,null,"00:00:00",0,0,0,0,0]
[null,null,null,null,null,null,null,null,null,null,null,null,null,null,null,null,null,null,null,null,"00:00:00",0,0,0,0,0]
[null,null,null,null,null,null,null,null,null,null,null,null,null,null,null,null,null,null,null,null,"00:00:00",0,0,0,0,0]
[null,null,null,null,null,null,null,null,null,null,null,null,null,null,null,null,null,null,null,null,"00:00:00",0,0,0,0,0]
[null,null,null,null,null,null,null,null,null,null,null,null,null,null,null,null,null,null,null,null,"00:00:00",0,0,0,0,0]
[null,null,null,null,null,null,null,null,null,null,null,null,null,null,null,null,null,null,null,null,"00:00:00",0,0,0,0,0]
[null,null,null,null,null,null,null,null,null,null,null,null,null,null,null,null,null,null,null,null,"00:00:00",0,0,0,0,0]
[null,null,null,null,null,null,null,null,null,null,null,null,null,null,null,null,null,null,null,null,"00:00:00",0,0,0,0,0]
[null,null,null,null,null,null,null,null,null,null,null,null,null,null,null,null,null,null,null,null,"00:00:00",0,0,0,0,0]
[null,null,null,null,null,null,null,null,null,null,null,null,null,null,null,null,null,null,null,null,"00:00:00",0,0,0,0,0]
[null,null,null,null,null,null,null,null,null,null,null,null,null,null,null,null,null,null,null,null,"00:00:00",0,0,0,0,0]
[null,null,null,null,null,null,null,null,null,null,null,null,null,null,null,null,null,null,null,null,"00:00:00",0,0,0,0,0]
[null,null,null,null,null,null,null,null,null,null,null,null,null,null,null,null,null,null,null,null,"00:00:00",0,0,0,0,0]
[null,null,null,null,null,null,null,null,null,null,null,null,null,null,null,null,null,null,null,null,"00:00:00",0,0,0,0,0]
[null,null,null,null,null,null,null,null,null,null,null,null,null,null,null,null,null,null,null,null,"00:00:00",0,0,0,0,0]
[null,null,null,null,null,null,null,null,null,null,null,null,null,null,null,null,null,null,null,null,"00:00:00",0,0,0,0,0]
[null,null,null,null,null,null,null,null,null,null,null,null,null,null,null,null,null,null,null,null,"00:00:00",0,0,0,0,0]
[null,null,null,null,null,null,null,null,null,null,null,null,null,null,null,null,null,null,null,null,"00:00:00",0,0,0,0,0]
[null,null,null,null,null,null,null,null,null,null,null,null,null,null,null,null,null,null,null,null,"00:00:00",0,0,0,0,0]
[null,null,null,null,null,null,null,null,null,null,null,null,null,null,null,null,null,null,null,null,"00:00:00",0,0,0,0,0]
[null,null,null,null,null,null,null,null,null,null,null,null,null,null,null,null,null,null,null,null,"00:00:00",0,0,0,0,0]
[null,null,null,null,null,null,null,null,null,null,null,null,null,null,null,null,null,null,null,null,"00:00:00",0,0,0,0,0]
[null,null,null,null,null,null,null,null,null,null,null,null,null,null,null,null,null,null,null,null,"00:00:00",0,0,0,0,0]
[null,null,null,null,null,null,null,null,null,null,null,null,null,null,null,null,null,null,null,null,"00:00:00",0,0,0,0,0]
[null,null,null,null,null,null,null,null,null,null,null,null,null,null,null,null,null,null,null,null,"00:00:00",0,0,0,0,0]
[null,null,null,null,null,null,null,null,null,null,null,null,null,null,null,null,null,null,null,null,"00:00:00",0,0,0,0,0]
[null,null,null,null,null,null,null,null,null,null,null,null,null,null,null,null,null,null,null,null,"00:00:00",0,0,0,0,0]
[null,null,null,null,null,null,null,null,null,null,null,null,null,null,null,null,null,null,null,null,"00:00:00",0,0,0,0,0]
[null,null,null,null,null,null,null,null,null,null,null,null,null,null,null,null,null,null,null,null,"00:00:00",0,0,0,0,0]
[null,null,null,null,null,null,null,null,null,null,null,null,null,null,null,null,null,null,null,null,"00:00:00",0,0,0,0,0]
[null,null,null,null,null,null,null,null,null,null,null,null,null,null,null,null,null,null,null,null,"00:00:00",0,0,0,0,0]
[null,null,null,null,null,null,null,null,null,null,null,null,null,null,null,null,null,null,null,null,"00:00:00",0,0,0,0,0]
[null,null,null,null,null,null,null,null,null,null,null,null,null,null,null,null,null,null,null,null,"00:00:00",0,0,0,0,0]
[null,null,null,null,null,null,null,null,null,null,null,null,null,null,null,null,null,null,null,null,"00:00:00",0,0,0,0,0]
[null,null,null,null,null,null,null,null,null,null,null,null,null,null,null,null,null,null,null,null,"00:00:00",0,0,0,0,0]
[null,null,null,null,null,null,null,null,null,null,null,null,null,null,null,null,null,null,null,null,"00:00:00",0,0,0,0,0]
[null,null,null,null,null,null,null,null,null,null,null,null,null,null,null,null,null,null,null,null,"00:00:00",0,0,0,0,0]
[null,null,null,null,null,null,null,null,null,null,null,null,null,null,null,null,null,null,null,null,"00:00:00",0,0,0,0,0]
[null,null,null,null,null,null,null,null,null,null,null,null,null,null,null,null,null,null,null,null,"00:00:00",0,0,0,0,0]
[null,null,null,null,null,null,null,null,null,null,null,null,null,null,null,null,null,null,null,null,"00:00:00",0,0,0,0,0]
[null,null,null,null,null,null,null,null,null,null,null,null,null,null,null,null,null,null,null,null,"00:00:00",0,0,0,0,0]
[null,null,null,null,null,null,null,null,null,null,null,null,null,null,null,null,null,null,null,null,"00:00:00",0,0,0,0,0]
[null,null,null,null,null,null,null,null,null,null,null,null,null,null,null,null,null,null,null,null,"00:00:00",0,0,0,0,0]
[null,null,null,null,null,null,null,null,null,null,null,null,null,null,null,null,null,null,null,null,"00:00:00",0,0,0,0,0]
[null,null,null,null,null,null,null,null,null,null,null,null,null,null,null,null,null,null,null,null,"00:00:00",0,0,0,0,0]
[null,null,null,null,null,null,null,null,null,null,null,null,null,null,null,null,null,null,null,null,"00:00:00",0,0,0,0,0]
[null,null,null,null,null,null,null,null,null,null,null,null,null,null,null,null,null,null,null,null,"00:00:00",0,0,0,0,0]
[null,null,null,null,null,null,null,null,null,null,null,null,null,null,null,null,null,null,null,null,"00:00:00",0,0,0,0,0]
[null,null,null,null,null,null,null,null,null,null,null,null,null,null,null,null,null,null,null,null,"00:00:00",0,0,0,0,0]
[null,null,null,null,null,null,null,null,null,null,null,null,null,null,null,null,null,null,null,null,"00:00:00",0,0,0,0,0]
[null,null,null,null,null,null,null,null,null,null,null,null,null,null,null,null,null,null,null,null,"00:00:00",0,0,0,0,0]
[null,null,null,null,null,null,null,null,null,null,null,null,null,null,null,null,null,null,null,null,"00:00:00",0,0,0,0,0]
[null,null,null,null,null,null,null,null,null,null,null,null,null,null,null,null,null,null,null,null,"00:00:00",0,0,0,0,0]
[null,null,null,null,null,null,null,null,null,null,null,null,null,null,null,null,null,null,null,null,{"$f":"IF(C708=\"\",0,(NOW()-C708)/(NOW()-MIN($C$5:$C$1004))*20)","v":"00:00:00"},{"$f":"IF(OR(L708=\"自立\",L708=\"要支援\",L708=\"未申請\"),0,L708)+(IF(OR(M708=\"自立\",M708=\"要支援\"),0,M708))*2","v":0},0,0,0,0]
[null,null,null,null,null,null,null,null,null,null,null,null,null,null,null,null,null,null,null,null,"00:00:00",0,{"$f":"N709*(N709-1)","v":0},{"$f":"O709*4","v":0},{"$f":"IF(P709=\"\",0,((5-P709)*6))","v":0},{"$f":"IF(J709=\"市原市\",5)+IF(K709=\"○\",3)","v":0}]
[null,null,null,null,null,null,null,null,null,null,null,null,null,null,null,null,null,null,null,null,"00:00:00",0,0,0,0,0]
[null,null,null,null,null,null,null,null,null,null,null,null,null,null,null,null,null,null,null,null,"00:00:00",0,0,0,0,0]
[null,null,null,null,null,null,null,null,null,null,null,null,null,null,null,null,null,null,null,null,"00:00:00",0,0,0,0,0]
[null,null,null,null,null,null,null,null,null,null,null,null,null,null,null,null,null,null,null,null,"00:00:00",0,0,0,0,0]
[null,null,null,null,null,null,null,null,null,null,null,null,null,null,null,null,null,null,null,null,"00:00:00",0,0,0,0,0]
[null,null,null,null,null,null,null,null,null,null,null,null,null,null,null,null,null,null,null,null,"00:00:00",0,0,0,0,0]
[null,null,null,null,null,null,null,null,null,null,null,null,null,null,null,null,null,null,null,null,"00:00:00",0,0,0,0,0]
[null,null,null,null,null,null,null,null,null,null,null,null,null,null,null,null,null,null,null,null,"00:00:00",0,0,0,0,0]
[null,null,null,null,null,null,null,null,null,null,null,null,null,null,null,null,null,null,null,null,"00:00:00",0,0,0,0,0]
[null,null,null,null,null,null,null,null,null,null,null,null,null,null,null,null,null,null,null,null,"00:00:00",0,0,0,0,0]
[null,null,null,null,null,null,null,null,null,null,null,null,null,null,null,null,null,null,null,null,"00:00:00",0,0,0,0,0]
[null,null,null,null,null,null,null,null,null,null,null,null,null,null,null,null,null,null,null,null,"00:00:00",0,0,0,0,0]
[null,null,null,null,null,null,null,null,null,null,null,null,null,null,null,null,null,null,null,null,"00:00:00",0,0,0,0,0]
[null,null,null,null,null,null,null,null,null,null,null,null,null,null,null,null,null,null,null,null,"00:00:00",0,0,0,0,0]
[null,null,null,null,null,null,null,null,null,null,null,null,null,null,null,null,null,null,null,null,"00:00:00",0,0,0,0,0]
[null,null,null,null,null,null,null,null,null,null,null,null,null,null,null,null,null,null,null,null,"00:00:00",0,0,0,0,0]
[null,null,null,null,null,null,null,null,null,null,null,null,null,null,null,null,null,null,null,null,"00:00:00",0,0,0,0,0]
[null,null,null,null,null,null,null,null,null,null,null,null,null,null,null,null,null,null,null,null,"00:00:00",0,0,0,0,0]
[null,null,null,null,null,null,null,null,null,null,null,null,null,null,null,null,null,null,null,null,"00:00:00",0,0,0,0,0]
[null,null,null,null,null,null,null,null,null,null,null,null,null,null,null,null,null,null,null,null,"00:00:00",0,0,0,0,0]
[null,null,null,null,null,null,null,null,null,null,null,null,null,null,null,null,null,null,null,null,"00:00:00",0,0,0,0,0]
[null,null,null,null,null,null,null,null,null,null,null,null,null,null,null,null,null,null,null,null,"00:00:00",0,0,0,0,0]
[null,null,null,null,null,null,null,null,null,null,null,null,null,null,null,null,null,null,null,null,"00:00:00",0,0,0,0,0]
[null,null,null,null,null,null,null,null,null,null,null,null,null,null,null,null,null,null,null,null,"00:00:00",0,0,0,0,0]
[null,null,null,null,null,null,null,null,null,null,null,null,null,null,null,null,null,null,null,null,"00:00:00",0,0,0,0,0]
[null,null,null,null,null,null,null,null,null,null,null,null,null,null,null,null,null,null,null,null,"00:00:00",0,0,0,0,0]
[null,null,null,null,null,null,null,null,null,null,null,null,null,null,null,null,null,null,null,null,"00:00:00",0,0,0,0,0]
[null,null,null,null,null,null,null,null,null,null,null,null,null,null,null,null,null,null,null,null,"00:00:00",0,0,0,0,0]
[null,null,null,null,null,null,null,null,null,null,null,null,null,null,null,null,null,null,null,null,"00:00:00",0,0,0,0,0]
[null,null,null,null,null,null,null,null,null,null,null,null,null,null,null,null,null,null,null,null,"00:00:00",0,0,0,0,0]
[null,null,null,null,null,null,null,null,null,null,null,null,null,null,null,null,null,null,null,null,"00:00:00",0,0,0,0,0]
[null,null,null,null,null,null,null,null,null,null,null,null,null,null,null,null,null,null,null,null,"00:00:00",0,0,0,0,0]
[null,null,null,null,null,null,null,null,null,null,null,null,null,null,null,null,null,null,null,null,"00:00:00",0,0,0,0,0]
[null,null,null,null,null,null,null,null,null,null,null,null,null,null,null,null,null,null,null,null,"00:00:00",0,0,0,0,0]
[null,null,null,null,null,null,null,null,null,null,null,null,null,null,null,null,null,null,null,null,"00:00:00",0,0,0,0,0]
[null,null,null,null,null,null,null,null,null,null,null,null,null,null,null,null,null,null,null,null,"00:00:00",0,0,0,0,0]
[null,null,null,null,null,null,null,null,null,null,null,null,null,null,null,null,null,null,null,null,"00:00:00",0,0,0,0,0]
[null,null,null,null,null,null,null,null,null,null,null,null,null,null,null,null,null,null,null,null,"00:00:00",0,0,0,0,0]
[null,null,null,null,null,null,null,null,null,null,null,null,null,null,null,null,null,null,null,null,"00:00:00",0,0,0,0,0]
[null,null,null,null,null,null,null,null,null,null,null,null,null,null,null,null,null,null,null,null,"00:00:00",0,0,0,0,0]
[null,null,null,null,null,null,null,null,null,null,null,null,null,null,null,null,null,null,null,null,"00:00:00",0,0,0,0,0]
[null,null,null,null,null,null,null,null,null,null,null,null,null,null,null,null,null,null,null,null,"00:00:00",0,0,0,0,0]
[null,null,null,null,null,null,null,null,null,null,null,null,null,null,null,null,null,null,null,null,"00:00:00",0,0,0,0,0]
[null,null,null,null,null,null,null,null,null,null,null,null,null,null,null,null,null,null,null,null,"00:00:00",0,0,0,0,0]
[null,null,null,null,null,null,null,null,null,null,null,null,null,null,null,null,null,null,null,null,"00:00:00",0,0,0,0,0]
[null,null,null,null,null,null,null,null,null,null,null,null,null,null,null,null,null,null,null,null,"00:00:00",0,0,0,0,0]
[null,null,null,null,null,null,null,null,null,null,null,null,null,null,null,null,null,null,null,null,"00:00:00",0,0,0,0,0]
[null,null,null,null,null,null,null,null,null,null,null,null,null,null,null,null,null,null,null,null,"00:00:00",0,0,0,0,0]
[null,null,null,null,null,null,null,null,null,null,null,null,null,null,null,null,null,null,null,null,"00:00:00",0,0,0,0,0]
[null,null,null,null,null,null,null,null,null,null,null,null,null,null,null,null,null,null,null,null,"00:00:00",0,0,0,0,0]
[null,null,null,null,null,null,null,null,null,null,null,null,null,null,null,null,null,null,null,null,"00:00:00",0,0,0,0,0]
[null,null,null,null,null,null,null,null,null,null,null,null,null,null,null,null,null,null,null,null,"00:00:00",0,0,0,0,0]
[null,null,null,null,null,null,null,null,null,null,null,null,null,null,null,null,null,null,null,null,"00:00:00",0,0,0,0,0]
[null,null,null,null,null,null,null,null,null,null,null,null,null,null,null,null,null,null,null,null,"00:00:00",0,0,0,0,0]
[null,null,null,null,null,null,null,null,null,null,null,null,null,null,null,null,null,null,null,null,"00:00:00",0,0,0,0,0]
[null,null,null,null,null,null,null,null,null,null,null,null,null,null,null,null,null,null,null,null,"00:00:00",0,0,0,0,0]
[null,null,null,null,null,null,null,null,null,null,null,null,null,null,null,null,null,null,null,null,"00:00:00",0,0,0,0,0]
[null,null,null,null,null,null,null,null,null,null,null,null,null,null,null,null,null,null,null,null,"00:00:00",0,0,0,0,0]
[null,null,null,null,null,null,null,null,null,null,null,null,null,null,null,null,null,null,null,null,"00:00:00",0,0,0,0,0]
[null,null,null,null,null,null,null,null,null,null,null,null,null,null,null,null,null,null,null,null,"00:00:00",0,0,0,0,0]
[null,null,null,null,null,null,null,null,null,null,null,null,null,null,null,null,null,null,null,null,"00:00:00",0,0,0,0,0]
[null,null,null,null,null,null,null,null,null,null,null,null,null,null,null,null,null,null,null,null,"00:00:00",0,0,0,0,0]
[null,null,null,null,null,null,null,null,null,null,null,null,null,null,null,null,null,null,null,null,{"$f":"IF(C772=\"\",0,(NOW()-C772)/(NOW()-MIN($C$5:$C$1004))*20)","v":"00:00:00"},{"$f":"IF(OR(L772=\"自立\",L772=\"要支援\",L772=\"未申請\"),0,L772)+(IF(OR(M772=\"自立\",M772=\"要支援\"),0,M772))*2","v":0},0,0,0,0]
[null,null,null,null,null,null,null,null,null,null,null,null,null,null,null,null,null,null,null,null,"00:00:00",0,{"$f":"N773*(N773-1)","v":0},{"$f":"O773*4","v":0},{"$f":"IF(P773=\"\",0,((5-P773)*6))","v":0},{"$f":"IF(J773=\"市原市\",5)+IF(K773=\"○\",3)","v":0}]
[null,null,null,null,null,null,null,null,null,null,null,null,null,null,null,null,null,null,null,null,"00:00:00",0,0,0,0,0]
[null,null,null,null,null,null,null,null,null,null,null,null,null,null,null,null,null,null,null,null,"00:00:00",0,0,0,0,0]
[null,null,null,null,null,null,null,null,null,null,null,null,null,null,null,null,null,null,null,null,"00:00:00",0,0,0,0,0]
[null,null,null,null,null,null,null,null,null,null,null,null,null,null,null,null,null,null,null,null,"00:00:00",0,0,0,0,0]
[null,null,null,null,null,null,null,null,null,null,null,null,null,null,null,null,null,null,null,null,"00:00:00",0,0,0,0,0]
[null,null,null,null,null,null,null,null,null,null,null,null,null,null,null,null,null,null,null,null,"00:00:00",0,0,0,0,0]
[null,null,null,null,null,null,null,null,null,null,null,null,null,null,null,null,null,null,null,null,"00:00:00",0,0,0,0,0]
[null,null,null,null,null,null,null,null,null,null,null,null,null,null,null,null,null,null,null,null,"00:00:00",0,0,0,0,0]
[null,null,null,null,null,null,null,null,null,null,null,null,null,null,null,null,null,null,null,null,"00:00:00",0,0,0,0,0]
[null,null,null,null,null,null,null,null,null,null,null,null,null,null,null,null,null,null,null,null,"00:00:00",0,0,0,0,0]
[null,null,null,null,null,null,null,null,null,null,null,null,null,null,null,null,null,null,null,null,"00:00:00",0,0,0,0,0]
[null,null,null,null,null,null,null,null,null,null,null,null,null,null,null,null,null,null,null,null,"00:00:00",0,0,0,0,0]
[null,null,null,null,null,null,null,null,null,null,null,null,null,null,null,null,null,null,null,null,"00:00:00",0,0,0,0,0]
[null,null,null,null,null,null,null,null,null,null,null,null,null,null,null,null,null,null,null,null,"00:00:00",0,0,0,0,0]
[null,null,null,null,null,null,null,null,null,null,null,null,null,null,null,null,null,null,null,null,"00:00:00",0,0,0,0,0]
[null,null,null,null,null,null,null,null,null,null,null,null,null,null,null,null,null,null,null,null,"00:00:00",0,0,0,0,0]
[null,null,null,null,null,null,null,null,null,null,null,null,null,null,null,null,null,null,null,null,"00:00:00",0,0,0,0,0]
[null,null,null,null,null,null,null,null,null,null,null,null,null,null,null,null,null,null,null,null,"00:00:00",0,0,0,0,0]
[null,null,null,null,null,null,null,null,null,null,null,null,null,null,null,null,null,null,null,null,"00:00:00",0,0,0,0,0]
[null,null,null,null,null,null,null,null,null,null,null,null,null,null,null,null,null,null,null,null,"00:00:00",0,0,0,0,0]
[null,null,null,null,null,null,null,null,null,null,null,null,null,null,null,null,null,null,null,null,"00:00:00",0,0,0,0,0]
[null,null,null,null,null,null,null,null,null,null,null,null,null,null,null,null,null,null,null,null,"00:00:00",0,0,0,0,0]
[null,null,null,null,null,null,null,null,null,null,null,null,null,null,null,null,null,null,null,null,"00:00:00",0,0,0,0,0]
[null,null,null,null,null,null,null,null,null,null,null,null,null,null,null,null,null,null,null,null,"00:00:00",0,0,0,0,0]
[null,null,null,null,null,null,null,null,null,null,null,null,null,null,null,null,null,null,null,null,"00:00:00",0,0,0,0,0]
[null,null,null,null,null,null,null,null,null,null,null,null,null,null,null,null,null,null,null,null,"00:00:00",0,0,0,0,0]
[null,null,null,null,null,null,null,null,null,null,null,null,null,null,null,null,null,null,null,null,"00:00:00",0,0,0,0,0]
[null,null,null,null,null,null,null,null,null,null,null,null,null,null,null,null,null,null,null,null,"00:00:00",0,0,0,0,0]
[null,null,null,null,null,null,null,null,null,null,null,null,null,null,null,null,null,null,null,null,"00:00:00",0,0,0,0,0]
[null,null,null,null,null,null,null,null,null,null,null,null,null,null,null,null,null,null,null,null,"00:00:00",0,0,0,0,0]
[null,null,null,null,null,null,null,null,null,null,null,null,null,null,null,null,null,null,null,null,"00:00:00",0,0,0,0,0]
[null,null,null,null,null,null,null,null,null,null,null,null,null,null,null,null,null,null,null,null,"00:00:00",0,0,0,0,0]
[null,null,null,null,null,null,null,null,null,null,null,null,null,null,null,null,null,null,null,null,"00:00:00",0,0,0,0,0]
[null,null,null,null,null,null,null,null,null,null,null,null,null,null,null,null,null,null,null,null,"00:00:00",0,0,0,0,0]
[null,null,null,null,null,null,null,null,null,null,null,null,null,null,null,null,null,null,null,null,"00:00:00",0,0,0,0,0]
[null,null,null,null,null,null,null,null,null,null,null,null,null,null,null,null,null,null,null,null,"00:00:00",0,0,0,0,0]
[null,null,null,null,null,null,null,null,null,null,null,null,null,null,null,null,null,null,null,null,"00:00:00",0,0,0,0,0]
[null,null,null,null,null,null,null,null,null,null,null,null,null,null,null,null,null,null,null,null,"00:00:00",0,0,0,0,0]
[null,null,null,null,null,null,null,null,null,null,null,null,null,null,null,null,null,null,null,null,"00:00:00",0,0,0,0,0]
[null,null,null,null,null,null,null,null,null,null,null,null,null,null,null,null,null,null,null,null,"00:00:00",0,0,0,0,0]
[null,null,null,null,null,null,null,null,null,null,null,null,null,null,null,null,null,null,null,null,"00:00:00",0,0,0,0,0]
[null,null,null,null,null,null,null,null,null,null,null,null,null,null,null,null,null,null,null,null,"00:00:00",0,0,0,0,0]
[null,null,null,null,null,null,null,null,null,null,null,null,null,null,null,null,null,null,null,null,"00:00:00",0,0,0,0,0]
[null,null,null,null,null,null,null,null,null,null,null,null,null,null,null,null,null,null,null,null,"00:00:00",0,0,0,0,0]
[null,null,null,null,null,null,null,null,null,null,null,null,null,null,null,null,null,null,null,null,"00:00:00",0,0,0,0,0]
[null,null,null,null,null,null,null,null,null,null,null,null,null,null,null,null,null,null,null,null,"00:00:00",0,0,0,0,0]
[null,null,null,null,null,null,null,null,null,null,null,null,null,null,null,null,null,null,null,null,"00:00:00",0,0,0,0,0]
[null,null,null,null,null,null,null,null,null,null,null,null,null,null,null,null,null,null,null,null,"00:00:00",0,0,0,0,0]
[null,null,null,null,null,null,null,null,null,null,null,null,null,null,null,null,null,null,null,null,"00:00:00",0,0,0,0,0]
[null,null,null,null,null,null,null,null,null,null,null,null,null,null,null,null,null,null,null,null,"00:00:00",0,0,0,0,0]
[null,null,null,null,null,null,null,null,null,null,null,null,null,null,null,null,null,null,null,null,"00:00:00",0,0,0,0,0]
[null,null,null,null,null,null,null,null,null,null,null,null,null,null,null,null,null,null,null,null,"00:00:00",0,0,0,0,0]
[null,null,null,null,null,null,null,null,null,null,null,null,null,null,null,null,null,null,null,null,"00:00:00",0,0,0,0,0]
[null,null,null,null,null,null,null,null,null,null,null,null,null,null,null,null,null,null,null,null,"00:00:00",0,0,0,0,0]
[null,null,null,null,null,null,null,null,null,null,null,null,null,null,null,null,null,null,null,null,"00:00:00",0,0,0,0,0]
[null,null,null,null,null,null,null,null,null,null,null,null,null,null,null,null,null,null,null,null,"00:00:00",0,0,0,0,0]
[null,null,null,null,null,null,null,null,null,null,null,null,null,null,null,null,null,null,null,null,"00:00:00",0,0,0,0,0]
[null,null,null,null,null,null,null,null,null,null,null,null,null,null,null,null,null,null,null,null,"00:00:00",0,0,0,0,0]
[null,null,null,null,null,null,null,null,null,null,null,null,null,null,null,null,null,null,null,null,"00:00:00",0,0,0,0,0]
[null,null,null,null,null,null,null,null,null,null,null,null,null,null,null,null,null,null,null,null,"00:00:00",0,0,0,0,0]
[null,null,null,null,null,null,null,null,null,null,null,null,null,null,null,null,null,null,null,null,"00:00:00",0,0,0,0,0]
[null,null,null,null,null,null,null,null,null,null,null,null,null,null,null,null,null,null,null,null,"00:00:00",0,0,0,0,0]
[null,null,null,null,null,null,null,null,null,null,null,null,null,null,null,null,null,null,null,null,{"$f":"IF(C836=\"\",0,(NOW()-C836)/(NOW()-MIN($C$5:$C$1004))*20)","v":"00:00:00"},{"$f":"IF(OR(L836=\"自立\",L836=\"要支援\",L836=\"未申請\"),0,L836)+(IF(OR(M836=\"自立\",M836=\"要支援\"),0,M836))*2","v":0},0,0,0,0]
[null,null,null,null,null,null,null,null,null,null,null,null,null,null,null,null,null,null,null,null,"00:00:00",0,{"$f":"N837*(N837-1)","v":0},{"$f":"O837*4","v":0},{"$f":"IF(P837=\"\",0,((5-P837)*6))","v":0},{"$f":"IF(J837=\"市原市\",5)+IF(K837=\"○\",3)","v":0}]
[null,null,null,null,null,null,null,null,null,null,null,null,null,null,null,null,null,null,null,null,"00:00:00",0,0,0,0,0]
[null,null,null,null,null,null,null,null,null,null,null,null,null,null,null,null,null,null,null,null,"00:00:00",0,0,0,0,0]
[null,null,null,null,null,null,null,null,null,null,null,null,null,null,null,null,null,null,null,null,"00:00:00",0,0,0,0,0]
[null,null,null,null,null,null,null,null,null,null,null,null,null,null,null,null,null,null,null,null,"00:00:00",0,0,0,0,0]
[null,null,null,null,null,null,null,null,null,null,null,null,null,null,null,null,null,null,null,null,"00:00:00",0,0,0,0,0]
[null,null,null,null,null,null,null,null,null,null,null,null,null,null,null,null,null,null,null,null,"00:00:00",0,0,0,0,0]
[null,null,null,null,null,null,null,null,null,null,null,null,null,null,null,null,null,null,null,null,"00:00:00",0,0,0,0,0]
[null,null,null,null,null,null,null,null,null,null,null,null,null,null,null,null,null,null,null,null,"00:00:00",0,0,0,0,0]
[null,null,null,null,null,null,null,null,null,null,null,null,null,null,null,null,null,null,null,null,"00:00:00",0,0,0,0,0]
[null,null,null,null,null,null,null,null,null,null,null,null,null,null,null,null,null,null,null,null,"00:00:00",0,0,0,0,0]
[null,null,null,null,null,null,null,null,null,null,null,null,null,null,null,null,null,null,null,null,"00:00:00",0,0,0,0,0]
[null,null,null,null,null,null,null,null,null,null,null,null,null,null,null,null,null,null,null,null,"00:00:00",0,0,0,0,0]
[null,null,null,null,null,null,null,null,null,null,null,null,null,null,null,null,null,null,null,null,"00:00:00",0,0,0,0,0]
[null,null,null,null,null,null,null,null,null,null,null,null,null,null,null,null,null,null,null,null,"00:00:00",0,0,0,0,0]
[null,null,null,null,null,null,null,null,null,null,null,null,null,null,null,null,null,null,null,null,"00:00:00",0,0,0,0,0]
[null,null,null,null,null,null,null,null,null,null,null,null,null,null,null,null,null,null,null,null,"00:00:00",0,0,0,0,0]
[null,null,null,null,null,null,null,null,null,null,null,null,null,null,null,null,null,null,null,null,"00:00:00",0,0,0,0,0]
[null,null,null,null,null,null,null,null,null,null,null,null,null,null,null,null,null,null,null,null,"00:00:00",0,0,0,0,0]
[null,null,null,null,null,null,null,null,null,null,null,null,null,null,null,null,null,null,null,null,"00:00:00",0,0,0,0,0]
[null,null,null,null,null,null,null,null,null,null,null,null,null,null,null,null,null,null,null,null,"00:00:00",0,0,0,0,0]
[null,null,null,null,null,null,null,null,null,null,null,null,null,null,null,null,null,null,null,null,"00:00:00",0,0,0,0,0]
[null,null,null,null,null,null,null,null,null,null,null,null,null,null,null,null,null,null,null,null,"00:00:00",0,0,0,0,0]
[null,null,null,null,null,null,null,null,null,null,null,null,null,null,null,null,null,null,null,null,"00:00:00",0,0,0,0,0]
[null,null,null,null,null,null,null,null,null,null,null,null,null,null,null,null,null,null,null,null,"00:00:00",0,0,0,0,0]
[null,null,null,null,null,null,null,null,null,null,null,null,null,null,null,null,null,null,null,null,"00:00:00",0,0,0,0,0]
[null,null,null,null,null,null,null,null,null,null,null,null,null,null,null,null,null,null,null,null,"00:00:00",0,0,0,0,0]
[null,null,null,null,null,null,null,null,null,null,null,null,null,null,null,null,null,null,null,null,"00:00:00",0,0,0,0,0]
[null,null,null,null,null,null,null,null,null,null,null,null,null,null,null,null,null,null,null,null,"00:00:00",0,0,0,0,0]
[null,null,null,null,null,null,null,null,null,null,null,null,null,null,null,null,null,null,null,null,"00:00:00",0,0,0,0,0]
[null,null,null,null,null,null,null,null,null,null,null,null,null,null,null,null,null,null,null,null,"00:00:00",0,0,0,0,0]
[null,null,null,null,null,null,null,null,null,null,null,null,null,null,null,null,null,null,null,null,"00:00:00",0,0,0,0,0]
[null,null,null,null,null,null,null,null,null,null,null,null,null,null,null,null,null,null,null,null,"00:00:00",0,0,0,0,0]
[null,null,null,null,null,null,null,null,null,null,null,null,null,null,null,null,null,null,null,null,"00:00:00",0,0,0,0,0]
[null,null,null,null,null,null,null,null,null,null,null,null,null,null,null,null,null,null,null,null,"00:00:00",0,0,0,0,0]
[null,null,null,null,null,null,null,null,null,null,null,null,null,null,null,null,null,null,null,null,"00:00:00",0,0,0,0,0]
[null,null,null,null,null,null,null,null,null,null,null,null,null,null,null,null,null,null,null,null,"00:00:00",0,0,0,0,0]
[null,null,null,null,null,null,null,null,null,null,null,null,null,null,null,null,null,null,null,null,"00:00:00",0,0,0,0,0]
[null,null,null,null,null,null,null,null,null,null,null,null,null,null,null,null,null,null,null,null,"00:00:00",0,0,0,0,0]
[null,null,null,null,null,null,null,null,null,null,null,null,null,null,null,null,null,null,null,null,"00:00:00",0,0,0,0,0]
[null,null,null,null,null,null,null,null,null,null,null,null,null,null,null,null,null,null,null,null,"00:00:00",0,0,0,0,0]
[null,null,null,null,null,null,null,null,null,null,null,null,null,null,null,null,null,null,null,null,"00:00:00",0,0,0,0,0]
[null,null,null,null,null,null,null,null,null,null,null,null,null,null,null,null,null,null,null,null,"00:00:00",0,0,0,0,0]
[null,null,null,null,null,null,null,null,null,null,null,null,null,null,null,null,null,null,null,null,"00:00:00",0,0,0,0,0]
[null,null,null,null,null,null,null,null,null,null,null,null,null,null,null,null,null,null,null,null,"00:00:00",0,0,0,0,0]
[null,null,null,null,null,null,null,null,null,null,null,null,null,null,null,null,null,null,null,null,"00:00:00",0,0,0,0,0]
[null,null,null,null,null,null,null,null,null,null,null,null,null,null,null,null,null,null,null,null,"00:00:00",0,0,0,0,0]
[null,null,null,null,null,null,null,null,null,null,null,null,null,null,null,null,null,null,null,null,"00:00:00",0,0,0,0,0]
[null,null,null,null,null,null,null,null,null,null,null,null,null,null,null,null,null,null,null,null,"00:00:00",0,0,0,0,0]
[null,null,null,null,null,null,null,null,null,null,null,null,null,null,null,null,null,null,null,null,"00:00:00",0,0,0,0,0]
[null,null,null,null,null,null,null,null,null,null,null,null,null,null,null,null,null,null,null,null,"00:00:00",0,0,0,0,0]
[null,null,null,null,null,null,null,null,null,null,null,null,null,null,null,null,null,null,null,null,"00:00:00",0,0,0,0,0]
[null,null,null,null,null,null,null,null,null,null,null,null,null,null,null,null,null,null,null,null,"00:00:00",0,0,0,0,0]
[null,null,null,null,null,null,null,null,null,null,null,null,null,null,null,null,null,null,null,null,"00:00:00",0,0,0,0,0]
[null,null,null,null,null,null,null,null,null,null,null,null,null,null,null,null,null,null,null,null,"00:00:00",0,0,0,0,0]
[null,null,null,null,null,null,null,null,null,null,null,null,null,null,null,null,null,null,null,null,"00:00:00",0,0,0,0,0]
[null,null,null,null,null,null,null,null,null,null,null,null,null,null,null,null,null,null,null,null,"00:00:00",0,0,0,0,0]
[null,null,null,null,null,null,null,null,null,null,null,null,null,null,null,null,null,null,null,null,"00:00:00",0,0,0,0,0]
[null,null,null,null,null,null,null,null,null,null,null,null,null,null,null,null,null,null,null,null,"00:00:00",0,0,0,0,0]
[null,null,null,null,null,null,null,null,null,null,null,null,null,null,null,null,null,null,null,null,"00:00:00",0,0,0,0,0]
[null,null,null,null,null,null,null,null,null,null,null,null,null,null,null,null,null,null,null,null,"00:00:00",0,0,0,0,0]
[null,null,null,null,null,null,null,null,null,null,null,null,null,null,null,null,null,null,null,null,"00:00:00",0,0,0,0,0]
[null,null,null,null,null,null,null,null,null,null,null,null,null,null,null,null,null,null,null,null,"00:00:00",0,0,0,0,0]
[null,null,null,null,null,null,null,null,null,null,null,null,null,null,null,null,null,null,null,null,{"$f":"IF(C900=\"\",0,(NOW()-C900)/(NOW()-MIN($C$5:$C$1004))*20)","v":"00:00:00"},{"$f":"IF(OR(L900=\"自立\",L900=\"要支援\",L900=\"未申請\"),0,L900)+(IF(OR(M900=\"自立\",M900=\"要支援\"),0,M900))*2","v":0},0,0,0,0]
[null,null,null,null,null,null,null,null,null,null,null,null,null,null,null,null,null,null,null,null,"00:00:00",0,{"$f":"N901*(N901-1)","v":0},{"$f":"O901*4","v":0},{"$f":"IF(P901=\"\",0,((5-P901)*6))","v":0},{"$f":"IF(J901=\"市原市\",5)+IF(K901=\"○\",3)","v":0}]
[null,null,null,null,null,null,null,null,null,null,null,null,null,null,null,null,null,null,null,null,"00:00:00",0,0,0,0,0]
[null,null,null,null,null,null,null,null,null,null,null,null,null,null,null,null,null,null,null,null,"00:00:00",0,0,0,0,0]
[null,null,null,null,null,null,null,null,null,null,null,null,null,null,null,null,null,null,null,null,"00:00:00",0,0,0,0,0]
[null,null,null,null,null,null,null,null,null,null,null,null,null,null,null,null,null,null,null,null,"00:00:00",0,0,0,0,0]
[null,null,null,null,null,null,null,null,null,null,null,null,null,null,null,null,null,null,null,null,"00:00:00",0,0,0,0,0]
[null,null,null,null,null,null,null,null,null,null,null,null,null,null,null,null,null,null,null,null,"00:00:00",0,0,0,0,0]
[null,null,null,null,null,null,null,null,null,null,null,null,null,null,null,null,null,null,null,null,"00:00:00",0,0,0,0,0]
[null,null,null,null,null,null,null,null,null,null,null,null,null,null,null,null,null,null,null,null,"00:00:00",0,0,0,0,0]
[null,null,null,null,null,null,null,null,null,null,null,null,null,null,null,null,null,null,null,null,"00:00:00",0,0,0,0,0]
[null,null,null,null,null,null,null,null,null,null,null,null,null,null,null,null,null,null,null,null,"00:00:00",0,0,0,0,0]
[null,null,null,null,null,null,null,null,null,null,null,null,null,null,null,null,null,null,null,null,"00:00:00",0,0,0,0,0]
[null,null,null,null,null,null,null,null,null,null,null,null,null,null,null,null,null,null,null,null,"00:00:00",0,0,0,0,0]
[null,null,null,null,null,null,null,null,null,null,null,null,null,null,null,null,null,null,null,null,"00:00:00",0,0,0,0,0]
[null,null,null,null,null,null,null,null,null,null,null,null,null,null,null,null,null,null,null,null,"00:00:00",0,0,0,0,0]
[null,null,null,null,null,null,null,null,null,null,null,null,null,null,null,null,null,null,null,null,"00:00:00",0,0,0,0,0]
[null,null,null,null,null,null,null,null,null,null,null,null,null,null,null,null,null,null,null,null,"00:00:00",0,0,0,0,0]
[null,null,null,null,null,null,null,null,null,null,null,null,null,null,null,null,null,null,null,null,"00:00:00",0,0,0,0,0]
[null,null,null,null,null,null,null,null,null,null,null,null,null,null,null,null,null,null,null,null,"00:00:00",0,0,0,0,0]
[null,null,null,null,null,null,null,null,null,null,null,null,null,null,null,null,null,null,null,null,"00:00:00",0,0,0,0,0]
[null,null,null,null,null,null,null,null,null,null,null,null,null,null,null,null,null,null,null,null,"00:00:00",0,0,0,0,0]
[null,null,null,null,null,null,null,null,null,null,null,null,null,null,null,null,null,null,null,null,"00:00:00",0,0,0,0,0]
[null,null,null,null,null,null,null,null,null,null,null,null,null,null,null,null,null,null,null,null,"00:00:00",0,0,0,0,0]
[null,null,null,null,null,null,null,null,null,null,null,null,null,null,null,null,null,null,null,null,"00:00:00",0,0,0,0,0]
[null,null,null,null,null,null,null,null,null,null,null,null,null,null,null,null,null,null,null,null,"00:00:00",0,0,0,0,0]
[null,null,null,null,null,null,null,null,null,null,null,null,null,null,null,null,null,null,null,null,"00:00:00",0,0,0,0,0]
[null,null,null,null,null,null,null,null,null,null,null,null,null,null,null,null,null,null,null,null,"00:00:00",0,0,0,0,0]
[null,null,null,null,null,null,null,null,null,null,null,null,null,null,null,null,null,null,null,null,"00:00:00",0,0,0,0,0]
[null,null,null,null,null,null,null,null,null,null,null,null,null,null,null,null,null,null,null,null,"00:00:00",0,0,0,0,0]
[null,null,null,null,null,null,null,null,null,null,null,null,null,null,null,null,null,null,null,null,"00:00:00",0,0,0,0,0]
[null,null,null,null,null,null,null,null,null,null,null,null,null,null,null,null,null,null,null,null,"00:00:00",0,0,0,0,0]
[null,null,null,null,null,null,null,null,null,null,null,null,null,null,null,null,null,null,null,null,"00:00:00",0,0,0,0,0]
[null,null,null,null,null,null,null,null,null,null,null,null,null,null,null,null,null,null,null,null,"00:00:00",0,0,0,0,0]
[null,null,null,null,null,null,null,null,null,null,null,null,null,null,null,null,null,null,null,null,"00:00:00",0,0,0,0,0]
[null,null,null,null,null,null,null,null,null,null,null,null,null,null,null,null,null,null,null,null,"00:00:00",0,0,0,0,0]
[null,null,null,null,null,null,null,null,null,null,null,null,null,null,null,null,null,null,null,null,"00:00:00",0,0,0,0,0]
[null,null,null,null,null,null,null,null,null,null,null,null,null,null,null,null,null,null,null,null,"00:00:00",0,0,0,0,0]
[null,null,null,null,null,null,null,null,null,null,null,null,null,null,null,null,null,null,null,null,"00:00:00",0,0,0,0,0]
[null,null,null,null,null,null,null,null,null,null,null,null,null,null,null,null,null,null,null,null,"00:00:00",0,0,0,0,0]
[null,null,null,null,null,null,null,null,null,null,null,null,null,null,null,null,null,null,null,null,"00:00:00",0,0,0,0,0]
[null,null,null,null,null,null,null,null,null,null,null,null,null,null,null,null,null,null,null,null,"00:00:00",0,0,0,0,0]
[null,null,null,null,null,null,null,null,null,null,null,null,null,null,null,null,null,null,null,null,"00:00:00",0,0,0,0,0]
[null,null,null,null,null,null,null,null,null,null,null,null,null,null,null,null,null,null,null,null,"00:00:00",0,0,0,0,0]
[null,null,null,null,null,null,null,null,null,null,null,null,null,null,null,null,null,null,null,null,"00:00:00",0,0,0,0,0]
[null,null,null,null,null,null,null,null,null,null,null,null,null,null,null,null,null,null,null,null,"00:00:00",0,0,0,0,0]
[null,null,null,null,null,null,null,null,null,null,null,null,null,null,null,null,null,null,null,null,"00:00:00",0,0,0,0,0]
[null,null,null,null,null,null,null,null,null,null,null,null,null,null,null,null,null,null,null,null,"00:00:00",0,0,0,0,0]
[null,null,null,null,null,null,null,null,null,null,null,null,null,null,null,null,null,null,null,null,"00:00:00",0,0,0,0,0]
[null,null,null,null,null,null,null,null,null,null,null,null,null,null,null,null,null,null,null,null,"00:00:00",0,0,0,0,0]
[null,null,null,null,null,null,null,null,null,null,null,null,null,null,null,null,null,null,null,null,"00:00:00",0,0,0,0,0]
[null,null,null,null,null,null,null,null,null,null,null,null,null,null,null,null,null,null,null,null,"00:00:00",0,0,0,0,0]
[null,null,null,null,null,null,null,null,null,null,null,null,null,null,null,null,null,null,null,null,"00:00:00",0,0,0,0,0]
[null,null,null,null,null,null,null,null,null,null,null,null,null,null,null,null,null,null,null,null,"00:00:00",0,0,0,0,0]
[null,null,null,null,null,null,null,null,null,null,null,null,null,null,null,null,null,null,null,null,"00:00:00",0,0,0,0,0]
[null,null,null,null,null,null,null,null,null,null,null,null,null,null,null,null,null,null,null,null,"00:00:00",0,0,0,0,0]
[null,null,null,null,null,null,null,null,null,null,null,null,null,null,null,null,null,null,null,null,"00:00:00",0,0,0,0,0]
[null,null,null,null,null,null,null,null,null,null,null,null,null,null,null,null,null,null,null,null,"00:00:00",0,0,0,0,0]
[null,null,null,null,null,null,null,null,null,null,null,null,null,null,null,null,null,null,null,null,"00:00:00",0,0,0,0,0]
[null,null,null,null,null,null,null,null,null,null,null,null,null,null,null,null,null,null,null,null,"00:00:00",0,0,0,0,0]
[null,null,null,null,null,null,null,null,null,null,null,null,null,null,null,null,null,null,null,null,"00:00:00",0,0,0,0,0]
[null,null,null,null,null,null,null,null,null,null,null,null,null,null,null,null,null,null,null,null,"00:00:00",0,0,0,0,0]
[null,null,null,null,null,null,null,null,null,null,null,null,null,null,null,null,null,null,null,null,"00:00:00",0,0,0,0,0]
[null,null,null,null,null,null,null,null,null,null,null,null,null,null,null,null,null,null,null,null,"00:00:00",0,0,0,0,0]
[null,null,null,null,null,null,null,null,null,null,null,null,null,null,null,null,null,null,null,null,{"$f":"IF(C964=\"\",0,(NOW()-C964)/(NOW()-MIN($C$5:$C$1004))*20)","v":"00:00:00"},{"$f":"IF(OR(L964=\"自立\",L964=\"要支援\",L964=\"未申請\"),0,L964)+(IF(OR(M964=\"自立\",M964=\"要支援\"),0,M964))*2","v":0},0,0,0,0]
[null,null,null,null,null,null,null,null,null,null,null,null,null,null,null,null,null,null,null,null,"00:00:00",0,{"$f":"N965*(N965-1)","v":0},{"$f":"O965*4","v":0},{"$f":"IF(P965=\"\",0,((5-P965)*6))","v":0},{"$f":"IF(J965=\"市原市\",5)+IF(K965=\"○\",3)","v":0}]
[null,null,null,null,null,null,null,null,null,null,null,null,null,null,null,null,null,null,null,null,"00:00:00",0,0,0,0,0]
[null,null,null,null,null,null,null,null,null,null,null,null,null,null,null,null,null,null,null,null,"00:00:00",0,0,0,0,0]
[null,null,null,null,null,null,null,null,null,null,null,null,null,null,null,null,null,null,null,null,"00:00:00",0,0,0,0,0]
[null,null,null,null,null,null,null,null,null,null,null,null,null,null,null,null,null,null,null,null,"00:00:00",0,0,0,0,0]
[null,null,null,null,null,null,null,null,null,null,null,null,null,null,null,null,null,null,null,null,"00:00:00",0,0,0,0,0]
[null,null,null,null,null,null,null,null,null,null,null,null,null,null,null,null,null,null,null,null,"00:00:00",0,0,0,0,0]
[null,null,null,null,null,null,null,null,null,null,null,null,null,null,null,null,null,null,null,null,"00:00:00",0,0,0,0,0]
[null,null,null,null,null,null,null,null,null,null,null,null,null,null,null,null,null,null,null,null,"00:00:00",0,0,0,0,0]
[null,null,null,null,null,null,null,null,null,null,null,null,null,null,null,null,null,null,null,null,"00:00:00",0,0,0,0,0]
[null,null,null,null,null,null,null,null,null,null,null,null,null,null,null,null,null,null,null,null,"00:00:00",0,0,0,0,0]
[null,null,null,null,null,null,null,null,null,null,null,null,null,null,null,null,null,null,null,null,"00:00:00",0,0,0,0,0]
[null,null,null,null,null,null,null,null,null,null,null,null,null,null,null,null,null,null,null,null,"00:00:00",0,0,0,0,0]
[null,null,null,null,null,null,null,null,null,null,null,null,null,null,null,null,null,null,null,null,"00:00:00",0,0,0,0,0]
[null,null,null,null,null,null,null,null,null,null,null,null,null,null,null,null,null,null,null,null,"00:00:00",0,0,0,0,0]
[null,null,null,null,null,null,null,null,null,null,null,null,null,null,null,null,null,null,null,null,"00:00:00",0,0,0,0,0]
[null,null,null,null,null,null,null,null,null,null,null,null,null,null,null,null,null,null,null,null,"00:00:00",0,0,0,0,0]
[null,null,null,null,null,null,null,null,null,null,null,null,null,null,null,null,null,null,null,null,"00:00:00",0,0,0,0,0]
[null,null,null,null,null,null,null,null,null,null,null,null,null,null,null,null,null,null,null,null,"00:00:00",0,0,0,0,0]
[null,null,null,null,null,null,null,null,null,null,null,null,null,null,null,null,null,null,null,null,"00:00:00",0,0,0,0,0]
[null,null,null,null,null,null,null,null,null,null,null,null,null,null,null,null,null,null,null,null,"00:00:00",0,0,0,0,0]
[null,null,null,null,null,null,null,null,null,null,null,null,null,null,null,null,null,null,null,null,"00:00:00",0,0,0,0,0]
[null,null,null,null,null,null,null,null,null,null,null,null,null,null,null,null,null,null,null,null,"00:00:00",0,0,0,0,0]
[null,null,null,null,null,null,null,null,null,null,null,null,null,null,null,null,null,null,null,null,"00:00:00",0,0,0,0,0]
[null,null,null,null,null,null,null,null,null,null,null,null,null,null,null,null,null,null,null,null,"00:00:00",0,0,0,0,0]
[null,null,null,null,null,null,null,null,null,null,null,null,null,null,null,null,null,null,null,null,"00:00:00",0,0,0,0,0]
[null,null,null,null,null,null,null,null,null,null,null,null,null,null,null,null,null,null,null,null,"00:00:00",0,0,0,0,0]
[null,null,null,null,null,null,null,null,null,null,null,null,null,null,null,null,null,null,null,null,"00:00:00",0,0,0,0,0]
[null,null,null,null,null,null,null,null,null,null,null,null,null,null,null,null,null,null,null,null,"00:00:00",0,0,0,0,0]
[null,null,null,null,null,null,null,null,null,null,null,null,null,null,null,null,null,null,null,null,"00:00:00",0,0,0,0,0]
[null,null,null,null,null,null,null,null,null,null,null,null,null,null,null,null,null,null,null,null,"00:00:00",0,0,0,0,0]
[null,null,null,null,null,null,null,null,null,null,null,null,null,null,null,null,null,null,null,null,"00:00:00",0,0,0,0,0]
[null,null,null,null,null,null,null,null,null,null,null,null,null,null,null,null,null,null,null,null,"00:00:00",0,0,0,0,0]
[null,null,null,null,null,null,null,null,null,null,null,null,null,null,null,null,null,null,null,null,"00:00:00",0,0,0,0,0]
[null,null,null,null,null,null,null,null,null,null,null,null,null,null,null,null,null,null,null,null,"00:00:00",0,0,0,0,0]
[null,null,null,null,null,null,null,null,null,null,null,null,null,null,null,null,null,null,null,null,"00:00:00",0,0,0,0,0]
[null,null,null,null,null,null,null,null,null,null,null,null,null,null,null,null,null,null,null,null,"00:00:00",0,0,0,0,0]
[null,null,null,null,null,null,null,null,null,null,null,null,null,null,null,null,null,null,null,null,"00:00:00",0,0,0,0,0]
[null,null,null,null,null,null,null,null,null,null,null,null,null,null,null,null,null,null,null,null,"00:00:00",0,0,0,0,0]
[null,null,null,null,null,null,null,null,null,null,null,null,null,null,null,null,null,null,null,null,"00:00:00",0,0,0,0,0]

{"sheet":"記入用","index":4,"n_rows":85,"n_cols":345,"rows_kept":85,"cut":false,"hidden":false,"merged":[[10,64,11,71],[0,81,0,83],[67,8,67,10],[68,8,68,10],[69,8,69,10],[70,8,70,10],[46,139,46,141],[46,142,46,144],[47,121,47,123],[47,124,47,126],[47,127,47,129],[47,130,47,132],[47,136,47,138],[47,139,47,141],[47,142,47,144],[48,127,48,129],[48,130,48,132],[48,133,48,135],[41,121,41,122],[41,123,41,124],[41,125,41,126],[41,130,41,131],[41,132,41,133],[41,134,41,135],[41,139,41,140],[41,141,41,142],[41,143,41,144],[42,121,42,122],[42,123,42,124],[42,125,42,126],[39,130,39,132],[39,133,39,135],[39,136,39,138],[40,121,40,123],[40,124,40,126],[40,127,40,129],[40,130,40,132],[40,133,40,135],[40,136,40,138],[44,143,44,144],[42,130,42,131],[42,132,42,133],[42,134,42,135],[42,139,42,140],[42,141,42,142],[42,143,42,144],[43,139,43,140],[43,141,43,142],[43,143,43,144],[44,121,44,122],[44,123,44,124],[44,125,44,126],[44,130,44,131],[44,132,44,133],[44,134,44,135],[44,139,44,140],[44,141,44,142],[46,127,46,129],[46,130,46,132],[46,133,46,135],[46,136,46,138],[43,121,43,122],[43,123,43,124],[43,125,43,126],[43,130,43,131],[43,132,43,133],[43,134,43,135],[30,127,30,129],[30,130,30,132],[30,133,30,135],[36,121,36,123],[36,124,36,126],[36,127,36,129],[36,130,36,132],[36,133,36,135],[36,136,36,138],[31,121,31,123],[31,124,31,126],[31,127,31,129],[31,130,31,132],[31,133,31,135],[31,136,31,138],[38,127,38,129],[38,130,38,132],[38,133,38,135],[38,136,38,138],[39,121,39,123],[39,124,39,126],[39,127,39,129],[36,139,36,141],[36,142,36,144],[37,121,37,123],[37,124,37,126],[37,127,37,129],[37,133,37,135],[37,136,37,138],[37,139,37,141],[37,142,37,144],[44,118,44,119],[48,96,48,98],[48,99,48,101],[48,102,48,104],[48,105,48,107],[48,108,48,110],[30,121,30,123],[30,124,30,126],[38,121,38,123],[38,124,38,126],[46,117,46,119],[47,96,47,98],[47,99,47,101],[47,102,47,104],[47,105,47,107],[47,111,47,113],[47,114,47,116],[47,117,47,119],[41,96,41,97],[41,98,41,99],[41,100,41,101],[41,105,41,106],[41,107,41,108],[48,121,48,123],[48,124,48,126],[41,118,41,119],[42,96,42,97],[42,98,42,99],[42,100,42,101],[42,105,42,106],[42,107,42,108],[42,109,42,110],[42,114,42,115],[42,116,42,117],[42,118,42,119],[43,96,43,97],[43,98,43,99],[43,100,43,101],[43,105,43,106],[43,107,43,108],[43,109,43,110],[43,118,43,119],[46,121,46,123],[46,124,46,126],[39,111,39,113],[40,96,40,98],[40,99,40,101],[40,102,40,104],[40,105,40,107],[40,108,40,110],[40,111,40,113],[46,96,46,98],[46,99,46,101],[46,102,46,104],[46,105,46,107],[46,108,46,110],[46,111,46,113],[46,114,46,116],[43,114,43,115],[43,116,43,117],[41,109,41,110],[41,114,41,115],[41,116,41,117],[44,96,44,97],[44,98,44,99],[44,100,44,101],[44,105,44,106],[44,107,44,108],[44,109,44,110],[44,114,44,115],[44,116,44,117],[17,186,18,187],[19,176,20,177],[19,178,20,179],[19,180,20,181],[19,182,20,183],[19,184,20,185],[19,186,20,187],[19,174,20,175],[12,174,13,175],[12,176,13,177],[12,178,13,179],[12,180,13,181],[12,182,13,183],[12,184,13,185],[12,186,13,187],[14,174,15,175],[14,176,15,177],[14,178,15,179],[14,180,15,181],[14,182,15,183],[14,184,15,185],[14,186,15,187],[17,174,18,175],[17,176,18,177],[17,178,18,179],[17,180,18,181],[17,182,18,183],[17,184,18,185],[36,111,36,113],[36,114,36,116],[36,117,36,119],[37,96,37,98],[26,55,26,58],[30,50,30,51],[30,52,30,58],[28,74,28,76],[28,77,28,79],[28,80,28,82],[28,83,28,85],[28,86,28,88],[31,111,31,113],[31,114,31,116],[31,117,31,119],[27,50,27,52],[27,53,27,55],[27,56,27,58],[29,74,29,76],[29,77,29,79],[29,80,29,82],[29,83,29,85],[27,114,27,116],[28,117,28,119],[29,117,29,119],[30,96,30,98],[30,99,30,101],[30,102,30,104],[30,105,30,107],[30,108,30,110],[36,96,36,98],[36,99,36,101],[36,102,36,104],[36,105,36,107],[36,108,36,110],[39,102,39,104],[39,105,39,107],[39,108,39,110],[29,86,29,88],[24,62,24,65],[24,66,24,73],[39,68,39,70],[39,71,39,73],[39,80,39,82],[38,80,38,82],[38,83,38,84],[39,74,39,76],[38,86,38,87],[39,86,39,87],[36,83,36,85],[37,62,37,64],[39,62,39,64],[32,62,33,63],[29,71,29,73],[25,85,25,88],[26,85,26,88],[30,80,30,81],[30,82,30,88],[35,65,35,66],[35,71,35,72],[35,77,35,78],[35,83,35,84],[37,65,37,67],[37,68,37,70],[11,42,11,43],[43,25,43,26],[43,27,43,28],[38,8,38,10],[38,11,38,13],[38,14,38,16],[20,14,21,28],[9,10,9,11],[4,3,4,17],[6,45,6,47],[4,33,4,47],[40,80,40,82],[40,83,40,85],[40,86,40,87],[7,64,7,71],[7,72,7,73],[8,62,8,69],[8,70,8,71],[10,4,11,11],[12,21,13,22],[12,53,12,58],[13,53,13,58],[12,51,13,52],[10,34,11,41],[12,81,13,82],[14,85,15,86],[14,87,15,88],[16,74,16,88],[17,74,18,88],[12,77,13,78],[12,79,13,80],[12,83,12,88],[3,82,3,88],[41,62,41,64],[19,62,19,65],[19,66,19,73],[22,69,22,73],[22,74,22,88],[23,62,23,65],[23,69,23,73],[23,74,24,88],[1,6,2,7],[1,10,2,11],[1,14,2,15],[1,30,2,31],[36,65,36,67],[38,17,38,19],[37,17,37,19],[37,20,37,22],[37,23,37,25],[30,8,30,10],[30,11,30,13],[1,66,2,67],[1,62,2,63],[1,24,2,25],[1,27,2,28],[1,26,2,26],[9,54,9,58],[9,42,9,43],[10,42,10,43],[12,62,18,63],[12,64,18,73],[12,74,15,74],[12,75,13,76],[13,83,13,88],[14,75,15,76],[14,77,15,78],[9,44,9,53],[11,45,11,58],[42,83,42,84],[42,85,42,86],[42,87,42,88],[0,73,0,75],[0,77,0,79],[37,80,37,82],[0,85,0,87],[0,69,0,71],[39,77,39,79],[38,74,38,76],[38,65,38,67],[38,68,38,70],[38,71,38,73],[37,74,37,76],[38,62,38,64],[35,62,35,64],[14,79,15,80],[14,81,15,82],[14,83,15,84],[19,74,19,88],[20,74,21,88],[21,62,21,65],[36,80,36,82],[36,62,36,64],[30,65,30,67],[30,68,30,70],[30,71,30,73],[40,68,40,70],[40,71,40,73],[40,74,40,76],[38,2,38,4],[38,5,38,7],[1,3,2,4],[0,3,0,4],[2,19,2,22],[8,44,8,53],[10,72,10,73],[8,74,8,83],[8,84,8,88],[6,62,6,63],[6,75,6,77],[6,79,6,88],[7,62,7,63],[7,75,7,88],[9,74,9,83],[9,84,9,88],[9,72,9,73],[10,75,10,76],[10,78,10,82],[10,84,10,88],[4,63,4,77],[4,79,4,81],[4,82,4,88],[4,19,4,21],[4,22,4,28],[8,72,8,73],[7,32,7,33],[8,24,8,28],[4,49,4,51],[4,52,4,58],[6,34,6,41],[6,42,6,43],[7,34,7,41],[7,42,7,43],[8,32,8,39],[8,40,8,41],[6,64,6,71],[6,72,6,73],[39,2,39,4],[39,5,39,7],[39,8,39,10],[39,11,39,13],[39,14,39,16],[39,17,39,19],[39,20,39,22],[39,23,39,24],[27,11,27,13],[27,14,27,16],[27,17,27,19],[27,20,27,22],[34,18,34,28],[34,2,34,7],[31,20,31,22],[7,2,7,3],[11,15,11,28],[11,12,11,13],[10,12,10,13],[9,24,9,28],[8,12,8,13],[10,2,11,3],[10,15,10,16],[48,2,49,4],[43,2,43,4],[43,5,43,6],[43,7,43,8],[43,9,43,10],[43,11,43,13],[43,14,43,15],[43,16,43,17],[43,18,43,19],[43,20,43,22],[43,23,43,24],[41,14,41,15],[41,16,41,17],[41,18,41,19],[41,20,41,22],[47,2,47,4],[47,5,47,7],[41,23,41,24],[47,8,47,10],[47,11,47,13],[47,14,47,16],[47,17,47,19],[47,20,47,22],[47,23,47,25],[41,25,41,26],[47,26,47,28],[44,25,44,26],[44,27,44,28],[45,2,45,4],[45,5,45,28],[46,2,46,4],[46,5,46,7],[40,2,40,4],[40,5,40,7],[40,8,40,10],[40,11,40,13],[40,14,40,16],[40,17,40,19],[40,20,40,22],[21,2,21,5],[19,14,19,28],[17,14,18,28],[19,2,19,5],[19,6,19,13],[20,2,20,8],[20,9,20,13],[21,9,21,13],[22,2,22,5],[22,9,22,13],[22,14,22,28],[30,14,30,16],[30,17,30,19],[30,5,30,7],[35,2,35,4],[23,2,23,5],[23,9,23,13],[23,14,24,28],[24,2,24,5],[24,6,24,13],[25,5,26,24],[25,25,25,28],[26,25,26,28],[27,5,27,7],[27,8,27,10],[10,18,10,22],[10,24,10,28],[12,2,18,3],[12,4,18,13],[12,14,15,14],[12,15,13,16],[16,14,16,28],[12,19,13,20],[12,23,12,28],[13,23,13,28],[14,15,15,16],[14,17,15,18],[14,19,15,20],[14,21,15,22],[14,23,15,24],[14,25,15,26],[14,27,15,28],[6,32,6,33],[7,45,7,58],[6,49,6,58],[8,54,8,58],[8,42,8,43],[39,38,39,40],[21,32,21,35],[30,41,30,43],[36,32,36,34],[36,35,36,37],[36,38,36,40],[36,41,36,43],[35,32,35,34],[6,2,6,3],[6,15,6,17],[6,19,6,28],[7,15,7,28],[8,14,8,23],[9,12,9,13],[9,14,9,23],[6,4,6,11],[6,12,6,13],[7,4,7,11],[7,12,7,13],[8,2,8,9],[8,10,8,11],[9,2,9,9],[38,32,38,34],[39,41,39,43],[37,32,37,34],[36,44,36,46],[9,32,9,39],[20,62,20,68],[20,69,20,73],[21,69,21,73],[22,62,22,65],[30,35,30,37],[39,32,39,34],[39,35,39,37],[38,35,38,37],[38,38,38,40],[38,41,38,43],[37,35,37,37],[37,38,37,40],[37,41,37,43],[38,47,38,49],[38,50,38,52],[37,44,37,46],[37,56,37,58],[38,56,38,57],[39,56,39,57],[35,53,35,54],[36,56,36,58],[32,32,33,33],[20,44,21,58],[36,47,36,49],[30,47,30,49],[25,35,26,54],[25,55,25,58],[35,35,35,36],[35,41,35,42],[35,47,35,48],[29,65,29,67],[29,68,29,70],[11,72,11,73],[19,44,19,58],[30,44,30,46],[36,50,36,52],[36,53,36,55],[27,35,27,37],[27,38,27,40],[27,41,27,43],[27,44,27,46],[27,47,27,49],[28,35,28,37],[33,69,33,72],[32,34,32,38],[32,39,32,43],[32,44,33,45],[32,46,33,58],[33,34,33,37],[33,39,33,42],[25,32,29,34],[30,32,31,34],[12,47,13,48],[12,49,13,50],[14,45,15,46],[14,47,15,48],[14,49,15,50],[14,51,15,52],[14,53,15,54],[14,55,15,56],[14,57,15,58],[16,44,16,58],[17,44,18,58],[25,65,26,84],[76,92,76,93],[76,95,76,96],[78,110,78,111],[81,92,81,93],[81,95,81,96],[83,101,83,102],[83,104,83,105],[80,92,80,93],[81,98,81,99],[77,92,77,93],[78,98,78,99],[78,101,78,102],[80,104,80,105],[79,104,79,105],[78,92,78,93],[78,104,78,105],[12,121,13,122],[14,121,15,122],[37,99,37,101],[37,102,37,104],[37,108,37,110],[37,111,37,113],[37,114,37,116],[37,117,37,119],[38,96,38,98],[38,99,38,101],[38,102,38,104],[38,105,38,107],[38,108,38,110],[38,111,38,113],[39,96,39,98],[39,99,39,101],[82,110,82,111],[81,107,81,108],[81,104,81,105],[81,110,81,111],[83,107,83,109],[80,113,80,114],[79,107,79,108],[79,110,79,111],[79,113,79,114],[80,107,80,108],[80,110,80,111],[77,110,77,111],[77,113,77,114],[82,113,82,114],[81,113,81,114],[76,110,76,111],[78,113,78,114],[78,107,78,108],[76,113,76,114],[77,104,77,105],[77,107,77,108],[76,104,76,105],[76,107,76,108],[0,6,0,15],[0,19,0,22],[84,107,84,109],[84,98,84,99],[84,92,84,93],[84,95,84,96],[84,101,84,102],[84,104,84,105],[82,101,82,102],[82,95,82,96],[82,98,82,99],[83,92,83,93],[83,95,83,96],[83,98,83,99],[82,92,82,93],[81,101,81,102],[82,107,82,108],[82,104,82,105],[79,92,79,93],[79,95,79,96],[79,98,79,99],[79,101,79,102],[78,95,78,96],[80,95,80,96],[80,98,80,99],[80,101,80,102],[77,95,77,96],[77,98,77,99],[77,101,77,102],[76,98,76,99],[76,101,76,102],[12,17,13,18],[40,23,40,25],[40,26,40,27],[30,20,30,21],[30,22,30,28],[35,5,35,6],[35,11,35,12],[35,17,35,18],[35,23,35,24],[36,26,36,28],[38,26,38,27],[39,26,39,27],[36,2,36,4],[36,5,36,7],[36,8,36,10],[36,11,36,13],[36,14,36,16],[36,17,36,19],[36,20,36,22],[36,23,36,25],[37,2,37,4],[37,5,37,7],[37,8,37,10],[37,11,37,13],[37,26,37,28],[38,20,38,22],[38,23,38,24],[37,14,37,16],[31,5,31,7],[31,8,31,10],[31,11,31,13],[31,14,31,16],[31,17,31,19],[41,27,41,28],[42,2,42,4],[42,5,42,6],[42,7,42,8],[42,9,42,10],[42,11,42,13],[42,14,42,15],[42,16,42,17],[42,18,42,19],[42,20,42,22],[42,23,42,24],[42,25,42,26],[42,27,42,28],[41,2,41,4],[41,5,41,6],[41,7,41,8],[41,9,41,10],[41,11,41,13],[46,8,46,10],[46,11,46,13],[46,14,46,16],[46,17,46,19],[46,20,46,22],[46,23,46,25],[46,26,46,28],[44,5,44,6],[44,7,44,8],[44,9,44,10],[44,11,44,13],[44,14,44,15],[44,16,44,17],[44,18,44,19],[44,20,44,22],[44,23,44,24],[44,2,44,4],[9,40,9,41],[10,32,11,33],[10,45,10,46],[10,48,10,52],[10,54,10,58],[51,2,51,4],[51,5,51,7],[51,8,51,10],[51,11,51,13],[51,14,51,16],[51,17,51,19],[51,20,51,22],[51,23,51,25],[51,26,51,28],[32,2,33,3],[32,4,32,8],[32,9,32,13],[32,14,33,15],[32,16,33,28],[33,4,33,7],[33,9,33,12],[50,2,50,4],[50,5,50,7],[50,8,50,10],[50,11,50,13],[50,14,50,16],[50,17,50,19],[50,20,50,22],[12,32,18,33],[12,34,18,43],[12,44,15,44],[12,45,13,46],[40,32,40,34],[40,35,40,37],[40,38,40,40],[40,41,40,43],[40,44,40,46],[40,47,40,49],[40,50,40,52],[40,53,40,55],[40,56,40,57],[19,32,19,35],[19,36,19,43],[20,32,20,38],[20,39,20,43],[21,39,21,43],[22,32,22,35],[22,39,22,43],[22,44,22,58],[23,32,23,35],[23,39,23,43],[23,44,24,58],[24,32,24,35],[24,36,24,43],[30,38,30,40],[39,44,39,46],[39,47,39,49],[38,44,38,46],[37,53,37,55],[39,53,39,54],[39,50,39,52],[37,47,37,49],[37,50,37,52],[38,53,38,54],[42,32,42,34],[42,35,42,36],[42,37,42,38],[42,39,42,40],[42,41,42,43],[42,44,42,45],[42,46,42,47],[42,48,42,49],[42,50,42,52],[42,53,42,54],[42,55,42,56],[42,57,42,58],[41,32,41,34],[41,35,41,36],[41,37,41,38],[41,39,41,40],[41,41,41,43],[41,44,41,45],[41,46,41,47],[41,48,41,49],[41,50,41,52],[45,32,45,34],[45,35,45,58],[46,32,46,34],[46,35,46,37],[46,38,46,40],[46,41,46,43],[46,44,46,46],[46,47,46,49],[46,50,46,52],[46,53,46,55],[46,56,46,58],[43,53,43,54],[43,55,43,56],[43,57,43,58],[44,32,44,34],[44,35,44,36],[44,37,44,38],[44,39,44,40],[44,41,44,43],[44,44,44,45],[44,46,44,47],[44,48,44,49],[44,50,44,52],[44,53,44,54],[44,55,44,56],[44,57,44,58],[43,32,43,34],[43,35,43,36],[43,37,43,38],[43,39,43,40],[43,41,43,43],[43,44,43,45],[50,56,50,58],[48,44,49,46],[48,47,49,49],[48,50,48,52],[48,53,48,56],[48,57,48,58],[49,50,49,52],[49,53,49,56],[49,57,49,58],[47,32,47,34],[47,35,47,37],[47,38,47,40],[47,41,47,43],[47,44,47,46],[47,47,47,49],[47,50,47,52],[47,53,47,55],[47,56,47,58],[48,35,49,37],[48,38,49,40],[48,41,49,43],[48,32,49,34],[40,65,40,67],[40,77,40,79],[41,65,41,66],[41,67,41,68],[41,69,41,70],[41,71,41,73],[41,74,41,75],[51,32,51,34],[51,35,51,37],[51,38,51,40],[51,41,51,43],[51,44,51,46],[51,47,51,49],[51,50,51,52],[51,53,51,55],[51,56,51,58],[50,32,50,34],[50,35,50,37],[50,38,50,40],[50,41,50,43],[50,44,50,46],[50,47,50,49],[50,50,50,52],[42,62,42,64],[42,65,42,66],[42,67,42,68],[42,69,42,70],[42,71,42,73],[42,74,42,75],[42,76,42,77],[42,78,42,79],[50,53,50,55],[37,71,37,73],[37,77,37,79],[38,77,38,79],[39,65,39,67],[32,64,32,68],[32,69,32,73],[32,74,33,75],[32,76,33,88],[33,64,33,67],[31,83,31,85],[31,86,31,88],[39,83,39,84],[37,86,37,88],[37,83,37,85],[36,86,36,88],[30,74,30,76],[30,77,30,79],[36,68,36,70],[36,71,36,73],[36,74,36,76],[36,77,36,79],[44,65,44,66],[44,67,44,68],[44,69,44,70],[44,71,44,73],[44,74,44,75],[44,76,44,77],[44,78,44,79],[44,80,44,82],[43,62,43,64],[43,65,43,66],[43,67,43,68],[43,69,43,70],[43,71,43,73],[43,74,43,75],[43,76,43,77],[43,78,43,79],[43,80,43,82],[4,147,4,161],[4,163,4,165],[4,166,4,172],[6,146,6,147],[6,148,6,155],[6,156,6,157],[6,159,6,161],[6,163,6,172],[7,146,7,147],[7,148,7,155],[7,156,7,157],[7,159,7,172],[14,131,15,132],[14,133,15,134],[10,146,11,147],[10,156,10,157],[10,159,10,160],[10,162,10,166],[10,168,10,172],[11,156,11,157],[11,159,11,172],[8,146,8,153],[8,154,8,155],[8,156,8,157],[12,131,13,132],[12,133,13,134],[8,158,8,167],[8,168,8,172],[9,146,9,153],[12,165,13,166],[10,148,11,155],[12,108,13,109],[12,110,13,111],[14,106,15,107],[14,108,15,109],[14,110,15,111],[14,112,15,113],[14,114,15,115],[14,116,15,117]],"merged_total":1643,"flags":["merged_cut"]}
[null,null,null,"呼出番号",null,null,"↓　右クリックで起動します。",null,null,null,null,null,null,null,null,null,null,null,null,"５００人まで用",null,null,null,null,null,null,null,null,null,null,null,null,null,null,null,null,null,null,null,null,null,null,null,null,null,null,null,null,null,null,null,null,null,null,null,null,null,null,null,null,null,null,null,null,null,null,null,null,null,"入力領域",null,null,null,"リスト入力",null,null,null,"クリック入力",null,null,null,"クリック入力",null,null,null,"入力禁止域"]
[null,null,null,null,null,null,"呼出",null,null,null,"参照入力",null,null,null,"新規入力",null,null,null,null,null,null,null,null,null,1,null,"～",53,null,null,"連続印刷",null,null,null,null,null,null,null,null,null,null,null,null,null,null,null,null,null,null,null,null,null,null,null,null,null,null,null,null,null,null,null,"転写",null,null,null,"戻る",null,null,null,null,null,null,null,null,null,null,null,null,null,null,null,null,null,null,null,null,null,null,null,null,"得点","受付年月日","本人氏名","フリガナ","性別","〒","住所","電話","生　年　月　日","介護度","介護保険証被保険者番号","保険者市町村名","連絡先\n家族氏名","予備","続柄","〒","住所","電話","携帯","概況報告",{"$f":"BX13","v":"独居"},{"$f":"BZ13","v":"在宅で家族介護"},{"$f":"CB13","v":"７５歳以上\n老々介護"},"入院・入所施設名",{"$f":"マスタ変更!V7","v":"施設\n入所\n入院中"},{"$f":"BX15","v":"介護者\n不在"},{"$f":"BZ15","v":"主介護者\n障害疾病\nなど"},"就労\nのため\n介護困難","身体的\n精神的\n負担大","居住環境\n事情から\n介護困難","退去を\n求められ\nている","障害者\n複数世帯","介護（協力）者の人数・続柄・頻度など","同居家族が介護協力困難である具体的理由","非同居家族が介護協力困難である具体的理由・居住地","居宅介護支援事業所","デイケア・デイサービス","事業所名","ヘルパー","事業所名","訪問看護","事業所名","その他","既往歴\n持病・障害\n入院経緯","主事病院","糖尿管理\n療養食管理","在宅\n酸素療法","喀痰吸引","透析・輸血","褥瘡処置","部位等","-","弱","中","強","-","弱","中","強","-","弱","中","強","-","弱","中","強","安定歩行","転倒注意\n見守り","ふらつき介助\n手引き歩行","突然立ち\n転倒してしまう","車椅子自力\n移譲・移動","車椅子介助\n移乗・自力移動","車椅子\n介助移動","寝たきり\nストレッチャー","ある","なし","曖昧","ある","なし","曖昧","人工肛門\n尿カテーテル","自分で行く","自分で行くが\n失敗がある","定期的に\n誘導している","ポータブル\nトイレなど","リハビリ\nパンツ","おむつ","介助\n頻度","自分で行く","自分で行くが\n失敗がある","定期的に\n誘導している","ポータブル\nトイレなど","リハビリ\nパンツ","おむつ","介助\n頻度","見守り","介助２５％","介助５０％\n※時間記入","介助７５％超\n※時間記入","胃瘻","経鼻栄養\nＩＶＨ","直接介助に\nかかる時間","ときどき","よくある","耐え難い","ときどき","よくある","耐え難い","ときどき","よくある","耐え難い","ときどき","よくある","耐え難い","ときどき","よくある","耐え難い","ときどき","よくある","耐え難い","ときどき","よくある","耐え難い","ときどき","よくある","耐え難い","ときどき","よくある","耐え難い","ときどき","よくある","耐え難い","ときどき","よくある","耐え難い","良い","やや悪い","悪い","その他の問題","公共交通\n機関が使える","地区内なら\n自由に行動","起きて生活\n外出は補助","伝い歩き\n寝たり起きたり","介助あれば\n起きて生活","介助により\n寝たり起きたり","寝室中心\nの生活","離床しない","問題なし","やや不自由","かなり困難","ほぼ不可能","年齢相応","かなり悪い\n半盲","失明","問題なし","遠い","ひどく遠い","聴力なし","確認できない","身長","体重","本人月収","1ヶ月に本人と親族が\n支出できる限界金額","特別な\n事情","申し込み済施設1","申し込み済施設2","申し込み済施設3","申し込み済施設4","申し込み済施設5","申し込み済施設6","申し込み済施設7","申し込み済施設8","申し込み予定施設1","申し込み予定施設2","申し込み予定施設3","申し込み予定施設4","申し込み予定施設5","申し込み予定施設6","申し込み予定施設7","申し込み予定施設8",{"$f":"マスタ変更!F30","v":"脳梗塞"},{"$f":"マスタ変更!I30","v":"心臓疾患"},{"$f":"マスタ変更!L30","v":"糖尿病"},{"$f":"マスタ変更!O30","v":"癌"},{"$f":"マスタ変更!R30","v":"認知症"},{"$f":"マスタ変更!U30","v":"脳挫傷"},{"$f":"マスタ変更!X30","v":"緑内障"},{"$f":"マスタ変更!AA30","v":"大腿部骨折"},{"$f":"マスタ変更!F31","v":"脳内出血"},{"$f":"マスタ変更!I31","v":"呼吸器系疾患"},{"$f":"マスタ変更!L31","v":"腎臓疾患"},{"$f":"マスタ変更!O31","v":"リューマチ"},{"$f":"マスタ変更!R31","v":"うつ病"},{"$f":"マスタ変更!U31","v":"胆石"},{"$f":"マスタ変更!X31","v":"白内障"},{"$f":"マスタ変更!AA31","v":"脊髄等損傷"},{"$f":"マスタ変更!F32","v":"高血圧症"},{"$f":"マスタ変更!I32","v":"喘息"},{"$f":"マスタ変更!L32","v":"肝炎・肝硬変"},{"$f":"マスタ変更!O32","v":"パーキンソン"},{"$f":"マスタ変更!R32","v":"統合失調症"},{"$f":"マスタ変更!U32","v":"尿管結石等"},{"$f":"マスタ変更!X32","v":"結核"},{"$f":"マスタ変更!AA32","v":"変形性膝関節症"},{"$f":"マスタ変更!F13","v":"人工肛門処置"},{"$f":"マスタ変更!I13","v":"腸瘻"},{"$f":"マスタ変更!L13","v":"膀胱洗浄"},{"$f":"マスタ変更!O13","v":"導尿"},{"$f":"マスタ変更!R13","v":"ＩＶＨ"},{"$f":"マスタ変更!U13","v":"透析"},{"$f":"マスタ変更!X13","v":"尿カテーテル"},{"$f":"マスタ変更!AA13","v":"看取り"},216,217,218,219,220,221,222,223,224,225,226,227,228,229,230,231,232,233,234,235,236,237,238,239,240,241,242,243,244,245,246,247,248,249,250,251,252,253,254,255,256]
[null,null,null,null,null,null,null,null,null,null,null,null,null,null,null,null,null,null,null,{"$f":"NOW()","v":"2014-11-02T18:12:19.670"},null,null,null,null,null,null,null,null,null,null,null,null,null,null,null,null,null,null,null,null,null,null,null,null,null,null,null,null,null,null,null,null,null,null,null,null,null,null,null,null,null,null,null,null,null,null,null,null,null,"＊赤字は必須入力項目",null,null,null,null,null,null,null,null,null,null,null,null,null,null,null,null,null,null,null,null,null,{"$f":"$CI$66","v":0},{"$f":"$CE$5","v":"00:00:00"},{"$f":"$BM$8","v":0},{"$f":"$BM$7","v":0},{"$f":"$BU$8","v":0},{"$f":"$BX$7","v":0},{"$f":"$BX$8","v":0},{"$f":"$CB$7","v":0},{"$f":"$BK$10","v":"00:00:00"},{"$f":"$BU$10","v":0},{"$f":"$BW$10","v":0},{"$f":"$CG$10","v":0},{"$f":"$BM$11","v":0},null,{"$f":"$BU$12","v":0},{"$f":"$BX$11","v":0},{"$f":"$BX$12","v":0},{"$f":"$CA$11","v":0},{"$f":"$CG$11","v":0},{"$f":"$BM$13","v":"00:00:00"},{"$f":"$DC$13","v":0},{"$f":"$DE$13","v":0},{"$f":"$DG$13","v":0},{"$f":"$CF$14","v":0},{"$f":"$DI$13","v":0},{"$f":"$DC$15","v":0},{"$f":"$DE$15","v":0},{"$f":"$DG$15","v":0},{"$f":"$DI$15","v":0},{"$f":"$DK$15","v":0},{"$f":"$DM$15","v":0},{"$f":"$DO$15","v":0},{"$f":"$BW$18","v":0},{"$f":"$BW$21","v":0},{"$f":"$BW$24","v":0},{"$f":"$BO$20","v":0},{"$f":"$BP$22","v":0},{"$f":"$BR$22","v":0},{"$f":"$BP$23","v":0},{"$f":"$BR$23","v":0},{"$f":"$BP$24","v":0},{"$f":"$BR$24","v":0},{"$f":"$BO$25","v":0},{"$f":"$BN$26","v":0},{"$f":"$CH$27","v":0},{"$f":"$CS$31","v":0},{"$f":"$CV$31","v":0},{"$f":"$CY$31","v":0},{"$f":"$DB$31","v":0},{"$f":"$DE$31","v":0},{"$f":"$DJ$31","v":0},{"$f":"$CU$36","v":0},{"$f":"$CV$36","v":0},{"$f":"$CW$36","v":0},{"$f":"$CX$36","v":0},{"$f":"$DA$36","v":0},{"$f":"$DB$36","v":0},{"$f":"$DC$36","v":0},{"$f":"$DD$36","v":0},{"$f":"$DG$36","v":0},{"$f":"$DH$36","v":0},{"$f":"$DI$36","v":0},{"$f":"$DJ$36","v":0},{"$f":"$DM$36","v":0},{"$f":"$DN$36","v":0},{"$f":"$DO$36","v":0},{"$f":"$DP$36","v":0},{"$f":"$CS$37","v":0},{"$f":"$CV$37","v":0},{"$f":"$CY$37","v":0},{"$f":"$DB$37","v":0},{"$f":"$DE$37","v":0},{"$f":"$DH$37","v":0},{"$f":"$DK$37","v":0},{"$f":"$DN$37","v":0},{"$f":"$CS$38","v":0},{"$f":"$CV$38","v":0},{"$f":"$CY$38","v":0},{"$f":"$DE$38","v":0},{"$f":"$DH$38","v":0},{"$f":"$DK$38","v":0},{"$f":"$DN$38","v":0},{"$f":"$CS$39","v":0},{"$f":"$CV$39","v":0},{"$f":"$CY$39","v":0},{"$f":"$DB$39","v":0},{"$f":"$DE$39","v":0},{"$f":"$DH$39","v":0},{"$f":"$CI$39","v":0},{"$f":"$CS$40","v":0},{"$f":"$CV$40","v":0},{"$f":"$CY$40","v":0},{"$f":"$DB$40","v":0},{"$f":"$DE$40","v":0},{"$f":"$DH$40","v":0},{"$f":"$CI$39","v":0},{"$f":"$CS$41","v":0},{"$f":"$CV$41","v":0},{"$f":"$CY$41","v":0},{"$f":"$DB$41","v":0},{"$f":"$DE$41","v":0},{"$f":"$DH$41","v":0},{"$f":"$CI$41","v":0},{"$f":"$CS$42","v":0},{"$f":"$CU$42","v":0},{"$f":"$CW$42","v":0},{"$f":"$DB$42","v":0},{"$f":"$DD$42","v":0},{"$f":"$DF$42","v":0},{"$f":"$DK$42","v":0},{"$f":"$DM$42","v":0},{"$f":"$DO$42","v":0},{"$f":"$CS$43","v":0},{"$f":"$CU$43","v":0},{"$f":"$CW$43","v":0},{"$f":"$DB$43","v":0},{"$f":"$DD$43","v":0},{"$f":"$DF$43","v":0},{"$f":"$DK$43","v":0},{"$f":"$DM$43","v":0},{"$f":"$DO$43","v":0},{"$f":"$CS$44","v":0},{"$f":"$CU$44","v":0},{"$f":"$CW$44","v":0},{"$f":"$DB$44","v":0},{"$f":"$DD$44","v":0},{"$f":"$DF$44","v":0},{"$f":"$DK$44","v":0},{"$f":"$DM$44","v":0},{"$f":"$DO$44","v":0},{"$f":"$CS$45","v":0},{"$f":"$CU$45","v":0},{"$f":"$CW$45","v":0},{"$f":"$DB$45","v":0},{"$f":"$DD$45","v":0},{"$f":"$DF$45","v":0},{"$f":"$DK$45","v":0},{"$f":"$DM$45","v":0},{"$f":"$DO$45","v":0},{"$f":"$BN$46","v":0},{"$f":"$CS$47","v":0},{"$f":"$CV$47","v":0},{"$f":"$CY$47","v":0},{"$f":"$DB$47","v":0},{"$f":"$DE$47","v":0},{"$f":"$DH$47","v":0},{"$f":"$DK$47","v":0},{"$f":"$DN$47","v":0},{"$f":"$CS$48","v":0},{"$f":"$CV$48","v":0},{"$f":"$CY$48","v":0},{"$f":"$DB$48","v":0},{"$f":"$DH$48","v":0},{"$f":"$DK$48","v":0},{"$f":"$DN$48","v":0},{"$f":"$CS$49","v":0},{"$f":"$CV$49","v":0},{"$f":"$CY$49","v":0},{"$f":"$DB$49","v":0},{"$f":"$DE$49","v":0},{"$f":"$CF$49","v":0},{"$f":"$CF$50","v":0},{"$f":"$BM$34","v":0},{"$f":"$BR$34","v":0},{"$f":"$BY$33","v":0},{"$f":"$BN$51","v":0},{"$f":"$BQ$51","v":0},{"$f":"$BT$51","v":0},{"$f":"$BW$51","v":0},{"$f":"$BZ$51","v":0},{"$f":"$CC$51","v":0},{"$f":"$CF$51","v":0},{"$f":"$CI$51","v":0},{"$f":"$BN$52","v":0},{"$f":"$BQ$52","v":0},{"$f":"$BT$52","v":0},{"$f":"$BW$52","v":0},{"$f":"$BZ$52","v":0},{"$f":"$CC$52","v":0},{"$f":"$CF$52","v":0},{"$f":"$CI$52","v":0},{"$f":"$CS$28","v":0},{"$f":"$CV$28","v":0},{"$f":"$CY$28","v":0},{"$f":"$DB$28","v":0},{"$f":"$DE$28","v":0},{"$f":"$DH$28","v":0},{"$f":"$DK$28","v":0},{"$f":"$DN$28","v":0},{"$f":"$CS$29","v":0},{"$f":"$CV$29","v":0},{"$f":"$CY$29","v":0},{"$f":"$DB$29","v":0},{"$f":"$DE$29","v":0},{"$f":"$DH$29","v":0},{"$f":"$DK$29","v":0},{"$f":"$DN$29","v":0},{"$f":"$CS$30","v":0},{"$f":"$CV$30","v":0},{"$f":"$CY$30","v":0},{"$f":"$DB$30","v":0},{"$f":"$DE$30","v":0},{"$f":"$DH$30","v":0},{"$f":"$DK$30","v":0},{"$f":"$DN$30","v":0},{"$f":"$CS$32","v":0},{"$f":"$CV$32","v":0},{"$f":"$CY$32","v":0},{"$f":"$DB$32","v":0},{"$f":"$DE$32","v":0},{"$f":"$DH$32","v":0},{"$f":"$DK$32","v":0},{"$f":"$DN$32","v":0},{"$f":"$BU$54","v":"□"},{"$f":"$BX$54","v":"□"},{"$f":"$CA$54","v":"□"},{"$f":"$CD$54","v":"□"},{"$f":"$BU$55","v":"□"},{"$f":"$BX$55","v":"□"},{"$f":"$CA$55","v":"□"},{"$f":"$CD$55","v":"□"},{"$f":"$BU$57","v":"□"},{"$f":"$BX$57","v":"□"},{"$f":"$CA$57","v":"□"},{"$f":"$BU$58","v":"□"},{"$f":"$BX$58","v":"□"},{"$f":"$CA$58","v":"□"},{"$f":"$CD$58","v":"□"},{"$f":"$BU$59","v":"□"},{"$f":"$BX$59","v":"□"},{"$f":"$CA$59","v":"□"},{"$f":"$CD$59","v":"□"},{"$f":"$BU$60","v":"□"},{"$f":"$BX$60","v":"□"},{"$f":"$CA$60","v":"□"},{"$f":"$CD$60","v":"□"},{"$f":"$BU$61","v":"□"},{"$f":"$BX$61","v":"□"},{"$f":"$CA$61","v":"□"},{"$f":"$CD$61","v":"□"},{"$f":"$BU$62","v":"□"},{"$f":"$BX$62","v":"□"},{"$f":"$CA$62","v":"□"},{"$f":"$CD$62","v":"□"},{"$f":"$BU$63","v":"□"},{"$f":"$BX$63","v":"□"},{"$f":"$CA$63","v":"□"},{"$f":"$BU$64","v":"□"},{"$f":"$BX$64","v":"□"},{"$f":"$CA$64","v":"□"},{"$f":"$BU$65","v":"□"},{"$f":"$BX$65","v":"□"},{"$f":"$CA$65","v":"□"},{"$f":"$GJ$23","v":0}]
[null,null,null,null,null,null,null,null,null,null,null,null,null,null,null,null,null,null,null,null,null,null,null,null,null,null,null,null,null,null,null,null,null,null,null,null,null,null,null,null,null,null,null,null,null,null,null,null,null,null,null,null,{"$f":"NOW()","v":"2014-11-02T18:12:19.670"},null,null,null,null,null,null,null,null,null,null,null,null,null,null,null,null,null,null,null,null,null,null,null,null,null,null,null,null,null,"2014-11-02T18:12:14.240",null,null,null,null,null,null,null,null,null,null,null,null,null,null,null,null,null,null,null,null,null,null,null,null,null,null,null,null,null,null,null,null,null,null,null,null,null,null,null,null,null,null,null,null,null,null,null,null,null,null,null,null,null,null,null,null,null,null,null,null,null,null,null,null,null,null,null,null,null,null,null,null,null,null,null,null,null,null,null,null,null,null,null,null,null,null,null,null,null,null,null,null,null,null,null,null,null,null,null,null,null,null,null,null,null,null,null,null,null,null,null,null,null,null,null,null,null,null,null,null,null,null,null,null,null,null,null,null,null,null,null,null,null,null,null,null,null,null,null,null,null,null,null,null,null,null,null,null,null,null,null,null,null,null,null,null,null,null,null,null,null,null,null,null,null,null,null,null,null,null,null,null,null,null,null,null,null,null,null,null,null,null,null,null,null,null,null,null,null,{"$f":"DG29","v":0},null,{"$f":"DI29","v":0},{"$f":"DJ29","v":0},null,null,null,null,null,{"$f":"CT29","v":0},{"$f":"CU29","v":0},null,{"$f":"CW29","v":0},{"$f":"CX29","v":0},null,{"$f":"CZ29","v":0},{"$f":"DA29","v":0},null,null,null,null,null,null,null,null,null,null,null,null,null,null,null,null,null,null,null,{"$f":"BU56","v":0},{"$f":"BX56","v":0},{"$f":"CA56","v":0},{"$f":"CD56","v":0}]
[null,null,null,"特別養護老人ホーム　入所待機申込書",null,null,null,null,null,null,null,null,null,null,null,null,null,null,null,"受付年月日",null,null,{"$f":"IF($D$2=\"\",0,VLOOKUP($D$2,記録台帳!$B$4:$GB$505,FK5))","v":"00:00:00"},null,null,null,null,null,null,null,null,null,null,"特別養護老人ホーム　入所待機申込書",null,null,null,null,null,null,null,null,null,null,null,null,null,null,null,"受付年月日",null,null,{"$f":"$W$5","v":"00:00:00"},null,null,null,null,null,null,null,null,null,null,"特別養護老人ホーム　入所待機申込書",null,null,null,null,null,null,null,null,null,null,null,null,null,null,null,"受付年月日",null,null,"00:00:00",null,null,null,null,null,null,null,null,{"$f":"IF(CQ5=\"\",\"\",ROW()-4)","v":""},{"$f":"IF(CR5=\"\",\"\",RANK(CP5,$D$5:$D$505))","v":""},"←　式が入っています",null,null,null,null,null,null,null,null,null,null,null,null,null,null,null,null,null,null,null,null,null,null,null,null,null,null,null,null,null,null,null,null,null,null,null,null,null,null,null,null,null,null,null,null,null,null,null,null,null,null,null,null,null,null,null,null,null,null,null,null,null,null,null,null,null,null,null,null,null,null,null,null,"1900-01-04"]
[]
[null,null,"フリガナ",null,{"$f":"IF($D$2=\"\",0,VLOOKUP($D$2,記録台帳!$B$4:$GB$505,ES7))","v":0},{"$f":"IF($D$2=\"\",0,VLOOKUP($D$2,記録台帳!$B$4:$GB$505,ET7))","v":0},{"$f":"IF($D$2=\"\",0,VLOOKUP($D$2,記録台帳!$B$4:$GB$505,EU7))","v":0},{"$f":"IF($D$2=\"\",0,VLOOKUP($D$2,記録台帳!$B$4:$GB$505,EV7))","v":0},{"$f":"IF($D$2=\"\",0,VLOOKUP($D$2,記録台帳!$B$4:$GB$505,EW7))","v":0},{"$f":"IF($D$2=\"\",0,VLOOKUP($D$2,記録台帳!$B$4:$GB$505,EX7))","v":0},{"$f":"IF($D$2=\"\",0,VLOOKUP($D$2,記録台帳!$B$4:$GB$505,EY7))","v":0},{"$f":"IF($D$2=\"\",0,VLOOKUP($D$2,記録台帳!$B$4:$GB$505,EZ7))","v":0},"性別",null,"〒",{"$f":"IF($D$2=\"\",0,VLOOKUP($D$2,記録台帳!$B$4:$GB$505,FD7))","v":0},{"$f":"IF($D$2=\"\",0,VLOOKUP($D$2,記録台帳!$B$4:$GB$505,FE7))","v":0},{"$f":"IF($D$2=\"\",0,VLOOKUP($D$2,記録台帳!$B$4:$GB$505,FF7))","v":0},"電話",{"$f":"IF($D$2=\"\",0,VLOOKUP($D$2,記録台帳!$B$4:$GB$505,FH7))","v":0},{"$f":"IF($D$2=\"\",0,VLOOKUP($D$2,記録台帳!$B$4:$GB$505,FI7))","v":0},{"$f":"IF($D$2=\"\",0,VLOOKUP($D$2,記録台帳!$B$4:$GB$505,FJ7))","v":0},{"$f":"IF($D$2=\"\",0,VLOOKUP($D$2,記録台帳!$B$4:$GB$505,FK7))","v":0},{"$f":"IF($D$2=\"\",0,VLOOKUP($D$2,記録台帳!$B$4:$GB$505,FL7))","v":0},{"$f":"IF($D$2=\"\",0,VLOOKUP($D$2,記録台帳!$B$4:$GB$505,FM7))","v":0},{"$f":"IF($D$2=\"\",0,VLOOKUP($D$2,記録台帳!$B$4:$GB$505,FN7))","v":0},{"$f":"IF($D$2=\"\",0,VLOOKUP($D$2,記録台帳!$B$4:$GB$505,FO7))","v":0},{"$f":"IF($D$2=\"\",0,VLOOKUP($D$2,記録台帳!$B$4:$GB$505,FP7))","v":0},{"$f":"IF($D$2=\"\",0,VLOOKUP($D$2,記録台帳!$B$4:$GB$505,FQ7))","v":0},null,null,null,"フリガナ",null,{"$f":"$E$7","v":0},null,null,null,null,null,null,null,"性別",null,"〒",{"$f":"$P$7","v":0},{"$f":"Q7","v":0},0,"電話",{"$f":"$T$7","v":0},{"$f":"U7","v":0},0,0,0,0,0,0,0,0,null,null,null,"フリガナ",null,0,null,null,null,null,null,null,null,"性別",null,"〒",0,0,0,"電話",0,0,0,0,0,0,0,0,0,0,null,null,null,null,null,null,null,null,null,null,null,null,null,null,null,null,null,null,null,null,null,null,null,null,null,null,null,null,null,null,null,null,null,null,null,null,null,null,null,null,null,null,null,null,null,null,null,null,null,null,null,null,null,null,null,null,null,null,null,6,null,null,null,null,null,null,null,null,null,null,8,null,null,null,10]
[null,null,"本人氏名",null,{"$f":"IF($D$2=\"\",0,VLOOKUP($D$2,記録台帳!$B$4:$GB$505,ES8))","v":0},{"$f":"IF($D$2=\"\",0,VLOOKUP($D$2,記録台帳!$B$4:$GB$505,ET8))","v":0},{"$f":"IF($D$2=\"\",0,VLOOKUP($D$2,記録台帳!$B$4:$GB$505,EU8))","v":0},{"$f":"IF($D$2=\"\",0,VLOOKUP($D$2,記録台帳!$B$4:$GB$505,EV8))","v":0},{"$f":"IF($D$2=\"\",0,VLOOKUP($D$2,記録台帳!$B$4:$GB$505,EW8))","v":0},{"$f":"IF($D$2=\"\",0,VLOOKUP($D$2,記録台帳!$B$4:$GB$505,EX8))","v":0},{"$f":"IF($D$2=\"\",0,VLOOKUP($D$2,記録台帳!$B$4:$GB$505,EY8))","v":0},{"$f":"IF($D$2=\"\",0,VLOOKUP($D$2,記録台帳!$B$4:$GB$505,EZ8))","v":0},{"$f":"IF($D$2=\"\",0,VLOOKUP($D$2,記録台帳!$B$4:$GB$505,FA8))","v":0},{"$f":"IF($D$2=\"\",0,VLOOKUP($D$2,記録台帳!$B$4:$GB$505,FB8))","v":0},"住所",{"$f":"IF($D$2=\"\",0,VLOOKUP($D$2,記録台帳!$B$4:$GB$505,FD8))","v":0},{"$f":"IF($D$2=\"\",0,VLOOKUP($D$2,記録台帳!$B$4:$GB$505,FE8))","v":0},{"$f":"IF($D$2=\"\",0,VLOOKUP($D$2,記録台帳!$B$4:$GB$505,FF8))","v":0},{"$f":"IF($D$2=\"\",0,VLOOKUP($D$2,記録台帳!$B$4:$GB$505,FG8))","v":0},{"$f":"IF($D$2=\"\",0,VLOOKUP($D$2,記録台帳!$B$4:$GB$505,FH8))","v":0},{"$f":"IF($D$2=\"\",0,VLOOKUP($D$2,記録台帳!$B$4:$GB$505,FI8))","v":0},{"$f":"IF($D$2=\"\",0,VLOOKUP($D$2,記録台帳!$B$4:$GB$505,FJ8))","v":0},{"$f":"IF($D$2=\"\",0,VLOOKUP($D$2,記録台帳!$B$4:$GB$505,FK8))","v":0},{"$f":"IF($D$2=\"\",0,VLOOKUP($D$2,記録台帳!$B$4:$GB$505,FL8))","v":0},{"$f":"IF($D$2=\"\",0,VLOOKUP($D$2,記録台帳!$B$4:$GB$505,FM8))","v":0},{"$f":"IF($D$2=\"\",0,VLOOKUP($D$2,記録台帳!$B$4:$GB$505,FN8))","v":0},{"$f":"IF($D$2=\"\",0,VLOOKUP($D$2,記録台帳!$B$4:$GB$505,FO8))","v":0},{"$f":"IF($D$2=\"\",0,VLOOKUP($D$2,記録台帳!$B$4:$GB$505,FP8))","v":0},{"$f":"IF($D$2=\"\",0,VLOOKUP($D$2,記録台帳!$B$4:$GB$505,FQ8))","v":0},null,null,null,"本人氏名",null,{"$f":"$E$8","v":0},null,null,null,null,null,null,null,{"$f":"$M$8","v":0},{"$f":"N8","v":0},"住所",{"$f":"$P$8","v":0},0,0,0,0,0,0,0,0,0,0,0,0,0,null,null,null,"本人氏名",null,0,null,null,null,null,null,null,null,0,0,"住所",0,0,0,0,0,0,0,0,0,0,0,0,0,0,null,null,null,null,null,null,null,null,null,null,null,null,null,null,null,null,null,null,null,null,null,null,null,null,null,null,null,null,null,null,null,null,null,null,null,null,null,null,null,null,null,null,null,null,null,null,null,null,null,null,null,null,null,null,null,null,null,null,null,5,null,null,null,null,null,null,null,7,null,null,9]
[null,null,"生　年　月　日",null,null,null,null,null,null,null,"年齢",null,"介護度",null,"介護保険証被保険者番号",null,null,null,null,null,null,null,null,null,"保険者市町村名",null,null,null,null,null,null,null,"生　年　月　日",null,null,null,null,null,null,null,"年齢",null,"介護度",null,"介護保険証被保険者番号",null,null,null,null,null,null,null,null,null,"保険者市町村名",null,null,null,null,null,null,null,"生　年　月　日",null,null,null,null,null,null,null,"年齢",null,"介護度",null,"介護保険証被保険者番号",null,null,null,null,null,null,null,null,null,"保険者市町村名",null,null,null,null,null,null,null,null,null,null,null,null,null,null,null,null,null,null,null,null,null,null,null,null,null,null,null,null,null,null,null,null,null,null,null,null,null,null,null,null,null,null,null,null,null,null,null,null,null,null,null,null,null,null,null,null,null,null,null,null,null,null,null,null,null,null,null,null,null,null,null,null,null,null,null,null,null,null,null,null,null,null,null,null,null,null,null,null,null,null,null,null,null,null,null,null,null,null,null,null,null,null,null,null,null,null,null,null,null,null,null,null,null,null,null,null,null,null,null,null,null,null,null,null,null,null,null,null,null,null,null,null,null,null,null,null,null,null,null,null,null,null,null,null,null,null,null,null,null,null,null,null,null,null,null,null,null,null,null,null,null,null,null,null,null,null,null,null,null,null,null,null,null,null,null,null,null,null,null,null,null,null,null,null,null,null,null,null,null,null,null,null,null,null,null,null,null,null,null,null,null,null,null,null,null,null,null,null,null,null,null,null,null,null,null,null,null,null,null,{"$f":"BN60","v":0},{"$f":"BZ60","v":0}]
[null,null,{"$f":"IF($D$2=\"\",0,VLOOKUP($D$2,記録台帳!$B$4:$GB$505,EQ10))","v":"00:00:00"},{"$f":"IF($D$2=\"\",0,VLOOKUP($D$2,記録台帳!$B$4:$GB$505,ER10))","v":"00:00:00"},{"$f":"IF($D$2=\"\",0,VLOOKUP($D$2,記録台帳!$B$4:$GB$505,ES10))","v":"00:00:00"},{"$f":"IF($D$2=\"\",0,VLOOKUP($D$2,記録台帳!$B$4:$GB$505,ET10))","v":"00:00:00"},{"$f":"IF($D$2=\"\",0,VLOOKUP($D$2,記録台帳!$B$4:$GB$505,EU10))","v":"00:00:00"},{"$f":"IF($D$2=\"\",0,VLOOKUP($D$2,記録台帳!$B$4:$GB$505,EV10))","v":"00:00:00"},{"$f":"IF($D$2=\"\",0,VLOOKUP($D$2,記録台帳!$B$4:$GB$505,EW10))","v":"00:00:00"},{"$f":"IF($D$2=\"\",0,VLOOKUP($D$2,記録台帳!$B$4:$GB$505,EX10))","v":"00:00:00"},{"$f":"IF(C10=0,\"\",DATEDIF(C10,TODAY(),\"y\"))","v":""},null,{"$f":"IF($D$2=\"\",0,VLOOKUP($D$2,記録台帳!$B$4:$GB$505,FA10))","v":0},{"$f":"IF($D$2=\"\",0,VLOOKUP($D$2,記録台帳!$B$4:$GB$505,FB10))","v":0},{"$f":"IF($D$2=\"\",0,VLOOKUP($D$2,記録台帳!$B$4:$GB$505,13))","v":0},{"$f":"IF($D$2=\"\",0,VLOOKUP($D$2,記録台帳!$B$4:$DM$505,4))","v":0},{"$f":"IF($D$2=\"\",0,VLOOKUP($D$2,記録台帳!$B$4:$DM$505,4))","v":0},{"$f":"IF($D$2=\"\",0,VLOOKUP($D$2,記録台帳!$B$4:$DM$505,4))","v":0},{"$f":"IF($D$2=\"\",0,VLOOKUP($D$2,記録台帳!$B$4:$DM$505,4))","v":0},{"$f":"IF($D$2=\"\",0,VLOOKUP($D$2,記録台帳!$B$4:$DM$505,4))","v":0},{"$f":"IF($D$2=\"\",0,VLOOKUP($D$2,記録台帳!$B$4:$DM$505,4))","v":0},{"$f":"IF($D$2=\"\",0,VLOOKUP($D$2,記録台帳!$B$4:$DM$505,4))","v":0},{"$f":"IF($D$2=\"\",0,VLOOKUP($D$2,記録台帳!$B$4:$DM$505,4))","v":0},{"$f":"IF($D$2=\"\",0,VLOOKUP($D$2,記録台帳!$B$4:$DM$505,4))","v":0},{"$f":"IF($D$2=\"\",0,VLOOKUP($D$2,記録台帳!$B$4:$GB$505,FM10))","v":0},{"$f":"IF($D$2=\"\",0,VLOOKUP($D$2,記録台帳!$B$4:$GB$505,FN10))","v":0},{"$f":"IF($D$2=\"\",0,VLOOKUP($D$2,記録台帳!$B$4:$GB$505,FO10))","v":0},{"$f":"IF($D$2=\"\",0,VLOOKUP($D$2,記録台帳!$B$4:$GB$505,FP10))","v":0},{"$f":"IF($D$2=\"\",0,VLOOKUP($D$2,記録台帳!$B$4:$GB$505,FQ10))","v":0},null,null,null,{"$f":"$C$10","v":"00:00:00"},{"$f":"D10","v":"00:00:00"},"00:00:00","00:00:00","00:00:00","00:00:00","00:00:00","00:00:00",{"$f":"IF(OR(AG10=0,AG10=\"\"),\"\",DATEDIF(AG10,TODAY(),\"y\"))","v":""},null,{"$f":"$M$10","v":0},{"$f":"N10","v":0},{"$f":"$O$10","v":0},{"$f":"P10","v":0},0,0,0,0,0,0,0,0,{"$f":"$Y$10","v":0},0,0,0,0,null,null,null,"00:00:00","00:00:00","00:00:00","00:00:00","00:00:00","00:00:00","00:00:00","00:00:00","",null,0,0,0,0,0,0,0,0,0,0,0,0,0,0,0,0,0,null,null,null,null,null,null,null,null,null,null,null,null,null,null,null,null,null,null,null,null,null,null,null,null,null,null,null,null,null,null,null,null,null,null,null,null,null,null,null,null,null,null,null,null,null,null,null,null,null,null,null,null,null,null,null,null,null,"1900-01-11",null,null,null,null,null,null,null,null,null,12,null,13,null,null,null,null,null,null,null,null,null,14,null,null,null,null,null,null,null,null,null,null,null,null,null,null,null,null,null,null,null,null,null,null,null,null,null,null,null,null,null,null,null,null,null,null,null,null,null,null,null,null,null,null,null,null,null,null,null,null,null,null,null,null,null,null,null,null,null,null,null,null,null,null,null,null,null,null,null,null,null,null,null,null,null,null,null,null,null,null,null,null,null,null,null,null,null,null,null,null,null,null,null,null,null,null,null,null,null,null,null,null,null,null,null,null,null,null,null,null,null,null,null,null,null,null,null,null,null,null,null,null,null,null,null,null,null,null,null,null,null,null,null,null,null,null,null,{"$f":"BN61","v":0},0]
[null,null,"連絡先\n家族氏名",null,{"$f":"IF($D$2=\"\",0,VLOOKUP($D$2,記録台帳!$B$4:$GB$505,ES11))","v":0},null,null,null,null,null,null,null,"続柄",null,"〒",{"$f":"IF($D$2=\"\",0,VLOOKUP($D$2,記録台帳!$B$4:$GB$505,FD11))","v":0},{"$f":"IF($D$2=\"\",0,VLOOKUP($D$2,記録台帳!$B$4:$GB$505,FE11))","v":0},"電話",{"$f":"IF($D$2=\"\",0,VLOOKUP($D$2,記録台帳!$B$4:$GB$505,FG11))","v":0},{"$f":"IF($D$2=\"\",0,VLOOKUP($D$2,記録台帳!$B$4:$GB$505,FH11))","v":0},{"$f":"IF($D$2=\"\",0,VLOOKUP($D$2,記録台帳!$B$4:$GB$505,FI11))","v":0},{"$f":"IF($D$2=\"\",0,VLOOKUP($D$2,記録台帳!$B$4:$GB$505,FJ11))","v":0},{"$f":"IF($D$2=\"\",0,VLOOKUP($D$2,記録台帳!$B$4:$GB$505,FK11))","v":0},"携帯",{"$f":"IF($D$2=\"\",0,VLOOKUP($D$2,記録台帳!$B$4:$GB$505,FM11))","v":0},{"$f":"IF($D$2=\"\",0,VLOOKUP($D$2,記録台帳!$B$4:$GB$505,FN11))","v":0},{"$f":"IF($D$2=\"\",0,VLOOKUP($D$2,記録台帳!$B$4:$GB$505,FO11))","v":0},{"$f":"IF($D$2=\"\",0,VLOOKUP($D$2,記録台帳!$B$4:$GB$505,FP11))","v":0},{"$f":"IF($D$2=\"\",0,VLOOKUP($D$2,記録台帳!$B$4:$GB$505,FQ11))","v":0},null,null,null,"連絡先\n家族氏名",null,{"$f":"$E$11","v":0},null,null,null,null,null,null,null,"続柄",null,"〒",{"$f":"$P$11","v":0},0,"電話",{"$f":"$S$11","v":0},0,0,0,0,"携帯",{"$f":"$Y$11","v":0},0,0,0,0,null,null,null,"連絡先\n家族氏名",null,0,null,null,null,null,null,null,null,"続柄",null,"〒",0,0,"電話",0,0,0,0,0,"携帯",0,0,0,0,0,null,null,null,{"$f":"COUNTA(記録台帳!$E$5:$E$505)","v":0},null,null,null,null,null,null,null,null,null,null,null,null,null,null,null,null,null,null,null,null,null,null,null,null,null,null,null,null,null,null,null,null,null,null,null,null,null,null,null,null,null,null,null,null,null,null,null,null,null,null,null,null,null,null,null,15,null,null,null,null,null,null,null,null,null,null,18,null,null,20,null,null,null,null,null,21,null,null,null,null,null,null,null,null,null,null,null,null,null,null,null,null,null,null,null,null,null,null,null,null,null,null,null,null,null,null,null,null,null,null,null,null,null,null,null,null,null,null,null,null,null,null,null,null,null,null,null,null,null,null,null,null,null,null,null,null,null,null,null,null,null,null,null,null,null,null,null,null,null,null,null,null,null,null,null,null,null,null,null,null,null,null,null,null,null,null,null,null,null,null,null,null,null,null,null,null,null,null,null,null,null,null,null,null,null,null,null,null,null,null,null,null,null,null,null,null,null,null,null,null,null,null,null,null,null,null,null,null,null,null,null,{"$f":"BN62","v":0},0]
[null,null,null,null,null,null,null,null,null,null,null,null,{"$f":"IF($D$2=\"\",0,VLOOKUP($D$2,記録台帳!$B$4:$GB$505,FA12))","v":0},{"$f":"IF($D$2=\"\",0,VLOOKUP($D$2,記録台帳!$B$4:$GB$505,FB12))","v":0},"住所",{"$f":"IF($D$2=\"\",0,VLOOKUP($D$2,記録台帳!$B$4:$GB$505,FD12))","v":0},{"$f":"IF($D$2=\"\",0,VLOOKUP($D$2,記録台帳!$B$4:$GB$505,FE12))","v":0},{"$f":"IF($D$2=\"\",0,VLOOKUP($D$2,記録台帳!$B$4:$GB$505,FF12))","v":0},{"$f":"IF($D$2=\"\",0,VLOOKUP($D$2,記録台帳!$B$4:$GB$505,FG12))","v":0},{"$f":"IF($D$2=\"\",0,VLOOKUP($D$2,記録台帳!$B$4:$GB$505,FH12))","v":0},{"$f":"IF($D$2=\"\",0,VLOOKUP($D$2,記録台帳!$B$4:$GB$505,FI12))","v":0},{"$f":"IF($D$2=\"\",0,VLOOKUP($D$2,記録台帳!$B$4:$GB$505,FJ12))","v":0},{"$f":"IF($D$2=\"\",0,VLOOKUP($D$2,記録台帳!$B$4:$GB$505,FK12))","v":0},{"$f":"IF($D$2=\"\",0,VLOOKUP($D$2,記録台帳!$B$4:$GB$505,FL12))","v":0},{"$f":"IF($D$2=\"\",0,VLOOKUP($D$2,記録台帳!$B$4:$GB$505,FM12))","v":0},{"$f":"IF($D$2=\"\",0,VLOOKUP($D$2,記録台帳!$B$4:$GB$505,FN12))","v":0},{"$f":"IF($D$2=\"\",0,VLOOKUP($D$2,記録台帳!$B$4:$GB$505,FO12))","v":0},{"$f":"IF($D$2=\"\",0,VLOOKUP($D$2,記録台帳!$B$4:$GB$505,FP12))","v":0},{"$f":"IF($D$2=\"\",0,VLOOKUP($D$2,記録台帳!$B$4:$GB$505,FQ12))","v":0},null,null,null,null,null,null,null,null,null,null,null,null,null,{"$f":"$M$12","v":0},{"$f":"N12","v":0},"住所",{"$f":"$P$12","v":0},0,0,0,0,0,0,0,0,0,0,0,0,0,null,null,null,null,null,null,null,null,null,null,null,null,null,0,0,"住所",0,0,0,0,0,0,0,0,0,0,0,0,0,0,null,null,null,null,null,null,null,null,null,null,null,null,null,null,null,null,null,null,null,null,null,null,null,null,null,null,null,null,null,null,null,null,null,null,null,null,null,null,null,null,null,null,null,null,null,null,null,null,null,null,null,null,null,null,null,null,null,null,null,null,null,null,null,null,null,null,null,17,null,null,19,null,null,null,null,null,null,null,null,null,null,null,null,null,null,null,null,null,null,null,null,null,null,null,null,null,null,null,null,null,null,null,null,null,null,null,null,null,null,null,null,null,null,null,null,null,null,null,null,null,null,null,null,null,null,null,null,null,null,null,null,null,null,null,null,null,null,null,null,null,null,null,null,null,null,null,null,null,null,null,null,null,null,null,null,null,null,null,null,null,null,null,null,null,null,null,null,null,null,null,null,null,null,null,null,null,null,null,null,null,null,null,null,null,null,null,null,null,null,null,null,null,null,null,null,null,null,null,null,null,null,null,null,null,null,null,null,null,null,null,null,null,null,null,null,{"$f":"BN63","v":0},0]
[null,null,"概況と\n経緯の\n報告",null,{"$f":"IF($D$2=\"\",0,VLOOKUP($D$2,記録台帳!$B$4:$GB$505,ES13))","v":0},{"$f":"IF($D$2=\"\",0,VLOOKUP($D$2,記録台帳!$B$4:$GB$505,ET13))","v":0},{"$f":"IF($D$2=\"\",0,VLOOKUP($D$2,記録台帳!$B$4:$GB$505,EU13))","v":0},{"$f":"IF($D$2=\"\",0,VLOOKUP($D$2,記録台帳!$B$4:$GB$505,EV13))","v":0},{"$f":"IF($D$2=\"\",0,VLOOKUP($D$2,記録台帳!$B$4:$GB$505,EW13))","v":0},{"$f":"IF($D$2=\"\",0,VLOOKUP($D$2,記録台帳!$B$4:$GB$505,EX13))","v":0},{"$f":"IF($D$2=\"\",0,VLOOKUP($D$2,記録台帳!$B$4:$GB$505,EY13))","v":0},{"$f":"IF($D$2=\"\",0,VLOOKUP($D$2,記録台帳!$B$4:$GB$505,EZ13))","v":0},{"$f":"IF($D$2=\"\",0,VLOOKUP($D$2,記録台帳!$B$4:$GB$505,FA13))","v":0},{"$f":"IF($D$2=\"\",0,VLOOKUP($D$2,記録台帳!$B$4:$GB$505,FB13))","v":0},"世帯状況",{"$f":"マスタ変更!P7","v":"独居"},null,{"$f":"マスタ変更!R7","v":"在宅で家族介護"},null,{"$f":"マスタ変更!T7","v":"７５歳以上\n老々介護"},null,{"$f":"マスタ変更!V7","v":"施設\n入所\n入院中"},null,"入院・入所施設名",null,null,null,null,null,null,null,null,{"$f":"$C$13","v":"概況と\n経緯の\n報告"},null,{"$f":"$E$13","v":0},0,0,0,0,0,0,0,0,0,"世帯状況",{"$f":"$P$13","v":"独居"},0,{"$f":"$R$13","v":"在宅で家族介護"},0,{"$f":"$T$13","v":"７５歳以上\n老々介護"},0,{"$f":"$V$13","v":"施設\n入所\n入院中"},null,"入院・入所施設名",null,null,null,null,null,null,null,null,"概況と\n経緯の\n報告",null,0,0,0,0,0,0,0,0,0,0,"世帯状況","独居",0,"在宅で家族介護",0,"７５歳以上\n老々介護",0,"施設\n入所\n入院中",null,"入院・入所施設名",null,null,null,null,null,null,null,null,null,null,null,null,null,null,null,null,null,null,null,null,null,null,null,null,null,null,null,null,null,null,null,null,null,null,null,null,null,{"$f":"IF($D$2=\"\",0,VLOOKUP($D$2,記録台帳!$B$4:$GB$505,$FD$13))","v":0},null,{"$f":"IF($D$2=\"\",0,VLOOKUP($D$2,記録台帳!$B$4:$GB$505,$FF$13))","v":0},{"$f":"IF($D$2=\"\",0,VLOOKUP($D$2,記録台帳!$B$4:$GB$505,FG13))","v":0},{"$f":"IF($D$2=\"\",0,VLOOKUP($D$2,記録台帳!$B$4:$GB$505,$FH$13))","v":0},{"$f":"IF($D$2=\"\",0,VLOOKUP($D$2,記録台帳!$B$4:$GB$505,FI13))","v":0},{"$f":"IF($D$2=\"\",0,VLOOKUP($D$2,記録台帳!$B$4:$GB$505,$FJ$13))","v":0},{"$f":"IF($D$2=\"\",0,VLOOKUP($D$2,記録台帳!$B$4:$GB$505,FK13))","v":0},0,{"$error":"#VALUE!"},0,{"$error":"#VALUE!"},0,{"$error":"#VALUE!"},null,null,null,null,null,null,null,null,null,null,null,null,null,22,null,null,null,null,null,null,null,null,null,null,23,null,24,null,25,null,27,null,null,null,null,null,null,null,null,{"$f":"配点表!C5","v":9},null,{"$f":"配点表!D5","v":3},null,{"$f":"配点表!E5","v":6}]
[null,null,null,null,{"$f":"IF($D$2=\"\",0,VLOOKUP($D$2,記録台帳!$B$4:$GB$505,ES14))","v":0},{"$f":"IF($D$2=\"\",0,VLOOKUP($D$2,記録台帳!$B$4:$GB$505,ET14))","v":0},{"$f":"IF($D$2=\"\",0,VLOOKUP($D$2,記録台帳!$B$4:$GB$505,EU14))","v":0},{"$f":"IF($D$2=\"\",0,VLOOKUP($D$2,記録台帳!$B$4:$GB$505,EV14))","v":0},{"$f":"IF($D$2=\"\",0,VLOOKUP($D$2,記録台帳!$B$4:$GB$505,EW14))","v":0},{"$f":"IF($D$2=\"\",0,VLOOKUP($D$2,記録台帳!$B$4:$GB$505,EX14))","v":0},{"$f":"IF($D$2=\"\",0,VLOOKUP($D$2,記録台帳!$B$4:$GB$505,EY14))","v":0},{"$f":"IF($D$2=\"\",0,VLOOKUP($D$2,記録台帳!$B$4:$GB$505,EZ14))","v":0},{"$f":"IF($D$2=\"\",0,VLOOKUP($D$2,記録台帳!$B$4:$GB$505,FA14))","v":0},{"$f":"IF($D$2=\"\",0,VLOOKUP($D$2,記録台帳!$B$4:$GB$505,FB14))","v":0},null,null,null,null,null,null,null,null,null,{"$f":"IF($D$2=\"\",0,VLOOKUP($D$2,記録台帳!$B$4:$GB$505,FL14))","v":0},{"$f":"IF($D$2=\"\",0,VLOOKUP($D$2,記録台帳!$B$4:$GB$505,FM14))","v":0},{"$f":"IF($D$2=\"\",0,VLOOKUP($D$2,記録台帳!$B$4:$GB$505,FN14))","v":0},{"$f":"IF($D$2=\"\",0,VLOOKUP($D$2,記録台帳!$B$4:$GB$505,FO14))","v":0},{"$f":"IF($D$2=\"\",0,VLOOKUP($D$2,記録台帳!$B$4:$GB$505,FP14))","v":0},{"$f":"IF($D$2=\"\",0,VLOOKUP($D$2,記録台帳!$B$4:$GB$505,FQ14))","v":0},null,null,null,null,null,0,0,0,0,0,0,0,0,0,0,null,0,0,0,0,0,0,null,null,{"$f":"$X$14","v":0},null,null,null,null,null,null,null,null,null,null,0,0,0,0,0,0,0,0,0,0,null,0,0,0,0,0,0,null,null,0,null,null,null,null,null,null,null,null,null,null,null,null,null,null,null,null,null,null,null,null,null,null,null,null,null,null,null,null,null,null,null,null,null,null,null,null,null,null,null,{"$f":"IF($D$2=\"\",0,VLOOKUP($D$2,記録台帳!$B$4:$GB$505,FF14))","v":0},{"$f":"IF($D$2=\"\",0,VLOOKUP($D$2,記録台帳!$B$4:$GB$505,FG14))","v":0},{"$f":"IF($D$2=\"\",0,VLOOKUP($D$2,記録台帳!$B$4:$GB$505,FH14))","v":0},{"$f":"IF($D$2=\"\",0,VLOOKUP($D$2,記録台帳!$B$4:$GB$505,FI14))","v":0},{"$f":"IF($D$2=\"\",0,VLOOKUP($D$2,記録台帳!$B$4:$GB$505,FJ14))","v":0},{"$f":"IF($D$2=\"\",0,VLOOKUP($D$2,記録台帳!$B$4:$GB$505,FK14))","v":0},{"$error":"#VALUE!"},{"$error":"#VALUE!"},{"$error":"#VALUE!"},{"$error":"#VALUE!"},{"$error":"#VALUE!"},{"$error":"#VALUE!"},null,null,null,null,null,null,null,null,null,null,null,null,null,null,null,null,null,null,null,null,null,null,null,null,null,null,null,null,null,null,null,null,26]
[null,null,null,null,{"$f":"IF($D$2=\"\",0,VLOOKUP($D$2,記録台帳!$B$4:$GB$505,ES15))","v":0},{"$f":"IF($D$2=\"\",0,VLOOKUP($D$2,記録台帳!$B$4:$GB$505,ET15))","v":0},{"$f":"IF($D$2=\"\",0,VLOOKUP($D$2,記録台帳!$B$4:$GB$505,EU15))","v":0},{"$f":"IF($D$2=\"\",0,VLOOKUP($D$2,記録台帳!$B$4:$GB$505,EV15))","v":0},{"$f":"IF($D$2=\"\",0,VLOOKUP($D$2,記録台帳!$B$4:$GB$505,EW15))","v":0},{"$f":"IF($D$2=\"\",0,VLOOKUP($D$2,記録台帳!$B$4:$GB$505,EX15))","v":0},{"$f":"IF($D$2=\"\",0,VLOOKUP($D$2,記録台帳!$B$4:$GB$505,EY15))","v":0},{"$f":"IF($D$2=\"\",0,VLOOKUP($D$2,記録台帳!$B$4:$GB$505,EZ15))","v":0},{"$f":"IF($D$2=\"\",0,VLOOKUP($D$2,記録台帳!$B$4:$GB$505,FA15))","v":0},{"$f":"IF($D$2=\"\",0,VLOOKUP($D$2,記録台帳!$B$4:$GB$505,FB15))","v":0},null,{"$f":"マスタ変更!P9","v":"介護者\n不在"},null,{"$f":"マスタ変更!R9","v":"主介護者\n障害疾病\nなど"},null,{"$f":"マスタ変更!T9","v":"就労\nのため\n介護困難"},null,{"$f":"マスタ変更!V9","v":"育児のため\n介護困難"},null,{"$f":"マスタ変更!X9","v":"障害者\n複数介護"},null,{"$f":"マスタ変更!Z9","v":"退院等を\n迫られ\nている"},null,{"$f":"マスタ変更!AB9","v":"遠距離\n訪問介護"},null,null,null,null,null,null,0,0,0,0,0,0,0,0,0,0,null,{"$f":"$P$15","v":"介護者\n不在"},0,{"$f":"$R$15","v":"主介護者\n障害疾病\nなど"},0,{"$f":"$T$15","v":"就労\nのため\n介護困難"},0,{"$f":"$V$15","v":"育児のため\n介護困難"},{"$f":"W15","v":0},{"$f":"$X$15","v":"障害者\n複数介護"},0,{"$f":"$Z$15","v":"退院等を\n迫られ\nている"},0,{"$f":"$AB$15","v":"遠距離\n訪問介護"},0,null,null,null,null,null,0,0,0,0,0,0,0,0,0,0,null,"介護者\n不在",0,"主介護者\n障害疾病\nなど",0,"就労\nのため\n介護困難",0,"育児のため\n介護困難",0,"障害者\n複数介護",0,"退院等を\n迫られ\nている",0,"遠距離\n訪問介護",0,null,null,null,null,null,null,null,null,null,null,null,null,null,null,null,null,null,null,null,null,null,null,null,null,null,null,null,null,null,null,null,null,{"$f":"IF($D$2=\"\",0,VLOOKUP($D$2,記録台帳!$B$4:$GB$505,$FD$15))","v":0},{"$f":"IF($D$2=\"\",0,VLOOKUP($D$2,記録台帳!$B$4:$GB$505,FE15))","v":0},{"$f":"IF($D$2=\"\",0,VLOOKUP($D$2,記録台帳!$B$4:$GB$505,$FF$15))","v":0},{"$f":"IF($D$2=\"\",0,VLOOKUP($D$2,記録台帳!$B$4:$GB$505,FG15))","v":0},{"$f":"IF($D$2=\"\",0,VLOOKUP($D$2,記録台帳!$B$4:$GB$505,$FH$15))","v":0},{"$f":"IF($D$2=\"\",0,VLOOKUP($D$2,記録台帳!$B$4:$GB$505,FI15))","v":0},{"$f":"IF($D$2=\"\",0,VLOOKUP($D$2,記録台帳!$B$4:$GB$505,$FJ$15))","v":0},{"$f":"IF($D$2=\"\",0,VLOOKUP($D$2,記録台帳!$B$4:$GB$505,FK15))","v":0},{"$f":"IF($D$2=\"\",0,VLOOKUP($D$2,記録台帳!$B$4:$GB$505,$FL$15))","v":0},{"$f":"IF($D$2=\"\",0,VLOOKUP($D$2,記録台帳!$B$4:$GB$505,FM15))","v":0},{"$f":"IF($D$2=\"\",0,VLOOKUP($D$2,記録台帳!$B$4:$GB$505,$FN$15))","v":0},{"$f":"IF($D$2=\"\",0,VLOOKUP($D$2,記録台帳!$B$4:$GB$505,FO15))","v":0},{"$f":"IF($D$2=\"\",0,VLOOKUP($D$2,記録台帳!$B$4:$GB$505,$FP$15))","v":0},{"$f":"IF($D$2=\"\",0,VLOOKUP($D$2,記録台帳!$B$4:$GB$505,FQ15))","v":0},null,null,null,null,null,null,null,null,null,null,null,null,null,null,null,null,null,null,null,null,null,null,null,null,28,null,29,null,30,null,31,null,32,null,33,null,34,null,null,{"$f":"配点表!G5","v":9},null,{"$f":"配点表!H5","v":3},null,{"$f":"配点表!I5","v":5},null,{"$f":"配点表!J5","v":4},null,{"$f":"配点表!K5","v":5},null,{"$f":"配点表!L5","v":1},null,{"$f":"配点表!M5","v":3}]
[null,null,null,null,{"$f":"IF($D$2=\"\",0,VLOOKUP($D$2,記録台帳!$B$4:$GB$505,ES16))","v":0},{"$f":"IF($D$2=\"\",0,VLOOKUP($D$2,記録台帳!$B$4:$GB$505,ET16))","v":0},{"$f":"IF($D$2=\"\",0,VLOOKUP($D$2,記録台帳!$B$4:$GB$505,EU16))","v":0},{"$f":"IF($D$2=\"\",0,VLOOKUP($D$2,記録台帳!$B$4:$GB$505,EV16))","v":0},{"$f":"IF($D$2=\"\",0,VLOOKUP($D$2,記録台帳!$B$4:$GB$505,EW16))","v":0},{"$f":"IF($D$2=\"\",0,VLOOKUP($D$2,記録台帳!$B$4:$GB$505,EX16))","v":0},{"$f":"IF($D$2=\"\",0,VLOOKUP($D$2,記録台帳!$B$4:$GB$505,EY16))","v":0},{"$f":"IF($D$2=\"\",0,VLOOKUP($D$2,記録台帳!$B$4:$GB$505,EZ16))","v":0},{"$f":"IF($D$2=\"\",0,VLOOKUP($D$2,記録台帳!$B$4:$GB$505,FA16))","v":0},{"$f":"IF($D$2=\"\",0,VLOOKUP($D$2,記録台帳!$B$4:$GB$505,FB16))","v":0},null,null,null,null,null,null,null,null,null,null,null,null,null,null,null,null,null,null,null,null,0,0,0,0,0,0,0,0,0,0,null,0,0,0,0,0,0,0,0,0,0,0,0,0,0,null,null,null,null,null,0,0,0,0,0,0,0,0,0,0,null,0,0,0,0,0,0,0,0,0,0,0,0,0,0,null,null,null,null,null,null,null,null,null,null,null,null,null,null,null,null,null,null,null,null,null,null,null,null,null,null,null,null,null,null,null,null,{"$f":"IF($D$2=\"\",0,VLOOKUP($D$2,記録台帳!$B$4:$GB$505,FD16))","v":0},{"$f":"IF($D$2=\"\",0,VLOOKUP($D$2,記録台帳!$B$4:$GB$505,FE16))","v":0},{"$f":"IF($D$2=\"\",0,VLOOKUP($D$2,記録台帳!$B$4:$GB$505,FF16))","v":0},{"$f":"IF($D$2=\"\",0,VLOOKUP($D$2,記録台帳!$B$4:$GB$505,FG16))","v":0},{"$f":"IF($D$2=\"\",0,VLOOKUP($D$2,記録台帳!$B$4:$GB$505,FH16))","v":0},{"$f":"IF($D$2=\"\",0,VLOOKUP($D$2,記録台帳!$B$4:$GB$505,FI16))","v":0},{"$f":"IF($D$2=\"\",0,VLOOKUP($D$2,記録台帳!$B$4:$GB$505,FJ16))","v":0},{"$f":"IF($D$2=\"\",0,VLOOKUP($D$2,記録台帳!$B$4:$GB$505,FK16))","v":0},{"$f":"IF($D$2=\"\",0,VLOOKUP($D$2,記録台帳!$B$4:$GB$505,FL16))","v":0},{"$f":"IF($D$2=\"\",0,VLOOKUP($D$2,記録台帳!$B$4:$GB$505,FM16))","v":0},{"$f":"IF($D$2=\"\",0,VLOOKUP($D$2,記録台帳!$B$4:$GB$505,FN16))","v":0},{"$f":"IF($D$2=\"\",0,VLOOKUP($D$2,記録台帳!$B$4:$GB$505,FO16))","v":0},{"$f":"IF($D$2=\"\",0,VLOOKUP($D$2,記録台帳!$B$4:$GB$505,FP16))","v":0},{"$f":"IF($D$2=\"\",0,VLOOKUP($D$2,記録台帳!$B$4:$GB$505,FQ16))","v":0}]
[null,null,null,null,{"$f":"IF($D$2=\"\",0,VLOOKUP($D$2,記録台帳!$B$4:$GB$505,ES17))","v":0},{"$f":"IF($D$2=\"\",0,VLOOKUP($D$2,記録台帳!$B$4:$GB$505,ET17))","v":0},{"$f":"IF($D$2=\"\",0,VLOOKUP($D$2,記録台帳!$B$4:$GB$505,EU17))","v":0},{"$f":"IF($D$2=\"\",0,VLOOKUP($D$2,記録台帳!$B$4:$GB$505,EV17))","v":0},{"$f":"IF($D$2=\"\",0,VLOOKUP($D$2,記録台帳!$B$4:$GB$505,EW17))","v":0},{"$f":"IF($D$2=\"\",0,VLOOKUP($D$2,記録台帳!$B$4:$GB$505,EX17))","v":0},{"$f":"IF($D$2=\"\",0,VLOOKUP($D$2,記録台帳!$B$4:$GB$505,EY17))","v":0},{"$f":"IF($D$2=\"\",0,VLOOKUP($D$2,記録台帳!$B$4:$GB$505,EZ17))","v":0},{"$f":"IF($D$2=\"\",0,VLOOKUP($D$2,記録台帳!$B$4:$GB$505,FA17))","v":0},{"$f":"IF($D$2=\"\",0,VLOOKUP($D$2,記録台帳!$B$4:$GB$505,FB17))","v":0},"家族と世帯（介護者・頻度）などの情報",null,null,null,null,null,null,null,null,null,null,null,null,null,null,null,null,null,null,null,0,0,0,0,0,0,0,0,0,0,{"$f":"$O$17","v":"家族と世帯（介護者・頻度）などの情報"},null,null,null,null,null,null,null,null,null,null,null,null,null,null,null,null,null,null,null,0,0,0,0,0,0,0,0,0,0,"家族と世帯（介護者・頻度）などの情報"]
[null,null,null,null,{"$f":"IF($D$2=\"\",0,VLOOKUP($D$2,記録台帳!$B$4:$GB$505,ES18))","v":0},{"$f":"IF($D$2=\"\",0,VLOOKUP($D$2,記録台帳!$B$4:$GB$505,ET18))","v":0},{"$f":"IF($D$2=\"\",0,VLOOKUP($D$2,記録台帳!$B$4:$GB$505,EU18))","v":0},{"$f":"IF($D$2=\"\",0,VLOOKUP($D$2,記録台帳!$B$4:$GB$505,EV18))","v":0},{"$f":"IF($D$2=\"\",0,VLOOKUP($D$2,記録台帳!$B$4:$GB$505,EW18))","v":0},{"$f":"IF($D$2=\"\",0,VLOOKUP($D$2,記録台帳!$B$4:$GB$505,EX18))","v":0},{"$f":"IF($D$2=\"\",0,VLOOKUP($D$2,記録台帳!$B$4:$GB$505,EY18))","v":0},{"$f":"IF($D$2=\"\",0,VLOOKUP($D$2,記録台帳!$B$4:$GB$505,EZ18))","v":0},{"$f":"IF($D$2=\"\",0,VLOOKUP($D$2,記録台帳!$B$4:$GB$505,FA18))","v":0},{"$f":"IF($D$2=\"\",0,VLOOKUP($D$2,記録台帳!$B$4:$GB$505,FB18))","v":0},{"$f":"IF($D$2=\"\",0,VLOOKUP($D$2,記録台帳!$B$4:$GB$505,FC18))","v":0},{"$f":"IF($D$2=\"\",0,VLOOKUP($D$2,記録台帳!$B$4:$GB$505,FD18))","v":0},{"$f":"IF($D$2=\"\",0,VLOOKUP($D$2,記録台帳!$B$4:$GB$505,FE18))","v":0},{"$f":"IF($D$2=\"\",0,VLOOKUP($D$2,記録台帳!$B$4:$GB$505,FF18))","v":0},{"$f":"IF($D$2=\"\",0,VLOOKUP($D$2,記録台帳!$B$4:$GB$505,FG18))","v":0},{"$f":"IF($D$2=\"\",0,VLOOKUP($D$2,記録台帳!$B$4:$GB$505,FH18))","v":0},{"$f":"IF($D$2=\"\",0,VLOOKUP($D$2,記録台帳!$B$4:$GB$505,FI18))","v":0},{"$f":"IF($D$2=\"\",0,VLOOKUP($D$2,記録台帳!$B$4:$GB$505,FJ18))","v":0},{"$f":"IF($D$2=\"\",0,VLOOKUP($D$2,記録台帳!$B$4:$GB$505,FK18))","v":0},{"$f":"IF($D$2=\"\",0,VLOOKUP($D$2,記録台帳!$B$4:$GB$505,FL18))","v":0},{"$f":"IF($D$2=\"\",0,VLOOKUP($D$2,記録台帳!$B$4:$GB$505,FM18))","v":0},{"$f":"IF($D$2=\"\",0,VLOOKUP($D$2,記録台帳!$B$4:$GB$505,FN18))","v":0},{"$f":"IF($D$2=\"\",0,VLOOKUP($D$2,記録台帳!$B$4:$GB$505,FO18))","v":0},{"$f":"IF($D$2=\"\",0,VLOOKUP($D$2,記録台帳!$B$4:$GB$505,FP18))","v":0},{"$f":"IF($D$2=\"\",0,VLOOKUP($D$2,記録台帳!$B$4:$GB$505,FQ18))","v":0},null,null,null,null,null,0,0,0,0,0,0,0,0,0,0,{"$f":"$O$18","v":0},{"$f":"P18","v":0},0,0,0,0,0,0,0,0,0,0,0,0,0,null,null,null,null,null,0,0,0,0,0,0,0,0,0,0,0,0,0,0,0,0,0,0,0,0,0,0,0,0,0,null,null,null,null,null,null,null,null,null,null,null,null,null,null,null,null,null,null,null,null,null,null,null,null,null,null,null,null,null,null,null,null,null,null,null,null,null,null,null,null,null,null,null,null,null,null,null,null,null,null,null,null,null,null,null,null,null,null,null,null,null,null,null,null,null,null,null,null,null,35,null,null,null,null,null,null,null,null,null,null,null,null,null,null,null,{"$f":"DC13*FS13","v":0},null,{"$f":"DE13*FU13","v":0},null,{"$f":"DG13*FW13","v":0}]
[null,null,null,null,{"$f":"IF($D$2=\"\",0,VLOOKUP($D$2,記録台帳!$B$4:$GB$505,ES19))","v":0},{"$f":"IF($D$2=\"\",0,VLOOKUP($D$2,記録台帳!$B$4:$GB$505,ET19))","v":0},{"$f":"IF($D$2=\"\",0,VLOOKUP($D$2,記録台帳!$B$4:$GB$505,EU19))","v":0},{"$f":"IF($D$2=\"\",0,VLOOKUP($D$2,記録台帳!$B$4:$GB$505,EV19))","v":0},{"$f":"IF($D$2=\"\",0,VLOOKUP($D$2,記録台帳!$B$4:$GB$505,EW19))","v":0},{"$f":"IF($D$2=\"\",0,VLOOKUP($D$2,記録台帳!$B$4:$GB$505,EX19))","v":0},{"$f":"IF($D$2=\"\",0,VLOOKUP($D$2,記録台帳!$B$4:$GB$505,EY19))","v":0},{"$f":"IF($D$2=\"\",0,VLOOKUP($D$2,記録台帳!$B$4:$GB$505,EZ19))","v":0},{"$f":"IF($D$2=\"\",0,VLOOKUP($D$2,記録台帳!$B$4:$GB$505,FA19))","v":0},{"$f":"IF($D$2=\"\",0,VLOOKUP($D$2,記録台帳!$B$4:$GB$505,FB19))","v":0},{"$f":"IF($D$2=\"\",0,VLOOKUP($D$2,記録台帳!$B$4:$GB$505,FC19))","v":0},{"$f":"IF($D$2=\"\",0,VLOOKUP($D$2,記録台帳!$B$4:$GB$505,FD19))","v":0},{"$f":"IF($D$2=\"\",0,VLOOKUP($D$2,記録台帳!$B$4:$GB$505,FE19))","v":0},{"$f":"IF($D$2=\"\",0,VLOOKUP($D$2,記録台帳!$B$4:$GB$505,FF19))","v":0},{"$f":"IF($D$2=\"\",0,VLOOKUP($D$2,記録台帳!$B$4:$GB$505,FG19))","v":0},{"$f":"IF($D$2=\"\",0,VLOOKUP($D$2,記録台帳!$B$4:$GB$505,FH19))","v":0},{"$f":"IF($D$2=\"\",0,VLOOKUP($D$2,記録台帳!$B$4:$GB$505,FI19))","v":0},{"$f":"IF($D$2=\"\",0,VLOOKUP($D$2,記録台帳!$B$4:$GB$505,FJ19))","v":0},{"$f":"IF($D$2=\"\",0,VLOOKUP($D$2,記録台帳!$B$4:$GB$505,FK19))","v":0},{"$f":"IF($D$2=\"\",0,VLOOKUP($D$2,記録台帳!$B$4:$GB$505,FL19))","v":0},{"$f":"IF($D$2=\"\",0,VLOOKUP($D$2,記録台帳!$B$4:$GB$505,FM19))","v":0},{"$f":"IF($D$2=\"\",0,VLOOKUP($D$2,記録台帳!$B$4:$GB$505,FN19))","v":0},{"$f":"IF($D$2=\"\",0,VLOOKUP($D$2,記録台帳!$B$4:$GB$505,FO19))","v":0},{"$f":"IF($D$2=\"\",0,VLOOKUP($D$2,記録台帳!$B$4:$GB$505,FP19))","v":0},{"$f":"IF($D$2=\"\",0,VLOOKUP($D$2,記録台帳!$B$4:$GB$505,FQ19))","v":0},null,null,null,null,null,0,0,0,0,0,0,0,0,0,0,0,0,0,0,0,0,0,0,0,0,0,0,0,0,0,null,null,null,null,null,0,0,0,0,0,0,0,0,0,0,0,0,0,0,0,0,0,0,0,0,0,0,0,0,0,null,null,null,null,null,null,null,null,null,null,null,"フリガナ","本人氏名","〒","住所","介護度","介護保険証被保険者番号","市・区名","連絡先\n家族氏名","家族氏名","概況報告","1ヶ月に本人と親族が\n支出できる限界金額"]
[null,null,"居宅介護支援事業所",null,null,null,{"$f":"IF($D$2=\"\",0,VLOOKUP($D$2,記録台帳!$B$4:$GB$505,EU20))","v":0},{"$f":"IF($D$2=\"\",0,VLOOKUP($D$2,記録台帳!$B$4:$GB$505,EV20))","v":0},{"$f":"IF($D$2=\"\",0,VLOOKUP($D$2,記録台帳!$B$4:$GB$505,EW20))","v":0},{"$f":"IF($D$2=\"\",0,VLOOKUP($D$2,記録台帳!$B$4:$GB$505,EX20))","v":0},{"$f":"IF($D$2=\"\",0,VLOOKUP($D$2,記録台帳!$B$4:$GB$505,EY20))","v":0},{"$f":"IF($D$2=\"\",0,VLOOKUP($D$2,記録台帳!$B$4:$GB$505,EZ20))","v":0},{"$f":"IF($D$2=\"\",0,VLOOKUP($D$2,記録台帳!$B$4:$GB$505,FA20))","v":0},{"$f":"IF($D$2=\"\",0,VLOOKUP($D$2,記録台帳!$B$4:$GB$505,FB20))","v":0},"同居家族が介護協力困難である具体的理由",null,null,null,null,null,null,null,null,null,null,null,null,null,null,null,null,null,"居宅介護支援事業所",null,null,null,{"$f":"$G$20","v":0},0,0,0,0,0,0,0,{"$f":"$O$20","v":"同居家族が介護協力困難である具体的理由"},null,null,null,null,null,null,null,null,null,null,null,null,null,null,null,null,null,"居宅介護支援事業所",null,null,null,0,0,0,0,0,0,0,0,"同居家族が介護協力困難である具体的理由",null,null,null,null,null,null,null,null,null,null,null,null,null,null,null,null,null,null,null,null,null,null,null,null,null,{"$f":"IF(BM7=0,0,1)","v":0},{"$f":"IF(BM8=0,0,1)","v":0},{"$f":"IF(BX11=0,0,1)","v":0},{"$f":"IF(OR(BX8=0,BX12=0),0,1)","v":0},{"$f":"IF(BU10=0,0,1)","v":0},{"$f":"IF(BW10=0,0,1)","v":0},{"$f":"IF(CG10=0,0,1)","v":0},{"$f":"IF(BM11=0,0,1)","v":0},{"$f":"IF(BM11=0,0,1)","v":0},{"$f":"IF(BM13=0,0,1)","v":0},{"$f":"IF(BR34=0,0,1)","v":0},null,null,null,null,null,null,null,null,null,null,null,null,null,null,null,null,null,null,null,null,null,null,null,null,null,null,null,null,null,null,null,null,null,null,null,null,null,null,null,38,null,null,null,null,null,null,null,null,null,null,null,null,null,null,null,null,null,null,null,null,null,null,null,{"$f":"DC15*FS15","v":0},null,{"$f":"DE15*FU15","v":0},null,{"$f":"DG15*FW15","v":0},null,{"$f":"DI15*FY15","v":0},null,{"$f":"DK15*GA15","v":0},null,{"$f":"DM15*GC15","v":0},null,{"$f":"DO15*GE15","v":0}]
[null,null,"介護サービスの利用頻度",null,null,null,null,null,null,"事業所名",null,null,null,null,{"$f":"IF($D$2=\"\",0,VLOOKUP($D$2,記録台帳!$B$4:$GB$505,FC21))","v":0},{"$f":"IF($D$2=\"\",0,VLOOKUP($D$2,記録台帳!$B$4:$GB$505,FD21))","v":0},{"$f":"IF($D$2=\"\",0,VLOOKUP($D$2,記録台帳!$B$4:$GB$505,FE21))","v":0},{"$f":"IF($D$2=\"\",0,VLOOKUP($D$2,記録台帳!$B$4:$GB$505,FF21))","v":0},{"$f":"IF($D$2=\"\",0,VLOOKUP($D$2,記録台帳!$B$4:$GB$505,FG21))","v":0},{"$f":"IF($D$2=\"\",0,VLOOKUP($D$2,記録台帳!$B$4:$GB$505,FH21))","v":0},{"$f":"IF($D$2=\"\",0,VLOOKUP($D$2,記録台帳!$B$4:$GB$505,FI21))","v":0},{"$f":"IF($D$2=\"\",0,VLOOKUP($D$2,記録台帳!$B$4:$GB$505,FJ21))","v":0},{"$f":"IF($D$2=\"\",0,VLOOKUP($D$2,記録台帳!$B$4:$GB$505,FK21))","v":0},{"$f":"IF($D$2=\"\",0,VLOOKUP($D$2,記録台帳!$B$4:$GB$505,FL21))","v":0},{"$f":"IF($D$2=\"\",0,VLOOKUP($D$2,記録台帳!$B$4:$GB$505,FM21))","v":0},{"$f":"IF($D$2=\"\",0,VLOOKUP($D$2,記録台帳!$B$4:$GB$505,FN21))","v":0},{"$f":"IF($D$2=\"\",0,VLOOKUP($D$2,記録台帳!$B$4:$GB$505,FO21))","v":0},{"$f":"IF($D$2=\"\",0,VLOOKUP($D$2,記録台帳!$B$4:$GB$505,FP21))","v":0},{"$f":"IF($D$2=\"\",0,VLOOKUP($D$2,記録台帳!$B$4:$GB$505,FQ21))","v":0},null,null,null,"介護サービスの利用頻度",null,null,null,null,null,null,"事業所名",null,null,null,null,{"$f":"$O$21","v":0},{"$f":"P21","v":0},0,0,0,0,0,0,0,0,0,0,0,0,0,null,null,null,"介護サービスの利用頻度",null,null,null,null,null,null,"事業所名",null,null,null,null,0,0,0,0,0,0,0,0,0,0,0,0,0,0,0,null,null,null,null,null,null,null,null,null,null,null,{"$f":"PRODUCT(CW20:DG20)","v":0},"←必須項目チェック",null,null,null,null,null,null,null,null,null,null,null,null,null,null,null,null,null,null,null,null,null,null,null,null,null,null,null,null,null,null,null,null,null,null,null,null,null,null,null,null,null,null,null,null,null,null,null,null,null,null,null,null,null,null,null,null,36,null,null,null,null,null,null,null,null,null,null,null,null,null,null,null,null,null,null,null,null,null,null,null,null,null,null,null,null,null,null,{"$f":"SUM(FS18:GF21)","v":0},"＋",{"$f":"SUM(FS55:GP71)","v":0},"＝",{"$f":"GH21+GJ21","v":0}]
[null,null,"ショートステイ",null,null,null,"月",{"$f":"IF($D$2=\"\",0,VLOOKUP($D$2,記録台帳!$B$4:$GB$505,EV22))","v":0},"回",{"$f":"IF($D$2=\"\",0,VLOOKUP($D$2,記録台帳!$B$4:$GB$505,EX22))","v":0},{"$f":"IF($D$2=\"\",0,VLOOKUP($D$2,記録台帳!$B$4:$GB$505,EY22))","v":0},{"$f":"IF($D$2=\"\",0,VLOOKUP($D$2,記録台帳!$B$4:$GB$505,EZ22))","v":0},{"$f":"IF($D$2=\"\",0,VLOOKUP($D$2,記録台帳!$B$4:$GB$505,FA22))","v":0},{"$f":"IF($D$2=\"\",0,VLOOKUP($D$2,記録台帳!$B$4:$GB$505,FB22))","v":0},{"$f":"IF($D$2=\"\",0,VLOOKUP($D$2,記録台帳!$B$4:$GB$505,FC22))","v":0},{"$f":"IF($D$2=\"\",0,VLOOKUP($D$2,記録台帳!$B$4:$GB$505,FD22))","v":0},{"$f":"IF($D$2=\"\",0,VLOOKUP($D$2,記録台帳!$B$4:$GB$505,FE22))","v":0},{"$f":"IF($D$2=\"\",0,VLOOKUP($D$2,記録台帳!$B$4:$GB$505,FF22))","v":0},{"$f":"IF($D$2=\"\",0,VLOOKUP($D$2,記録台帳!$B$4:$GB$505,FG22))","v":0},{"$f":"IF($D$2=\"\",0,VLOOKUP($D$2,記録台帳!$B$4:$GB$505,FH22))","v":0},{"$f":"IF($D$2=\"\",0,VLOOKUP($D$2,記録台帳!$B$4:$GB$505,FI22))","v":0},{"$f":"IF($D$2=\"\",0,VLOOKUP($D$2,記録台帳!$B$4:$GB$505,FJ22))","v":0},{"$f":"IF($D$2=\"\",0,VLOOKUP($D$2,記録台帳!$B$4:$GB$505,FK22))","v":0},{"$f":"IF($D$2=\"\",0,VLOOKUP($D$2,記録台帳!$B$4:$GB$505,FL22))","v":0},{"$f":"IF($D$2=\"\",0,VLOOKUP($D$2,記録台帳!$B$4:$GB$505,FM22))","v":0},{"$f":"IF($D$2=\"\",0,VLOOKUP($D$2,記録台帳!$B$4:$GB$505,FN22))","v":0},{"$f":"IF($D$2=\"\",0,VLOOKUP($D$2,記録台帳!$B$4:$GB$505,FO22))","v":0},{"$f":"IF($D$2=\"\",0,VLOOKUP($D$2,記録台帳!$B$4:$GB$505,FP22))","v":0},{"$f":"IF($D$2=\"\",0,VLOOKUP($D$2,記録台帳!$B$4:$GB$505,FQ22))","v":0},null,null,null,"ショートステイ",null,null,null,"月",{"$f":"$H$22","v":0},"回",{"$f":"$J$22","v":0},{"$f":"K22","v":0},0,0,0,0,0,0,0,0,0,0,0,0,0,0,0,0,0,0,null,null,null,"ショートステイ",null,null,null,"月",0,"回",0,0,0,0,0,0,0,0,0,0,0,0,0,0,0,0,0,0,0,0,null,null,null,null,null,null,null,null,null,null,null,null,null,null,null,null,null,null,null,null,null,null,null,null,null,null,null,null,null,null,null,null,null,null,null,null,null,null,null,null,null,null,null,null,null,null,null,null,null,null,null,null,null,null,null,null,null,null,null,null,null,null,39,null,40]
[null,null,"デイケア・デイサービス",null,null,null,"月",{"$f":"IF($D$2=\"\",0,VLOOKUP($D$2,記録台帳!$B$4:$GB$505,EV23))","v":0},"回",{"$f":"IF($D$2=\"\",0,VLOOKUP($D$2,記録台帳!$B$4:$GB$505,EX23))","v":0},{"$f":"IF($D$2=\"\",0,VLOOKUP($D$2,記録台帳!$B$4:$GB$505,EY23))","v":0},{"$f":"IF($D$2=\"\",0,VLOOKUP($D$2,記録台帳!$B$4:$GB$505,EZ23))","v":0},{"$f":"IF($D$2=\"\",0,VLOOKUP($D$2,記録台帳!$B$4:$GB$505,FA23))","v":0},{"$f":"IF($D$2=\"\",0,VLOOKUP($D$2,記録台帳!$B$4:$GB$505,FB23))","v":0},"非同居家族が介護協力困難である具体的理由・居住地情報",null,null,null,null,null,null,null,null,null,null,null,null,null,null,null,null,null,"デイケア・デイサービス",null,null,null,"月",{"$f":"$H$23","v":0},"回",{"$f":"$J$23","v":0},0,0,0,0,{"$f":"$O$23","v":"非同居家族が介護協力困難である具体的理由・居住地情報"},null,null,null,null,null,null,null,null,null,null,null,null,null,null,null,null,null,"デイケア・デイサービス",null,null,null,"月",0,"回",0,0,0,0,0,"非同居家族が介護協力困難である具体的理由・居住地情報",null,null,null,null,null,null,null,null,null,null,null,null,null,null,null,null,null,null,null,null,null,null,null,null,null,null,null,null,null,null,null,null,null,null,null,null,null,null,null,null,null,null,null,null,null,null,null,null,null,null,null,null,null,null,null,null,null,null,null,null,null,null,null,null,null,null,null,null,null,null,null,null,null,null,null,null,41,null,42,null,null,null,null,null,null,null,null,null,null,null,null,null,null,null,null,null,null,null,null,null,null,null,null,null,null,null,null,null,null,null,null,null,null,null,{"$f":"IF(BU10=3,1,IF(BU10=4,1,IF(BU10=5,1,配点表!I47)))","v":0.85},null,{"$f":"ROUNDUP(GL21*GH23,0)","v":0}]
[null,null,"ヘルパー・訪問介護",null,null,null,"月",{"$f":"IF($D$2=\"\",0,VLOOKUP($D$2,記録台帳!$B$4:$GB$505,EV24))","v":0},"回",{"$f":"IF($D$2=\"\",0,VLOOKUP($D$2,記録台帳!$B$4:$GB$505,EX24))","v":0},{"$f":"IF($D$2=\"\",0,VLOOKUP($D$2,記録台帳!$B$4:$GB$505,EY24))","v":0},{"$f":"IF($D$2=\"\",0,VLOOKUP($D$2,記録台帳!$B$4:$GB$505,EZ24))","v":0},{"$f":"IF($D$2=\"\",0,VLOOKUP($D$2,記録台帳!$B$4:$GB$505,FA24))","v":0},{"$f":"IF($D$2=\"\",0,VLOOKUP($D$2,記録台帳!$B$4:$GB$505,FB24))","v":0},{"$f":"IF($D$2=\"\",0,VLOOKUP($D$2,記録台帳!$B$4:$GB$505,FC24))","v":0},{"$f":"IF($D$2=\"\",0,VLOOKUP($D$2,記録台帳!$B$4:$GB$505,FD24))","v":0},{"$f":"IF($D$2=\"\",0,VLOOKUP($D$2,記録台帳!$B$4:$GB$505,FE24))","v":0},{"$f":"IF($D$2=\"\",0,VLOOKUP($D$2,記録台帳!$B$4:$GB$505,FF24))","v":0},{"$f":"IF($D$2=\"\",0,VLOOKUP($D$2,記録台帳!$B$4:$GB$505,FG24))","v":0},{"$f":"IF($D$2=\"\",0,VLOOKUP($D$2,記録台帳!$B$4:$GB$505,FH24))","v":0},{"$f":"IF($D$2=\"\",0,VLOOKUP($D$2,記録台帳!$B$4:$GB$505,FI24))","v":0},{"$f":"IF($D$2=\"\",0,VLOOKUP($D$2,記録台帳!$B$4:$GB$505,FJ24))","v":0},{"$f":"IF($D$2=\"\",0,VLOOKUP($D$2,記録台帳!$B$4:$GB$505,FK24))","v":0},{"$f":"IF($D$2=\"\",0,VLOOKUP($D$2,記録台帳!$B$4:$GB$505,FL24))","v":0},{"$f":"IF($D$2=\"\",0,VLOOKUP($D$2,記録台帳!$B$4:$GB$505,FM24))","v":0},{"$f":"IF($D$2=\"\",0,VLOOKUP($D$2,記録台帳!$B$4:$GB$505,FN24))","v":0},{"$f":"IF($D$2=\"\",0,VLOOKUP($D$2,記録台帳!$B$4:$GB$505,FO24))","v":0},{"$f":"IF($D$2=\"\",0,VLOOKUP($D$2,記録台帳!$B$4:$GB$505,FP24))","v":0},{"$f":"IF($D$2=\"\",0,VLOOKUP($D$2,記録台帳!$B$4:$GB$505,FQ24))","v":0},null,null,null,"ヘルパー・訪問介護",null,null,null,"月",{"$f":"$H$24","v":0},"回",{"$f":"$J$24","v":0},0,0,0,0,{"$f":"$O$24","v":0},{"$f":"P24","v":0},0,0,0,0,0,0,0,0,0,0,0,0,0,null,null,null,"ヘルパー・訪問介護",null,null,null,"月",0,"回",0,0,0,0,0,0,0,0,0,0,0,0,0,0,0,0,0,0,0,0,null,null,null,null,null,null,null,null,null,null,null,null,null,null,null,null,null,null,null,null,null,null,null,null,null,null,null,null,null,null,null,null,null,null,null,null,null,null,null,null,null,null,null,null,null,null,null,null,null,null,null,null,null,null,null,null,null,null,null,null,null,null,43,null,44,null,null,null,null,37]
[null,null,"その他",null,null,null,{"$f":"IF($D$2=\"\",0,VLOOKUP($D$2,記録台帳!$B$4:$GB$505,EU25))","v":0},{"$f":"IF($D$2=\"\",0,VLOOKUP($D$2,記録台帳!$B$4:$GB$505,EV25))","v":0},{"$f":"IF($D$2=\"\",0,VLOOKUP($D$2,記録台帳!$B$4:$GB$505,EW25))","v":0},{"$f":"IF($D$2=\"\",0,VLOOKUP($D$2,記録台帳!$B$4:$GB$505,EX25))","v":0},{"$f":"IF($D$2=\"\",0,VLOOKUP($D$2,記録台帳!$B$4:$GB$505,EY25))","v":0},{"$f":"IF($D$2=\"\",0,VLOOKUP($D$2,記録台帳!$B$4:$GB$505,EZ25))","v":0},{"$f":"IF($D$2=\"\",0,VLOOKUP($D$2,記録台帳!$B$4:$GB$505,FA25))","v":0},{"$f":"IF($D$2=\"\",0,VLOOKUP($D$2,記録台帳!$B$4:$GB$505,FB25))","v":0},{"$f":"IF($D$2=\"\",0,VLOOKUP($D$2,記録台帳!$B$4:$GB$505,FC25))","v":0},{"$f":"IF($D$2=\"\",0,VLOOKUP($D$2,記録台帳!$B$4:$GB$505,FD25))","v":0},{"$f":"IF($D$2=\"\",0,VLOOKUP($D$2,記録台帳!$B$4:$GB$505,FE25))","v":0},{"$f":"IF($D$2=\"\",0,VLOOKUP($D$2,記録台帳!$B$4:$GB$505,FF25))","v":0},{"$f":"IF($D$2=\"\",0,VLOOKUP($D$2,記録台帳!$B$4:$GB$505,FG25))","v":0},{"$f":"IF($D$2=\"\",0,VLOOKUP($D$2,記録台帳!$B$4:$GB$505,FH25))","v":0},{"$f":"IF($D$2=\"\",0,VLOOKUP($D$2,記録台帳!$B$4:$GB$505,FI25))","v":0},{"$f":"IF($D$2=\"\",0,VLOOKUP($D$2,記録台帳!$B$4:$GB$505,FJ25))","v":0},{"$f":"IF($D$2=\"\",0,VLOOKUP($D$2,記録台帳!$B$4:$GB$505,FK25))","v":0},{"$f":"IF($D$2=\"\",0,VLOOKUP($D$2,記録台帳!$B$4:$GB$505,FL25))","v":0},{"$f":"IF($D$2=\"\",0,VLOOKUP($D$2,記録台帳!$B$4:$GB$505,FM25))","v":0},{"$f":"IF($D$2=\"\",0,VLOOKUP($D$2,記録台帳!$B$4:$GB$505,FN25))","v":0},{"$f":"IF($D$2=\"\",0,VLOOKUP($D$2,記録台帳!$B$4:$GB$505,FO25))","v":0},{"$f":"IF($D$2=\"\",0,VLOOKUP($D$2,記録台帳!$B$4:$GB$505,FP25))","v":0},{"$f":"IF($D$2=\"\",0,VLOOKUP($D$2,記録台帳!$B$4:$GB$505,FQ25))","v":0},null,null,null,"その他",null,null,null,{"$f":"$G$25","v":0},{"$f":"H25","v":0},0,0,0,0,0,0,0,0,0,0,0,0,0,0,0,0,0,0,0,0,0,null,null,null,"その他",null,null,null,0,0,0,0,0,0,0,0,0,0,0,0,0,0,0,0,0,0,0,0,0,0,0,null,null,null,null,null,null,null,null,null,null,null,null,null,null,null,null,null,null,null,null,null,null,null,null,null,null,null,null,null,null,null,null,null,null,null,null,null,null,null,null,null,null,null,null,null,null,null,null,null,null,null,null,null,null,null,null,null,null,null,null,null,45]
[null,null,"既往歴\n持病・障害\n入院経緯",null,null,{"$f":"IF($D$2=\"\",0,VLOOKUP($D$2,記録台帳!$B$4:$GB$505,ET26))","v":0},{"$f":"IF($D$2=\"\",0,VLOOKUP($D$2,記録台帳!$B$4:$GB$505,EU26))","v":0},{"$f":"IF($D$2=\"\",0,VLOOKUP($D$2,記録台帳!$B$4:$GB$505,EV26))","v":0},{"$f":"IF($D$2=\"\",0,VLOOKUP($D$2,記録台帳!$B$4:$GB$505,EW26))","v":0},{"$f":"IF($D$2=\"\",0,VLOOKUP($D$2,記録台帳!$B$4:$GB$505,EX26))","v":0},{"$f":"IF($D$2=\"\",0,VLOOKUP($D$2,記録台帳!$B$4:$GB$505,EY26))","v":0},{"$f":"IF($D$2=\"\",0,VLOOKUP($D$2,記録台帳!$B$4:$GB$505,EZ26))","v":0},{"$f":"IF($D$2=\"\",0,VLOOKUP($D$2,記録台帳!$B$4:$GB$505,FA26))","v":0},{"$f":"IF($D$2=\"\",0,VLOOKUP($D$2,記録台帳!$B$4:$GB$505,FB26))","v":0},{"$f":"IF($D$2=\"\",0,VLOOKUP($D$2,記録台帳!$B$4:$GB$505,FC26))","v":0},{"$f":"IF($D$2=\"\",0,VLOOKUP($D$2,記録台帳!$B$4:$GB$505,FD26))","v":0},{"$f":"IF($D$2=\"\",0,VLOOKUP($D$2,記録台帳!$B$4:$GB$505,FE26))","v":0},{"$f":"IF($D$2=\"\",0,VLOOKUP($D$2,記録台帳!$B$4:$GB$505,FF26))","v":0},{"$f":"IF($D$2=\"\",0,VLOOKUP($D$2,記録台帳!$B$4:$GB$505,FG26))","v":0},{"$f":"IF($D$2=\"\",0,VLOOKUP($D$2,記録台帳!$B$4:$GB$505,FH26))","v":0},{"$f":"IF($D$2=\"\",0,VLOOKUP($D$2,記録台帳!$B$4:$GB$505,FI26))","v":0},{"$f":"IF($D$2=\"\",0,VLOOKUP($D$2,記録台帳!$B$4:$GB$505,FJ26))","v":0},{"$f":"IF($D$2=\"\",0,VLOOKUP($D$2,記録台帳!$B$4:$GB$505,FK26))","v":0},{"$f":"IF($D$2=\"\",0,VLOOKUP($D$2,記録台帳!$B$4:$GB$505,FL26))","v":0},{"$f":"IF($D$2=\"\",0,VLOOKUP($D$2,記録台帳!$B$4:$GB$505,FM26))","v":0},"主事病院",null,null,null,null,null,null,"既往歴\n持病・障害\n入院経緯",null,null,{"$f":"$F$26","v":0},0,0,0,0,0,0,0,0,0,0,0,0,0,0,0,0,0,0,0,"主治病院",null,null,null,null,null,null,"既往歴\n持病・障害\n入院経緯",null,null,0,0,0,0,0,0,0,0,0,0,0,0,0,0,0,0,0,0,0,0,"主治病院",null,null,null,null,null,null,null,null,null,null,null,null,null,null,null,null,null,null,null,null,null,null,null,null,null,null,null,null,null,null,null,null,null,null,null,null,null,null,null,null,null,null,null,null,null,null,null,null,null,null,null,null,null,null,null,null,null,null,null,null,null,null,null,46]
[null,null,null,null,null,{"$f":"IF($D$2=\"\",0,VLOOKUP($D$2,記録台帳!$B$4:$GB$505,ET27))","v":0},{"$f":"IF($D$2=\"\",0,VLOOKUP($D$2,記録台帳!$B$4:$GB$505,EU27))","v":0},{"$f":"IF($D$2=\"\",0,VLOOKUP($D$2,記録台帳!$B$4:$GB$505,EV27))","v":0},{"$f":"IF($D$2=\"\",0,VLOOKUP($D$2,記録台帳!$B$4:$GB$505,EW27))","v":0},{"$f":"IF($D$2=\"\",0,VLOOKUP($D$2,記録台帳!$B$4:$GB$505,EX27))","v":0},{"$f":"IF($D$2=\"\",0,VLOOKUP($D$2,記録台帳!$B$4:$GB$505,EY27))","v":0},{"$f":"IF($D$2=\"\",0,VLOOKUP($D$2,記録台帳!$B$4:$GB$505,EZ27))","v":0},{"$f":"IF($D$2=\"\",0,VLOOKUP($D$2,記録台帳!$B$4:$GB$505,FA27))","v":0},{"$f":"IF($D$2=\"\",0,VLOOKUP($D$2,記録台帳!$B$4:$GB$505,FB27))","v":0},{"$f":"IF($D$2=\"\",0,VLOOKUP($D$2,記録台帳!$B$4:$GB$505,FC27))","v":0},{"$f":"IF($D$2=\"\",0,VLOOKUP($D$2,記録台帳!$B$4:$GB$505,FD27))","v":0},{"$f":"IF($D$2=\"\",0,VLOOKUP($D$2,記録台帳!$B$4:$GB$505,FE27))","v":0},{"$f":"IF($D$2=\"\",0,VLOOKUP($D$2,記録台帳!$B$4:$GB$505,FF27))","v":0},{"$f":"IF($D$2=\"\",0,VLOOKUP($D$2,記録台帳!$B$4:$GB$505,FG27))","v":0},{"$f":"IF($D$2=\"\",0,VLOOKUP($D$2,記録台帳!$B$4:$GB$505,FH27))","v":0},{"$f":"IF($D$2=\"\",0,VLOOKUP($D$2,記録台帳!$B$4:$GB$505,FI27))","v":0},{"$f":"IF($D$2=\"\",0,VLOOKUP($D$2,記録台帳!$B$4:$GB$505,FJ27))","v":0},{"$f":"IF($D$2=\"\",0,VLOOKUP($D$2,記録台帳!$B$4:$GB$505,FK27))","v":0},{"$f":"IF($D$2=\"\",0,VLOOKUP($D$2,記録台帳!$B$4:$GB$505,FL27))","v":0},{"$f":"IF($D$2=\"\",0,VLOOKUP($D$2,記録台帳!$B$4:$GB$505,FM27))","v":0},{"$f":"IF($D$2=\"\",0,VLOOKUP($D$2,記録台帳!$B$4:$GB$505,FN27))","v":0},{"$f":"IF($D$2=\"\",0,VLOOKUP($D$2,記録台帳!$B$4:$GB$505,FO27))","v":0},{"$f":"IF($D$2=\"\",0,VLOOKUP($D$2,記録台帳!$B$4:$GB$505,FP27))","v":0},{"$f":"IF($D$2=\"\",0,VLOOKUP($D$2,記録台帳!$B$4:$GB$505,FQ27))","v":0},null,null,null,null,null,null,{"$f":"F27","v":0},0,0,0,0,0,0,0,0,0,0,0,0,0,0,0,0,0,0,0,{"$f":"$Z$27","v":0},{"$f":"AA27","v":0},0,0,null,null,null,null,null,null,0,0,0,0,0,0,0,0,0,0,0,0,0,0,0,0,0,0,0,0,0,0,0,0,null,null,null,null,null,null,null,null,null,null,null,null,null,null,null,null,null,null,null,null,null,null,null,null,null,null,null,null,null,null,null,null,null,null,null,null,null,null,null,null,null,null,null,null,null,null,null,null,null,null,null,null,null,null,null,null,null,null,null,null,null,null,null,null,null,null,null,null,null,null,null,null,null,null,null,null,null,null,null,null,47]
[null,null,null,null,null,{"$f":"マスタ変更!F30","v":"脳梗塞"},null,null,{"$f":"マスタ変更!I30","v":"心臓疾患"},null,null,{"$f":"マスタ変更!L30","v":"糖尿病"},null,null,{"$f":"マスタ変更!O30","v":"癌"},null,null,{"$f":"マスタ変更!R30","v":"認知症"},null,null,{"$f":"マスタ変更!U30","v":"脳挫傷"},null,null,{"$f":"マスタ変更!X30","v":"緑内障"},null,null,{"$f":"マスタ変更!AA30","v":"大腿部骨折"},null,null,null,null,null,null,null,null,{"$f":"$F$28","v":"脳梗塞"},null,null,{"$f":"$I$28","v":"心臓疾患"},null,null,{"$f":"$L$28","v":"糖尿病"},null,null,{"$f":"$O$28","v":"癌"},null,null,{"$f":"$R$28","v":"認知症"},null,null,{"$f":"$U$28","v":"脳挫傷"},null,null,{"$f":"$X$28","v":"緑内障"},null,null,{"$f":"$AA$28","v":"大腿部骨折"},null,null,null,null,null,null,null,null,"脳梗塞",null,null,"心臓疾患",null,null,"糖尿病",null,null,"癌",null,null,"認知症",null,null,"脳挫傷",null,null,"緑内障",null,null,"大腿部骨折",null,null,null,null,null,null,null,null,null,null,null,null,null,null,null,null,null,null,null,null,null,null,null,null,null,null,null,null,null,null,null,null,null,null,{"$f":"IF($D$2=\"\",0,VLOOKUP($D$2,記録台帳!$B$4:$LD$505,$ET$28))","v":0},null,null,{"$f":"IF($D$2=\"\",0,VLOOKUP($D$2,記録台帳!$B$4:$LD$505,$EW$28))","v":0},null,null,{"$f":"IF($D$2=\"\",0,VLOOKUP($D$2,記録台帳!$B$4:$LD$505,$EZ$28))","v":0},null,null,{"$f":"IF($D$2=\"\",0,VLOOKUP($D$2,記録台帳!$B$4:$LD$505,$FC$28))","v":0},null,null,{"$f":"IF($D$2=\"\",0,VLOOKUP($D$2,記録台帳!$B$4:$LD$505,$FF$28))","v":0},null,null,{"$f":"IF($D$2=\"\",0,VLOOKUP($D$2,記録台帳!$B$4:$LD$505,189))","v":0},null,null,{"$f":"IF($D$2=\"\",0,VLOOKUP($D$2,記録台帳!$B$4:$LD$505,$FL$28))","v":0},null,null,{"$f":"IF($D$2=\"\",0,VLOOKUP($D$2,記録台帳!$B$4:$LD$505,191))","v":0},null,null,null,null,null,null,184,null,null,185,null,null,186,null,null,187,null,null,188,null,null,189,null,null,190,null,null,191]
[null,null,null,null,null,{"$f":"マスタ変更!F31","v":"脳内出血"},null,null,{"$f":"マスタ変更!I31","v":"呼吸器系疾患"},null,null,{"$f":"マスタ変更!L31","v":"腎臓疾患"},null,null,{"$f":"マスタ変更!O31","v":"リューマチ"},null,null,{"$f":"マスタ変更!R31","v":"うつ病"},null,null,{"$f":"マスタ変更!U31","v":"胆石"},null,null,{"$f":"マスタ変更!X31","v":"白内障"},null,null,{"$f":"マスタ変更!AA31","v":"脊髄等損傷"},null,null,null,null,null,null,null,null,{"$f":"$F$29","v":"脳内出血"},null,null,{"$f":"$I$29","v":"呼吸器系疾患"},null,null,{"$f":"$L$29","v":"腎臓疾患"},null,null,{"$f":"$O$29","v":"リューマチ"},null,null,{"$f":"$R$29","v":"うつ病"},null,null,{"$f":"$U$29","v":"胆石"},null,null,{"$f":"$X$29","v":"白内障"},null,null,{"$f":"$AA$29","v":"脊髄等損傷"},null,null,null,null,null,null,null,null,"脳内出血",null,null,"呼吸器系疾患",null,null,"腎臓疾患",null,null,"リューマチ",null,null,"うつ病",null,null,"胆石",null,null,"白内障",null,null,"脊髄等損傷",null,null,null,null,null,null,null,null,null,null,null,null,null,null,null,null,null,null,null,null,null,null,null,null,null,null,null,null,null,null,null,null,null,null,{"$f":"IF($D$2=\"\",0,VLOOKUP($D$2,記録台帳!$B$4:$LD$505,$ET$29))","v":0},null,null,{"$f":"IF($D$2=\"\",0,VLOOKUP($D$2,記録台帳!$B$4:$LD$505,$EW$29))","v":0},null,null,{"$f":"IF($D$2=\"\",0,VLOOKUP($D$2,記録台帳!$B$4:$LD$505,$EZ$29))","v":0},null,null,{"$f":"IF($D$2=\"\",0,VLOOKUP($D$2,記録台帳!$B$4:$LD$505,$FC$29))","v":0},null,null,{"$f":"IF($D$2=\"\",0,VLOOKUP($D$2,記録台帳!$B$4:$LD$505,$FF$29))","v":0},null,null,{"$f":"IF($D$2=\"\",0,VLOOKUP($D$2,記録台帳!$B$4:$LD$505,$FI$29))","v":0},null,null,{"$f":"IF($D$2=\"\",0,VLOOKUP($D$2,記録台帳!$B$4:$LD$505,$FL$29))","v":0},null,null,{"$f":"IF($D$2=\"\",0,VLOOKUP($D$2,記録台帳!$B$4:$LD$505,198))","v":0},null,null,null,null,null,null,192,null,null,193,null,null,194,null,null,195,null,null,196,null,null,197,null,null,198,null,null,199]
[null,null,null,null,null,{"$f":"マスタ変更!F32","v":"高血圧症"},null,null,{"$f":"マスタ変更!I32","v":"喘息"},null,null,{"$f":"マスタ変更!L32","v":"肝炎・肝硬変"},null,null,{"$f":"マスタ変更!O32","v":"パーキンソン"},null,null,{"$f":"マスタ変更!R32","v":"統合失調症"},null,null,{"$f":"マスタ変更!U32","v":"尿管結石等"},null,null,{"$f":"マスタ変更!X32","v":"結核"},null,null,{"$f":"マスタ変更!AA32","v":"変形性膝関節症"},null,null,null,null,null,null,null,null,{"$f":"$F$30","v":"高血圧症"},null,null,{"$f":"$I$30","v":"喘息"},null,null,{"$f":"$L$30","v":"肝炎・肝硬変"},null,null,{"$f":"$O$30","v":"パーキンソン"},null,null,{"$f":"$R$30","v":"統合失調症"},null,null,{"$f":"$U$30","v":"尿管結石等"},null,null,{"$f":"$X$30","v":"結核"},null,null,{"$f":"$AA$30","v":"変形性膝関節症"},null,null,null,null,null,null,null,null,"高血圧症",null,null,"喘息",null,null,"肝炎・肝硬変",null,null,"パーキンソン",null,null,"統合失調症",null,null,"尿管結石等",null,null,"結核",null,null,"変形性膝関節症",null,null,null,null,null,null,null,null,null,null,null,null,null,null,null,null,null,null,null,null,null,null,null,null,null,null,null,null,null,null,null,null,null,null,{"$f":"IF($D$2=\"\",0,VLOOKUP($D$2,記録台帳!$B$4:$LD$505,$ET$30))","v":0},null,null,{"$f":"IF($D$2=\"\",0,VLOOKUP($D$2,記録台帳!$B$4:$LD$505,$EW$30))","v":0},null,null,{"$f":"IF($D$2=\"\",0,VLOOKUP($D$2,記録台帳!$B$4:$LD$505,$EZ$30))","v":0},null,null,{"$f":"IF($D$2=\"\",0,VLOOKUP($D$2,記録台帳!$B$4:$LD$505,$FC$30))","v":0},null,null,{"$f":"IF($D$2=\"\",0,VLOOKUP($D$2,記録台帳!$B$4:$LD$505,$FF$30))","v":0},null,null,{"$f":"IF($D$2=\"\",0,VLOOKUP($D$2,記録台帳!$B$4:$LD$505,$FI$30))","v":0},null,null,{"$f":"IF($D$2=\"\",0,VLOOKUP($D$2,記録台帳!$B$4:$LD$505,$FL$30))","v":0},null,null,{"$f":"IF($D$2=\"\",0,VLOOKUP($D$2,記録台帳!$B$4:$LD$505,207))","v":0},null,null,null,null,null,null,200,null,null,201,null,null,202,null,null,203,null,null,204,null,null,205,null,null,206,null,null,207]
[null,null,{"$f":"マスタ変更!C12","v":"医療関連"},null,null,{"$f":"マスタ変更!F12","v":"インシュリン投与"},0,0,{"$f":"マスタ変更!I12","v":"在宅酸素療法"},0,0,{"$f":"マスタ変更!L12","v":"胃瘻"},0,0,{"$f":"マスタ変更!O12","v":"喀痰吸引"},0,0,{"$f":"マスタ変更!R12","v":"褥瘡処置"},0,0,"部位等",null,{"$f":"IF($D$2=\"\",0,VLOOKUP($D$2,記録台帳!$B$4:$GB$505,FK31))","v":0},{"$f":"IF($D$2=\"\",0,VLOOKUP($D$2,記録台帳!$B$4:$GB$505,FL31))","v":0},{"$f":"IF($D$2=\"\",0,VLOOKUP($D$2,記録台帳!$B$4:$GB$505,FM31))","v":0},{"$f":"IF($D$2=\"\",0,VLOOKUP($D$2,記録台帳!$B$4:$GB$505,FN31))","v":0},{"$f":"IF($D$2=\"\",0,VLOOKUP($D$2,記録台帳!$B$4:$GB$505,FO31))","v":0},{"$f":"IF($D$2=\"\",0,VLOOKUP($D$2,記録台帳!$B$4:$GB$505,FP31))","v":0},{"$f":"IF($D$2=\"\",0,VLOOKUP($D$2,記録台帳!$B$4:$GB$505,FQ31))","v":0},null,null,null,{"$f":"$C$31","v":"医療関連"},null,null,{"$f":"$F$31","v":"インシュリン投与"},{"$f":"G31","v":0},{"$f":"H31","v":0},{"$f":"$I$31","v":"在宅酸素療法"},{"$f":"J31","v":0},{"$f":"K31","v":0},{"$f":"$L$31","v":"胃瘻"},{"$f":"M31","v":0},{"$f":"N31","v":0},{"$f":"$O$31","v":"喀痰吸引"},{"$f":"P31","v":0},{"$f":"Q31","v":0},{"$f":"$R$31","v":"褥瘡処置"},{"$f":"S31","v":0},{"$f":"T31","v":0},"部位等",null,{"$f":"$W$31","v":0},{"$f":"X31","v":0},0,0,0,0,0,null,null,null,"医療関連",null,null,"インシュリン投与",0,0,"在宅酸素療法",0,0,"胃瘻",0,0,"喀痰吸引",0,0,"褥瘡処置",0,0,"部位等",null,0,0,0,0,0,0,0,null,null,null,null,null,null,null,null,null,null,null,null,null,null,null,null,null,null,null,null,null,null,null,null,null,null,null,null,null,null,null,null,{"$f":"IF($D$2=\"\",0,VLOOKUP($D$2,記録台帳!$B$4:$GB$505,$ET$31))","v":0},null,null,{"$f":"IF($D$2=\"\",0,VLOOKUP($D$2,記録台帳!$B$4:$GB$505,$EW$31))","v":0},null,null,{"$f":"IF($D$2=\"\",0,VLOOKUP($D$2,記録台帳!$B$4:$GB$505,$EZ$31))","v":0},null,null,{"$f":"IF($D$2=\"\",0,VLOOKUP($D$2,記録台帳!$B$4:$GB$505,$FC$31))","v":0},null,null,{"$f":"IF($D$2=\"\",0,VLOOKUP($D$2,記録台帳!$B$4:$GB$505,$FF$31))","v":0},null,null,null,null,null,null,null,null,null,null,null,null,"医療関連\n（複数選択可）",null,null,48,0,0,49,0,0,50,0,0,51,0,0,52,0,0,"部位等",null,53,0,0,0,0,0,0,null,{"$f":"配点表!C8","v":2},null,null,{"$f":"配点表!D8","v":2},null,null,{"$f":"配点表!E8","v":3},null,null,{"$f":"配点表!F8","v":2},null,null,{"$f":"配点表!G8","v":1}]
[null,null,null,null,null,{"$f":"マスタ変更!F13","v":"人工肛門処置"},null,null,{"$f":"マスタ変更!I13","v":"腸瘻"},null,null,{"$f":"マスタ変更!L13","v":"膀胱洗浄"},null,null,{"$f":"マスタ変更!O13","v":"導尿"},null,null,{"$f":"マスタ変更!R13","v":"ＩＶＨ"},null,null,{"$f":"マスタ変更!U13","v":"透析"},null,null,{"$f":"マスタ変更!X13","v":"尿カテーテル"},null,null,{"$f":"マスタ変更!AA13","v":"看取り"},null,null,null,null,null,null,null,null,{"$f":"$F$32","v":"人工肛門処置"},null,null,{"$f":"$I$32","v":"腸瘻"},null,null,{"$f":"$L$32","v":"膀胱洗浄"},null,null,{"$f":"$O$32","v":"導尿"},null,null,{"$f":"$R$32","v":"ＩＶＨ"},null,null,{"$f":"$U$32","v":"透析"},null,null,{"$f":"$X$32","v":"尿カテーテル"},null,null,{"$f":"$AA$32","v":"看取り"},null,null,null,null,null,null,null,null,"人工肛門処置",null,null,"腸瘻",null,null,"膀胱洗浄",null,null,"導尿",null,null,"ＩＶＨ",null,null,"透析",null,null,"尿カテーテル",null,null,"看取り",null,null,null,null,null,null,null,null,null,null,null,null,null,null,null,null,null,null,null,null,null,null,null,null,null,null,null,null,null,null,null,null,null,null,{"$f":"IF($D$2=\"\",0,VLOOKUP($D$2,記録台帳!$B$4:$LD$505,$ET$32))","v":0},null,null,{"$f":"IF($D$2=\"\",0,VLOOKUP($D$2,記録台帳!$B$4:$LD$505,$EW$32))","v":0},null,null,{"$f":"IF($D$2=\"\",0,VLOOKUP($D$2,記録台帳!$B$4:$LD$505,$EZ$32))","v":0},null,null,{"$f":"IF($D$2=\"\",0,VLOOKUP($D$2,記録台帳!$B$4:$LD$505,$FC$32))","v":0},null,null,{"$f":"IF($D$2=\"\",0,VLOOKUP($D$2,記録台帳!$B$4:$LD$505,$FF$32))","v":0},null,null,{"$f":"IF($D$2=\"\",0,VLOOKUP($D$2,記録台帳!$B$4:$LD$505,$FI$32))","v":0},null,null,{"$f":"IF($D$2=\"\",0,VLOOKUP($D$2,記録台帳!$B$4:$LD$505,$FL$32))","v":0},null,null,{"$f":"IF($D$2=\"\",0,VLOOKUP($D$2,記録台帳!$B$4:$LD$505,215))","v":0},null,null,null,null,null,null,208,null,null,209,null,null,210,null,null,211,null,null,212,null,null,213,null,null,214,null,null,215,null,null,null,{"$f":"配点表!I8","v":1},null,null,{"$f":"配点表!J8","v":2},null,null,{"$f":"配点表!K8","v":2},null,null,{"$f":"配点表!L8","v":3},null,null,{"$f":"配点表!M8","v":4},null,null,{"$f":"配点表!N8","v":4},null,null,{"$f":"配点表!O8","v":1},null,null,{"$f":"配点表!P8","v":4}]
[null,null,"経済状況",null,"本人月収",null,null,null,null,"1ヶ月に本人と親族が\n支出できる限界金額",null,null,null,null,"特別な\n事情",null,{"$f":"IF($D$2=\"\",0,VLOOKUP($D$2,記録台帳!$B$4:$GB$505,FE33))","v":0},{"$f":"IF($D$2=\"\",0,VLOOKUP($D$2,記録台帳!$B$4:$GB$505,FF33))","v":0},{"$f":"IF($D$2=\"\",0,VLOOKUP($D$2,記録台帳!$B$4:$GB$505,FG33))","v":0},{"$f":"IF($D$2=\"\",0,VLOOKUP($D$2,記録台帳!$B$4:$GB$505,FH33))","v":0},{"$f":"IF($D$2=\"\",0,VLOOKUP($D$2,記録台帳!$B$4:$GB$505,FI33))","v":0},{"$f":"IF($D$2=\"\",0,VLOOKUP($D$2,記録台帳!$B$4:$GB$505,FJ33))","v":0},{"$f":"IF($D$2=\"\",0,VLOOKUP($D$2,記録台帳!$B$4:$GB$505,FK33))","v":0},{"$f":"IF($D$2=\"\",0,VLOOKUP($D$2,記録台帳!$B$4:$GB$505,FL33))","v":0},{"$f":"IF($D$2=\"\",0,VLOOKUP($D$2,記録台帳!$B$4:$GB$505,FM33))","v":0},{"$f":"IF($D$2=\"\",0,VLOOKUP($D$2,記録台帳!$B$4:$GB$505,FN33))","v":0},{"$f":"IF($D$2=\"\",0,VLOOKUP($D$2,記録台帳!$B$4:$GB$505,FO33))","v":0},{"$f":"IF($D$2=\"\",0,VLOOKUP($D$2,記録台帳!$B$4:$GB$505,FP33))","v":0},{"$f":"IF($D$2=\"\",0,VLOOKUP($D$2,記録台帳!$B$4:$GB$505,FQ33))","v":0},null,null,null,"経済状況",null,"本人月収",null,null,null,null,"1ヶ月に本人と親族が\n支出できる限界金額",null,null,null,null,"特別な\n事情",null,{"$f":"$Q$33","v":0},{"$f":"R33","v":0},0,0,0,0,0,0,0,0,0,0,0,null,null,null,"経済状況",null,"本人月収",null,null,null,null,"1ヶ月に本人と親族が\n支出できる限界金額",null,null,null,null,"特別な\n事情",null,0,0,0,0,0,0,0,0,0,0,0,0,0,null,null,null,null,null,null,null,null,null,null,null,null,null,null,null,null,null,null,null,null,null,null,null,null,null,null,null,null,null,null,null,null,null,null,null,null,null,null,null,null,null,null,null,null,null,null,null,null,null,null,null,null,null,null,null,null,null,"経済状況",null,"本人月収",null,null,null,null,"1ヶ月に本人と親族が\n支出できる限界金額",null,null,null,null,"特別な\n事情",null,167,0,0,0,0,0,0,0,0,0,0,0,0]
[null,null,null,null,{"$f":"IF($D$2=\"\",0,VLOOKUP($D$2,記録台帳!$B$4:$GB$505,ES34))","v":0},{"$f":"IF($D$2=\"\",0,VLOOKUP($D$2,記録台帳!$B$4:$GB$505,ET34))","v":0},{"$f":"IF($D$2=\"\",0,VLOOKUP($D$2,記録台帳!$B$4:$GB$505,EU34))","v":0},{"$f":"IF($D$2=\"\",0,VLOOKUP($D$2,記録台帳!$B$4:$GB$505,EV34))","v":0},"円",{"$f":"IF($D$2=\"\",0,VLOOKUP($D$2,記録台帳!$B$4:$GB$505,EX34))","v":0},{"$f":"IF($D$2=\"\",0,VLOOKUP($D$2,記録台帳!$B$4:$GB$505,EY34))","v":0},{"$f":"IF($D$2=\"\",0,VLOOKUP($D$2,記録台帳!$B$4:$GB$505,EZ34))","v":0},{"$f":"IF($D$2=\"\",0,VLOOKUP($D$2,記録台帳!$B$4:$GB$505,FA34))","v":0},"円",null,null,{"$f":"IF($D$2=\"\",0,VLOOKUP($D$2,記録台帳!$B$4:$GB$505,FE34))","v":0},{"$f":"IF($D$2=\"\",0,VLOOKUP($D$2,記録台帳!$B$4:$GB$505,FF34))","v":0},{"$f":"IF($D$2=\"\",0,VLOOKUP($D$2,記録台帳!$B$4:$GB$505,FG34))","v":0},{"$f":"IF($D$2=\"\",0,VLOOKUP($D$2,記録台帳!$B$4:$GB$505,FH34))","v":0},{"$f":"IF($D$2=\"\",0,VLOOKUP($D$2,記録台帳!$B$4:$GB$505,FI34))","v":0},{"$f":"IF($D$2=\"\",0,VLOOKUP($D$2,記録台帳!$B$4:$GB$505,FJ34))","v":0},{"$f":"IF($D$2=\"\",0,VLOOKUP($D$2,記録台帳!$B$4:$GB$505,FK34))","v":0},{"$f":"IF($D$2=\"\",0,VLOOKUP($D$2,記録台帳!$B$4:$GB$505,FL34))","v":0},{"$f":"IF($D$2=\"\",0,VLOOKUP($D$2,記録台帳!$B$4:$GB$505,FM34))","v":0},{"$f":"IF($D$2=\"\",0,VLOOKUP($D$2,記録台帳!$B$4:$GB$505,FN34))","v":0},{"$f":"IF($D$2=\"\",0,VLOOKUP($D$2,記録台帳!$B$4:$GB$505,FO34))","v":0},{"$f":"IF($D$2=\"\",0,VLOOKUP($D$2,記録台帳!$B$4:$GB$505,FP34))","v":0},{"$f":"IF($D$2=\"\",0,VLOOKUP($D$2,記録台帳!$B$4:$GB$505,FQ34))","v":0},null,null,null,null,null,{"$f":"$E$34","v":0},{"$f":"F34","v":0},{"$f":"G34","v":0},{"$f":"H34","v":0},"円",{"$f":"$J$34","v":0},{"$f":"K34","v":0},{"$f":"L34","v":0},{"$f":"M34","v":0},"円",null,null,{"$f":"Q34","v":0},0,0,0,0,0,0,0,0,0,0,0,0,null,null,null,null,null,0,0,0,0,"円",0,0,0,0,"円",null,null,0,0,0,0,0,0,0,0,0,0,0,0,0,null,null,null,null,null,null,null,null,null,null,null,null,null,null,null,null,null,null,null,null,null,null,null,null,null,null,null,null,null,null,null,null,null,null,null,null,null,null,null,null,null,null,null,null,null,null,null,null,null,null,null,null,null,null,null,null,null,null,null,165,0,0,0,"円",166,0,0,0,"円",null,null,0,0,0,0,0,0,0,0,0,0,0,0,0]
[null,null,{"$f":"E8","v":0},null,null,null,null,null,"様",null,null,null,null,null,null,null,null,null,"身体・精神に関する情報"]
[null,null,{"$f":"マスタ変更!C14","v":"筋力低下\n麻痺等"},null,null,{"$f":"マスタ変更!F14","v":"右手"},null,{"$f":"マスタ変更!H14","v":"-"},{"$f":"マスタ変更!I14","v":"弱"},{"$f":"マスタ変更!J14","v":"中"},{"$f":"マスタ変更!K14","v":"強"},{"$f":"マスタ変更!L14","v":"左手"},null,{"$f":"マスタ変更!N14","v":"-"},{"$f":"マスタ変更!O14","v":"弱"},{"$f":"マスタ変更!P14","v":"中"},{"$f":"マスタ変更!Q14","v":"強"},{"$f":"マスタ変更!R14","v":"右足"},null,{"$f":"マスタ変更!T14","v":"-"},{"$f":"マスタ変更!U14","v":"弱"},{"$f":"マスタ変更!V14","v":"中"},{"$f":"マスタ変更!W14","v":"強"},{"$f":"マスタ変更!X14","v":"左足"},null,{"$f":"マスタ変更!Z14","v":"-"},{"$f":"マスタ変更!AA14","v":"弱"},{"$f":"マスタ変更!AB14","v":"中"},{"$f":"マスタ変更!AC14","v":"強"},null,null,null,{"$f":"$C$36","v":"筋力低下\n麻痺等"},null,null,{"$f":"$F$36","v":"右手"},null,{"$f":"$H$36","v":"-"},{"$f":"$I$36","v":"弱"},{"$f":"$J$36","v":"中"},{"$f":"$K$36","v":"強"},{"$f":"$L$36","v":"左手"},null,{"$f":"$H$36","v":"-"},{"$f":"$I$36","v":"弱"},{"$f":"$J$36","v":"中"},{"$f":"$K$36","v":"強"},{"$f":"$R$36","v":"右足"},null,{"$f":"$H$36","v":"-"},{"$f":"$I$36","v":"弱"},{"$f":"$J$36","v":"中"},{"$f":"$K$36","v":"強"},{"$f":"$X$36","v":"左足"},null,{"$f":"$Z$36","v":"-"},{"$f":"$AA$36","v":"弱"},{"$f":"$AB$36","v":"中"},{"$f":"$AC$36","v":"強"},null,null,null,"筋力低下\n麻痺等",null,null,"右手",null,"-","弱","中","強","左手",null,"-","弱","中","強","右足",null,"-","弱","中","強","左足",null,"-","弱","中","強",null,null,null,null,null,null,null,null,null,null,null,null,null,null,null,null,null,null,null,null,null,null,null,null,null,null,null,null,null,null,null,null,null,null,{"$f":"IF($D$2=\"\",0,VLOOKUP($D$2,記録台帳!$B$4:$GB$505,$EV$36))","v":0},{"$f":"IF($D$2=\"\",0,VLOOKUP($D$2,記録台帳!$B$4:$GB$505,$EW$36))","v":0},{"$f":"IF($D$2=\"\",0,VLOOKUP($D$2,記録台帳!$B$4:$GB$505,$EX$36))","v":0},{"$f":"IF($D$2=\"\",0,VLOOKUP($D$2,記録台帳!$B$4:$GB$505,$EY$36))","v":0},null,null,{"$f":"IF($D$2=\"\",0,VLOOKUP($D$2,記録台帳!$B$4:$GB$505,$FB$36))","v":0},{"$f":"IF($D$2=\"\",0,VLOOKUP($D$2,記録台帳!$B$4:$GB$505,$FC$36))","v":0},{"$f":"IF($D$2=\"\",0,VLOOKUP($D$2,記録台帳!$B$4:$GB$505,$FD$36))","v":0},{"$f":"IF($D$2=\"\",0,VLOOKUP($D$2,記録台帳!$B$4:$GB$505,$FD$36))","v":0},null,null,{"$f":"IF($D$2=\"\",0,VLOOKUP($D$2,記録台帳!$B$4:$GB$505,$FH$36))","v":0},{"$f":"IF($D$2=\"\",0,VLOOKUP($D$2,記録台帳!$B$4:$GB$505,$FI$36))","v":0},{"$f":"IF($D$2=\"\",0,VLOOKUP($D$2,記録台帳!$B$4:$GB$505,$FJ$36))","v":0},{"$f":"IF($D$2=\"\",0,VLOOKUP($D$2,記録台帳!$B$4:$GB$505,$FK$36))","v":0},null,null,{"$f":"IF($D$2=\"\",0,VLOOKUP($D$2,記録台帳!$B$4:$GB$505,$FN$36))","v":0},{"$f":"IF($D$2=\"\",0,VLOOKUP($D$2,記録台帳!$B$4:$GB$505,$FO$36))","v":0},{"$f":"IF($D$2=\"\",0,VLOOKUP($D$2,記録台帳!$B$4:$GB$505,$FP$36))","v":0},{"$f":"IF($D$2=\"\",0,VLOOKUP($D$2,記録台帳!$B$4:$GB$505,$FQ$36))","v":0},null,"筋力低下\n麻痺等",null,null,"右手",null,54,55,56,57,"左手",null,58,59,60,61,"右足",null,62,63,64,65,"左足",null,66,67,68,69,null,null,null,{"$f":"配点表!D11","v":0},{"$f":"配点表!E11","v":2},{"$f":"配点表!F11","v":3},{"$f":"配点表!G11","v":4},null,null,{"$f":"配点表!I11","v":0},{"$f":"配点表!J11","v":1},{"$f":"配点表!K11","v":2},{"$f":"配点表!L11","v":3},null,null,{"$f":"配点表!N11","v":0},{"$f":"配点表!O11","v":2},{"$f":"配点表!P11","v":4},{"$f":"配点表!Q11","v":6},null,null,{"$f":"配点表!S11","v":0},{"$f":"配点表!T11","v":2},{"$f":"配点表!U11","v":4},{"$f":"配点表!V11","v":6}]
[null,null,{"$f":"マスタ変更!C15","v":"歩行・立位"},null,null,{"$f":"マスタ変更!F15","v":"安定歩行"},0,0,{"$f":"マスタ変更!I15","v":"なんとか歩く"},0,0,{"$f":"マスタ変更!L15","v":"つかまり立つ\n支えれば歩く"},0,0,{"$f":"マスタ変更!O15","v":"つかまれば\n移乗できる"},0,0,{"$f":"マスタ変更!R15","v":"支持すれば\n立てる"},0,0,{"$f":"マスタ変更!U15","v":"引き上げて\nなんとか立つ"},0,0,{"$f":"マスタ変更!X15","v":"保持して\nやっと立つ"},0,0,{"$f":"マスタ変更!AA15","v":"できない"},0,0,null,null,null,{"$f":"$C$37","v":"歩行・立位"},null,null,{"$f":"$F$37","v":"安定歩行"},{"$f":"G37","v":0},0,{"$f":"$I$37","v":"なんとか歩く"},{"$f":"J37","v":0},0,{"$f":"$L$37","v":"つかまり立つ\n支えれば歩く"},{"$f":"M37","v":0},0,{"$f":"O$37","v":"つかまれば\n移乗できる"},{"$f":"P37","v":0},{"$f":"Q37","v":0},{"$f":"$R$37","v":"支持すれば\n立てる"},{"$f":"S37","v":0},0,{"$f":"$U$37","v":"引き上げて\nなんとか立つ"},{"$f":"V37","v":0},0,{"$f":"$X$37","v":"保持して\nやっと立つ"},{"$f":"Y37","v":0},{"$f":"Z37","v":0},{"$f":"$AA$37","v":"できない"},{"$f":"AB37","v":0},{"$f":"AC37","v":0},null,null,null,"歩行・立位",null,null,"安定歩行",0,0,"なんとか歩く",0,0,"つかまり立つ\n支えれば歩く",0,0,"つかまれば\n移乗できる",0,0,"支持すれば\n立てる",0,0,"引き上げて\nなんとか立つ",0,0,"保持して\nやっと立つ",0,0,"できない",0,0,null,null,null,null,null,null,null,null,null,null,null,null,null,null,null,null,null,null,null,null,null,null,null,null,null,null,null,null,null,null,null,null,{"$f":"IF($D$2=\"\",0,VLOOKUP($D$2,記録台帳!$B$4:$GB$505,$ET$37))","v":0},null,null,{"$f":"IF($D$2=\"\",0,VLOOKUP($D$2,記録台帳!$B$4:$GB$505,$EW$37))","v":0},null,null,{"$f":"IF($D$2=\"\",0,VLOOKUP($D$2,記録台帳!$B$4:$GB$505,$EZ$37))","v":0},null,null,{"$f":"IF($D$2=\"\",0,VLOOKUP($D$2,記録台帳!$B$4:$GB$505,$FC$37))","v":0},null,null,{"$f":"IF($D$2=\"\",0,VLOOKUP($D$2,記録台帳!$B$4:$GB$505,$FF$37))","v":0},null,null,{"$f":"IF($D$2=\"\",0,VLOOKUP($D$2,記録台帳!$B$4:$GB$505,$FI$37))","v":0},null,null,{"$f":"IF($D$2=\"\",0,VLOOKUP($D$2,記録台帳!$B$4:$GB$505,$FL$37))","v":0},null,null,{"$f":"IF($D$2=\"\",0,VLOOKUP($D$2,記録台帳!$B$4:$GB$505,$FO$37))","v":0},null,null,null,"移動の\n能力・手段",null,null,70,0,0,{"$f":"ET37+1","v":71},0,0,{"$f":"EW37+1","v":72},0,0,{"$f":"EZ37+1","v":73},0,0,{"$f":"FC37+1","v":74},0,0,{"$f":"FF37+1","v":75},0,0,{"$f":"FI37+1","v":76},0,0,{"$f":"FL37+1","v":77},0,0,null,{"$f":"配点表!C14","v":0},null,null,{"$f":"配点表!D14","v":2},null,null,{"$f":"配点表!E14","v":4},null,null,{"$f":"配点表!F14","v":6},null,null,{"$f":"配点表!G14","v":8},null,null,{"$f":"配点表!H14","v":10},null,null,{"$f":"配点表!I14","v":12},null,null,{"$f":"配点表!J14","v":10}]
[null,null,{"$f":"マスタ変更!C16","v":"尿意"},null,null,{"$f":"マスタ変更!F16","v":"ある"},0,0,{"$f":"マスタ変更!I16","v":"曖昧"},0,0,{"$f":"マスタ変更!L16","v":"なし"},0,0,{"$f":"マスタ変更!O16","v":"便意"},0,0,{"$f":"マスタ変更!R16","v":"ある"},0,0,{"$f":"マスタ変更!U16","v":"曖昧"},0,0,{"$f":"マスタ変更!X16","v":"なし"},0,0,{"$f":"マスタ変更!AA16","v":"人工肛門\n尿カテーテル"},0,0,null,null,null,{"$f":"$C$38","v":"尿意"},null,null,{"$f":"$F$38","v":"ある"},0,0,{"$f":"$I$38","v":"曖昧"},0,0,{"$f":"$L$38","v":"なし"},0,0,{"$f":"$O$38","v":"便意"},null,null,{"$f":"$R$38","v":"ある"},0,0,{"$f":"$U$38","v":"曖昧"},0,0,{"$f":"$X$38","v":"なし"},{"$f":"Y38","v":0},{"$f":"Z38","v":0},{"$f":"$AA$38","v":"人工肛門\n尿カテーテル"},{"$f":"AB38","v":0},{"$f":"AC38","v":0},null,null,null,"尿意",null,null,"ある",0,0,"曖昧",0,0,"なし",0,0,"便意",null,null,"ある",0,0,"曖昧",0,0,"なし",0,0,"人工肛門\n尿カテーテル",0,0,null,null,null,null,null,null,null,null,null,null,null,null,null,null,null,null,null,null,null,null,null,null,null,null,null,null,null,null,null,null,null,null,{"$f":"IF($D$2=\"\",0,VLOOKUP($D$2,記録台帳!$B$4:$GB$505,$ET$38))","v":0},null,null,{"$f":"IF($D$2=\"\",0,VLOOKUP($D$2,記録台帳!$B$4:$GB$505,$EW$38))","v":0},null,null,{"$f":"IF($D$2=\"\",0,VLOOKUP($D$2,記録台帳!$B$4:$GB$505,$EZ$38))","v":0},null,null,null,null,null,{"$f":"IF($D$2=\"\",0,VLOOKUP($D$2,記録台帳!$B$4:$GB$505,$FF$38))","v":0},null,null,{"$f":"IF($D$2=\"\",0,VLOOKUP($D$2,記録台帳!$B$4:$GB$505,$FI$38))","v":0},null,null,{"$f":"IF($D$2=\"\",0,VLOOKUP($D$2,記録台帳!$B$4:$GB$505,$FL$38))","v":0},{"$f":"IF($D$2=\"\",0,VLOOKUP($D$2,記録台帳!$B$4:$GB$505,FV38))","v":0},null,{"$f":"IF($D$2=\"\",0,VLOOKUP($D$2,記録台帳!$B$4:$GB$505,$FO$38))","v":0},null,null,null,"尿意",null,null,78,0,0,{"$f":"ET38+1","v":79},0,0,{"$f":"EW38+1","v":80},0,0,"便意",null,null,81,0,0,{"$f":"FF38+1","v":82},0,0,{"$f":"FI38+1","v":83},0,0,{"$f":"FL38+1","v":84},0,0,null,{"$f":"配点表!C17","v":0},null,null,{"$f":"配点表!D17","v":1},null,null,{"$f":"配点表!E17","v":2},null,null,null,null,null,{"$f":"配点表!G17","v":0},null,null,{"$f":"配点表!H17","v":2},null,null,{"$f":"配点表!I17","v":4},null,null,{"$f":"配点表!J17","v":1}]
[null,null,{"$f":"マスタ変更!C17","v":"排泄（日中）"},null,null,{"$f":"マスタ変更!F17","v":"自分で行く"},0,0,{"$f":"マスタ変更!I17","v":"失敗あるが\n自分でする"},0,0,{"$f":"マスタ変更!L17","v":"脱衣介助\n一部介助"},0,0,{"$f":"マスタ変更!O17","v":"お尻を拭く\n体の支持"},0,0,{"$f":"マスタ変更!R17","v":"抱えて移乗\nほぼ全介助"},0,0,{"$f":"マスタ変更!U17","v":"寝たまま\nおむつ交換"},0,0,"介助\n頻度",null,"日中",{"$f":"IF($D$2=\"\",0,VLOOKUP($D$2,記録台帳!$B$4:$GB$505,FO39))","v":0},{"$f":"IF($D$2=\"\",0,VLOOKUP($D$2,記録台帳!$B$4:$GB$505,FP39))","v":0},"回",null,null,null,{"$f":"$C$39","v":"排泄（日中）"},null,null,{"$f":"$F$39","v":"自分で行く"},0,0,{"$f":"$I$39","v":"失敗あるが\n自分でする"},0,0,{"$f":"$L$39","v":"脱衣介助\n一部介助"},0,0,{"$f":"$O$39","v":"お尻を拭く\n体の支持"},{"$f":"P39","v":0},0,{"$f":"$R$39","v":"抱えて移乗\nほぼ全介助"},0,0,{"$f":"$U$39","v":"寝たまま\nおむつ交換"},0,0,"介助\n頻度",null,"日中",{"$f":"$AA$39","v":0},null,"回",null,null,null,"排泄（日中）",null,null,"自分で行く",0,0,"失敗あるが\n自分でする",0,0,"脱衣介助\n一部介助",0,0,"お尻を拭く\n体の支持",0,0,"抱えて移乗\nほぼ全介助",0,0,"寝たまま\nおむつ交換",0,0,"介助\n頻度",null,"日中",0,null,"回",null,null,null,null,null,null,null,null,null,null,null,null,null,null,null,null,null,null,null,null,null,null,null,null,null,null,null,null,null,null,null,null,{"$f":"IF($D$2=\"\",0,VLOOKUP($D$2,記録台帳!$B$4:$GB$505,$ET$39))","v":0},null,null,{"$f":"IF($D$2=\"\",0,VLOOKUP($D$2,記録台帳!$B$4:$GB$505,$EW$39))","v":0},null,null,{"$f":"IF($D$2=\"\",0,VLOOKUP($D$2,記録台帳!$B$4:$GB$505,$EZ$39))","v":0},null,null,{"$f":"IF($D$2=\"\",0,VLOOKUP($D$2,記録台帳!$B$4:$GB$505,$FC$39))","v":0},null,null,{"$f":"IF($D$2=\"\",0,VLOOKUP($D$2,記録台帳!$B$4:$GB$505,$FF$39))","v":0},null,null,{"$f":"IF($D$2=\"\",0,VLOOKUP($D$2,記録台帳!$B$4:$GB$505,$FI$39))","v":0},null,null,null,null,null,null,null,null,null,"排泄（日中）",null,null,85,0,0,{"$f":"ET39+1","v":86},0,0,{"$f":"EW39+1","v":87},0,0,{"$f":"EZ39+1","v":88},0,0,{"$f":"FC39+1","v":89},0,0,{"$f":"FF39+1","v":90},0,0,"介助\n頻度",null,"日中",91,0,"回",null,{"$f":"配点表!C20","v":0},null,null,{"$f":"配点表!D20","v":2},null,null,{"$f":"配点表!E20","v":4},null,null,{"$f":"配点表!F20","v":6},null,null,{"$f":"配点表!G20","v":10},null,null,{"$f":"配点表!H20","v":8}]
[null,null,{"$f":"マスタ変更!C18","v":"排泄（夜間）"},null,null,{"$f":"マスタ変更!F18","v":"自分で行く"},0,0,{"$f":"マスタ変更!I18","v":"失敗あるが\n自分でする"},0,0,{"$f":"マスタ変更!L18","v":"脱衣介助\n一部介助"},0,0,{"$f":"マスタ変更!O18","v":"お尻を拭く\n体の支持"},0,0,{"$f":"マスタ変更!R18","v":"抱えて移乗\nほぼ全介助"},0,0,{"$f":"マスタ変更!U18","v":"寝たまま\nおむつ交換"},0,0,"介助\n頻度",null,"夜間",{"$f":"IF($D$2=\"\",0,VLOOKUP($D$2,記録台帳!$B$4:$GB$505,FO40))","v":0},{"$f":"IF($D$2=\"\",0,VLOOKUP($D$2,記録台帳!$B$4:$GB$505,FP40))","v":0},"回",null,null,null,{"$f":"$C$40","v":"排泄（夜間）"},null,null,{"$f":"$F$40","v":"自分で行く"},0,0,{"$f":"$I$40","v":"失敗あるが\n自分でする"},0,0,{"$f":"$L$40","v":"脱衣介助\n一部介助"},0,0,{"$f":"$O$40","v":"お尻を拭く\n体の支持"},0,0,{"$f":"$R$40","v":"抱えて移乗\nほぼ全介助"},0,0,{"$f":"$U$40","v":"寝たまま\nおむつ交換"},0,0,"介助\n頻度",null,"夜間",{"$f":"$AA$40","v":0},{"$f":"AB40","v":0},"回",null,null,null,"排泄（夜間）",null,null,"自分で行く",0,0,"失敗あるが\n自分でする",0,0,"脱衣介助\n一部介助",0,0,"お尻を拭く\n体の支持",0,0,"抱えて移乗\nほぼ全介助",0,0,"寝たまま\nおむつ交換",0,0,"介助\n頻度",null,"夜間",0,0,"回",null,null,null,null,null,null,null,null,null,null,null,null,null,null,null,null,null,null,null,null,null,null,null,null,null,null,null,null,null,null,null,null,{"$f":"IF($D$2=\"\",0,VLOOKUP($D$2,記録台帳!$B$4:$GB$505,$ET$40))","v":0},null,null,{"$f":"IF($D$2=\"\",0,VLOOKUP($D$2,記録台帳!$B$4:$GB$505,$EW$40))","v":0},null,null,{"$f":"IF($D$2=\"\",0,VLOOKUP($D$2,記録台帳!$B$4:$GB$505,$EZ$40))","v":0},null,null,{"$f":"IF($D$2=\"\",0,VLOOKUP($D$2,記録台帳!$B$4:$GB$505,$FC$40))","v":0},null,null,{"$f":"IF($D$2=\"\",0,VLOOKUP($D$2,記録台帳!$B$4:$GB$505,$FF$40))","v":0},null,null,{"$f":"IF($D$2=\"\",0,VLOOKUP($D$2,記録台帳!$B$4:$GB$505,$FI$40))","v":0},null,null,null,null,null,null,null,null,null,"排泄（夜間）",null,null,92,0,0,{"$f":"ET40+1","v":93},0,0,{"$f":"EW40+1","v":94},0,0,{"$f":"EZ40+1","v":95},0,0,{"$f":"FC40+1","v":96},0,0,{"$f":"FF40+1","v":97},0,0,"介助\n頻度",null,"夜間",98,0,"回",null,{"$f":"配点表!C23","v":0},null,null,{"$f":"配点表!D23","v":3},null,null,{"$f":"配点表!E23","v":5},null,null,{"$f":"配点表!F23","v":7},null,null,{"$f":"配点表!G23","v":11},null,null,{"$f":"配点表!H23","v":9}]
[null,null,{"$f":"マスタ変更!C19","v":"食事介助"},null,null,{"$f":"マスタ変更!F19","v":"常食"},0,0,{"$f":"マスタ変更!I19","v":"刻み食\n柔らか食"},0,0,{"$f":"マスタ変更!L19","v":"ミキサー食"},0,0,{"$f":"マスタ変更!O19","v":"経管栄養"},0,0,{"$f":"マスタ変更!R19","v":"半介助"},0,0,{"$f":"マスタ変更!U19","v":"ほぼ全介助"},null,null,"直接介助に\nかかる時間",null,null,{"$f":"IF($D$2=\"\",0,VLOOKUP($D$2,記録台帳!$B$4:$GB$505,FO41))","v":0},{"$f":"IF($D$2=\"\",0,VLOOKUP($D$2,記録台帳!$B$4:$GB$505,FP41))","v":0},"分",null,null,null,{"$f":"$C$41","v":"食事介助"},null,null,{"$f":"$F$41","v":"常食"},0,0,{"$f":"$I$41","v":"刻み食\n柔らか食"},0,0,{"$f":"$L$41","v":"ミキサー食"},0,0,{"$f":"$O$41","v":"経管栄養"},0,0,{"$f":"$R$41","v":"半介助"},0,0,{"$f":"$U$41","v":"ほぼ全介助"},0,0,"直接介助に\nかかる時間",null,null,{"$f":"$AA$41","v":0},{"$f":"AB41","v":0},"分",null,null,null,"食事介助",null,null,"常食",0,0,"刻み食\n柔らか食",0,0,"ミキサー食",0,0,"経管栄養",0,0,"半介助",0,0,"ほぼ全介助",0,0,"直接介助に\nかかる時間",null,null,0,0,"分",null,null,null,null,null,null,null,null,null,null,null,null,null,null,null,null,null,null,null,null,null,null,null,null,null,null,null,null,null,null,null,null,{"$f":"IF($D$2=\"\",0,VLOOKUP($D$2,記録台帳!$B$4:$GB$505,$ET$41))","v":0},null,null,{"$f":"IF($D$2=\"\",0,VLOOKUP($D$2,記録台帳!$B$4:$GB$505,$EW$41))","v":0},null,null,{"$f":"IF($D$2=\"\",0,VLOOKUP($D$2,記録台帳!$B$4:$GB$505,$EZ$41))","v":0},null,null,{"$f":"IF($D$2=\"\",0,VLOOKUP($D$2,記録台帳!$B$4:$GB$505,$FC$41))","v":0},null,null,{"$f":"IF($D$2=\"\",0,VLOOKUP($D$2,記録台帳!$B$4:$GB$505,$FF$41))","v":0},null,null,{"$f":"IF($D$2=\"\",0,VLOOKUP($D$2,記録台帳!$B$4:$GB$505,$FI$41))","v":0},null,null,null,null,null,null,null,null,null,"食事介助",null,null,99,0,0,100,0,0,101,0,0,102,0,0,103,0,0,104,0,0,"直接介助に\nかかる時間",null,null,105,0,"分",null,{"$f":"配点表!C26","v":0},null,null,{"$f":"配点表!D26","v":1},null,null,{"$f":"配点表!E26","v":2},null,null,{"$f":"配点表!F26","v":3},null,null,{"$f":"配点表!G26","v":4},null,null,{"$f":"配点表!H26","v":5}]
[null,null,{"$f":"マスタ変更!C20","v":"物盗られ妄想\n被害妄想"},null,null,{"$f":"マスタ変更!F20","v":"ときどき"},null,{"$f":"マスタ変更!H20","v":"よくある"},null,{"$f":"マスタ変更!J20","v":"耐え難い"},null,{"$f":"マスタ変更!L20","v":"幻覚\n幻聴"},null,null,{"$f":"マスタ変更!O20","v":"ときどき"},null,{"$f":"マスタ変更!Q20","v":"よくある"},null,{"$f":"マスタ変更!S20","v":"耐え難い"},null,{"$f":"マスタ変更!U20","v":"異食・収集"},null,null,{"$f":"マスタ変更!X20","v":"ときどき"},null,{"$f":"マスタ変更!Z20","v":"よくある"},null,{"$f":"マスタ変更!AB20","v":"耐え難い"},null,null,null,null,{"$f":"$C$42","v":"物盗られ妄想\n被害妄想"},null,null,{"$f":"$F$42","v":"ときどき"},{"$f":"G42","v":0},{"$f":"$H$42","v":"よくある"},{"$f":"I42","v":0},{"$f":"$J$42","v":"耐え難い"},{"$f":"K42","v":0},{"$f":"$L$42","v":"幻覚\n幻聴"},null,null,{"$f":"$O$42","v":"ときどき"},{"$f":"P42","v":0},{"$f":"$Q$42","v":"よくある"},{"$f":"R42","v":0},{"$f":"$S$42","v":"耐え難い"},{"$f":"T42","v":0},{"$f":"$U$42","v":"異食・収集"},null,null,{"$f":"$X$42","v":"ときどき"},{"$f":"Y42","v":0},{"$f":"$Z$42","v":"よくある"},{"$f":"AA42","v":0},{"$f":"$AB$42","v":"耐え難い"},{"$f":"AC42","v":0},null,null,null,"物盗られ妄想\n被害妄想",null,null,"ときどき",0,"よくある",0,"耐え難い",0,"幻覚\n幻聴",null,null,"ときどき",0,"よくある",0,"耐え難い",0,"異食・収集",null,null,"ときどき",0,"よくある",0,"耐え難い",0,null,null,null,null,null,null,null,null,null,null,null,null,null,null,null,null,null,null,null,null,null,null,null,null,null,null,null,null,null,null,null,null,{"$f":"IF($D$2=\"\",0,VLOOKUP($D$2,記録台帳!$B$4:$GB$505,$ET$42))","v":0},null,{"$f":"IF($D$2=\"\",0,VLOOKUP($D$2,記録台帳!$B$4:$GB$505,$EV$42))","v":0},null,{"$f":"IF($D$2=\"\",0,VLOOKUP($D$2,記録台帳!$B$4:$GB$505,$EX$42))","v":0},null,null,null,null,{"$f":"IF($D$2=\"\",0,VLOOKUP($D$2,記録台帳!$B$4:$GB$505,$FC$42))","v":0},null,{"$f":"IF($D$2=\"\",0,VLOOKUP($D$2,記録台帳!$B$4:$GB$505,$FE$42))","v":0},null,{"$f":"IF($D$2=\"\",0,VLOOKUP($D$2,記録台帳!$B$4:$GB$505,$FG$42))","v":0},null,null,null,null,{"$f":"IF($D$2=\"\",0,VLOOKUP($D$2,記録台帳!$B$4:$GB$505,$FL$42))","v":0},null,{"$f":"IF($D$2=\"\",0,VLOOKUP($D$2,記録台帳!$B$4:$GB$505,$FN$42))","v":0},null,{"$f":"IF($D$2=\"\",0,VLOOKUP($D$2,記録台帳!$B$4:$GB$505,$FP$42))","v":0},null,null,"物盗られ妄想\n被害妄想",null,null,106,0,{"$f":"ET42+1","v":107},0,{"$f":"EV42+1","v":108},0,"幻覚\n幻聴",null,null,109,0,{"$f":"FC42+1","v":110},0,{"$f":"FE42+1","v":111},0,"作話\n流言",null,null,112,0,{"$f":"FL42+1","v":113},0,{"$f":"FN42+1","v":114},0,null,{"$f":"配点表!C29","v":2},null,{"$f":"配点表!D29","v":3},null,{"$f":"配点表!E29","v":4},null,null,null,null,{"$f":"配点表!G29","v":2},null,{"$f":"配点表!H29","v":4},null,{"$f":"配点表!I29","v":6},null,null,null,null,{"$f":"配点表!K29","v":1},null,{"$f":"配点表!L29","v":3},null,{"$f":"配点表!M29","v":5}]
[null,null,{"$f":"マスタ変更!C21","v":"精神科症状\nうつなど"},null,null,{"$f":"マスタ変更!F21","v":"ときどき"},null,{"$f":"マスタ変更!H21","v":"よくある"},null,{"$f":"マスタ変更!J21","v":"耐え難い"},null,{"$f":"マスタ変更!L21","v":"不眠行動\n昼夜逆転"},null,null,{"$f":"マスタ変更!O21","v":"ときどき"},null,{"$f":"マスタ変更!Q21","v":"よくある"},null,{"$f":"マスタ変更!S21","v":"耐え難い"},null,{"$f":"マスタ変更!U21","v":"激しい抵抗\n暴力行為"},null,null,{"$f":"マスタ変更!X21","v":"ときどき"},null,{"$f":"マスタ変更!Z21","v":"よくある"},null,{"$f":"マスタ変更!AB21","v":"耐え難い"},null,null,null,null,{"$f":"$C$43","v":"精神科症状\nうつなど"},null,null,{"$f":"$F$43","v":"ときどき"},0,{"$f":"$H$43","v":"よくある"},{"$f":"I43","v":0},{"$f":"$J$43","v":"耐え難い"},0,{"$f":"$L$43","v":"不眠行動\n昼夜逆転"},null,null,{"$f":"$O$43","v":"ときどき"},0,{"$f":"$Q$43","v":"よくある"},{"$f":"R43","v":0},{"$f":"$S$43","v":"耐え難い"},0,{"$f":"$U$43","v":"激しい抵抗\n暴力行為"},null,null,{"$f":"$X$43","v":"ときどき"},0,{"$f":"$Z$43","v":"よくある"},{"$f":"AA43","v":0},{"$f":"$AB$43","v":"耐え難い"},0,null,null,null,"精神科症状\nうつなど",null,null,"ときどき",0,"よくある",0,"耐え難い",0,"不眠行動\n昼夜逆転",null,null,"ときどき",0,"よくある",0,"耐え難い",0,"激しい抵抗\n暴力行為",null,null,"ときどき",0,"よくある",0,"耐え難い",0,null,null,null,null,null,null,null,null,null,null,null,null,null,null,null,null,null,null,null,null,null,null,null,null,null,null,null,null,null,null,null,null,{"$f":"IF($D$2=\"\",0,VLOOKUP($D$2,記録台帳!$B$4:$GB$505,$ET$43))","v":0},null,{"$f":"IF($D$2=\"\",0,VLOOKUP($D$2,記録台帳!$B$4:$GB$505,$EV$43))","v":0},null,{"$f":"IF($D$2=\"\",0,VLOOKUP($D$2,記録台帳!$B$4:$GB$505,$EX$43))","v":0},null,null,null,null,{"$f":"IF($D$2=\"\",0,VLOOKUP($D$2,記録台帳!$B$4:$GB$505,$FC$43))","v":0},null,{"$f":"IF($D$2=\"\",0,VLOOKUP($D$2,記録台帳!$B$4:$GB$505,$FE$43))","v":0},null,{"$f":"IF($D$2=\"\",0,VLOOKUP($D$2,記録台帳!$B$4:$GB$505,$FG$43))","v":0},null,null,null,null,{"$f":"IF($D$2=\"\",0,VLOOKUP($D$2,記録台帳!$B$4:$GB$505,$FL$43))","v":0},null,{"$f":"IF($D$2=\"\",0,VLOOKUP($D$2,記録台帳!$B$4:$GB$505,$FN$43))","v":0},null,{"$f":"IF($D$2=\"\",0,VLOOKUP($D$2,記録台帳!$B$4:$GB$505,$FP$43))","v":0},null,null,"情緒不安定\n感情失禁",null,null,115,0,{"$f":"ET43+1","v":116},0,{"$f":"EV43+1","v":117},0,"不眠行動\n昼夜逆転",null,null,118,0,{"$f":"FC43+1","v":119},0,{"$f":"FE43+1","v":120},0,"暴言・暴行",null,null,121,0,{"$f":"FL43+1","v":122},0,{"$f":"FN43+1","v":123},0,null,{"$f":"配点表!C32","v":1},null,{"$f":"配点表!D32","v":3},null,{"$f":"配点表!E32","v":5},null,null,null,null,{"$f":"配点表!G32","v":1},null,{"$f":"配点表!H32","v":2},null,{"$f":"配点表!I32","v":3},null,null,null,null,{"$f":"配点表!K32","v":1},null,{"$f":"配点表!L32","v":3},null,{"$f":"配点表!M32","v":5}]
[null,null,{"$f":"マスタ変更!C22","v":"同じ話や\n行動繰り返し"},null,null,{"$f":"マスタ変更!F22","v":"ときどき"},null,{"$f":"マスタ変更!H22","v":"よくある"},null,{"$f":"マスタ変更!J22","v":"耐え難い"},null,{"$f":"マスタ変更!L22","v":"大声\n不快な音"},null,null,{"$f":"マスタ変更!O22","v":"ときどき"},null,{"$f":"マスタ変更!Q22","v":"よくある"},null,{"$f":"マスタ変更!S22","v":"耐え難い"},null,{"$f":"マスタ変更!U22","v":"徘徊\n外に出たがる"},null,null,{"$f":"マスタ変更!X22","v":"ときどき"},null,{"$f":"マスタ変更!Z22","v":"よくある"},null,{"$f":"マスタ変更!AB22","v":"耐え難い"},null,null,null,null,{"$f":"$C$44","v":"同じ話や\n行動繰り返し"},null,null,{"$f":"$F$44","v":"ときどき"},0,{"$f":"$H$44","v":"よくある"},{"$f":"I44","v":0},{"$f":"$J$44","v":"耐え難い"},0,{"$f":"$L$44","v":"大声\n不快な音"},null,null,{"$f":"$O$44","v":"ときどき"},0,{"$f":"$Q$44","v":"よくある"},{"$f":"R44","v":0},{"$f":"$S$44","v":"耐え難い"},0,{"$f":"$U$44","v":"徘徊\n外に出たがる"},null,null,{"$f":"$X$44","v":"ときどき"},0,{"$f":"$Z$44","v":"よくある"},{"$f":"AA44","v":0},{"$f":"$AB$44","v":"耐え難い"},0,null,null,null,"同じ話や\n行動繰り返し",null,null,"ときどき",0,"よくある",0,"耐え難い",0,"大声\n不快な音",null,null,"ときどき",0,"よくある",0,"耐え難い",0,"徘徊\n外に出たがる",null,null,"ときどき",0,"よくある",0,"耐え難い",0,null,null,null,null,null,null,null,null,null,null,null,null,null,null,null,null,null,null,null,null,null,null,null,null,null,null,null,null,null,null,null,null,{"$f":"IF($D$2=\"\",0,VLOOKUP($D$2,記録台帳!$B$4:$GB$505,$ET$44))","v":0},null,{"$f":"IF($D$2=\"\",0,VLOOKUP($D$2,記録台帳!$B$4:$GB$505,$EV$44))","v":0},null,{"$f":"IF($D$2=\"\",0,VLOOKUP($D$2,記録台帳!$B$4:$GB$505,$EX$44))","v":0},null,null,null,null,{"$f":"IF($D$2=\"\",0,VLOOKUP($D$2,記録台帳!$B$4:$GB$505,$FC$44))","v":0},null,{"$f":"IF($D$2=\"\",0,VLOOKUP($D$2,記録台帳!$B$4:$GB$505,$FE$44))","v":0},null,{"$f":"IF($D$2=\"\",0,VLOOKUP($D$2,記録台帳!$B$4:$GB$505,$FG$44))","v":0},null,null,null,null,{"$f":"IF($D$2=\"\",0,VLOOKUP($D$2,記録台帳!$B$4:$GB$505,$FL$44))","v":0},null,{"$f":"IF($D$2=\"\",0,VLOOKUP($D$2,記録台帳!$B$4:$GB$505,$FN$44))","v":0},null,{"$f":"IF($D$2=\"\",0,VLOOKUP($D$2,記録台帳!$B$4:$GB$505,$FP$44))","v":0},null,null,"同じ話や\n行動繰り返し",null,null,124,0,125,0,126,0,"大声\n不快な音",null,null,127,0,{"$f":"FC44+1","v":128},0,{"$f":"FE44+1","v":129},0,"徘徊\n外に出たがる",null,null,130,0,131,0,132,0,null,{"$f":"配点表!C35","v":1},null,{"$f":"配点表!D35","v":3},null,{"$f":"配点表!E35","v":5},null,null,null,null,{"$f":"配点表!G35","v":1},null,{"$f":"配点表!H35","v":3},null,{"$f":"配点表!I35","v":5},null,null,null,null,{"$f":"配点表!K35","v":3},null,{"$f":"配点表!L35","v":6},null,{"$f":"配点表!M35","v":9}]
[null,null,{"$f":"マスタ変更!C23","v":"不潔行為\n弄便・放尿"},null,null,{"$f":"マスタ変更!F23","v":"ときどき"},null,{"$f":"マスタ変更!H23","v":"よくある"},null,{"$f":"マスタ変更!J23","v":"耐え難い"},null,{"$f":"マスタ変更!L23","v":"危険行為\n火の不始末"},null,null,{"$f":"マスタ変更!O23","v":"ときどき"},null,{"$f":"マスタ変更!Q23","v":"よくある"},null,{"$f":"マスタ変更!S23","v":"耐え難い"},null,{"$f":"マスタ変更!U23","v":"セクハラ行為\nいじる・壊す"},null,null,{"$f":"マスタ変更!X23","v":"ときどき"},null,{"$f":"マスタ変更!Z23","v":"よくある"},null,{"$f":"マスタ変更!AB23","v":"耐え難い"},null,null,null,null,{"$f":"$C$45","v":"不潔行為\n弄便・放尿"},null,null,{"$f":"$F$45","v":"ときどき"},0,{"$f":"$H$45","v":"よくある"},{"$f":"I45","v":0},{"$f":"$J$45","v":"耐え難い"},0,{"$f":"$L$45","v":"危険行為\n火の不始末"},null,null,{"$f":"$O$45","v":"ときどき"},0,{"$f":"$Q$45","v":"よくある"},{"$f":"R45","v":0},{"$f":"$S$45","v":"耐え難い"},0,{"$f":"$U$45","v":"セクハラ行為\nいじる・壊す"},null,null,{"$f":"$X$45","v":"ときどき"},0,{"$f":"$Z$45","v":"よくある"},{"$f":"AA45","v":0},{"$f":"$AB$45","v":"耐え難い"},0,null,null,null,"不潔行為\n弄便・放尿",null,null,"ときどき",0,"よくある",0,"耐え難い",0,"危険行為\n火の不始末",null,null,"ときどき",0,"よくある",0,"耐え難い",0,"セクハラ行為\nいじる・壊す",null,null,"ときどき",0,"よくある",0,"耐え難い",0,null,null,null,null,null,null,null,null,null,null,null,null,null,null,null,null,null,null,null,null,null,null,null,null,null,null,null,null,null,null,null,null,{"$f":"IF($D$2=\"\",0,VLOOKUP($D$2,記録台帳!$B$4:$GB$505,$ET$45))","v":0},null,{"$f":"IF($D$2=\"\",0,VLOOKUP($D$2,記録台帳!$B$4:$GB$505,$EV$45))","v":0},null,{"$f":"IF($D$2=\"\",0,VLOOKUP($D$2,記録台帳!$B$4:$GB$505,$EX$45))","v":0},null,null,null,null,{"$f":"IF($D$2=\"\",0,VLOOKUP($D$2,記録台帳!$B$4:$GB$505,$FC$45))","v":0},null,{"$f":"IF($D$2=\"\",0,VLOOKUP($D$2,記録台帳!$B$4:$GB$505,$FE$45))","v":0},null,{"$f":"IF($D$2=\"\",0,VLOOKUP($D$2,記録台帳!$B$4:$GB$505,$FG$45))","v":0},null,null,null,null,{"$f":"IF($D$2=\"\",0,VLOOKUP($D$2,記録台帳!$B$4:$GB$505,$FL$45))","v":0},null,{"$f":"IF($D$2=\"\",0,VLOOKUP($D$2,記録台帳!$B$4:$GB$505,$FN$45))","v":0},null,{"$f":"IF($D$2=\"\",0,VLOOKUP($D$2,記録台帳!$B$4:$GB$505,$FP$45))","v":0},null,null,"不潔行為\n弄便・放尿",null,null,133,0,134,0,135,0,"ひどい\n物忘れ",null,null,136,0,137,0,138,0,"嚥下",null,null,139,0,140,0,141,0,null,{"$f":"配点表!C38","v":2},null,{"$f":"配点表!D38","v":4},null,{"$f":"配点表!E38","v":6},null,null,null,null,{"$f":"配点表!G38","v":1},null,{"$f":"配点表!H38","v":2},null,{"$f":"配点表!I38","v":4},null,null,null,null,{"$f":"配点表!K38","v":1},null,{"$f":"配点表!L38","v":2},null,{"$f":"配点表!M38","v":4}]
[null,null,{"$f":"マスタ変更!C24","v":"その他の問題"},null,null,{"$f":"IF($D$2=\"\",0,VLOOKUP($D$2,記録台帳!$B$4:$GB$505,ET46))","v":0},null,null,null,null,null,null,null,null,null,null,null,null,null,null,null,null,null,null,null,null,null,null,null,null,null,null,{"$f":"$C$46","v":"その他の問題"},null,null,{"$f":"$F$46","v":0},0,{"$f":"H46","v":0},{"$f":"I46","v":0},{"$f":"J46","v":0},0,{"$f":"L46","v":0},{"$f":"M46","v":0},{"$f":"N46","v":0},{"$f":"O46","v":0},0,{"$f":"Q46","v":0},{"$f":"R46","v":0},{"$f":"S46","v":0},0,{"$f":"U46","v":0},{"$f":"V46","v":0},{"$f":"W46","v":0},{"$f":"X46","v":0},0,{"$f":"Z46","v":0},{"$f":"AA46","v":0},{"$f":"AB46","v":0},0,null,null,null,"その他の問題",null,null,0,0,0,0,0,0,0,0,0,0,0,0,0,0,0,0,0,0,0,0,0,0,0,0,null,null,null,null,null,null,null,null,null,null,null,null,null,null,null,null,null,null,null,null,null,null,null,null,null,null,null,null,null,null,null,null,null,null,null,null,null,null,null,null,null,null,null,null,null,null,null,null,null,null,null,null,null,null,null,null,null,"その他の問題",null,null,142,0,0,0,0,0,0,0,0,0,0,0,0,0,0,0,0,0,0,0,0,0,0,0]
[null,null,{"$f":"マスタ変更!C25","v":"日中の\n過ごし方"},null,null,{"$f":"マスタ変更!F25","v":"近所なら\n自由に行動"},0,0,{"$f":"マスタ変更!I25","v":"家の中なら\n自由に行動"},0,0,{"$f":"マスタ変更!L25","v":"起きて生活\n屋外は補助"},0,0,{"$f":"マスタ変更!O25","v":"伝い歩き\n寝たり起きたり"},0,0,{"$f":"マスタ変更!R25","v":"介助あれば\n起きて生活"},0,0,{"$f":"マスタ変更!U25","v":"介助により\n寝たり起きたり"},0,0,{"$f":"マスタ変更!X25","v":"寝室中心\nの生活"},0,0,{"$f":"マスタ変更!AA25","v":"離床しない"},0,0,null,null,null,{"$f":"$C$47","v":"日中の\n過ごし方"},null,null,{"$f":"$F$47","v":"近所なら\n自由に行動"},0,{"$f":"H47","v":0},{"$f":"$I$47","v":"家の中なら\n自由に行動"},{"$f":"J47","v":0},0,{"$f":"$L$47","v":"起きて生活\n屋外は補助"},{"$f":"M47","v":0},0,{"$f":"$O$47","v":"伝い歩き\n寝たり起きたり"},0,{"$f":"Q47","v":0},{"$f":"$R$47","v":"介助あれば\n起きて生活"},{"$f":"S47","v":0},0,{"$f":"$U$47","v":"介助により\n寝たり起きたり"},{"$f":"V47","v":0},{"$f":"W47","v":0},{"$f":"$X$47","v":"寝室中心\nの生活"},0,{"$f":"Z47","v":0},{"$f":"$AA$47","v":"離床しない"},{"$f":"AB47","v":0},0,null,null,null,"日中の\n過ごし方",null,null,"近所なら\n自由に行動",0,0,"家の中なら\n自由に行動",0,0,"起きて生活\n屋外は補助",0,0,"伝い歩き\n寝たり起きたり",0,0,"介助あれば\n起きて生活",0,0,"介助により\n寝たり起きたり",0,0,"寝室中心\nの生活",0,0,"離床しない",0,0,null,null,null,null,null,null,null,null,null,null,null,null,null,null,null,null,null,null,null,null,null,null,null,null,null,null,null,null,null,null,null,null,{"$f":"IF($D$2=\"\",0,VLOOKUP($D$2,記録台帳!$B$4:$GB$505,$ET$47))","v":0},null,null,{"$f":"IF($D$2=\"\",0,VLOOKUP($D$2,記録台帳!$B$4:$GB$505,$EW$47))","v":0},null,null,{"$f":"IF($D$2=\"\",0,VLOOKUP($D$2,記録台帳!$B$4:$GB$505,$EZ$47))","v":0},null,null,{"$f":"IF($D$2=\"\",0,VLOOKUP($D$2,記録台帳!$B$4:$GB$505,$FC$47))","v":0},null,null,{"$f":"IF($D$2=\"\",0,VLOOKUP($D$2,記録台帳!$B$4:$GB$505,$FF$47))","v":0},null,null,{"$f":"IF($D$2=\"\",0,VLOOKUP($D$2,記録台帳!$B$4:$GB$505,$FI$47))","v":0},null,null,{"$f":"IF($D$2=\"\",0,VLOOKUP($D$2,記録台帳!$B$4:$GB$505,$FL$47))","v":0},null,null,{"$f":"IF($D$2=\"\",0,VLOOKUP($D$2,記録台帳!$B$4:$GB$505,$FO$47))","v":0},null,null,null,"日中の\n過ごし方",null,null,143,0,0,{"$f":"ET47+1","v":144},0,0,{"$f":"EW47+1","v":145},0,0,{"$f":"EZ47+1","v":146},0,0,{"$f":"FC47+1","v":147},0,0,{"$f":"FF47+1","v":148},0,0,{"$f":"FI47+1","v":149},0,0,{"$f":"FL47+1","v":150},0,0,null,{"$f":"配点表!C41","v":0},null,null,{"$f":"配点表!D41","v":1},null,null,{"$f":"配点表!E41","v":1},null,null,{"$f":"配点表!F41","v":2},null,null,{"$f":"配点表!G41","v":3},null,null,{"$f":"配点表!H41","v":4},null,null,{"$f":"配点表!I41","v":5},null,null,{"$f":"配点表!J41","v":6}]
[null,null,{"$f":"マスタ変更!C26","v":"聴力"},null,null,{"$f":"マスタ変更!F26","v":"問題なし"},0,0,{"$f":"マスタ変更!I26","v":"遠い"},0,0,{"$f":"マスタ変更!L26","v":"ひどく遠い"},0,0,{"$f":"マスタ変更!O26","v":"聴力なし\n確認できない"},0,0,{"$f":"マスタ変更!R26","v":"視力"},0,0,{"$f":"マスタ変更!U26","v":"年齢相応"},0,0,{"$f":"マスタ変更!X26","v":"かなり悪い\n半盲"},0,0,{"$f":"マスタ変更!AA26","v":"失明"},0,0,null,null,null,{"$f":"$C$48","v":"聴力"},null,null,{"$f":"$F$48","v":"問題なし"},0,{"$f":"H48","v":0},{"$f":"$I$48","v":"遠い"},{"$f":"J48","v":0},0,{"$f":"$L$48","v":"ひどく遠い"},0,0,{"$f":"$O$48","v":"聴力なし\n確認できない"},0,{"$f":"Q48","v":0},{"$f":"$R$48","v":"視力"},null,null,{"$f":"$U$48","v":"年齢相応"},{"$f":"V48","v":0},{"$f":"W48","v":0},{"$f":"$X$48","v":"かなり悪い\n半盲"},0,{"$f":"Z48","v":0},{"$f":"$AA$48","v":"失明"},{"$f":"AB48","v":0},0,null,null,null,"聴力",null,null,"問題なし",0,0,"遠い",0,0,"ひどく遠い",0,0,"聴力なし\n確認できない",0,0,"視力",null,null,"年齢相応",0,0,"かなり悪い\n半盲",0,0,"失明",0,0,null,null,null,null,null,null,null,null,null,null,null,null,null,null,null,null,null,null,null,null,null,null,null,null,null,null,null,null,null,null,null,null,{"$f":"IF($D$2=\"\",0,VLOOKUP($D$2,記録台帳!$B$4:$GB$505,$ET$48))","v":0},null,null,{"$f":"IF($D$2=\"\",0,VLOOKUP($D$2,記録台帳!$B$4:$GB$505,$EW$48))","v":0},null,null,{"$f":"IF($D$2=\"\",0,VLOOKUP($D$2,記録台帳!$B$4:$GB$505,$EZ$48))","v":0},null,null,{"$f":"IF($D$2=\"\",0,VLOOKUP($D$2,記録台帳!$B$4:$GB$505,$FC$48))","v":0},null,null,null,null,null,{"$f":"IF($D$2=\"\",0,VLOOKUP($D$2,記録台帳!$B$4:$GB$505,$FI$48))","v":0},null,null,{"$f":"IF($D$2=\"\",0,VLOOKUP($D$2,記録台帳!$B$4:$GB$505,$FL$48))","v":0},null,null,{"$f":"IF($D$2=\"\",0,VLOOKUP($D$2,記録台帳!$B$4:$GB$505,$FO$48))","v":0},null,null,null,"意志疎通",null,null,151,0,0,152,0,0,153,0,0,154,0,0,"視力",null,null,155,0,0,156,0,0,157,0,0,null,{"$f":"配点表!C44","v":0},null,null,{"$f":"配点表!D44","v":1},null,null,{"$f":"配点表!E44","v":2},null,null,{"$f":"配点表!F44","v":3},null,null,null,null,null,{"$f":"配点表!H44","v":0},null,null,{"$f":"配点表!I44","v":2},null,null,{"$f":"配点表!J44","v":6}]
[null,null,{"$f":"マスタ変更!C27","v":"意思疎通"},null,null,{"$f":"マスタ変更!F27","v":"問題なし"},0,0,{"$f":"マスタ変更!I27","v":"なんとか通じる"},0,0,{"$f":"マスタ変更!L27","v":"かなり厳しい"},0,0,{"$f":"マスタ変更!O27","v":"ほぼ不可能"},0,0,{"$f":"マスタ変更!R27","v":"錯乱状態"},0,0,"身長",null,null,{"$f":"IF($D$2=\"\",0,VLOOKUP($D$2,記録台帳!$B$4:$GB$505,FL49))","v":0},{"$f":"IF($D$2=\"\",0,VLOOKUP($D$2,記録台帳!$B$4:$GB$505,FM49))","v":0},{"$f":"IF($D$2=\"\",0,VLOOKUP($D$2,記録台帳!$B$4:$GB$505,FN49))","v":0},{"$f":"IF($D$2=\"\",0,VLOOKUP($D$2,記録台帳!$B$4:$GB$505,FO49))","v":0},"ｃｍ",null,null,null,null,{"$f":"$C$49","v":"意思疎通"},null,null,{"$f":"$F$49","v":"問題なし"},0,{"$f":"H49","v":0},{"$f":"$I$49","v":"なんとか通じる"},{"$f":"J49","v":0},0,{"$f":"$L$49","v":"かなり厳しい"},0,0,{"$f":"$O$49","v":"ほぼ不可能"},0,{"$f":"Q49","v":0},{"$f":"$R$49","v":"錯乱状態"},{"$f":"S49","v":0},{"$f":"T49","v":0},"身長",null,null,{"$f":"$X$49","v":0},0,{"$f":"Z49","v":0},{"$f":"AA49","v":0},"ｃｍ",null,null,null,null,"意思疎通",null,null,"問題なし",0,0,"なんとか通じる",0,0,"かなり厳しい",0,0,"ほぼ不可能",0,0,"錯乱状態",0,0,"身長",null,null,0,0,0,0,"ｃｍ",null,null,null,null,null,null,null,null,null,null,null,null,null,null,null,null,null,null,null,null,null,null,null,null,null,null,null,null,null,null,null,null,null,{"$f":"IF($D$2=\"\",0,VLOOKUP($D$2,記録台帳!$B$4:$GB$505,$ET$49))","v":0},null,null,{"$f":"IF($D$2=\"\",0,VLOOKUP($D$2,記録台帳!$B$4:$GB$505,$EW$49))","v":0},null,null,{"$f":"IF($D$2=\"\",0,VLOOKUP($D$2,記録台帳!$B$4:$GB$505,$EZ$49))","v":0},null,null,{"$f":"IF($D$2=\"\",0,VLOOKUP($D$2,記録台帳!$B$4:$GB$505,$FC$49))","v":0},null,null,{"$f":"IF($D$2=\"\",0,VLOOKUP($D$2,記録台帳!$B$4:$GB$505,$FF$49))","v":0},null,null,null,null,null,null,null,null,null,null,null,null,"聴力",null,null,158,0,0,159,0,0,160,0,0,161,0,0,{"$f":"FC49+1","v":162},0,0,"身長",null,null,163,0,0,0,"ｃｍ",null,null,{"$f":"配点表!C47","v":0},null,null,{"$f":"配点表!D47","v":1},null,null,{"$f":"配点表!E47","v":2},null,null,{"$f":"配点表!F47","v":3},null,null,{"$f":"配点表!G47","v":4}]
[null,null,{"$f":"マスタ変更!C28","v":0},null,null,{"$f":"マスタ変更!F28","v":0},0,0,{"$f":"マスタ変更!I28","v":0},0,0,{"$f":"マスタ変更!L28","v":0},0,0,{"$f":"マスタ変更!O28","v":0},0,0,{"$f":"マスタ変更!R28","v":0},0,0,"体重",null,null,{"$f":"IF($D$2=\"\",0,VLOOKUP($D$2,記録台帳!$B$4:$GB$505,FL50))","v":0},{"$f":"IF($D$2=\"\",0,VLOOKUP($D$2,記録台帳!$B$4:$GB$505,FM50))","v":0},{"$f":"IF($D$2=\"\",0,VLOOKUP($D$2,記録台帳!$B$4:$GB$505,FN50))","v":0},{"$f":"IF($D$2=\"\",0,VLOOKUP($D$2,記録台帳!$B$4:$GB$505,FO50))","v":0},"Ｋｇ",null,null,null,null,{"$f":"C50","v":0},null,null,{"$f":"F50","v":0},0,{"$f":"H50","v":0},{"$f":"I50","v":0},{"$f":"J50","v":0},0,{"$f":"L50","v":0},0,0,{"$f":"O50","v":0},0,{"$f":"Q50","v":0},{"$f":"R50","v":0},{"$f":"S50","v":0},{"$f":"T50","v":0},"体重",null,null,{"$f":"$X$50","v":0},0,{"$f":"Z50","v":0},{"$f":"AA50","v":0},"Ｋｇ",null,null,null,null,0,null,null,0,0,0,0,0,0,0,0,0,0,0,0,0,0,0,"体重",null,null,0,0,0,0,"Ｋｇ",null,null,null,null,0,null,null,null,null,null,null,null,null,null,null,null,null,null,null,null,null,null,null,null,null,null,null,null,null,null,null,null,null,null,null,null,null,null,null,null,null,null,null,null,null,null,null,null,null,null,null,null,null,null,null,null,null,null,null,null,null,0,0,0,1,0,0,2,0,0,3,0,0,4,0,0,"体重",null,null,164,0,0,0,"Ｋｇ"]
[null,null,"申し込み済施設",null,null,{"$f":"IF($D$2=\"\",0,VLOOKUP($D$2,記録台帳!$B$4:$GB$505,ET51))","v":0},{"$f":"IF($D$2=\"\",0,VLOOKUP($D$2,記録台帳!$B$4:$GB$505,EU51))","v":0},{"$f":"IF($D$2=\"\",0,VLOOKUP($D$2,記録台帳!$B$4:$GB$505,EV51))","v":0},{"$f":"IF($D$2=\"\",0,VLOOKUP($D$2,記録台帳!$B$4:$GB$505,EW51))","v":0},{"$f":"IF($D$2=\"\",0,VLOOKUP($D$2,記録台帳!$B$4:$GB$505,EX51))","v":0},{"$f":"IF($D$2=\"\",0,VLOOKUP($D$2,記録台帳!$B$4:$GB$505,EY51))","v":0},{"$f":"IF($D$2=\"\",0,VLOOKUP($D$2,記録台帳!$B$4:$GB$505,EZ51))","v":0},{"$f":"IF($D$2=\"\",0,VLOOKUP($D$2,記録台帳!$B$4:$GB$505,FA51))","v":0},{"$f":"IF($D$2=\"\",0,VLOOKUP($D$2,記録台帳!$B$4:$GB$505,FB51))","v":0},{"$f":"IF($D$2=\"\",0,VLOOKUP($D$2,記録台帳!$B$4:$GB$505,FC51))","v":0},{"$f":"IF($D$2=\"\",0,VLOOKUP($D$2,記録台帳!$B$4:$GB$505,FD51))","v":0},{"$f":"IF($D$2=\"\",0,VLOOKUP($D$2,記録台帳!$B$4:$GB$505,FE51))","v":0},{"$f":"IF($D$2=\"\",0,VLOOKUP($D$2,記録台帳!$B$4:$GB$505,FF51))","v":0},{"$f":"IF($D$2=\"\",0,VLOOKUP($D$2,記録台帳!$B$4:$GB$505,FG51))","v":0},{"$f":"IF($D$2=\"\",0,VLOOKUP($D$2,記録台帳!$B$4:$GB$505,FH51))","v":0},{"$f":"IF($D$2=\"\",0,VLOOKUP($D$2,記録台帳!$B$4:$GB$505,FI51))","v":0},{"$f":"IF($D$2=\"\",0,VLOOKUP($D$2,記録台帳!$B$4:$GB$505,FJ51))","v":0},{"$f":"IF($D$2=\"\",0,VLOOKUP($D$2,記録台帳!$B$4:$GB$505,FK51))","v":0},{"$f":"IF($D$2=\"\",0,VLOOKUP($D$2,記録台帳!$B$4:$GB$505,FL51))","v":0},{"$f":"IF($D$2=\"\",0,VLOOKUP($D$2,記録台帳!$B$4:$GB$505,FM51))","v":0},{"$f":"IF($D$2=\"\",0,VLOOKUP($D$2,記録台帳!$B$4:$GB$505,FN51))","v":0},{"$f":"IF($D$2=\"\",0,VLOOKUP($D$2,記録台帳!$B$4:$GB$505,FO51))","v":0},{"$f":"IF($D$2=\"\",0,VLOOKUP($D$2,記録台帳!$B$4:$GB$505,FP51))","v":0},{"$f":"IF($D$2=\"\",0,VLOOKUP($D$2,記録台帳!$B$4:$GB$505,FQ51))","v":0},null,null,null,"申し込み済施設",null,null,{"$f":"$F$51","v":0},null,null,{"$f":"$I$51","v":0},null,null,{"$f":"$L$51","v":0},null,null,{"$f":"$O$51","v":0},null,null,{"$f":"$R$51","v":0},null,null,{"$f":"$U$51","v":0},null,null,{"$f":"$X$51","v":0},null,null,{"$f":"$AA$51","v":0},null,null,null,null,null,"申し込み済施設",null,null,0,null,null,0,null,null,0,null,null,0,null,null,0,null,null,0,null,null,0,null,null,0,null,null,null,null,null,null,null,null,null,null,null,null,null,null,null,null,null,null,null,null,null,null,null,null,null,null,null,null,null,null,null,null,null,null,null,null,null,null,null,null,null,null,null,null,null,null,null,null,null,null,null,null,null,null,null,null,null,null,null,"申し込み済施設",null,null,168,null,null,{"$f":"ET51+1","v":169},0,0,{"$f":"EW51+1","v":170},0,0,{"$f":"EZ51+1","v":171},0,0,{"$f":"FC51+1","v":172},0,0,{"$f":"FF51+1","v":173},0,0,{"$f":"FI51+1","v":174},0,0,{"$f":"FL51+1","v":175},0,0]
[null,null,"申し込み予定施設",null,null,{"$f":"IF($D$2=\"\",0,VLOOKUP($D$2,記録台帳!$B$4:$GB$505,ET52))","v":0},{"$f":"IF($D$2=\"\",0,VLOOKUP($D$2,記録台帳!$B$4:$GB$505,EU52))","v":0},{"$f":"IF($D$2=\"\",0,VLOOKUP($D$2,記録台帳!$B$4:$GB$505,EV52))","v":0},{"$f":"IF($D$2=\"\",0,VLOOKUP($D$2,記録台帳!$B$4:$GB$505,EW52))","v":0},{"$f":"IF($D$2=\"\",0,VLOOKUP($D$2,記録台帳!$B$4:$GB$505,EX52))","v":0},{"$f":"IF($D$2=\"\",0,VLOOKUP($D$2,記録台帳!$B$4:$GB$505,EY52))","v":0},{"$f":"IF($D$2=\"\",0,VLOOKUP($D$2,記録台帳!$B$4:$GB$505,EZ52))","v":0},{"$f":"IF($D$2=\"\",0,VLOOKUP($D$2,記録台帳!$B$4:$GB$505,FA52))","v":0},{"$f":"IF($D$2=\"\",0,VLOOKUP($D$2,記録台帳!$B$4:$GB$505,FB52))","v":0},{"$f":"IF($D$2=\"\",0,VLOOKUP($D$2,記録台帳!$B$4:$GB$505,FC52))","v":0},{"$f":"IF($D$2=\"\",0,VLOOKUP($D$2,記録台帳!$B$4:$GB$505,FD52))","v":0},{"$f":"IF($D$2=\"\",0,VLOOKUP($D$2,記録台帳!$B$4:$GB$505,FE52))","v":0},{"$f":"IF($D$2=\"\",0,VLOOKUP($D$2,記録台帳!$B$4:$GB$505,FF52))","v":0},{"$f":"IF($D$2=\"\",0,VLOOKUP($D$2,記録台帳!$B$4:$GB$505,FG52))","v":0},{"$f":"IF($D$2=\"\",0,VLOOKUP($D$2,記録台帳!$B$4:$GB$505,FH52))","v":0},{"$f":"IF($D$2=\"\",0,VLOOKUP($D$2,記録台帳!$B$4:$GB$505,FI52))","v":0},{"$f":"IF($D$2=\"\",0,VLOOKUP($D$2,記録台帳!$B$4:$GB$505,FJ52))","v":0},{"$f":"IF($D$2=\"\",0,VLOOKUP($D$2,記録台帳!$B$4:$GB$505,FK52))","v":0},{"$f":"IF($D$2=\"\",0,VLOOKUP($D$2,記録台帳!$B$4:$GB$505,FL52))","v":0},{"$f":"IF($D$2=\"\",0,VLOOKUP($D$2,記録台帳!$B$4:$GB$505,FM52))","v":0},{"$f":"IF($D$2=\"\",0,VLOOKUP($D$2,記録台帳!$B$4:$GB$505,FN52))","v":0},{"$f":"IF($D$2=\"\",0,VLOOKUP($D$2,記録台帳!$B$4:$GB$505,FO52))","v":0},{"$f":"IF($D$2=\"\",0,VLOOKUP($D$2,記録台帳!$B$4:$GB$505,FP52))","v":0},{"$f":"IF($D$2=\"\",0,VLOOKUP($D$2,記録台帳!$B$4:$GB$505,FQ52))","v":0},null,null,null,"申し込み予定施設",null,null,{"$f":"$F$52","v":0},null,null,{"$f":"$I$52","v":0},null,null,{"$f":"$L$52","v":0},null,null,{"$f":"$O$52","v":0},null,null,{"$f":"$R$52","v":0},null,null,{"$f":"$U$52","v":0},null,null,{"$f":"$X$52","v":0},null,null,{"$f":"$AA$52","v":0},null,null,null,null,null,"申し込み予定施設",null,null,0,null,null,0,null,null,0,null,null,0,null,null,0,null,null,0,null,null,0,null,null,0,null,null,null,null,null,null,null,null,null,null,null,null,null,null,null,null,null,null,null,null,null,null,null,null,null,null,null,null,null,null,null,null,null,null,null,null,null,null,null,null,null,null,null,null,null,null,null,null,null,null,null,null,null,null,null,null,null,null,null,"申し込み予定施設",null,null,176,null,null,177,0,0,178,0,0,179,0,0,180,0,0,181,0,0,182,0,0,183,0,0]
[null,null,"1　本人の状況評価（最高点２６点）",null,null,null,null,null,null,null,null,null,"要介護",null,{"$f":"M10","v":0},null,null,null,null,null,null,null,null,null,"判定",null,{"$f":"IF(O53=5,14,IF(O53=4,12,IF(O53=3,10,IF(OR(O53=2,O53=1),6,0))))","v":0},null,null,null,null,null,"1　本人の状況評価（最高点２６点）",null,null,null,null,null,null,null,null,null,"介護度",null,{"$f":"AQ10","v":0},null,null,null,null,null,null,null,null,null,"判定",null,{"$f":"IF(AS53=5,14,IF(AS53=4,12,IF(AS53=3,10,IF(OR(AS53=2,AS53=1),6,0))))","v":0},null,null,null,null,null,"1　本人の状況評価（最高点１４点）",null,null,null,null,null,null,null,null,null,"介護度",null,{"$f":"BU10","v":0},null,null,null,null,null,null,null,null,null,"判定",null,{"$f":"IF(BW53=5,14,IF(BW53=4,12,IF(BW53=3,10,IF(OR(BW53=2,BW53=1),6,0))))","v":0}]
[null,null,"２　認知症によるBPSD（最高点１２点）",null,null,null,null,null,null,null,null,null,{"$f":"IF($D$2=\"\",\"□\",VLOOKUP($D$2,記録台帳!$B$4:$IV$505,216))","v":"□"},"非常に多い",null,{"$f":"IF($D$2=\"\",\"□\",VLOOKUP($D$2,記録台帳!$B$4:$IV$505,217))","v":"□"},"やや多い",null,{"$f":"IF($D$2=\"\",\"□\",VLOOKUP($D$2,記録台帳!$B$4:$IV$505,218))","v":"□"},"少しあり",null,{"$f":"IF($D$2=\"\",\"□\",VLOOKUP($D$2,記録台帳!$B$4:$IV$505,219))","v":"□"},"なし",null,null,null,{"$f":"IF(M54=\"■\",12,IF(P54=\"■\",8,IF(S54=\"■\",4,0)))","v":0},null,null,null,null,null,"２　認知症によるBPSD（最高点１２点）",null,null,null,null,null,null,null,null,null,{"$f":"$M$54","v":"□"},"非常に多い",null,{"$f":"$P$54","v":"□"},"やや多い",null,{"$f":"$S$54","v":"□"},"少しあり",null,{"$f":"$V$54","v":"□"},"なし",null,null,null,{"$f":"IF(AQ54=\"■\",12,IF(AT54=\"■\",8,IF(AW54=\"■\",4,0)))","v":0},null,null,null,null,null,"２　認知症によるBPSD（最高点１２点）",null,null,null,null,null,null,null,null,null,"□","非常に多い",null,"□","やや多い",null,"□","少しあり",null,"□","なし",null,null,null,{"$f":"IF(BU54=\"■\",12,IF(BX54=\"■\",8,IF(CA54=\"■\",4,0)))","v":0}]
[null,null,"３　在宅サービス利用度（最高点２０点）",null,null,null,null,null,null,null,null,null,{"$f":"IF($D$2=\"\",\"□\",VLOOKUP($D$2,記録台帳!$B$4:$IV$505,220))","v":"□"},"６０％以上",null,{"$f":"IF($D$2=\"\",\"□\",VLOOKUP($D$2,記録台帳!$B$4:$IV$505,221))","v":"□"},"５０％以上",null,{"$f":"IF($D$2=\"\",\"□\",VLOOKUP($D$2,記録台帳!$B$4:$IV$505,222))","v":"□"},"３０％以上",null,{"$f":"IF($D$2=\"\",\"□\",VLOOKUP($D$2,記録台帳!$B$4:$IV$505,223))","v":"□"},"３０％未満",null,null,null,{"$f":"IF(M55=\"■\",20,IF(P55=\"■\",16,IF(S55=\"■\",12,IF(V55=\"■\",8,0))))","v":0},null,null,null,null,null,"３　在宅サービス利用度（最高点２０点）",null,null,null,null,null,null,null,null,null,{"$f":"$M$55","v":"□"},"６０％以上",null,{"$f":"$P$55","v":"□"},"５０％以上",null,{"$f":"$S$55","v":"□"},"３０％以上",null,{"$f":"$V$55","v":"□"},"３０％未満",null,null,null,{"$f":"IF(AQ55=\"■\",20,IF(AT55=\"■\",16,IF(AW55=\"■\",12,IF(AZ55=\"■\",8,0))))","v":0},null,null,null,null,null,"３　在宅サービス利用度（最高点２０点）",null,null,null,null,null,null,null,null,null,"□","６０％以上",null,"□","５０％以上",null,"□","３０％以上",null,"□","３０％未満",null,null,null,{"$f":"IF(BU55=\"■\",20,IF(BX55=\"■\",16,IF(CA55=\"■\",12,IF(CD55=\"■\",8,0))))","v":0},null,null,null,null,null,null,null,null,null,null,null,null,null,null,null,null,null,null,null,null,null,null,null,null,null,null,null,null,null,null,null,null,null,null,null,null,null,null,null,null,null,null,null,null,null,null,null,null,null,null,null,null,null,null,null,null,null,null,null,null,null,null,null,null,null,null,null,null,null,null,null,null,null,null,null,null,null,null,null,null,null,null,null,null,null,null,null,{"$f":"FS31*CS31","v":0},null,null,{"$f":"FV31*CV31","v":0},null,null,{"$f":"FY31*CY31","v":0},null,null,{"$f":"GB31*DB31","v":0},null,null,{"$f":"GE31*DE31","v":0}]
[null,null,"４　主たる介護者・家族等の状況の評価（最高点５４点）",null,null,null,null,null,null,null,null,null,null,null,null,null,null,null,null,null,null,null,null,null,null,null,null,null,null,null,null,null,"４　主たる介護者・家族等の状況の評価（最高点５４点）",null,null,null,null,null,null,null,null,null,null,null,null,null,null,null,null,null,null,null,null,null,null,null,null,null,null,null,null,null,"４　主たる介護者・家族等の状況の評価",null,null,null,null,null,null,null,null,null,null,null,null,null,null,null,null,null,null,null,null,null,null,null,null,null,null,null,null,null,null,null,null,null,null,null,null,null,null,null,null,null,null,null,null,null,null,null,null,null,null,null,null,null,null,null,null,null,null,null,null,null,null,null,null,null,null,null,null,null,null,null,null,null,null,null,null,null,null,null,null,null,null,null,null,null,null,null,null,null,null,null,null,null,null,null,null,null,null,null,null,null,null,null,null,null,null,null,null,null,null,null,{"$f":"FS32*CS32","v":0},null,null,{"$f":"FV32*CV32","v":0},null,null,{"$f":"FY32*CY32","v":0},null,null,{"$f":"GB32*DB32","v":0},null,null,{"$f":"GE32*DE32","v":0},null,null,{"$f":"GH32*DH32","v":0},null,null,{"$f":"GK32*DK32","v":0},null,null,{"$f":"GN35*DN35","v":0}]
[null,null,"①主たる介護者の年齢",null,null,null,null,null,null,null,null,null,{"$f":"IF($D$2=\"\",\"□\",VLOOKUP($D$2,記録台帳!$B$4:$IV$505,224))","v":"□"},"７０歳以上",null,{"$f":"IF($D$2=\"\",\"□\",VLOOKUP($D$2,記録台帳!$B$4:$IV$505,225))","v":"□"},"６０歳以上",null,{"$f":"IF($D$2=\"\",\"□\",VLOOKUP($D$2,記録台帳!$B$4:$IV$505,226))","v":"□"},"６０歳未満",null,null,null,null,null,null,{"$f":"IF(M57=\"■\",6,IF(P57=\"■\",4,IF(S57=\"■\",2,0)))","v":0},null,null,null,null,null,"①主たる介護者の年齢",null,null,null,null,null,null,null,null,null,{"$f":"$M$57","v":"□"},"７０歳以上",null,{"$f":"$P$57","v":"□"},"６０歳以上",null,{"$f":"$S$57","v":"□"},"６０歳未満",null,null,null,null,null,null,null,null,null,null,null,null,"①主たる介護者の年齢（最高点６点）",null,null,null,null,null,null,null,null,null,"□","７０歳以上",null,"□","６０歳以上",null,"□","６０歳未満",null,null,null,null,null,null,{"$f":"IF(BU57=\"■\",6,IF(BX57=\"■\",4,IF(CA57=\"■\",2,0)))","v":0},null,null,null,null,null,null,null,null,null,null,null,null,null,null,null,null,null,null,null,null,null,null,null,null,null,null,null,null,null,null,null,null,null,null,null,null,null,null,null,null,null,null,null,null,null,null,null,null,null,null,null,null,null,null,null,null,null,null,null,null,null,null,null,null,null,null,null,null,null,null,null,null,null,null,null,null,null,null,null,null,null,null,null,null,null,null,null,null,null,{"$f":"FU36*CU36","v":0},{"$f":"FV36*CV36","v":0},{"$f":"FW36*CW36","v":0},{"$f":"FX36*CX36","v":0},null,null,{"$f":"GA36*DA36","v":0},{"$f":"GB36*DB36","v":0},{"$f":"GC36*DC36","v":0},{"$f":"GD36*DD36","v":0},null,null,{"$f":"GG36*DG36","v":0},{"$f":"GH36*DH36","v":0},{"$f":"GI36*DI36","v":0},{"$f":"GJ36*DJ36","v":0},null,null,{"$f":"GM36*DM36","v":0},{"$f":"GN36*DN36","v":0},{"$f":"GO36*DO36","v":0},{"$f":"GP36*DP36","v":0}]
[null,null,"②介護者の介護負担",null,null,null,null,null,null,null,null,null,{"$f":"IF($D$2=\"\",\"□\",VLOOKUP($D$2,記録台帳!$B$4:$IV$505,227))","v":"□"},"重い",null,{"$f":"IF($D$2=\"\",\"□\",VLOOKUP($D$2,記録台帳!$B$4:$IV$505,228))","v":"□"},"やや重い",null,{"$f":"IF($D$2=\"\",\"□\",VLOOKUP($D$2,記録台帳!$B$4:$IV$505,229))","v":"□"},"軽い",null,{"$f":"IF($D$2=\"\",\"□\",VLOOKUP($D$2,記録台帳!$B$4:$IV$505,230))","v":"□"},"なし",null,null,null,{"$f":"IF(M58=\"■\",6,IF(P58=\"■\",4,IF(S58=\"■\",2,0)))","v":0},null,null,null,null,null,"②介護者の介護負担",null,null,null,null,null,null,null,null,null,{"$f":"$M$58","v":"□"},"重い",null,{"$f":"$P$58","v":"□"},"やや重い",null,{"$f":"$S$58","v":"□"},"軽い",null,{"$f":"$V$58","v":"□"},"なし",null,null,null,null,null,null,null,null,null,"②介護者の介護負担（最高点６点）",null,null,null,null,null,null,null,null,null,"□","重い",null,"□","やや重い",null,"□","軽い",null,"□","なし",null,null,null,{"$f":"IF(BU58=\"■\",6,IF(BX58=\"■\",4,IF(CA58=\"■\",2,0)))","v":0},null,null,null,null,null,null,null,null,null,null,null,null,null,null,null,null,null,null,null,null,null,null,null,null,null,null,null,null,null,null,null,null,null,null,null,null,null,null,null,null,null,null,null,null,null,null,null,null,null,null,null,null,null,null,null,null,null,null,null,null,null,null,null,null,null,null,null,null,null,null,null,null,null,null,null,null,null,null,null,null,null,null,null,null,null,null,null,{"$f":"FS37*CS37","v":0},null,null,{"$f":"FV37*CV37","v":0},null,null,{"$f":"FY37*CY37","v":0},null,null,{"$f":"GB37*DB37","v":0},null,null,{"$f":"GE37*DE37","v":0},null,null,{"$f":"GH37*DH37","v":0},{"$f":"GI37*DI37","v":0},null,{"$f":"GK37*DK37","v":0},{"$f":"GL37*DL37","v":0},null,{"$f":"GN37*DN37","v":0},{"$f":"GO37*DO37","v":0}]
[null,null,"③介護者の障害や疾病",null,null,null,null,null,null,null,null,null,{"$f":"IF($D$2=\"\",\"□\",VLOOKUP($D$2,記録台帳!$B$4:$IV$505,231))","v":"□"},"介護困難",null,{"$f":"IF($D$2=\"\",\"□\",VLOOKUP($D$2,記録台帳!$B$4:$IV$505,232))","v":"□"},"多少困難",null,{"$f":"IF($D$2=\"\",\"□\",VLOOKUP($D$2,記録台帳!$B$4:$IV$505,233))","v":"□"},"介護可能",null,{"$f":"IF($D$2=\"\",\"□\",VLOOKUP($D$2,記録台帳!$B$4:$IV$505,234))","v":"□"},"なし",null,null,null,{"$f":"IF(M59=\"■\",6,IF(P59=\"■\",4,IF(S59=\"■\",2,0)))","v":0},null,null,null,null,null,"③介護者の障害や疾病",null,null,null,null,null,null,null,null,null,{"$f":"$M$59","v":"□"},"介護困難",null,{"$f":"$P$59","v":"□"},"多少困難",null,{"$f":"$S$59","v":"□"},"介護可能",null,{"$f":"$V$59","v":"□"},"なし",null,null,null,null,null,null,null,null,null,"③介護者の障害や疾病（最高点６点）",null,null,null,null,null,null,null,null,null,"□","介護困難",null,"□","多少困難",null,"□","介護可能",null,"□","なし",null,null,null,{"$f":"IF(BU59=\"■\",6,IF(BX59=\"■\",4,IF(CA59=\"■\",2,0)))","v":0},null,null,null,null,null,null,null,null,null,null,null,null,null,null,null,null,null,null,null,null,null,null,null,null,null,null,null,null,null,null,null,null,null,null,null,null,null,null,null,null,null,null,null,null,null,null,null,null,null,null,null,null,null,null,null,null,null,null,null,null,null,null,null,null,null,null,null,null,null,null,null,null,null,null,null,null,null,null,null,null,null,null,null,null,null,null,null,0,null,null,{"$f":"FV38*CV38","v":0},null,null,{"$f":"FY38*CY38","v":0},null,null,null,null,null,{"$f":"GE38*DE38","v":0},null,null,{"$f":"GH38*DH38","v":0},null,null,{"$f":"GK38*DK38","v":0},null,null,{"$f":"GN38*DN38","v":0},{"$f":"GO38*DO38","v":0}]
[null,null,"④介護者の就労状況",null,null,null,null,null,null,null,null,null,{"$f":"IF($D$2=\"\",\"□\",VLOOKUP($D$2,記録台帳!$B$4:$IV$505,235))","v":"□"},"フルタイム\n高齢無職",null,{"$f":"IF($D$2=\"\",\"□\",VLOOKUP($D$2,記録台帳!$B$4:$IV$505,236))","v":"□"},"４時間以上",null,{"$f":"IF($D$2=\"\",\"□\",VLOOKUP($D$2,記録台帳!$B$4:$IV$505,237))","v":"□"},"４時間未満",null,{"$f":"IF($D$2=\"\",\"□\",VLOOKUP($D$2,記録台帳!$B$4:$IV$505,238))","v":"□"},"なし",null,null,null,{"$f":"IF(M60=\"■\",6,IF(P60=\"■\",4,IF(S60=\"■\",2,0)))","v":0},null,null,null,null,null,"④介護者の就労",null,null,null,null,null,null,null,null,null,{"$f":"$M$60","v":"□"},"フルタイム\n高齢無職",null,{"$f":"$P$60","v":"□"},"４時間以上",null,{"$f":"$S$60","v":"□"},"４時間未満",null,{"$f":"$V$60","v":"□"},"なし",null,null,null,null,null,null,null,null,null,"④介護者の就労（最高点６点）",null,null,null,null,null,null,null,null,null,"□","フルタイム\n高齢無職",null,"□","４時間以上",null,"□","４時間未満",null,"□","なし",null,null,null,{"$f":"IF(BU60=\"■\",6,IF(BX60=\"■\",4,IF(CA60=\"■\",2,0)))","v":0},null,null,null,null,null,null,null,null,null,null,null,null,null,null,null,null,null,null,null,null,null,null,null,null,null,null,null,null,null,null,null,null,null,null,null,null,null,null,null,null,null,null,null,null,null,null,null,null,null,null,null,null,null,null,null,null,null,null,null,null,null,null,null,null,null,null,null,null,null,null,null,null,null,null,null,null,null,null,null,null,null,null,null,null,null,null,null,0,null,null,{"$f":"FV39*CV39","v":0},null,null,{"$f":"FY39*CY39","v":0},null,null,{"$f":"GB39*DB39","v":0},null,null,{"$f":"GE39*DE39","v":0},null,null,{"$f":"GH39*DH39","v":0},{"$f":"GI39*DI39","v":0},null,null,null,null,{"$f":"IF(CI39=\"\",0,MIN(CI39,5))","v":0}]
[null,null,"⑤介護者が育児、家族が病気（自動補正あり：最高６点）",null,null,null,null,null,null,null,null,null,{"$f":"IF($D$2=\"\",\"□\",VLOOKUP($D$2,記録台帳!$B$4:$IV$505,239))","v":"□"},"常時介護",null,{"$f":"IF($D$2=\"\",\"□\",VLOOKUP($D$2,記録台帳!$B$4:$IV$505,240))","v":"□"},"半日程度",null,{"$f":"IF($D$2=\"\",\"□\",VLOOKUP($D$2,記録台帳!$B$4:$IV$505,241))","v":"□"},"随時",null,{"$f":"IF($D$2=\"\",\"□\",VLOOKUP($D$2,記録台帳!$B$4:$IV$505,242))","v":"□"},"なし",null,null,null,{"$f":"IF(OR(M61=\"■\",DR15=1),6,IF(P61=\"■\",4,IF(S61=\"■\",2,0)))","v":0},null,null,null,null,null,"⑤介護者が育児、家族が病気",null,null,null,null,null,null,null,null,null,{"$f":"$M$61","v":"□"},"常時介助",null,{"$f":"$P$61","v":"□"},"半日程度",null,{"$f":"$S$61","v":"□"},"随時",null,{"$f":"$V$61","v":"□"},"なし",null,null,null,null,null,null,null,null,null,"⑤介護者が育児、家族が病気（自動補正あり：最高６点）",null,null,null,null,null,null,null,null,null,"□","常時介助",null,"□","半日程度",null,"□","随時",null,"□","なし",null,null,null,{"$f":"IF(OR(BU61=\"■\",DG13=1),6,IF(BX61=\"■\",4,IF(CA61=\"■\",2,0)))","v":0},null,null,null,null,null,null,null,null,null,null,null,null,null,null,null,null,null,null,null,null,null,null,null,null,null,null,null,null,null,null,null,null,null,null,null,null,null,null,null,null,null,null,null,null,null,null,null,null,null,null,null,null,null,null,null,null,null,null,null,null,null,null,null,null,null,null,null,null,null,null,null,null,null,null,null,null,null,null,null,null,null,null,null,null,null,null,null,0,null,null,{"$f":"FV40*CV40","v":0},null,null,{"$f":"FY40*CY40","v":0},null,null,0,null,null,{"$f":"GE40*DE40","v":0},null,null,{"$f":"GH40*DH40","v":0},null,null,null,null,null,{"$f":"IF(CI40=\"\",0,MIN(CI40*3,9))","v":0}]
[null,null,"⑥介護者の介護のかかわり方",null,null,null,null,null,null,null,null,null,{"$f":"IF($D$2=\"\",\"□\",VLOOKUP($D$2,記録台帳!$B$4:$IV$505,243))","v":"□"},"介護拒否",null,{"$f":"IF($D$2=\"\",\"□\",VLOOKUP($D$2,記録台帳!$B$4:$IV$505,244))","v":"□"},"非常に消極的",null,{"$f":"IF($D$2=\"\",\"□\",VLOOKUP($D$2,記録台帳!$B$4:$IV$505,245))","v":"□"},"やや消極的",null,{"$f":"IF($D$2=\"\",\"□\",VLOOKUP($D$2,記録台帳!$B$4:$IV$505,246))","v":"□"},"ふつう",null,null,null,{"$f":"IF(M62=\"■\",6,IF(P62=\"■\",4,IF(S62=\"■\",2,0)))","v":0},null,null,null,null,null,"⑥介護者の介護のかかわり方",null,null,null,null,null,null,null,null,null,{"$f":"$M$62","v":"□"},"介護\nしていない",null,{"$f":"$P$62","v":"□"},"介護者の\n関わり希薄",null,{"$f":"$S$62","v":"□"},"直接介護に\nやや消極的",null,{"$f":"$V$62","v":"□"},"しっかり関わっている",null,null,null,null,null,null,null,null,null,"⑥介護者の介護のかかわり方（自動補正あり：最高６点）",null,null,null,null,null,null,null,null,null,"□","介護\nしていない",null,"□","介護者の\n関わり希薄",null,"□","直接介護に\nやや消極的",null,"□","しっかり関わっている",null,null,null,{"$f":"IF(OR(BU62=\"■\",DG13=1),6,IF(BX62=\"■\",4,IF(CA62=\"■\",2,0)))","v":0},null,null,null,null,null,null,null,null,null,1,"居宅","介護度","性別","生活保護","施設","病院","地域","施設",null,null,null,null,null,null,null,null,null,null,null,null,null,null,null,null,null,null,null,null,null,null,null,null,null,null,null,null,null,null,null,null,null,null,null,null,null,null,null,null,null,null,null,null,null,null,null,null,null,null,null,null,null,null,null,null,null,null,null,null,null,null,null,null,null,null,null,null,null,0,null,null,{"$f":"FV41*CV41","v":0},null,null,{"$f":"FY41*CY41","v":0},null,null,0,null,null,{"$f":"GE41*DE41","v":0},null,null,{"$f":"GH41*DH41","v":0},null,null,null,null,null,{"$f":"IF(CI41/10>60,6,ROUND(CI41/10,0))","v":0}]
[null,null,"⑦他の同居介護補助者",null,null,null,null,null,null,null,null,null,{"$f":"IF($D$2=\"\",\"□\",VLOOKUP($D$2,記録台帳!$B$4:$IV$505,247))","v":"□"},"ほとんどなし",null,{"$f":"IF($D$2=\"\",\"□\",VLOOKUP($D$2,記録台帳!$B$4:$IV$505,248))","v":"□"},"随時あり",null,{"$f":"IF($D$2=\"\",\"□\",VLOOKUP($D$2,記録台帳!$B$4:$IV$505,249))","v":"□"},"常時あり",null,null,null,null,null,null,{"$f":"IF(M63=\"■\",6,IF(P63=\"■\",4,IF(S63=\"■\",2,0)))","v":0},null,null,null,null,null,"⑦他の同居介護補助者",null,null,null,null,null,null,null,null,null,{"$f":"$M$63","v":"□"},"ほとんどなし",null,{"$f":"$P$63","v":"□"},"随時あり",null,{"$f":"$S$63","v":"□"},"常時あり",null,null,null,null,null,null,null,null,null,null,null,null,"⑦他の同居介護補助者（最高点６点）",null,null,null,null,null,null,null,null,null,"□","ほとんどなし",null,"□","随時あり",null,"□","常時あり",null,null,null,null,null,null,{"$f":"IF(BU63=\"■\",6,IF(BX63=\"■\",4,IF(CA63=\"■\",2,0)))","v":0},null,null,null,null,null,null,null,null,null,2,"病院",{"$f":"統計!U3","v":"申請中"},{"$f":"統計!W3","v":"男"},{"$f":"統計!Y3","v":"妻"},{"$f":"統計!AA3","v":"自宅介護"},{"$f":"統計!AC3","v":"辰巳病院"},{"$f":"統計!AE3","v":"市原市"},{"$f":"統計!AG3","v":"辰巳萬緑苑"},null,null,null,null,null,null,null,null,null,null,null,null,null,null,null,null,null,null,null,null,null,null,null,null,null,null,null,null,null,null,null,null,null,null,null,null,null,null,null,null,null,null,null,null,null,null,null,null,null,null,null,null,null,null,null,null,null,null,null,null,null,null,null,null,null,null,null,null,null,0,null,{"$f":"FU42*CU42","v":0},null,{"$f":"FW42*CW42","v":0},null,null,null,null,0,null,{"$f":"GD42*DD42","v":0},null,{"$f":"GF42*DF42","v":0},null,null,null,null,{"$f":"GK42*DK42","v":0},null,{"$f":"GM42*DM42","v":0},null,{"$f":"GO42*DO42","v":0}]
[null,null,"⑧別居血縁者の介護協力",null,null,null,null,null,null,null,null,null,{"$f":"IF($D$2=\"\",\"□\",VLOOKUP($D$2,記録台帳!$B$4:$IV$505,250))","v":"□"},"ほとんどなし",null,{"$f":"IF($D$2=\"\",\"□\",VLOOKUP($D$2,記録台帳!$B$4:$IV$505,251))","v":"□"},"随時あり",null,{"$f":"IF($D$2=\"\",\"□\",VLOOKUP($D$2,記録台帳!$B$4:$IV$505,252))","v":"□"},"常時あり",null,null,null,null,null,null,{"$f":"IF(M64=\"■\",6,IF(P64=\"■\",4,IF(S64=\"■\",2,0)))","v":0},null,null,null,null,null,"⑧別居血縁者の介護協力",null,null,null,null,null,null,null,null,null,{"$f":"$M$64","v":"□"},"ほとんどなし",null,{"$f":"$P$64","v":"□"},"随時あり",null,{"$f":"$S$64","v":"□"},"常時あり",null,null,null,null,null,null,null,null,null,null,null,null,"⑧別居血縁者の介護協力（最高点６点）",null,null,null,null,null,null,null,null,null,"□","ほとんどなし",null,"□","随時あり",null,"□","常時あり",null,null,null,null,null,null,{"$f":"IF(BU64=\"■\",6,IF(BX64=\"■\",4,IF(CA64=\"■\",2,0)))","v":0},null,null,null,null,null,null,null,null,null,3,"老人保健施設",{"$f":"統計!U4","v":"要支援１"},{"$f":"統計!W4","v":"女"},{"$f":"統計!Y4","v":"夫"},{"$f":"統計!AA4","v":"辰巳病院"},{"$f":"統計!AC4","v":"労災病院"},{"$f":"統計!AE4","v":"千葉市"},{"$f":"統計!AG4","v":"ナーシング・ヴィラ"},null,null,null,null,null,null,null,null,null,null,null,null,null,null,null,null,null,null,null,null,null,null,null,null,null,null,null,null,null,null,null,null,null,null,null,null,null,null,null,null,null,null,null,null,null,null,null,null,null,null,null,null,null,null,null,null,null,null,null,null,null,null,null,null,null,null,null,null,null,0,null,{"$f":"FU43*CU43","v":0},null,{"$f":"FW43*CW43","v":0},null,null,null,null,0,null,{"$f":"GD43*DD43","v":0},null,{"$f":"GF43*DF43","v":0},null,null,null,null,{"$f":"GK43*DK43","v":0},null,{"$f":"GM43*DM43","v":0},null,{"$f":"GO43*DO43","v":0}]
[null,null,"⑨近隣者等の介護協力",null,null,null,null,null,null,null,null,null,{"$f":"IF($D$2=\"\",\"□\",VLOOKUP($D$2,記録台帳!$B$4:$IV$505,253))","v":"□"},"ほとんどなし",null,{"$f":"IF($D$2=\"\",\"□\",VLOOKUP($D$2,記録台帳!$B$4:$IV$505,254))","v":"□"},"随時あり",null,{"$f":"IF($D$2=\"\",\"□\",VLOOKUP($D$2,記録台帳!$B$4:$IV$505,255))","v":"□"},"常時あり",null,null,null,null,null,null,{"$f":"IF(M65=\"■\",6,IF(P65=\"■\",4,IF(S65=\"■\",2,0)))","v":0},null,null,null,null,null,"⑨近隣者等の介護協力",null,null,null,null,null,null,null,null,null,{"$f":"$M$65","v":"□"},"ほとんどなし",null,{"$f":"$P$65","v":"□"},"随時あり",null,{"$f":"$S$65","v":"□"},"常時あり",null,null,null,null,null,null,null,null,null,null,null,null,"⑨近隣者等の介護協力（最高点６点）",null,null,null,null,null,null,null,null,null,"□","ほとんどなし",null,"□","随時あり",null,"□","常時あり",null,null,null,null,null,null,{"$f":"IF(BU65=\"■\",6,IF(BX65=\"■\",4,IF(CA65=\"■\",2,0)))","v":0},null,null,null,null,null,null,null,null,null,4,"療養病床",{"$f":"統計!U5","v":"要支援２"},{"$f":"統計!W5","v":0},{"$f":"統計!Y5","v":"長男"},{"$f":"統計!AA5","v":"辰巳彩風苑"},{"$f":"統計!AC5","v":"長谷川病院"},{"$f":"統計!AE5","v":"木更津市"},{"$f":"統計!AG5","v":"杏の里"},null,null,null,null,null,null,null,null,null,null,null,null,null,null,null,null,null,null,null,null,null,null,null,null,null,null,null,null,null,null,null,null,null,null,null,null,null,null,null,null,null,null,null,null,null,null,null,null,null,null,null,null,null,null,null,null,null,null,null,null,null,null,null,null,null,null,null,null,null,0,null,{"$f":"FU44*CU44","v":0},null,{"$f":"FW44*CW44","v":0},null,null,null,null,0,null,{"$f":"GD44*DD44","v":0},null,{"$f":"GF44*DF44","v":0},null,null,null,null,{"$f":"GK44*DK44","v":0},null,{"$f":"GM44*DM44","v":0},null,{"$f":"GO44*DO44","v":0}]
[null,null,"⑩独居高齢者の調整加点",null,null,null,null,null,{"$f":"IF($DR$13=1,42-SUM(AA57:AC63),0)","v":0},null,null,null,null,null,null,null,null,null,null,null,null,null,null,"合計",null,null,{"$f":"SUM(AA53:AC65)+I66","v":0},null,null,null,null,null,"⑩独居高齢者の調整加点",null,null,null,null,null,null,null,null,null,null,null,null,null,null,null,null,null,null,null,null,null,null,null,null,null,null,null,null,null,"⑩独居高齢者の調整加点",null,null,null,null,null,{"$f":"IF($DC$13=1,42-SUM(CI57:CK63),0)","v":0},null,null,null,null,null,null,null,null,null,null,null,null,null,null,null,null,null,{"$f":"SUM(CI53:CK65)+BQ66","v":0},null,null,null,null,null,null,null,null,null,5,"養護老人ホーム",{"$f":"統計!U6","v":1},{"$f":"統計!W6","v":0},{"$f":"統計!Y6","v":"次男"},{"$f":"統計!AA6","v":"辰巳ナーシング・ヴィラ"},{"$f":"統計!AC6","v":"鑓田病院"},{"$f":"統計!AE6","v":"袖ヶ浦市"},{"$f":"統計!AG6","v":"ふるさと苑"},null,null,null,null,null,null,null,null,null,null,null,null,null,null,null,null,null,null,null,null,null,null,null,null,null,null,null,null,null,null,null,null,null,null,null,null,null,null,null,null,null,null,null,null,null,null,null,null,null,null,null,null,null,null,null,null,null,null,null,null,null,null,null,null,null,null,null,null,null,0,null,{"$f":"FU45*CU45","v":0},null,{"$f":"FW45*CW45","v":0},null,null,null,null,0,null,{"$f":"GD45*DD45","v":0},null,{"$f":"GF45*DF45","v":0},null,null,null,null,{"$f":"GK45*DK45","v":0},null,{"$f":"GM45*DM45","v":0},null,{"$f":"GO45*DO45","v":0}]
[null,null,null,null,null,null,null,null,null,null,null,null,null,null,null,null,null,null,null,null,null,null,null,null,null,null,null,null,null,null,null,null,null,null,null,null,null,null,null,null,null,null,null,null,null,null,null,null,null,null,null,null,null,null,null,null,null,null,null,null,null,null,null,null,null,null,null,null,null,null,null,null,null,null,null,null,null,null,null,null,null,null,null,null,null,null,null,null,null,null,null,null,null,null,null,null,6,"その他",{"$f":"統計!U7","v":2},{"$f":"統計!W7","v":0},{"$f":"統計!Y7","v":"三男"},{"$f":"統計!AA7","v":"杏の里"},{"$f":"統計!AC7","v":"帝京病院"},{"$f":"統計!AE7","v":"長柄町"},{"$f":"統計!AG7","v":"第２ふるさと苑"}]
[null,null,"千葉県の基準による点数",null,null,null,null,null,{"$f":"IF($D$2=\"\",\"\",VLOOKUP($D$2,記録台帳!$B$4:$IW$505,3))","v":""},null,null,null,null,null,null,null,null,null,null,null,null,null,null,null,null,null,null,null,null,null,null,null,null,null,null,null,null,null,null,null,null,null,null,null,null,null,null,null,null,null,null,null,null,null,null,null,null,null,null,null,null,null,null,null,null,null,null,null,null,null,null,null,null,null,null,null,null,null,null,null,null,null,null,null,null,null,null,null,null,null,null,null,null,null,null,null,7,null,{"$f":"統計!U8","v":3},{"$f":"統計!W8","v":0},{"$f":"統計!Y8","v":"長女"},{"$f":"統計!AA8","v":"労災病院"},{"$f":"統計!AC8","v":"白金整形外科"},{"$f":"統計!AE8","v":"茂原市"},{"$f":"統計!AG8","v":"清流園"},null,null,null,null,null,null,null,null,null,null,null,null,null,null,null,null,null,null,null,null,null,null,null,null,null,null,null,null,null,null,null,null,null,null,null,null,null,null,null,null,null,null,null,null,null,null,null,null,null,null,null,null,null,null,null,null,null,null,null,null,null,null,null,null,null,null,null,null,null,{"$f":"FS47*CS47","v":0},null,null,{"$f":"FV47*CV47","v":0},null,null,{"$f":"FY47*CY47","v":0},null,null,{"$f":"GB47*DB47","v":0},null,null,{"$f":"GE47*DE47","v":0},null,null,{"$f":"GH47*DH47","v":0},{"$f":"GI47*DI47","v":0},null,{"$f":"GK47*DK47","v":0},{"$f":"GL47*DL47","v":0},null,{"$f":"GN47*DN47","v":0},{"$f":"GO47*DO47","v":0}]
[null,null,"千葉県の基準による優先順位",null,null,null,null,null,{"$f":"IF($D$2=\"\",\"\",VLOOKUP($D$2,記録台帳!$B$4:$IW$505,2))","v":""},null,null,null,null,null,null,null,null,null,null,null,null,null,null,null,null,null,null,null,null,null,null,null,null,null,null,null,null,null,null,null,null,null,null,null,null,null,null,null,null,null,null,null,null,null,null,null,null,null,null,null,null,null,null,null,null,null,null,null,null,null,null,null,null,null,null,null,null,null,null,null,null,null,null,null,null,null,null,null,null,null,null,null,null,null,null,null,8,null,{"$f":"統計!U9","v":4},{"$f":"統計!W9","v":0},{"$f":"統計!Y9","v":"次女"},{"$f":"統計!AA9","v":"長谷川病院"},{"$f":"統計!AC9","v":"辰巳台クリニック"},{"$f":"統計!AE9","v":"君津市"},{"$f":"統計!AG9","v":"あじさい苑"},null,null,null,null,null,null,null,null,null,null,null,null,null,null,null,null,null,null,null,null,null,null,null,null,null,null,null,null,null,null,null,null,null,null,null,null,null,null,null,null,null,null,null,null,null,null,null,null,null,null,null,null,null,null,null,null,null,null,null,null,null,null,null,null,null,null,null,null,null,{"$f":"FS48*CS48","v":0},null,null,{"$f":"FV48*CV48","v":0},null,null,{"$f":"FY48*CY48","v":0},null,null,{"$f":"GB48*DB48","v":0},null,null,null,null,null,{"$f":"GH48*DH48","v":0},{"$f":"GI48*DI48","v":0},null,{"$f":"GK48*DK48","v":0},{"$f":"GL48*DL48","v":0},null,{"$f":"GN48*DN48","v":0},{"$f":"GO48*DO48","v":0}]
[null,null,"独自の基準による困難点数",null,null,null,null,null,{"$f":"IF($D$2=\"\",\"\",VLOOKUP($D$2,記録台帳!$B$4:$IW$505,256))","v":""},null,null,null,null,null,null,null,null,null,null,null,null,null,null,null,null,null,null,null,null,null,null,null,null,null,null,null,null,null,null,null,null,null,null,null,null,null,null,null,null,null,null,null,null,null,null,null,null,null,null,null,null,null,null,null,null,null,null,null,null,null,null,null,null,null,null,null,null,null,null,null,null,null,null,null,null,null,null,null,null,null,null,null,null,null,null,null,9,null,{"$f":"統計!U10","v":5},{"$f":"統計!W10","v":0},{"$f":"統計!Y10","v":"三女"},{"$f":"統計!AA10","v":"鑓田病院"},{"$f":"統計!AC10","v":"ケアハウス辰巳彩風苑"},{"$f":"統計!AE10","v":"富津市"},{"$f":"統計!AG10","v":"リハパーク菊間"},null,null,null,null,null,null,null,null,null,null,null,null,null,null,null,null,null,null,null,null,null,null,null,null,null,null,null,null,null,null,null,null,null,null,null,null,null,null,null,null,null,null,null,null,null,null,null,null,null,null,null,null,null,null,null,null,null,null,null,null,null,null,null,null,null,null,null,null,null,{"$f":"FS49*CS49","v":0},null,null,{"$f":"FV49*CV49","v":0},null,null,{"$f":"FY49*CY49","v":0},null,null,{"$f":"GB49*DB49","v":0},null,null,{"$f":"GE49*DE49","v":0}]
[null,null,"独自の基準による優先順位",null,null,null,null,null,{"$f":"IF(I70=\"\",0,RANK(I70,記録台帳!IW5:IW505))","v":0},null,null,null,null,null,null,null,null,null,null,null,null,null,null,null,null,null,null,null,null,null,null,null,null,null,null,null,null,null,null,null,null,null,null,null,null,null,null,null,null,null,null,null,null,null,null,null,null,null,null,null,null,null,null,null,null,null,null,null,null,null,null,null,null,null,null,null,null,null,null,null,null,null,null,null,null,null,null,null,null,null,null,null,null,null,null,null,10,null,{"$f":"統計!U11","v":0},{"$f":"統計!W11","v":0},{"$f":"統計!Y11","v":"孫"},{"$f":"統計!AA11","v":"帝京病院"},{"$f":"統計!AC11","v":0},{"$f":"統計!AE11","v":"勝浦市"},{"$f":"統計!AG11","v":"春"},null,null,null,null,null,null,null,null,null,null,null,null,null,null,null,null,null,null,null,null,null,null,null,null,null,null,null,null,null,null,null,null,null,null,null,null,null,null,null,null,null,null,null,null,null,null,null,null,null,null,null,null,null,null,null,null,null,null,null,null,null,null,null,null,null,null,null,null,null,{"$f":"FS50*CS50","v":0},null,null,null,null,null,null,null,null,null,null,null,null,null,null,null,null,null,{"$f":"IF(OR(CF50=\"\",CF50=0),0,IF(CF50>=50,ROUNDUP((CF50-50)/10,0),0))","v":0}]
[null,null,null,null,null,null,null,null,null,null,null,null,null,null,null,null,null,null,null,null,null,null,null,null,null,null,null,null,null,null,null,null,null,null,null,null,null,null,null,null,null,null,null,null,null,null,null,null,null,null,null,null,null,null,null,null,null,null,null,null,null,null,null,null,null,null,null,null,null,null,null,null,null,null,null,null,null,null,null,null,null,null,null,null,null,null,null,null,null,null,null,null,null,null,null,null,11,null,{"$f":"統計!U12","v":0},{"$f":"統計!W12","v":0},{"$f":"統計!Y12","v":"妹"},{"$f":"統計!AA12","v":"白金整形外科"},{"$f":"統計!AC12","v":0},{"$f":"統計!AE12","v":"船橋市"},{"$f":"統計!AG12","v":"市原園"}]
[null,null,null,null,null,null,null,null,null,null,null,null,null,null,null,null,null,null,null,null,null,null,null,null,null,null,null,null,null,null,null,null,null,null,null,null,null,null,null,null,null,null,null,null,null,null,null,null,null,null,null,null,null,null,null,null,null,null,null,null,null,null,null,null,null,null,null,null,null,null,null,null,null,null,null,null,null,null,null,null,null,null,null,null,null,null,null,null,null,null,null,null,null,null,null,null,12,null,{"$f":"統計!U13","v":0},{"$f":"統計!W13","v":0},{"$f":"統計!Y13","v":"甥"},{"$f":"統計!AA13","v":0},{"$f":"統計!AC13","v":0},{"$f":"統計!AE13","v":"市川市"},{"$f":"統計!AG13","v":"トータス"}]
[null,null,null,null,null,null,null,null,null,null,null,null,null,null,null,null,null,null,null,null,null,null,null,null,null,null,null,null,null,null,null,null,null,null,null,null,null,null,null,null,null,null,null,null,null,null,null,null,null,null,null,null,null,null,null,null,null,null,null,null,null,null,null,null,null,null,null,null,null,null,null,null,null,null,null,null,null,null,null,null,null,null,null,null,null,null,null,null,null,null,null,null,null,null,null,null,13,null,{"$f":"統計!U14","v":0},{"$f":"統計!W14","v":0},{"$f":"統計!Y14","v":"姪"},{"$f":"統計!AA14","v":0},{"$f":"統計!AC14","v":0},{"$f":"統計!AE14","v":"松戸市"},{"$f":"統計!AG14","v":"クレイン"}]
[null,null,null,null,null,null,null,null,null,null,null,null,null,null,null,null,null,null,null,null,null,null,null,null,null,null,null,null,null,null,null,null,null,null,null,null,null,null,null,null,null,null,null,null,null,null,null,null,null,null,null,null,null,null,null,null,null,null,null,null,null,null,null,null,null,null,null,null,null,null,null,null,null,null,null,null,null,null,null,null,null,null,null,null,null,null,null,null,null,null,null,null,null,null,null,null,14,null,{"$f":"統計!U15","v":0},{"$f":"統計!W15","v":0},{"$f":"統計!Y15","v":0},{"$f":"統計!AA15","v":0},{"$f":"統計!AC15","v":0},{"$f":"統計!AE15","v":"浦安市"},{"$f":"統計!AG15","v":"なんな苑"}]
[null,null,null,null,null,null,null,null,null,null,null,null,null,null,null,null,null,null,null,null,null,null,null,null,null,null,null,null,null,null,null,null,null,null,null,null,null,null,null,null,null,null,null,null,null,null,null,null,null,null,null,null,null,null,null,null,null,null,null,null,null,null,null,null,null,null,null,null,null,null,null,null,null,null,null,null,null,null,null,null,null,null,null,null,null,null,null,null,null,null,null,null,null,null,null,null,15,null,{"$f":"統計!U16","v":0},{"$f":"統計!W16","v":0},{"$f":"統計!Y16","v":0},{"$f":"統計!AA16","v":0},{"$f":"統計!AC16","v":0},{"$f":"統計!AE16","v":0},{"$f":"統計!AG16","v":"ユーアイ倶楽部"}]
[null,null,null,null,null,null,null,null,null,null,null,null,null,null,null,null,null,null,null,null,null,null,null,null,null,null,null,null,null,null,null,null,null,null,null,null,null,null,null,null,null,null,null,null,null,null,null,null,null,null,null,null,null,null,null,null,null,null,null,null,null,null,null,null,null,null,null,null,null,null,null,null,null,null,null,null,null,null,null,null,null,null,null,null,null,null,null,null,null,null,null,null,{"$f":"BM129","v":0}]
[null,null,null,null,null,null,null,null,null,null,null,null,null,null,null,null,null,null,null,null,null,null,null,null,null,null,null,null,null,null,null,null,null,null,null,null,null,null,null,null,null,null,null,null,null,null,null,null,null,null,null,null,null,null,null,null,null,null,null,null,null,null,null,null,null,null,null,null,null,null,null,null,null,null,null,null,null,null,null,null,null,null,null,null,null,null,null,null,null,null,null,null,{"$f":"BM131","v":0}]
[null,null,null,null,null,null,null,null,null,null,null,null,null,null,null,null,null,null,null,null,null,null,null,null,null,null,null,null,null,null,null,null,null,null,null,null,null,null,null,null,null,null,null,null,null,null,null,null,null,null,null,null,null,null,null,null,null,null,null,null,null,null,null,null,null,null,null,null,null,null,null,null,null,null,null,null,null,null,null,null,null,null,null,null,null,null,null,null,null,null,null,null,{"$f":"BM133","v":0}]
[null,null,null,null,null,null,null,null,null,null,null,null,null,null,null,null,null,null,null,null,null,null,null,null,null,null,null,null,null,null,null,null,null,null,null,null,null,null,null,null,null,null,null,null,null,null,null,null,null,null,null,null,null,null,null,null,null,null,null,null,null,null,null,null,null,null,null,null,null,null,null,null,null,null,null,null,null,null,null,null,null,null,null,null,null,null,null,null,null,null,null,null,{"$f":"BM135","v":0}]
[null,null,null,null,null,null,null,null,null,null,null,null,null,null,null,null,null,null,null,null,null,null,null,null,null,null,null,null,null,null,null,null,null,null,null,null,null,null,null,null,null,null,null,null,null,null,null,null,null,null,null,null,null,null,null,null,null,null,null,null,null,null,null,null,null,null,null,null,null,null,null,null,null,null,null,null,null,null,null,null,null,null,null,null,null,null,null,null,null,null,null,null,{"$f":"BM137","v":0}]
[null,null,null,null,null,null,null,null,null,null,null,null,null,null,null,null,null,null,null,null,null,null,null,null,null,null,null,null,null,null,null,null,null,null,null,null,null,null,null,null,null,null,null,null,null,null,null,null,null,null,null,null,null,null,null,null,null,null,null,null,null,null,null,null,null,null,null,null,null,null,null,null,null,null,null,null,null,null,null,null,null,null,null,null,null,null,null,null,null,null,null,null,{"$f":"BM139","v":0}]
[null,null,null,null,null,null,null,null,null,null,null,null,null,null,null,null,null,null,null,null,null,null,null,null,null,null,null,null,null,null,null,null,null,null,null,null,null,null,null,null,null,null,null,null,null,null,null,null,null,null,null,null,null,null,null,null,null,null,null,null,null,null,null,null,null,null,null,null,null,null,null,null,null,null,null,null,null,null,null,null,null,null,null,null,null,null,null,null,null,null,null,null,{"$f":"BM141","v":0}]
[null,null,null,null,null,null,null,null,null,null,null,null,null,null,null,null,null,null,null,null,null,null,null,null,null,null,null,null,null,null,null,null,null,null,null,null,null,null,null,null,null,null,null,null,null,null,null,null,null,null,null,null,null,null,null,null,null,null,null,null,null,null,null,null,null,null,null,null,null,null,null,null,null,null,null,null,null,null,null,null,null,null,null,null,null,null,null,null,null,null,null,null,{"$f":"BM143","v":0}]
[null,null,null,null,null,null,null,null,null,null,null,null,null,null,null,null,null,null,null,null,null,null,null,null,null,null,null,null,null,null,null,null,null,null,null,null,null,null,null,null,null,null,null,null,null,null,null,null,null,null,null,null,null,null,null,null,null,null,null,null,null,null,null,null,null,null,null,null,null,null,null,null,null,null,null,null,null,null,null,null,null,null,null,null,null,null,null,null,null,null,null,null,{"$f":"BM145","v":0}]

{"sheet":"記録台帳","index":5,"n_rows":1004,"n_cols":259,"rows_kept":1004,"cut":false,"hidden":false,"merged":[[0,3,0,4],[1,1,1,3],[0,1,0,2],[1,20,1,22],[0,20,0,22]]}
[null,"50音順",null,"50音順",null,"申込順",null,"点数順",null,"施設順",null,null,null,null,"削除番号",null,null,null,"削除理由",null,"削除する待機者"]
[null,{"$f":"NOW()","v":"2014-11-02T18:12:19.670"},null,null,"特別養護老人ホーム辰巳萬緑苑入居待機者名簿",null,null,null,null,null,null,null,null,null,null,null,"削除",null,null,null,{"$f":"IF(O2=\"\",\"\",VLOOKUP(O2,B4:F505,5))","v":""},null,null,null,null,null,null,null,null,null,null,null,null,null,null,null,null,null,null,null,null,null,null,null,null,null,null,null,null,null,null,null,null,null,null,null,null,null,null,null,null,null,null,null,null,null,null,null,null,null,null,null,null,null,null,null,null,null,null,null,null,null,null,null,null,null,null,null,null,null,null,null,null,null,null,null,null,null,null,null,null,null,null,null,null,null,null,null,null,null,null,null,null,null,null,null,null,null,null,null,null,null,null,null,null,null,null,null,null,null,null,null,null,null,null,null,null,null,null,null,null,null,null,null,null,null,null,null,null,null,null,null,null,null,null,null,null,null,null,null,null,null,null,null,null,null,null,null,null,null,null,null,null,null,null,null,null,null,null,null,null,null,null,null,"脳梗塞","心臓疾患","糖尿病","癌","認知症","脳挫傷","緑内障","大腿部骨折","脳内出血","呼吸器系疾患","腎臓疾患","リューマチ","うつ病","胆石","白内障","脊髄等損傷","高血圧症","喘息","肝炎・肝硬変","パーキンソン","統合失調症","尿管結石等","結核","変形性膝関節症","人工肛門処置","腸瘻","膀胱洗浄","導尿","ＩＶＨ","透析","尿カテーテル","看取り",216,217,218,219,220,221,222,223,224,225,226,227,228,229,230,231,232,233,234,235,236,237,238,239,240,241,242,243,244,245,246,247,248,249,250,251,252,253,254,255]
[]
[null,"番号","順位","総合点","受付年月日","本人氏名","フリガナ","性別","〒","住所","電話","生　年　月　日","介護度","介護保険証被保険者番号","保険者市町村名","連絡先\n家族氏名","予備","続柄","〒","住所","電話","携帯","概況報告","独居","自宅\n介護","施設\n入所\n入院中","施設\n入所\n入院中","予備","介護者\nなし","主介護者\n高齢障害\n疾病など","就労\nのため\n介護困難","身体的\n精神的\n負担大","居住環境\n事情から\n介護困難","退去を\n求められ\nている","障害者\n複数世帯","介護（協力）者の人数・続柄・頻度など","同居家族が介護協力困難である具体的理由","非同居家族が介護協力困難である具体的理由・居住地","居宅介護支援事業所","ショートステイ","事業所名","デイケア・デイサービス","事業所名","訪問看護・ヘルパー","事業所名","その他","既往歴\n持病・障害\n入院経緯","主事病院","インシュリン投与","在宅酸素療法","経管栄養","喀痰吸引","褥瘡処置","部位等","-","弱","中","強","-","弱","中","強","-","弱","中","強","-","弱","中","強","安定歩行","シルバーカー\n歩行器","つきそい支持\n手引き歩行","車椅子自力\n移譲・移動","移乗支援\n自力移動","抱えて移乗\n自力移動","抱えて移乗\n移動介助","寝たきり\nストレッチャー","ある","なし","曖昧","ある","なし","曖昧","人工肛門\n尿カテーテル",{"$f":"マスタ変更!F17","v":"自分で行く"},{"$f":"マスタ変更!I17","v":"失敗あるが\n自分でする"},{"$f":"マスタ変更!L17","v":"脱衣介助\n一部介助"},{"$f":"マスタ変更!O17","v":"お尻を拭く\n体の支持"},{"$f":"マスタ変更!R17","v":"抱えて移乗\nほぼ全介助"},{"$f":"マスタ変更!U17","v":"寝たまま\nおむつ交換"},"介助\n頻度","自分で行く","失敗はあるが\n自分でする","脱衣介助\n一部介助","お尻を拭く\n体の支持","抱えて移乗\nほぼ全介助","寝たまま\nおむつ交換","介助\n頻度","常食","おかゆ\n柔らか食","ミキサー食","経管栄養","半介助","ほぼ全介助","直接介助に\nかかる時間","ときどき","よくある","耐え難い","ときどき","よくある","耐え難い","ときどき","よくある","耐え難い","ときどき","よくある","耐え難い","ときどき","よくある","耐え難い","ときどき","よくある","耐え難い","ときどき","よくある","耐え難い","ときどき","よくある","耐え難い","ときどき","よくある","耐え難い","ときどき","よくある","耐え難い","ときどき","よくある","耐え難い","良い","やや悪い","悪い","その他の問題","近所なら\n自由に行動","家の中なら\n自由に行動","起きて生活\n屋外は補助","伝い歩き\n寝たり起きたり","介助あれば\n起きて生活","介助により\n寝たり起きたり","寝室中心\nの生活","離床しない","問題なし","遠い","ひどく遠い","聴力なし\n確認できない","年齢相応","かなり悪い\n半盲","失明","問題なし","なんとか通じる","かなり厳しい","ほぼ不可能","錯乱状態","身長","体重","本人月収","1ヶ月に本人と親族が\n支出できる限界金額","特別な\n事情","申し込み済施設1","申し込み済施設2","申し込み済施設3","申し込み済施設4","申し込み済施設5","申し込み済施設6","申し込み済施設7","申し込み済施設8","申し込み予定施設1","申し込み予定施設2","申し込み予定施設3","申し込み予定施設4","申し込み予定施設5","申し込み予定施設6","申し込み予定施設7","申し込み予定施設8",{"$f":"マスタ変更!F30","v":"脳梗塞"},{"$f":"マスタ変更!I30","v":"心臓疾患"},{"$f":"マスタ変更!L30","v":"糖尿病"},{"$f":"マスタ変更!O30","v":"癌"},{"$f":"マスタ変更!R30","v":"認知症"},{"$f":"マスタ変更!U30","v":"脳挫傷"},{"$f":"マスタ変更!X30","v":"緑内障"},{"$f":"マスタ変更!AA30","v":"大腿部骨折"},{"$f":"マスタ変更!F31","v":"脳内出血"},{"$f":"マスタ変更!I31","v":"呼吸器系疾患"},{"$f":"マスタ変更!L31","v":"腎臓疾患"},{"$f":"マスタ変更!O31","v":"リューマチ"},{"$f":"マスタ変更!R31","v":"うつ病"},{"$f":"マスタ変更!U31","v":"胆石"},{"$f":"マスタ変更!X31","v":"白内障"},{"$f":"マスタ変更!AA31","v":"脊髄等損傷"},{"$f":"マスタ変更!F32","v":"高血圧症"},{"$f":"マスタ変更!I32","v":"喘息"},{"$f":"マスタ変更!L32","v":"肝炎・肝硬変"},{"$f":"マスタ変更!O32","v":"パーキンソン"},{"$f":"マスタ変更!R32","v":"統合失調症"},{"$f":"マスタ変更!U32","v":"尿管結石等"},{"$f":"マスタ変更!X32","v":"結核"},{"$f":"マスタ変更!AA32","v":"変形性膝関節症"},{"$f":"マスタ変更!F13","v":"人工肛門処置"},{"$f":"マスタ変更!I13","v":"腸瘻"},{"$f":"マスタ変更!L13","v":"膀胱洗浄"},{"$f":"マスタ変更!O13","v":"導尿"},{"$f":"マスタ変更!R13","v":"ＩＶＨ"},{"$f":"マスタ変更!U13","v":"透析"},{"$f":"マスタ変更!X13","v":"尿カテーテル"},{"$f":"マスタ変更!AA13","v":"看取り"},"非常に多い",{"$f":"記入用!Q54","v":"やや多い"},{"$f":"記入用!T54","v":"少しあり"},{"$f":"記入用!W54","v":"なし"},{"$f":"記入用!N55","v":"６０％以上"},{"$f":"記入用!Q55","v":"５０％以上"},{"$f":"記入用!T55","v":"３０％以上"},{"$f":"記入用!W55","v":"３０％未満"},{"$f":"記入用!N57","v":"７０歳以上"},{"$f":"記入用!Q57","v":"６０歳以上"},{"$f":"記入用!T57","v":"６０歳未満"},{"$f":"記入用!N58","v":"重い"},{"$f":"記入用!Q58","v":"やや重い"},{"$f":"記入用!T58","v":"軽い"},{"$f":"記入用!W58","v":"なし"},{"$f":"記入用!N59","v":"介護困難"},{"$f":"記入用!Q59","v":"多少困難"},{"$f":"記入用!T59","v":"介護可能"},{"$f":"記入用!W59","v":"なし"},{"$f":"記入用!N60","v":"フルタイム\n高齢無職"},{"$f":"記入用!Q60","v":"４時間以上"},{"$f":"記入用!T60","v":"４時間未満"},{"$f":"記入用!W60","v":"なし"},{"$f":"記入用!N61","v":"常時介護"},{"$f":"記入用!Q61","v":"半日程度"},{"$f":"記入用!T61","v":"随時"},{"$f":"記入用!W61","v":"なし"},{"$f":"記入用!N62","v":"介護拒否"},{"$f":"記入用!Q62","v":"非常に消極的"},{"$f":"記入用!CB62","v":"直接介護に\nやや消極的"},{"$f":"記入用!CE62","v":"しっかり関わっている"},{"$f":"記入用!BV63","v":"ほとんどなし"},{"$f":"記入用!BY63","v":"随時あり"},{"$f":"記入用!CB63","v":"常時あり"},{"$f":"IN4","v":"ほとんどなし"},"随時あり","常時あり","ほとんどなし","随時あり","常時あり","独自点数"]
[null,null,null,null,null,null,null,null,null,null,null,null,null,null,null,null,null,null,null,null,null,null,null,null,null,null,null,null,null,null,null,null,null,null,null,null,null,null,null,null,null,null,null,null,null,null,null,null,null,null,null,null,null,null,null,null,null,null,null,null,null,null,null,null,null,null,null,null,null,null,null,null,null,null,null,null,null,null,null,null,null,null,null,null,null,null,null,null,null,null,null,null,null,null,null,null,null,null,null,null,null,null,null,null,null,null,null,null,null,null,null,null,null,null,null,null,null,null,null,null,null,null,null,null,null,null,null,null,null,null,null,null,null,null,null,null,null,null,null,null,null,null,null,null,null,null,null,null,null,null,null,null,null,null,null,null,null,null,null,null,null,null,null,null,null,null,null,null,null,null,null,null,null,null,null,null,null,null,null,null,null,null,null,null,null,null,null,null,null,null,null,null,null,null,null,null,null,null,null,null,null,null,null,null,null,null,null,null,null,null,null,null,null,null,null,null,null,null,null,null,null,null,null,null,null,null,null,null,null,null,null,null,null,null,null,null,null,null,null,null,null,null,null,null,null,null,null,null,null,null,null,null,null,null,null,null,null,null,"死亡"]
[null,null,null,null,null,null,null,null,null,null,null,null,null,null,null,null,null,null,null,null,null,null,null,null,null,null,null,null,null,null,null,null,null,null,null,null,null,null,null,null,null,null,null,null,null,null,null,null,null,null,null,null,null,null,null,null,null,null,null,null,null,null,null,null,null,null,null,null,null,null,null,null,null,null,null,null,null,null,null,null,null,null,null,null,null,null,null,null,null,null,null,null,null,null,null,null,null,null,null,null,null,null,null,null,null,null,null,null,null,null,null,null,null,null,null,null,null,null,null,null,null,null,null,null,null,null,null,null,null,null,null,null,null,null,null,null,null,null,null,null,null,null,null,null,null,null,null,null,null,null,null,null,null,null,null,null,null,null,null,null,null,null,null,null,null,null,null,null,null,null,null,null,null,null,null,null,null,null,null,null,null,null,null,null,null,null,null,null,null,null,null,null,null,null,null,null,null,null,null,null,null,null,null,null,null,null,null,null,null,null,null,null,null,null,null,null,null,null,null,null,null,null,null,null,null,null,null,null,null,null,null,null,null,null,null,null,null,null,null,null,null,null,null,null,null,null,null,null,null,null,null,null,null,null,null,null,null,null,"施設入所"]
[null,null,null,null,null,null,null,null,null,null,null,null,null,null,null,null,null,null,null,null,null,null,null,null,null,null,null,null,null,null,null,null,null,null,null,null,null,null,null,null,null,null,null,null,null,null,null,null,null,null,null,null,null,null,null,null,null,null,null,null,null,null,null,null,null,null,null,null,null,null,null,null,null,null,null,null,null,null,null,null,null,null,null,null,null,null,null,null,null,null,null,null,null,null,null,null,null,null,null,null,null,null,null,null,null,null,null,null,null,null,null,null,null,null,null,null,null,null,null,null,null,null,null,null,null,null,null,null,null,null,null,null,null,null,null,null,null,null,null,null,null,null,null,null,null,null,null,null,null,null,null,null,null,null,null,null,null,null,null,null,null,null,null,null,null,null,null,null,null,null,null,null,null,null,null,null,null,null,null,null,null,null,null,null,null,null,null,null,null,null,null,null,null,null,null,null,null,null,null,null,null,null,null,null,null,null,null,null,null,null,null,null,null,null,null,null,null,null,null,null,null,null,null,null,null,null,null,null,null,null,null,null,null,null,null,null,null,null,null,null,null,null,null,null,null,null,null,null,null,null,null,null,null,null,null,null,null,null,"重複"]
[null,null,null,null,null,null,null,null,null,null,null,null,null,null,null,null,null,null,null,null,null,null,null,null,null,null,null,null,null,null,null,null,null,null,null,null,null,null,null,null,null,null,null,null,null,null,null,null,null,null,null,null,null,null,null,null,null,null,null,null,null,null,null,null,null,null,null,null,null,null,null,null,null,null,null,null,null,null,null,null,null,null,null,null,null,null,null,null,null,null,null,null,null,null,null,null,null,null,null,null,null,null,null,null,null,null,null,null,null,null,null,null,null,null,null,null,null,null,null,null,null,null,null,null,null,null,null,null,null,null,null,null,null,null,null,null,null,null,null,null,null,null,null,null,null,null,null,null,null,null,null,null,null,null,null,null,null,null,null,null,null,null,null,null,null,null,null,null,null,null,null,null,null,null,null,null,null,null,null,null,null,null,null,null,null,null,null,null,null,null,null,null,null,null,null,null,null,null,null,null,null,null,null,null,null,null,null,null,null,null,null,null,null,null,null,null,null,null,null,null,null,null,null,null,null,null,null,null,null,null,null,null,null,null,null,null,null,null,null,null,null,null,null,null,null,null,null,null,null,null,null,null,null,null,null,null,null,null,"申込取り下げ"]
[null,null,null,null,null,null,null,null,null,null,null,null,null,null,null,null,null,null,null,null,null,null,null,null,null,null,null,null,null,null,null,null,null,null,null,null,null,null,null,null,null,null,null,null,null,null,null,null,null,null,null,null,null,null,null,null,null,null,null,null,null,null,null,null,null,null,null,null,null,null,null,null,null,null,null,null,null,null,null,null,null,null,null,null,null,null,null,null,null,null,null,null,null,null,null,null,null,null,null,null,null,null,null,null,null,null,null,null,null,null,null,null,null,null,null,null,null,null,null,null,null,null,null,null,null,null,null,null,null,null,null,null,null,null,null,null,null,null,null,null,null,null,null,null,null,null,null,null,null,null,null,null,null,null,null,null,null,null,null,null,null,null,null,null,null,null,null,null,null,null,null,null,null,null,null,null,null,null,null,null,null,null,null,null,null,null,null,null,null,null,null,null,null,null,null,null,null,null,null,null,null,null,null,null,null,null,null,null,null,null,null,null,null,null,null,null,null,null,null,null,null,null,null,null,null,null,null,null,null,null,null,null,null,null,null,null,null,null,null,null,null,null,null,null,null,null,null,null,null,null,null,null,null,null,null,null,null,null,"転居"]
[null,null,null,null,null,null,null,null,null,null,null,null,null,null,null,null,null,null,null,null,null,null,null,null,null,null,null,null,null,null,null,null,null,null,null,null,null,null,null,null,null,null,null,null,null,null,null,null,null,null,null,null,null,null,null,null,null,null,null,null,null,null,null,null,null,null,null,null,null,null,null,null,null,null,null,null,null,null,null,null,null,null,null,null,null,null,null,null,null,null,null,null,null,null,null,null,null,null,null,null,null,null,null,null,null,null,null,null,null,null,null,null,null,null,null,null,null,null,null,null,null,null,null,null,null,null,null,null,null,null,null,null,null,null,null,null,null,null,null,null,null,null,null,null,null,null,null,null,null,null,null,null,null,null,null,null,null,null,null,null,null,null,null,null,null,null,null,null,null,null,null,null,null,null,null,null,null,null,null,null,null,null,null,null,null,null,null,null,null,null,null,null,null,null,null,null,null,null,null,null,null,null,null,null,null,null,null,null,null,null,null,null,null,null,null,null,null,null,null,null,null,null,null,null,null,null,null,null,null,null,null,null,null,null,null,null,null,null,null,null,null,null,null,null,null,null,null,null,null,null,null,null,null,null,null,null,null,null,"連絡不能"]
[null,null,null,null,null,null,null,null,null,null,null,null,null,null,null,null,null,null,null,null,null,null,null,null,null,null,null,null,null,null,null,null,null,null,null,null,null,null,null,null,null,null,null,null,null,null,null,null,null,null,null,null,null,null,null,null,null,null,null,null,null,null,null,null,null,null,null,null,null,null,null,null,null,null,null,null,null,null,null,null,null,null,null,null,null,null,null,null,null,null,null,null,null,null,null,null,null,null,null,null,null,null,null,null,null,null,null,null,null,null,null,null,null,null,null,null,null,null,null,null,null,null,null,null,null,null,null,null,null,null,null,null,null,null,null,null,null,null,null,null,null,null,null,null,null,null,null,null,null,null,null,null,null,null,null,null,null,null,null,null,null,null,null,null,null,null,null,null,null,null,null,null,null,null,null,null,null,null,null,null,null,null,null,null,null,null,null,null,null,null,null,null,null,null,null,null,null,null,null,null,null,null,null,null,null,null,null,null,null,null,null,null,null,null,null,null,null,null,null,null,null,null,null,null,null,null,null,null,null,null,null,null,null,null,null,null,null,null,null,null,null,null,null,null,null,null,null,null,null,null,null,null,null,null,null,null,null,null,"その他"]
[]
[]
[]
[]
[]
[]
[]
[]
[]
[]
[]
[]
[]
[]
[]
[]
[]
[]
[]
[]
[]
[]
[]
[]
[]
[]
[]
[]
[]
[]
[]
[]
[]
[]
[]
[]
[]
[]
[]
[]
[]
[]
[]
[]
[]
[]
[]
[]
[]
[]
[]
[]
[]
[]
[]
[]
[]
[]
[]
[]
[]
[]
[]
[]
[]
[]
[]
[]
[]
[]
[]
[]
[]
[]
[]
[]
[]
[]
[]
[]
[]
[]
[]
[]
[]
[]
[]
[]
[]
[]
[]
[]
[]
[]
[]
[]
[]
[]
[]
[]
[]
[]
[]
[]
[]
[]
[]
[]
[]
[]
[]
[]
[]
[]
[]
[]
[]
[]
[]
[]
[]
[]
[]
[]
[]
[]
[]
[]
[]
[]
[]
[]
[]
[]
[]
[]
[]
[]
[]
[]
[]
[]
[]
[]
[]
[]
[]
[]
[]
[]
[]
[]
[]
[]
[]
[]
[]
[]
[]
[]
[]
[]
[]
[]
[]
[]
[]
[]
[]
[]
[]
[]
[]
[]
[]
[]
[]
[]
[]
[]
[]
[]
[]
[]
[]
[]
[]
[]
[]
[]
[]
[]
[]
[]
[]
[]
[]
[]
[]
[]
[]
[]
[]
[]
[]
[]
[]
[]
[]
[]
[]
[]
[]
[]
[]
[]
[]
[]
[]
[]
[]
[]
[]
[]
[]
[]
[]
[]
[]
[]
[]
[]
[]
[]
[]
[]
[]
[]
[]
[]
[]
[]
[]
[]
[]
[]
[]
[]
[]
[]
[]
[]
[]
[]
[]
[]
[]
[]
[]
[]
[]
[]
[]
[]
[]
[]
[]
[]
[]
[]
[]
[]
[]
[]
[]
[]
[]
[]
[]
[]
[]
[]
[]
[]
[]
[]
[]
[]
[]
[]
[]
[]
[]
[]
[]
[]
[]
[]
[]
[]
[]
[]
[]
[]
[]
[]
[]
[]
[]
[]
[]
[]
[]
[]
[]
[]
[]
[]
[]
[]
[]
[]
[]
[]
[]
[]
[]
[]
[]
[]
[]
[]
[]
[]
[]
[]
[]
[]
[]
[]
[]
[]
[]
[]
[]
[]
[]
[]
[]
[]
[]
[]
[]
[]
[]
[]
[]
[]
[]
[]
[]
[]
[]
[]
[]
[]
[]
[]
[]
[]
[]
[]
[]
[]
[]
[]
[]
[]
[]
[]
[]
[]
[]
[]
[]
[]
[]
[]
[]
[]
[]
[]
[]
[]
[]
[]
[]
[]
[]
[]
[]
[]
[]
[]
[]
[]
[]
[]
[]
[]
[]
[]
[]
[]
[]
[]
[]
[]
[]
[]
[]
[]
[]
[]
[]
[]
[]
[]
[]
[]
[]
[]
[]
[]
[]
[]
[]
[]
[]
[]
[]
[]
[]
[]
[]
[]
[]
[]
[]
[]
[]
[]
[]
[]
[]
[]
[]
[]
[]
[]
[]
[]
[]
[]
[]
[]
[]
[]
[]
[]
[]
[]
[]
[]
[]
[]
[]
[]
[]
[]
[]
[]
[]
[]
[]
[]
[]
[]
[]
[]
[]
[]
[]
[]
[]
[]
[]
[]
[]
[]
[]
[]
[]
[]
[]
[]
[]
[]
[]
[]
[]
[]
[]
[]
[]
[]
[]
[]
[]
[]
[]
[]
[]
[]
[]
[]
[]
[]
[]
[]
[]
[]
[]
[]
[]
[]
[]
[]
[]
[]
[]
[]
[]
[]
[]
[]
[]
[]
[]
[]
[]
[]
[]
[]
[]
[]
[]
[]
[]
[]
[]
[]
[]
[]
[]
[]
[]
[]
[null,null,null,null,null,null,null,null,null,null,null,null,null,null,null,null,null,null,null,null,null,null,{"$f":"IF(E580=\"\",0,(NOW()-E580)/(NOW()-MIN($E$5:$E$1004))*20)","v":"00:00:00"},{"$f":"IF(OR(N580=\"自立\",N580=\"要支援\",N580=\"未申請\"),0,N580)+(IF(OR(O580=\"自立\",O580=\"要支援\"),0,O580))*2","v":0},{"$f":"P580*(P580-1)","v":0},{"$f":"Q580*4","v":0},{"$f":"IF(R580=\"\",0,((5-R580)*6))","v":0},{"$f":"IF(L580=\"市原市\",5)+IF(M580=\"○\",3)","v":0}]
[null,null,null,null,null,null,null,null,null,null,null,null,null,null,null,null,null,null,null,null,null,null,"00:00:00",0,{"$f":"P581*(P581-1)","v":0},{"$f":"Q581*4","v":0},{"$f":"IF(R581=\"\",0,((5-R581)*6))","v":0},{"$f":"IF(L581=\"市原市\",5)+IF(M581=\"○\",3)","v":0}]
[null,null,null,null,null,null,null,null,null,null,null,null,null,null,null,null,null,null,null,null,null,null,"00:00:00",0,0,0,0,0]
[null,null,null,null,null,null,null,null,null,null,null,null,null,null,null,null,null,null,null,null,null,null,"00:00:00",0,0,0,0,0]
[null,null,null,null,null,null,null,null,null,null,null,null,null,null,null,null,null,null,null,null,null,null,"00:00:00",0,0,0,0,0]
[null,null,null,null,null,null,null,null,null,null,null,null,null,null,null,null,null,null,null,null,null,null,"00:00:00",0,0,0,0,0]
[null,null,null,null,null,null,null,null,null,null,null,null,null,null,null,null,null,null,null,null,null,null,"00:00:00",0,0,0,0,0]
[null,null,null,null,null,null,null,null,null,null,null,null,null,null,null,null,null,null,null,null,null,null,"00:00:00",0,0,0,0,0]
[null,null,null,null,null,null,null,null,null,null,null,null,null,null,null,null,null,null,null,null,null,null,"00:00:00",0,0,0,0,0]
[null,null,null,null,null,null,null,null,null,null,null,null,null,null,null,null,null,null,null,null,null,null,"00:00:00",0,0,0,0,0]
[null,null,null,null,null,null,null,null,null,null,null,null,null,null,null,null,null,null,null,null,null,null,"00:00:00",0,0,0,0,0]
[null,null,null,null,null,null,null,null,null,null,null,null,null,null,null,null,null,null,null,null,null,null,"00:00:00",0,0,0,0,0]
[null,null,null,null,null,null,null,null,null,null,null,null,null,null,null,null,null,null,null,null,null,null,"00:00:00",0,0,0,0,0]
[null,null,null,null,null,null,null,null,null,null,null,null,null,null,null,null,null,null,null,null,null,null,"00:00:00",0,0,0,0,0]
[null,null,null,null,null,null,null,null,null,null,null,null,null,null,null,null,null,null,null,null,null,null,"00:00:00",0,0,0,0,0]
[null,null,null,null,null,null,null,null,null,null,null,null,null,null,null,null,null,null,null,null,null,null,"00:00:00",0,0,0,0,0]
[null,null,null,null,null,null,null,null,null,null,null,null,null,null,null,null,null,null,null,null,null,null,"00:00:00",0,0,0,0,0]
[null,null,null,null,null,null,null,null,null,null,null,null,null,null,null,null,null,null,null,null,null,null,"00:00:00",0,0,0,0,0]
[null,null,null,null,null,null,null,null,null,null,null,null,null,null,null,null,null,null,null,null,null,null,"00:00:00",0,0,0,0,0]
[null,null,null,null,null,null,null,null,null,null,null,null,null,null,null,null,null,null,null,null,null,null,"00:00:00",0,0,0,0,0]
[null,null,null,null,null,null,null,null,null,null,null,null,null,null,null,null,null,null,null,null,null,null,"00:00:00",0,0,0,0,0]
[null,null,null,null,null,null,null,null,null,null,null,null,null,null,null,null,null,null,null,null,null,null,"00:00:00",0,0,0,0,0]
[null,null,null,null,null,null,null,null,null,null,null,null,null,null,null,null,null,null,null,null,null,null,"00:00:00",0,0,0,0,0]
[null,null,null,null,null,null,null,null,null,null,null,null,null,null,null,null,null,null,null,null,null,null,"00:00:00",0,0,0,0,0]
[null,null,null,null,null,null,null,null,null,null,null,null,null,null,null,null,null,null,null,null,null,null,"00:00:00",0,0,0,0,0]
[null,null,null,null,null,null,null,null,null,null,null,null,null,null,null,null,null,null,null,null,null,null,"00:00:00",0,0,0,0,0]
[null,null,null,null,null,null,null,null,null,null,null,null,null,null,null,null,null,null,null,null,null,null,"00:00:00",0,0,0,0,0]
[null,null,null,null,null,null,null,null,null,null,null,null,null,null,null,null,null,null,null,null,null,null,{"$f":"IF(E607=\"\",0,(NOW()-E607)/(NOW()-MIN($E$5:$E$1004))*20)","v":"00:00:00"},0,0,0,0,0]
[null,null,null,null,null,null,null,null,null,null,null,null,null,null,null,null,null,null,null,null,null,null,"00:00:00",0,0,0,0,0]
[null,null,null,null,null,null,null,null,null,null,null,null,null,null,null,null,null,null,null,null,null,null,"00:00:00",0,0,0,0,0]
[null,null,null,null,null,null,null,null,null,null,null,null,null,null,null,null,null,null,null,null,null,null,"00:00:00",0,0,0,0,0]
[null,null,null,null,null,null,null,null,null,null,null,null,null,null,null,null,null,null,null,null,null,null,"00:00:00",0,0,0,0,0]
[null,null,null,null,null,null,null,null,null,null,null,null,null,null,null,null,null,null,null,null,null,null,"00:00:00",0,0,0,0,0]
[null,null,null,null,null,null,null,null,null,null,null,null,null,null,null,null,null,null,null,null,null,null,"00:00:00",0,0,0,0,0]
[null,null,null,null,null,null,null,null,null,null,null,null,null,null,null,null,null,null,null,null,null,null,"00:00:00",0,0,0,0,0]
[null,null,null,null,null,null,null,null,null,null,null,null,null,null,null,null,null,null,null,null,null,null,"00:00:00",0,0,0,0,0]
[null,null,null,null,null,null,null,null,null,null,null,null,null,null,null,null,null,null,null,null,null,null,"00:00:00",0,0,0,0,0]
[null,null,null,null,null,null,null,null,null,null,null,null,null,null,null,null,null,null,null,null,null,null,"00:00:00",0,0,0,0,0]
[null,null,null,null,null,null,null,null,null,null,null,null,null,null,null,null,null,null,null,null,null,null,"00:00:00",0,0,0,0,0]
[null,null,null,null,null,null,null,null,null,null,null,null,null,null,null,null,null,null,null,null,null,null,"00:00:00",0,0,0,0,0]
[null,null,null,null,null,null,null,null,null,null,null,null,null,null,null,null,null,null,null,null,null,null,"00:00:00",0,0,0,0,0]
[null,null,null,null,null,null,null,null,null,null,null,null,null,null,null,null,null,null,null,null,null,null,"00:00:00",0,0,0,0,0]
[null,null,null,null,null,null,null,null,null,null,null,null,null,null,null,null,null,null,null,null,null,null,"00:00:00",0,0,0,0,0]
[null,null,null,null,null,null,null,null,null,null,null,null,null,null,null,null,null,null,null,null,null,null,"00:00:00",0,0,0,0,0]
[null,null,null,null,null,null,null,null,null,null,null,null,null,null,null,null,null,null,null,null,null,null,"00:00:00",0,0,0,0,0]
[null,null,null,null,null,null,null,null,null,null,null,null,null,null,null,null,null,null,null,null,null,null,"00:00:00",0,0,0,0,0]
[null,null,null,null,null,null,null,null,null,null,null,null,null,null,null,null,null,null,null,null,null,null,"00:00:00",{"$f":"IF(OR(N626=\"自立\",N626=\"要支援\",N626=\"未申請\"),0,N626)+(IF(OR(O626=\"自立\",O626=\"要支援\"),0,O626))*2","v":0},0,0,0,0]
[null,null,null,null,null,null,null,null,null,null,null,null,null,null,null,null,null,null,null,null,null,null,"00:00:00",0,0,0,0,0]
[null,null,null,null,null,null,null,null,null,null,null,null,null,null,null,null,null,null,null,null,null,null,"00:00:00",0,0,0,0,0]
[null,null,null,null,null,null,null,null,null,null,null,null,null,null,null,null,null,null,null,null,null,null,"00:00:00",0,0,0,0,0]
[null,null,null,null,null,null,null,null,null,null,null,null,null,null,null,null,null,null,null,null,null,null,"00:00:00",0,0,0,0,0]
[null,null,null,null,null,null,null,null,null,null,null,null,null,null,null,null,null,null,null,null,null,null,"00:00:00",0,0,0,0,0]
[null,null,null,null,null,null,null,null,null,null,null,null,null,null,null,null,null,null,null,null,null,null,"00:00:00",0,0,0,0,0]
[null,null,null,null,null,null,null,null,null,null,null,null,null,null,null,null,null,null,null,null,null,null,"00:00:00",0,0,0,0,0]
[null,null,null,null,null,null,null,null,null,null,null,null,null,null,null,null,null,null,null,null,null,null,"00:00:00",0,0,0,0,0]
[null,null,null,null,null,null,null,null,null,null,null,null,null,null,null,null,null,null,null,null,null,null,"00:00:00",0,0,0,0,0]
[null,null,null,null,null,null,null,null,null,null,null,null,null,null,null,null,null,null,null,null,null,null,"00:00:00",0,0,0,0,0]
[null,null,null,null,null,null,null,null,null,null,null,null,null,null,null,null,null,null,null,null,null,null,"00:00:00",0,0,0,0,0]
[null,null,null,null,null,null,null,null,null,null,null,null,null,null,null,null,null,null,null,null,null,null,"00:00:00",0,0,0,0,0]
[null,null,null,null,null,null,null,null,null,null,null,null,null,null,null,null,null,null,null,null,null,null,"00:00:00",0,0,0,0,0]
[null,null,null,null,null,null,null,null,null,null,null,null,null,null,null,null,null,null,null,null,null,null,"00:00:00",0,0,0,0,0]
[null,null,null,null,null,null,null,null,null,null,null,null,null,null,null,null,null,null,null,null,null,null,"00:00:00",0,0,0,0,0]
[null,null,null,null,null,null,null,null,null,null,null,null,null,null,null,null,null,null,null,null,null,null,"00:00:00",0,0,0,0,0]
[null,null,null,null,null,null,null,null,null,null,null,null,null,null,null,null,null,null,null,null,null,null,"00:00:00",0,0,0,0,0]
[null,null,null,null,null,null,null,null,null,null,null,null,null,null,null,null,null,null,null,null,null,null,"00:00:00",0,0,0,0,0]
[null,null,null,null,null,null,null,null,null,null,null,null,null,null,null,null,null,null,null,null,null,null,"00:00:00",0,{"$f":"P645*(P645-1)","v":0},{"$f":"Q645*4","v":0},{"$f":"IF(R645=\"\",0,((5-R645)*6))","v":0},{"$f":"IF(L645=\"市原市\",5)+IF(M645=\"○\",3)","v":0}]
[null,null,null,null,null,null,null,null,null,null,null,null,null,null,null,null,null,null,null,null,null,null,"00:00:00",0,0,0,0,0]
[null,null,null,null,null,null,null,null,null,null,null,null,null,null,null,null,null,null,null,null,null,null,"00:00:00",0,0,0,0,0]
[null,null,null,null,null,null,null,null,null,null,null,null,null,null,null,null,null,null,null,null,null,null,"00:00:00",0,0,0,0,0]
[null,null,null,null,null,null,null,null,null,null,null,null,null,null,null,null,null,null,null,null,null,null,"00:00:00",0,0,0,0,0]
[null,null,null,null,null,null,null,null,null,null,null,null,null,null,null,null,null,null,null,null,null,null,"00:00:00",0,0,0,0,0]
[null,null,null,null,null,null,null,null,null,null,null,null,null,null,null,null,null,null,null,null,null,null,"00:00:00",0,0,0,0,0]
[null,null,null,null,null,null,null,null,null,null,null,null,null,null,null,null,null,null,null,null,null,null,"00:00:00",0,0,0,0,0]
[null,null,null,null,null,null,null,null,null,null,null,null,null,null,null,null,null,null,null,null,null,null,"00:00:00",0,0,0,0,0]
[null,null,null,null,null,null,null,null,null,null,null,null,null,null,null,null,null,null,null,null,null,null,"00:00:00",0,0,0,0,0]
[null,null,null,null,null,null,null,null,null,null,null,null,null,null,null,null,null,null,null,null,null,null,"00:00:00",0,0,0,0,0]
[null,null,null,null,null,null,null,null,null,null,null,null,null,null,null,null,null,null,null,null,null,null,"00:00:00",0,0,0,0,0]
[null,null,null,null,null,null,null,null,null,null,null,null,null,null,null,null,null,null,null,null,null,null,"00:00:00",0,0,0,0,0]
[null,null,null,null,null,null,null,null,null,null,null,null,null,null,null,null,null,null,null,null,null,null,"00:00:00",0,0,0,0,0]
[null,null,null,null,null,null,null,null,null,null,null,null,null,null,null,null,null,null,null,null,null,null,"00:00:00",0,0,0,0,0]
[null,null,null,null,null,null,null,null,null,null,null,null,null,null,null,null,null,null,null,null,null,null,"00:00:00",0,0,0,0,0]
[null,null,null,null,null,null,null,null,null,null,null,null,null,null,null,null,null,null,null,null,null,null,"00:00:00",0,0,0,0,0]
[null,null,null,null,null,null,null,null,null,null,null,null,null,null,null,null,null,null,null,null,null,null,"00:00:00",0,0,0,0,0]
[null,null,null,null,null,null,null,null,null,null,null,null,null,null,null,null,null,null,null,null,null,null,"00:00:00",0,0,0,0,0]
[null,null,null,null,null,null,null,null,null,null,null,null,null,null,null,null,null,null,null,null,null,null,"00:00:00",0,0,0,0,0]
[null,null,null,null,null,null,null,null,null,null,null,null,null,null,null,null,null,null,null,null,null,null,"00:00:00",0,0,0,0,0]
[null,null,null,null,null,null,null,null,null,null,null,null,null,null,null,null,null,null,null,null,null,null,"00:00:00",0,0,0,0,0]
[null,null,null,null,null,null,null,null,null,null,null,null,null,null,null,null,null,null,null,null,null,null,"00:00:00",0,0,0,0,0]
[null,null,null,null,null,null,null,null,null,null,null,null,null,null,null,null,null,null,null,null,null,null,"00:00:00",0,0,0,0,0]
[null,null,null,null,null,null,null,null,null,null,null,null,null,null,null,null,null,null,null,null,null,null,"00:00:00",0,0,0,0,0]
[null,null,null,null,null,null,null,null,null,null,null,null,null,null,null,null,null,null,null,null,null,null,"00:00:00",0,0,0,0,0]
[null,null,null,null,null,null,null,null,null,null,null,null,null,null,null,null,null,null,null,null,null,null,{"$f":"IF(E671=\"\",0,(NOW()-E671)/(NOW()-MIN($E$5:$E$1004))*20)","v":"00:00:00"},0,0,0,0,0]
[null,null,null,null,null,null,null,null,null,null,null,null,null,null,null,null,null,null,null,null,null,null,"00:00:00",0,0,0,0,0]
[null,null,null,null,null,null,null,null,null,null,null,null,null,null,null,null,null,null,null,null,null,null,"00:00:00",0,0,0,0,0]
[null,null,null,null,null,null,null,null,null,null,null,null,null,null,null,null,null,null,null,null,null,null,"00:00:00",0,0,0,0,0]
[null,null,null,null,null,null,null,null,null,null,null,null,null,null,null,null,null,null,null,null,null,null,"00:00:00",0,0,0,0,0]
[null,null,null,null,null,null,null,null,null,null,null,null,null,null,null,null,null,null,null,null,null,null,"00:00:00",0,0,0,0,0]
[null,null,null,null,null,null,null,null,null,null,null,null,null,null,null,null,null,null,null,null,null,null,"00:00:00",0,0,0,0,0]
[null,null,null,null,null,null,null,null,null,null,null,null,null,null,null,null,null,null,null,null,null,null,"00:00:00",0,0,0,0,0]
[null,null,null,null,null,null,null,null,null,null,null,null,null,null,null,null,null,null,null,null,null,null,"00:00:00",0,0,0,0,0]
[null,null,null,null,null,null,null,null,null,null,null,null,null,null,null,null,null,null,null,null,null,null,"00:00:00",0,0,0,0,0]
[null,null,null,null,null,null,null,null,null,null,null,null,null,null,null,null,null,null,null,null,null,null,"00:00:00",0,0,0,0,0]
[null,null,null,null,null,null,null,null,null,null,null,null,null,null,null,null,null,null,null,null,null,null,"00:00:00",0,0,0,0,0]
[null,null,null,null,null,null,null,null,null,null,null,null,null,null,null,null,null,null,null,null,null,null,"00:00:00",0,0,0,0,0]
[null,null,null,null,null,null,null,null,null,null,null,null,null,null,null,null,null,null,null,null,null,null,"00:00:00",0,0,0,0,0]
[null,null,null,null,null,null,null,null,null,null,null,null,null,null,null,null,null,null,null,null,null,null,"00:00:00",0,0,0,0,0]
[null,null,null,null,null,null,null,null,null,null,null,null,null,null,null,null,null,null,null,null,null,null,"00:00:00",0,0,0,0,0]
[null,null,null,null,null,null,null,null,null,null,null,null,null,null,null,null,null,null,null,null,null,null,"00:00:00",0,0,0,0,0]
[null,null,null,null,null,null,null,null,null,null,null,null,null,null,null,null,null,null,null,null,null,null,"00:00:00",0,0,0,0,0]
[null,null,null,null,null,null,null,null,null,null,null,null,null,null,null,null,null,null,null,null,null,null,"00:00:00",0,0,0,0,0]
[null,null,null,null,null,null,null,null,null,null,null,null,null,null,null,null,null,null,null,null,null,null,"00:00:00",{"$f":"IF(OR(N690=\"自立\",N690=\"要支援\",N690=\"未申請\"),0,N690)+(IF(OR(O690=\"自立\",O690=\"要支援\"),0,O690))*2","v":0},0,0,0,0]
[null,null,null,null,null,null,null,null,null,null,null,null,null,null,null,null,null,null,null,null,null,null,"00:00:00",0,0,0,0,0]
[null,null,null,null,null,null,null,null,null,null,null,null,null,null,null,null,null,null,null,null,null,null,"00:00:00",0,0,0,0,0]
[null,null,null,null,null,null,null,null,null,null,null,null,null,null,null,null,null,null,null,null,null,null,"00:00:00",0,0,0,0,0]
[null,null,null,null,null,null,null,null,null,null,null,null,null,null,null,null,null,null,null,null,null,null,"00:00:00",0,0,0,0,0]
[null,null,null,null,null,null,null,null,null,null,null,null,null,null,null,null,null,null,null,null,null,null,"00:00:00",0,0,0,0,0]
[null,null,null,null,null,null,null,null,null,null,null,null,null,null,null,null,null,null,null,null,null,null,"00:00:00",0,0,0,0,0]
[null,null,null,null,null,null,null,null,null,null,null,null,null,null,null,null,null,null,null,null,null,null,"00:00:00",0,0,0,0,0]
[null,null,null,null,null,null,null,null,null,null,null,null,null,null,null,null,null,null,null,null,null,null,"00:00:00",0,0,0,0,0]
[null,null,null,null,null,null,null,null,null,null,null,null,null,null,null,null,null,null,null,null,null,null,"00:00:00",0,0,0,0,0]
[null,null,null,null,null,null,null,null,null,null,null,null,null,null,null,null,null,null,null,null,null,null,"00:00:00",0,0,0,0,0]
[null,null,null,null,null,null,null,null,null,null,null,null,null,null,null,null,null,null,null,null,null,null,"00:00:00",0,0,0,0,0]
[null,null,null,null,null,null,null,null,null,null,null,null,null,null,null,null,null,null,null,null,null,null,"00:00:00",0,0,0,0,0]
[null,null,null,null,null,null,null,null,null,null,null,null,null,null,null,null,null,null,null,null,null,null,"00:00:00",0,0,0,0,0]
[null,null,null,null,null,null,null,null,null,null,null,null,null,null,null,null,null,null,null,null,null,null,"00:00:00",0,0,0,0,0]
[null,null,null,null,null,null,null,null,null,null,null,null,null,null,null,null,null,null,null,null,null,null,"00:00:00",0,0,0,0,0]
[null,null,null,null,null,null,null,null,null,null,null,null,null,null,null,null,null,null,null,null,null,null,"00:00:00",0,0,0,0,0]
[null,null,null,null,null,null,null,null,null,null,null,null,null,null,null,null,null,null,null,null,null,null,"00:00:00",0,0,0,0,0]
[null,null,null,null,null,null,null,null,null,null,null,null,null,null,null,null,null,null,null,null,null,null,"00:00:00",0,0,0,0,0]
[null,null,null,null,null,null,null,null,null,null,null,null,null,null,null,null,null,null,null,null,null,null,"00:00:00",0,{"$f":"P709*(P709-1)","v":0},{"$f":"Q709*4","v":0},{"$f":"IF(R709=\"\",0,((5-R709)*6))","v":0},{"$f":"IF(L709=\"市原市\",5)+IF(M709=\"○\",3)","v":0}]
[null,null,null,null,null,null,null,null,null,null,null,null,null,null,null,null,null,null,null,null,null,null,"00:00:00",0,0,0,0,0]
[null,null,null,null,null,null,null,null,null,null,null,null,null,null,null,null,null,null,null,null,null,null,"00:00:00",0,0,0,0,0]
[null,null,null,null,null,null,null,null,null,null,null,null,null,null,null,null,null,null,null,null,null,null,"00:00:00",0,0,0,0,0]
[null,null,null,null,null,null,null,null,null,null,null,null,null,null,null,null,null,null,null,null,null,null,"00:00:00",0,0,0,0,0]
[null,null,null,null,null,null,null,null,null,null,null,null,null,null,null,null,null,null,null,null,null,null,"00:00:00",0,0,0,0,0]
[null,null,null,null,null,null,null,null,null,null,null,null,null,null,null,null,null,null,null,null,null,null,"00:00:00",0,0,0,0,0]
[null,null,null,null,null,null,null,null,null,null,null,null,null,null,null,null,null,null,null,null,null,null,"00:00:00",0,0,0,0,0]
[null,null,null,null,null,null,null,null,null,null,null,null,null,null,null,null,null,null,null,null,null,null,"00:00:00",0,0,0,0,0]
[null,null,null,null,null,null,null,null,null,null,null,null,null,null,null,null,null,null,null,null,null,null,"00:00:00",0,0,0,0,0]
[null,null,null,null,null,null,null,null,null,null,null,null,null,null,null,null,null,null,null,null,null,null,"00:00:00",0,0,0,0,0]
[null,null,null,null,null,null,null,null,null,null,null,null,null,null,null,null,null,null,null,null,null,null,"00:00:00",0,0,0,0,0]
[null,null,null,null,null,null,null,null,null,null,null,null,null,null,null,null,null,null,null,null,null,null,"00:00:00",0,0,0,0,0]
[null,null,null,null,null,null,null,null,null,null,null,null,null,null,null,null,null,null,null,null,null,null,"00:00:00",0,0,0,0,0]
[null,null,null,null,null,null,null,null,null,null,null,null,null,null,null,null,null,null,null,null,null,null,"00:00:00",0,0,0,0,0]
[null,null,null,null,null,null,null,null,null,null,null,null,null,null,null,null,null,null,null,null,null,null,"00:00:00",0,0,0,0,0]
[null,null,null,null,null,null,null,null,null,null,null,null,null,null,null,null,null,null,null,null,null,null,"00:00:00",0,0,0,0,0]
[null,null,null,null,null,null,null,null,null,null,null,null,null,null,null,null,null,null,null,null,null,null,"00:00:00",0,0,0,0,0]
[null,null,null,null,null,null,null,null,null,null,null,null,null,null,null,null,null,null,null,null,null,null,"00:00:00",0,0,0,0,0]
[null,null,null,null,null,null,null,null,null,null,null,null,null,null,null,null,null,null,null,null,null,null,"00:00:00",0,0,0,0,0]
[null,null,null,null,null,null,null,null,null,null,null,null,null,null,null,null,null,null,null,null,null,null,"00:00:00",0,0,0,0,0]
[null,null,null,null,null,null,null,null,null,null,null,null,null,null,null,null,null,null,null,null,null,null,"00:00:00",0,0,0,0,0]
[null,null,null,null,null,null,null,null,null,null,null,null,null,null,null,null,null,null,null,null,null,null,"00:00:00",0,0,0,0,0]
[null,null,null,null,null,null,null,null,null,null,null,null,null,null,null,null,null,null,null,null,null,null,"00:00:00",0,0,0,0,0]
[null,null,null,null,null,null,null,null,null,null,null,null,null,null,null,null,null,null,null,null,null,null,"00:00:00",0,0,0,0,0]
[null,null,null,null,null,null,null,null,null,null,null,null,null,null,null,null,null,null,null,null,null,null,"00:00:00",0,0,0,0,0]
[null,null,null,null,null,null,null,null,null,null,null,null,null,null,null,null,null,null,null,null,null,null,{"$f":"IF(E735=\"\",0,(NOW()-E735)/(NOW()-MIN($E$5:$E$1004))*20)","v":"00:00:00"},0,0,0,0,0]
[null,null,null,null,null,null,null,null,null,null,null,null,null,null,null,null,null,null,null,null,null,null,"00:00:00",0,0,0,0,0]
[null,null,null,null,null,null,null,null,null,null,null,null,null,null,null,null,null,null,null,null,null,null,"00:00:00",0,0,0,0,0]
[null,null,null,null,null,null,null,null,null,null,null,null,null,null,null,null,null,null,null,null,null,null,"00:00:00",0,0,0,0,0]
[null,null,null,null,null,null,null,null,null,null,null,null,null,null,null,null,null,null,null,null,null,null,"00:00:00",0,0,0,0,0]
[null,null,null,null,null,null,null,null,null,null,null,null,null,null,null,null,null,null,null,null,null,null,"00:00:00",0,0,0,0,0]
[null,null,null,null,null,null,null,null,null,null,null,null,null,null,null,null,null,null,null,null,null,null,"00:00:00",0,0,0,0,0]
[null,null,null,null,null,null,null,null,null,null,null,null,null,null,null,null,null,null,null,null,null,null,"00:00:00",0,0,0,0,0]
[null,null,null,null,null,null,null,null,null,null,null,null,null,null,null,null,null,null,null,null,null,null,"00:00:00",0,0,0,0,0]
[null,null,null,null,null,null,null,null,null,null,null,null,null,null,null,null,null,null,null,null,null,null,"00:00:00",0,0,0,0,0]
[null,null,null,null,null,null,null,null,null,null,null,null,null,null,null,null,null,null,null,null,null,null,"00:00:00",0,0,0,0,0]
[null,null,null,null,null,null,null,null,null,null,null,null,null,null,null,null,null,null,null,null,null,null,"00:00:00",0,0,0,0,0]
[null,null,null,null,null,null,null,null,null,null,null,null,null,null,null,null,null,null,null,null,null,null,"00:00:00",0,0,0,0,0]
[null,null,null,null,null,null,null,null,null,null,null,null,null,null,null,null,null,null,null,null,null,null,"00:00:00",0,0,0,0,0]
[null,null,null,null,null,null,null,null,null,null,null,null,null,null,null,null,null,null,null,null,null,null,"00:00:00",0,0,0,0,0]
[null,null,null,null,null,null,null,null,null,null,null,null,null,null,null,null,null,null,null,null,null,null,"00:00:00",0,0,0,0,0]
[null,null,null,null,null,null,null,null,null,null,null,null,null,null,null,null,null,null,null,null,null,null,"00:00:00",0,0,0,0,0]
[null,null,null,null,null,null,null,null,null,null,null,null,null,null,null,null,null,null,null,null,null,null,"00:00:00",0,0,0,0,0]
[null,null,null,null,null,null,null,null,null,null,null,null,null,null,null,null,null,null,null,null,null,null,"00:00:00",0,0,0,0,0]
[null,null,null,null,null,null,null,null,null,null,null,null,null,null,null,null,null,null,null,null,null,null,"00:00:00",{"$f":"IF(OR(N754=\"自立\",N754=\"要支援\",N754=\"未申請\"),0,N754)+(IF(OR(O754=\"自立\",O754=\"要支援\"),0,O754))*2","v":0},0,0,0,0]
[null,null,null,null,null,null,null,null,null,null,null,null,null,null,null,null,null,null,null,null,null,null,"00:00:00",0,0,0,0,0]
[null,null,null,null,null,null,null,null,null,null,null,null,null,null,null,null,null,null,null,null,null,null,"00:00:00",0,0,0,0,0]
[null,null,null,null,null,null,null,null,null,null,null,null,null,null,null,null,null,null,null,null,null,null,"00:00:00",0,0,0,0,0]
[null,null,null,null,null,null,null,null,null,null,null,null,null,null,null,null,null,null,null,null,null,null,"00:00:00",0,0,0,0,0]
[null,null,null,null,null,null,null,null,null,null,null,null,null,null,null,null,null,null,null,null,null,null,"00:00:00",0,0,0,0,0]
[null,null,null,null,null,null,null,null,null,null,null,null,null,null,null,null,null,null,null,null,null,null,"00:00:00",0,0,0,0,0]
[null,null,null,null,null,null,null,null,null,null,null,null,null,null,null,null,null,null,null,null,null,null,"00:00:00",0,0,0,0,0]
[null,null,null,null,null,null,null,null,null,null,null,null,null,null,null,null,null,null,null,null,null,null,"00:00:00",0,0,0,0,0]
[null,null,null,null,null,null,null,null,null,null,null,null,null,null,null,null,null,null,null,null,null,null,"00:00:00",0,0,0,0,0]
[null,null,null,null,null,null,null,null,null,null,null,null,null,null,null,null,null,null,null,null,null,null,"00:00:00",0,0,0,0,0]
[null,null,null,null,null,null,null,null,null,null,null,null,null,null,null,null,null,null,null,null,null,null,"00:00:00",0,0,0,0,0]
[null,null,null,null,null,null,null,null,null,null,null,null,null,null,null,null,null,null,null,null,null,null,"00:00:00",0,0,0,0,0]
[null,null,null,null,null,null,null,null,null,null,null,null,null,null,null,null,null,null,null,null,null,null,"00:00:00",0,0,0,0,0]
[null,null,null,null,null,null,null,null,null,null,null,null,null,null,null,null,null,null,null,null,null,null,"00:00:00",0,0,0,0,0]
[null,null,null,null,null,null,null,null,null,null,null,null,null,null,null,null,null,null,null,null,null,null,"00:00:00",0,0,0,0,0]
[null,null,null,null,null,null,null,null,null,null,null,null,null,null,null,null,null,null,null,null,null,null,"00:00:00",0,0,0,0,0]
[null,null,null,null,null,null,null,null,null,null,null,null,null,null,null,null,null,null,null,null,null,null,"00:00:00",0,0,0,0,0]
[null,null,null,null,null,null,null,null,null,null,null,null,null,null,null,null,null,null,null,null,null,null,"00:00:00",0,0,0,0,0]
[null,null,null,null,null,null,null,null,null,null,null,null,null,null,null,null,null,null,null,null,null,null,"00:00:00",0,{"$f":"P773*(P773-1)","v":0},{"$f":"Q773*4","v":0},{"$f":"IF(R773=\"\",0,((5-R773)*6))","v":0},{"$f":"IF(L773=\"市原市\",5)+IF(M773=\"○\",3)","v":0}]
[null,null,null,null,null,null,null,null,null,null,null,null,null,null,null,null,null,null,null,null,null,null,"00:00:00",0,0,0,0,0]
[null,null,null,null,null,null,null,null,null,null,null,null,null,null,null,null,null,null,null,null,null,null,"00:00:00",0,0,0,0,0]
[null,null,null,null,null,null,null,null,null,null,null,null,null,null,null,null,null,null,null,null,null,null,"00:00:00",0,0,0,0,0]
[null,null,null,null,null,null,null,null,null,null,null,null,null,null,null,null,null,null,null,null,null,null,"00:00:00",0,0,0,0,0]
[null,null,null,null,null,null,null,null,null,null,null,null,null,null,null,null,null,null,null,null,null,null,"00:00:00",0,0,0,0,0]
[null,null,null,null,null,null,null,null,null,null,null,null,null,null,null,null,null,null,null,null,null,null,"00:00:00",0,0,0,0,0]
[null,null,null,null,null,null,null,null,null,null,null,null,null,null,null,null,null,null,null,null,null,null,"00:00:00",0,0,0,0,0]
[null,null,null,null,null,null,null,null,null,null,null,null,null,null,null,null,null,null,null,null,null,null,"00:00:00",0,0,0,0,0]
[null,null,null,null,null,null,null,null,null,null,null,null,null,null,null,null,null,null,null,null,null,null,"00:00:00",0,0,0,0,0]
[null,null,null,null,null,null,null,null,null,null,null,null,null,null,null,null,null,null,null,null,null,null,"00:00:00",0,0,0,0,0]
[null,null,null,null,null,null,null,null,null,null,null,null,null,null,null,null,null,null,null,null,null,null,"00:00:00",0,0,0,0,0]
[null,null,null,null,null,null,null,null,null,null,null,null,null,null,null,null,null,null,null,null,null,null,"00:00:00",0,0,0,0,0]
[null,null,null,null,null,null,null,null,null,null,null,null,null,null,null,null,null,null,null,null,null,null,"00:00:00",0,0,0,0,0]
[null,null,null,null,null,null,null,null,null,null,null,null,null,null,null,null,null,null,null,null,null,null,"00:00:00",0,0,0,0,0]
[null,null,null,null,null,null,null,null,null,null,null,null,null,null,null,null,null,null,null,null,null,null,"00:00:00",0,0,0,0,0]
[null,null,null,null,null,null,null,null,null,null,null,null,null,null,null,null,null,null,null,null,null,null,"00:00:00",0,0,0,0,0]
[null,null,null,null,null,null,null,null,null,null,null,null,null,null,null,null,null,null,null,null,null,null,"00:00:00",0,0,0,0,0]
[null,null,null,null,null,null,null,null,null,null,null,null,null,null,null,null,null,null,null,null,null,null,"00:00:00",0,0,0,0,0]
[null,null,null,null,null,null,null,null,null,null,null,null,null,null,null,null,null,null,null,null,null,null,"00:00:00",0,0,0,0,0]
[null,null,null,null,null,null,null,null,null,null,null,null,null,null,null,null,null,null,null,null,null,null,"00:00:00",0,0,0,0,0]
[null,null,null,null,null,null,null,null,null,null,null,null,null,null,null,null,null,null,null,null,null,null,"00:00:00",0,0,0,0,0]
[null,null,null,null,null,null,null,null,null,null,null,null,null,null,null,null,null,null,null,null,null,null,"00:00:00",0,0,0,0,0]
[null,null,null,null,null,null,null,null,null,null,null,null,null,null,null,null,null,null,null,null,null,null,"00:00:00",0,0,0,0,0]
[null,null,null,null,null,null,null,null,null,null,null,null,null,null,null,null,null,null,null,null,null,null,"00:00:00",0,0,0,0,0]
[null,null,null,null,null,null,null,null,null,null,null,null,null,null,null,null,null,null,null,null,null,null,"00:00:00",0,0,0,0,0]
[null,null,null,null,null,null,null,null,null,null,null,null,null,null,null,null,null,null,null,null,null,null,{"$f":"IF(E799=\"\",0,(NOW()-E799)/(NOW()-MIN($E$5:$E$1004))*20)","v":"00:00:00"},0,0,0,0,0]
[null,null,null,null,null,null,null,null,null,null,null,null,null,null,null,null,null,null,null,null,null,null,"00:00:00",0,0,0,0,0]
[null,null,null,null,null,null,null,null,null,null,null,null,null,null,null,null,null,null,null,null,null,null,"00:00:00",0,0,0,0,0]
[null,null,null,null,null,null,null,null,null,null,null,null,null,null,null,null,null,null,null,null,null,null,"00:00:00",0,0,0,0,0]
[null,null,null,null,null,null,null,null,null,null,null,null,null,null,null,null,null,null,null,null,null,null,"00:00:00",0,0,0,0,0]
[null,null,null,null,null,null,null,null,null,null,null,null,null,null,null,null,null,null,null,null,null,null,"00:00:00",0,0,0,0,0]
[null,null,null,null,null,null,null,null,null,null,null,null,null,null,null,null,null,null,null,null,null,null,"00:00:00",0,0,0,0,0]
[null,null,null,null,null,null,null,null,null,null,null,null,null,null,null,null,null,null,null,null,null,null,"00:00:00",0,0,0,0,0]
[null,null,null,null,null,null,null,null,null,null,null,null,null,null,null,null,null,null,null,null,null,null,"00:00:00",0,0,0,0,0]
[null,null,null,null,null,null,null,null,null,null,null,null,null,null,null,null,null,null,null,null,null,null,"00:00:00",0,0,0,0,0]
[null,null,null,null,null,null,null,null,null,null,null,null,null,null,null,null,null,null,null,null,null,null,"00:00:00",0,0,0,0,0]
[null,null,null,null,null,null,null,null,null,null,null,null,null,null,null,null,null,null,null,null,null,null,"00:00:00",0,0,0,0,0]
[null,null,null,null,null,null,null,null,null,null,null,null,null,null,null,null,null,null,null,null,null,null,"00:00:00",0,0,0,0,0]
[null,null,null,null,null,null,null,null,null,null,null,null,null,null,null,null,null,null,null,null,null,null,"00:00:00",0,0,0,0,0]
[null,null,null,null,null,null,null,null,null,null,null,null,null,null,null,null,null,null,null,null,null,null,"00:00:00",0,0,0,0,0]
[null,null,null,null,null,null,null,null,null,null,null,null,null,null,null,null,null,null,null,null,null,null,"00:00:00",0,0,0,0,0]
[null,null,null,null,null,null,null,null,null,null,null,null,null,null,null,null,null,null,null,null,null,null,"00:00:00",0,0,0,0,0]
[null,null,null,null,null,null,null,null,null,null,null,null,null,null,null,null,null,null,null,null,null,null,"00:00:00",0,0,0,0,0]
[null,null,null,null,null,null,null,null,null,null,null,null,null,null,null,null,null,null,null,null,null,null,"00:00:00",0,0,0,0,0]
[null,null,null,null,null,null,null,null,null,null,null,null,null,null,null,null,null,null,null,null,null,null,"00:00:00",{"$f":"IF(OR(N818=\"自立\",N818=\"要支援\",N818=\"未申請\"),0,N818)+(IF(OR(O818=\"自立\",O818=\"要支援\"),0,O818))*2","v":0},0,0,0,0]
[null,null,null,null,null,null,null,null,null,null,null,null,null,null,null,null,null,null,null,null,null,null,"00:00:00",0,0,0,0,0]
[null,null,null,null,null,null,null,null,null,null,null,null,null,null,null,null,null,null,null,null,null,null,"00:00:00",0,0,0,0,0]
[null,null,null,null,null,null,null,null,null,null,null,null,null,null,null,null,null,null,null,null,null,null,"00:00:00",0,0,0,0,0]
[null,null,null,null,null,null,null,null,null,null,null,null,null,null,null,null,null,null,null,null,null,null,"00:00:00",0,0,0,0,0]
[null,null,null,null,null,null,null,null,null,null,null,null,null,null,null,null,null,null,null,null,null,null,"00:00:00",0,0,0,0,0]
[null,null,null,null,null,null,null,null,null,null,null,null,null,null,null,null,null,null,null,null,null,null,"00:00:00",0,0,0,0,0]
[null,null,null,null,null,null,null,null,null,null,null,null,null,null,null,null,null,null,null,null,null,null,"00:00:00",0,0,0,0,0]
[null,null,null,null,null,null,null,null,null,null,null,null,null,null,null,null,null,null,null,null,null,null,"00:00:00",0,0,0,0,0]
[null,null,null,null,null,null,null,null,null,null,null,null,null,null,null,null,null,null,null,null,null,null,"00:00:00",0,0,0,0,0]
[null,null,null,null,null,null,null,null,null,null,null,null,null,null,null,null,null,null,null,null,null,null,"00:00:00",0,0,0,0,0]
[null,null,null,null,null,null,null,null,null,null,null,null,null,null,null,null,null,null,null,null,null,null,"00:00:00",0,0,0,0,0]
[null,null,null,null,null,null,null,null,null,null,null,null,null,null,null,null,null,null,null,null,null,null,"00:00:00",0,0,0,0,0]
[null,null,null,null,null,null,null,null,null,null,null,null,null,null,null,null,null,null,null,null,null,null,"00:00:00",0,0,0,0,0]
[null,null,null,null,null,null,null,null,null,null,null,null,null,null,null,null,null,null,null,null,null,null,"00:00:00",0,0,0,0,0]
[null,null,null,null,null,null,null,null,null,null,null,null,null,null,null,null,null,null,null,null,null,null,"00:00:00",0,0,0,0,0]
[null,null,null,null,null,null,null,null,null,null,null,null,null,null,null,null,null,null,null,null,null,null,"00:00:00",0,0,0,0,0]
[null,null,null,null,null,null,null,null,null,null,null,null,null,null,null,null,null,null,null,null,null,null,"00:00:00",0,0,0,0,0]
[null,null,null,null,null,null,null,null,null,null,null,null,null,null,null,null,null,null,null,null,null,null,"00:00:00",0,0,0,0,0]
[null,null,null,null,null,null,null,null,null,null,null,null,null,null,null,null,null,null,null,null,null,null,"00:00:00",0,{"$f":"P837*(P837-1)","v":0},{"$f":"Q837*4","v":0},{"$f":"IF(R837=\"\",0,((5-R837)*6))","v":0},{"$f":"IF(L837=\"市原市\",5)+IF(M837=\"○\",3)","v":0}]
[null,null,null,null,null,null,null,null,null,null,null,null,null,null,null,null,null,null,null,null,null,null,"00:00:00",0,0,0,0,0]
[null,null,null,null,null,null,null,null,null,null,null,null,null,null,null,null,null,null,null,null,null,null,"00:00:00",0,0,0,0,0]
[null,null,null,null,null,null,null,null,null,null,null,null,null,null,null,null,null,null,null,null,null,null,"00:00:00",0,0,0,0,0]
[null,null,null,null,null,null,null,null,null,null,null,null,null,null,null,null,null,null,null,null,null,null,"00:00:00",0,0,0,0,0]
[null,null,null,null,null,null,null,null,null,null,null,null,null,null,null,null,null,null,null,null,null,null,"00:00:00",0,0,0,0,0]
[null,null,null,null,null,null,null,null,null,null,null,null,null,null,null,null,null,null,null,null,null,null,"00:00:00",0,0,0,0,0]
[null,null,null,null,null,null,null,null,null,null,null,null,null,null,null,null,null,null,null,null,null,null,"00:00:00",0,0,0,0,0]
[null,null,null,null,null,null,null,null,null,null,null,null,null,null,null,null,null,null,null,null,null,null,"00:00:00",0,0,0,0,0]
[null,null,null,null,null,null,null,null,null,null,null,null,null,null,null,null,null,null,null,null,null,null,"00:00:00",0,0,0,0,0]
[null,null,null,null,null,null,null,null,null,null,null,null,null,null,null,null,null,null,null,null,null,null,"00:00:00",0,0,0,0,0]
[null,null,null,null,null,null,null,null,null,null,null,null,null,null,null,null,null,null,null,null,null,null,"00:00:00",0,0,0,0,0]
[null,null,null,null,null,null,null,null,null,null,null,null,null,null,null,null,null,null,null,null,null,null,"00:00:00",0,0,0,0,0]
[null,null,null,null,null,null,null,null,null,null,null,null,null,null,null,null,null,null,null,null,null,null,"00:00:00",0,0,0,0,0]
[null,null,null,null,null,null,null,null,null,null,null,null,null,null,null,null,null,null,null,null,null,null,"00:00:00",0,0,0,0,0]
[null,null,null,null,null,null,null,null,null,null,null,null,null,null,null,null,null,null,null,null,null,null,"00:00:00",0,0,0,0,0]
[null,null,null,null,null,null,null,null,null,null,null,null,null,null,null,null,null,null,null,null,null,null,"00:00:00",0,0,0,0,0]
[null,null,null,null,null,null,null,null,null,null,null,null,null,null,null,null,null,null,null,null,null,null,"00:00:00",0,0,0,0,0]
[null,null,null,null,null,null,null,null,null,null,null,null,null,null,null,null,null,null,null,null,null,null,"00:00:00",0,0,0,0,0]
[null,null,null,null,null,null,null,null,null,null,null,null,null,null,null,null,null,null,null,null,null,null,"00:00:00",0,0,0,0,0]
[null,null,null,null,null,null,null,null,null,null,null,null,null,null,null,null,null,null,null,null,null,null,"00:00:00",0,0,0,0,0]
[null,null,null,null,null,null,null,null,null,null,null,null,null,null,null,null,null,null,null,null,null,null,"00:00:00",0,0,0,0,0]
[null,null,null,null,null,null,null,null,null,null,null,null,null,null,null,null,null,null,null,null,null,null,"00:00:00",0,0,0,0,0]
[null,null,null,null,null,null,null,null,null,null,null,null,null,null,null,null,null,null,null,null,null,null,"00:00:00",0,0,0,0,0]
[null,null,null,null,null,null,null,null,null,null,null,null,null,null,null,null,null,null,null,null,null,null,"00:00:00",0,0,0,0,0]
[null,null,null,null,null,null,null,null,null,null,null,null,null,null,null,null,null,null,null,null,null,null,"00:00:00",0,0,0,0,0]
[null,null,null,null,null,null,null,null,null,null,null,null,null,null,null,null,null,null,null,null,null,null,{"$f":"IF(E863=\"\",0,(NOW()-E863)/(NOW()-MIN($E$5:$E$1004))*20)","v":"00:00:00"},0,0,0,0,0]
[null,null,null,null,null,null,null,null,null,null,null,null,null,null,null,null,null,null,null,null,null,null,"00:00:00",0,0,0,0,0]
[null,null,null,null,null,null,null,null,null,null,null,null,null,null,null,null,null,null,null,null,null,null,"00:00:00",0,0,0,0,0]
[null,null,null,null,null,null,null,null,null,null,null,null,null,null,null,null,null,null,null,null,null,null,"00:00:00",0,0,0,0,0]
[null,null,null,null,null,null,null,null,null,null,null,null,null,null,null,null,null,null,null,null,null,null,"00:00:00",0,0,0,0,0]
[null,null,null,null,null,null,null,null,null,null,null,null,null,null,null,null,null,null,null,null,null,null,"00:00:00",0,0,0,0,0]
[null,null,null,null,null,null,null,null,null,null,null,null,null,null,null,null,null,null,null,null,null,null,"00:00:00",0,0,0,0,0]
[null,null,null,null,null,null,null,null,null,null,null,null,null,null,null,null,null,null,null,null,null,null,"00:00:00",0,0,0,0,0]
[null,null,null,null,null,null,null,null,null,null,null,null,null,null,null,null,null,null,null,null,null,null,"00:00:00",0,0,0,0,0]
[null,null,null,null,null,null,null,null,null,null,null,null,null,null,null,null,null,null,null,null,null,null,"00:00:00",0,0,0,0,0]
[null,null,null,null,null,null,null,null,null,null,null,null,null,null,null,null,null,null,null,null,null,null,"00:00:00",0,0,0,0,0]
[null,null,null,null,null,null,null,null,null,null,null,null,null,null,null,null,null,null,null,null,null,null,"00:00:00",0,0,0,0,0]
[null,null,null,null,null,null,null,null,null,null,null,null,null,null,null,null,null,null,null,null,null,null,"00:00:00",0,0,0,0,0]
[null,null,null,null,null,null,null,null,null,null,null,null,null,null,null,null,null,null,null,null,null,null,"00:00:00",0,0,0,0,0]
[null,null,null,null,null,null,null,null,null,null,null,null,null,null,null,null,null,null,null,null,null,null,"00:00:00",0,0,0,0,0]
[null,null,null,null,null,null,null,null,null,null,null,null,null,null,null,null,null,null,null,null,null,null,"00:00:00",0,0,0,0,0]
[null,null,null,null,null,null,null,null,null,null,null,null,null,null,null,null,null,null,null,null,null,null,"00:00:00",0,0,0,0,0]
[null,null,null,null,null,null,null,null,null,null,null,null,null,null,null,null,null,null,null,null,null,null,"00:00:00",0,0,0,0,0]
[null,null,null,null,null,null,null,null,null,null,null,null,null,null,null,null,null,null,null,null,null,null,"00:00:00",0,0,0,0,0]
[null,null,null,null,null,null,null,null,null,null,null,null,null,null,null,null,null,null,null,null,null,null,"00:00:00",{"$f":"IF(OR(N882=\"自立\",N882=\"要支援\",N882=\"未申請\"),0,N882)+(IF(OR(O882=\"自立\",O882=\"要支援\"),0,O882))*2","v":0},0,0,0,0]
[null,null,null,null,null,null,null,null,null,null,null,null,null,null,null,null,null,null,null,null,null,null,"00:00:00",0,0,0,0,0]
[null,null,null,null,null,null,null,null,null,null,null,null,null,null,null,null,null,null,null,null,null,null,"00:00:00",0,0,0,0,0]
[null,null,null,null,null,null,null,null,null,null,null,null,null,null,null,null,null,null,null,null,null,null,"00:00:00",0,0,0,0,0]
[null,null,null,null,null,null,null,null,null,null,null,null,null,null,null,null,null,null,null,null,null,null,"00:00:00",0,0,0,0,0]
[null,null,null,null,null,null,null,null,null,null,null,null,null,null,null,null,null,null,null,null,null,null,"00:00:00",0,0,0,0,0]
[null,null,null,null,null,null,null,null,null,null,null,null,null,null,null,null,null,null,null,null,null,null,"00:00:00",0,0,0,0,0]
[null,null,null,null,null,null,null,null,null,null,null,null,null,null,null,null,null,null,null,null,null,null,"00:00:00",0,0,0,0,0]
[null,null,null,null,null,null,null,null,null,null,null,null,null,null,null,null,null,null,null,null,null,null,"00:00:00",0,0,0,0,0]
[null,null,null,null,null,null,null,null,null,null,null,null,null,null,null,null,null,null,null,null,null,null,"00:00:00",0,0,0,0,0]
[null,null,null,null,null,null,null,null,null,null,null,null,null,null,null,null,null,null,null,null,null,null,"00:00:00",0,0,0,0,0]
[null,null,null,null,null,null,null,null,null,null,null,null,null,null,null,null,null,null,null,null,null,null,"00:00:00",0,0,0,0,0]
[null,null,null,null,null,null,null,null,null,null,null,null,null,null,null,null,null,null,null,null,null,null,"00:00:00",0,0,0,0,0]
[null,null,null,null,null,null,null,null,null,null,null,null,null,null,null,null,null,null,null,null,null,null,"00:00:00",0,0,0,0,0]
[null,null,null,null,null,null,null,null,null,null,null,null,null,null,null,null,null,null,null,null,null,null,"00:00:00",0,0,0,0,0]
[null,null,null,null,null,null,null,null,null,null,null,null,null,null,null,null,null,null,null,null,null,null,"00:00:00",0,0,0,0,0]
[null,null,null,null,null,null,null,null,null,null,null,null,null,null,null,null,null,null,null,null,null,null,"00:00:00",0,0,0,0,0]
[null,null,null,null,null,null,null,null,null,null,null,null,null,null,null,null,null,null,null,null,null,null,"00:00:00",0,0,0,0,0]
[null,null,null,null,null,null,null,null,null,null,null,null,null,null,null,null,null,null,null,null,null,null,"00:00:00",0,0,0,0,0]
[null,null,null,null,null,null,null,null,null,null,null,null,null,null,null,null,null,null,null,null,null,null,"00:00:00",0,{"$f":"P901*(P901-1)","v":0},{"$f":"Q901*4","v":0},{"$f":"IF(R901=\"\",0,((5-R901)*6))","v":0},{"$f":"IF(L901=\"市原市\",5)+IF(M901=\"○\",3)","v":0}]
[null,null,null,null,null,null,null,null,null,null,null,null,null,null,null,null,null,null,null,null,null,null,"00:00:00",0,0,0,0,0]
[null,null,null,null,null,null,null,null,null,null,null,null,null,null,null,null,null,null,null,null,null,null,"00:00:00",0,0,0,0,0]
[null,null,null,null,null,null,null,null,null,null,null,null,null,null,null,null,null,null,null,null,null,null,"00:00:00",0,0,0,0,0]
[null,null,null,null,null,null,null,null,null,null,null,null,null,null,null,null,null,null,null,null,null,null,"00:00:00",0,0,0,0,0]
[null,null,null,null,null,null,null,null,null,null,null,null,null,null,null,null,null,null,null,null,null,null,"00:00:00",0,0,0,0,0]
[null,null,null,null,null,null,null,null,null,null,null,null,null,null,null,null,null,null,null,null,null,null,"00:00:00",0,0,0,0,0]
[null,null,null,null,null,null,null,null,null,null,null,null,null,null,null,null,null,null,null,null,null,null,"00:00:00",0,0,0,0,0]
[null,null,null,null,null,null,null,null,null,null,null,null,null,null,null,null,null,null,null,null,null,null,"00:00:00",0,0,0,0,0]
[null,null,null,null,null,null,null,null,null,null,null,null,null,null,null,null,null,null,null,null,null,null,"00:00:00",0,0,0,0,0]
[null,null,null,null,null,null,null,null,null,null,null,null,null,null,null,null,null,null,null,null,null,null,"00:00:00",0,0,0,0,0]
[null,null,null,null,null,null,null,null,null,null,null,null,null,null,null,null,null,null,null,null,null,null,"00:00:00",0,0,0,0,0]
[null,null,null,null,null,null,null,null,null,null,null,null,null,null,null,null,null,null,null,null,null,null,"00:00:00",0,0,0,0,0]
[null,null,null,null,null,null,null,null,null,null,null,null,null,null,null,null,null,null,null,null,null,null,"00:00:00",0,0,0,0,0]
[null,null,null,null,null,null,null,null,null,null,null,null,null,null,null,null,null,null,null,null,null,null,"00:00:00",0,0,0,0,0]
[null,null,null,null,null,null,null,null,null,null,null,null,null,null,null,null,null,null,null,null,null,null,"00:00:00",0,0,0,0,0]
[null,null,null,null,null,null,null,null,null,null,null,null,null,null,null,null,null,null,null,null,null,null,"00:00:00",0,0,0,0,0]
[null,null,null,null,null,null,null,null,null,null,null,null,null,null,null,null,null,null,null,null,null,null,"00:00:00",0,0,0,0,0]
[null,null,null,null,null,null,null,null,null,null,null,null,null,null,null,null,null,null,null,null,null,null,"00:00:00",0,0,0,0,0]
[null,null,null,null,null,null,null,null,null,null,null,null,null,null,null,null,null,null,null,null,null,null,"00:00:00",0,0,0,0,0]
[null,null,null,null,null,null,null,null,null,null,null,null,null,null,null,null,null,null,null,null,null,null,"00:00:00",0,0,0,0,0]
[null,null,null,null,null,null,null,null,null,null,null,null,null,null,null,null,null,null,null,null,null,null,"00:00:00",0,0,0,0,0]
[null,null,null,null,null,null,null,null,null,null,null,null,null,null,null,null,null,null,null,null,null,null,"00:00:00",0,0,0,0,0]
[null,null,null,null,null,null,null,null,null,null,null,null,null,null,null,null,null,null,null,null,null,null,"00:00:00",0,0,0,0,0]
[null,null,null,null,null,null,null,null,null,null,null,null,null,null,null,null,null,null,null,null,null,null,"00:00:00",0,0,0,0,0]
[null,null,null,null,null,null,null,null,null,null,null,null,null,null,null,null,null,null,null,null,null,null,"00:00:00",0,0,0,0,0]
[null,null,null,null,null,null,null,null,null,null,null,null,null,null,null,null,null,null,null,null,null,null,{"$f":"IF(E927=\"\",0,(NOW()-E927)/(NOW()-MIN($E$5:$E$1004))*20)","v":"00:00:00"},0,0,0,0,0]
[null,null,null,null,null,null,null,null,null,null,null,null,null,null,null,null,null,null,null,null,null,null,"00:00:00",0,0,0,0,0]
[null,null,null,null,null,null,null,null,null,null,null,null,null,null,null,null,null,null,null,null,null,null,"00:00:00",0,0,0,0,0]
[null,null,null,null,null,null,null,null,null,null,null,null,null,null,null,null,null,null,null,null,null,null,"00:00:00",0,0,0,0,0]
[null,null,null,null,null,null,null,null,null,null,null,null,null,null,null,null,null,null,null,null,null,null,"00:00:00",0,0,0,0,0]
[null,null,null,null,null,null,null,null,null,null,null,null,null,null,null,null,null,null,null,null,null,null,"00:00:00",0,0,0,0,0]
[null,null,null,null,null,null,null,null,null,null,null,null,null,null,null,null,null,null,null,null,null,null,"00:00:00",0,0,0,0,0]
[null,null,null,null,null,null,null,null,null,null,null,null,null,null,null,null,null,null,null,null,null,null,"00:00:00",0,0,0,0,0]
[null,null,null,null,null,null,null,null,null,null,null,null,null,null,null,null,null,null,null,null,null,null,"00:00:00",0,0,0,0,0]
[null,null,null,null,null,null,null,null,null,null,null,null,null,null,null,null,null,null,null,null,null,null,"00:00:00",0,0,0,0,0]
[null,null,null,null,null,null,null,null,null,null,null,null,null,null,null,null,null,null,null,null,null,null,"00:00:00",0,0,0,0,0]
[null,null,null,null,null,null,null,null,null,null,null,null,null,null,null,null,null,null,null,null,null,null,"00:00:00",0,0,0,0,0]
[null,null,null,null,null,null,null,null,null,null,null,null,null,null,null,null,null,null,null,null,null,null,"00:00:00",0,0,0,0,0]
[null,null,null,null,null,null,null,null,null,null,null,null,null,null,null,null,null,null,null,null,null,null,"00:00:00",0,0,0,0,0]
[null,null,null,null,null,null,null,null,null,null,null,null,null,null,null,null,null,null,null,null,null,null,"00:00:00",0,0,0,0,0]
[null,null,null,null,null,null,null,null,null,null,null,null,null,null,null,null,null,null,null,null,null,null,"00:00:00",0,0,0,0,0]
[null,null,null,null,null,null,null,null,null,null,null,null,null,null,null,null,null,null,null,null,null,null,"00:00:00",0,0,0,0,0]
[null,null,null,null,null,null,null,null,null,null,null,null,null,null,null,null,null,null,null,null,null,null,"00:00:00",0,0,0,0,0]
[null,null,null,null,null,null,null,null,null,null,null,null,null,null,null,null,null,null,null,null,null,null,"00:00:00",0,0,0,0,0]
[null,null,null,null,null,null,null,null,null,null,null,null,null,null,null,null,null,null,null,null,null,null,"00:00:00",{"$f":"IF(OR(N946=\"自立\",N946=\"要支援\",N946=\"未申請\"),0,N946)+(IF(OR(O946=\"自立\",O946=\"要支援\"),0,O946))*2","v":0},0,0,0,0]
[null,null,null,null,null,null,null,null,null,null,null,null,null,null,null,null,null,null,null,null,null,null,"00:00:00",0,0,0,0,0]
[null,null,null,null,null,null,null,null,null,null,null,null,null,null,null,null,null,null,null,null,null,null,"00:00:00",0,0,0,0,0]
[null,null,null,null,null,null,null,null,null,null,null,null,null,null,null,null,null,null,null,null,null,null,"00:00:00",0,0,0,0,0]
[null,null,null,null,null,null,null,null,null,null,null,null,null,null,null,null,null,null,null,null,null,null,"00:00:00",0,0,0,0,0]
[null,null,null,null,null,null,null,null,null,null,null,null,null,null,null,null,null,null,null,null,null,null,"00:00:00",0,0,0,0,0]
[null,null,null,null,null,null,null,null,null,null,null,null,null,null,null,null,null,null,null,null,null,null,"00:00:00",0,0,0,0,0]
[null,null,null,null,null,null,null,null,null,null,null,null,null,null,null,null,null,null,null,null,null,null,"00:00:00",0,0,0,0,0]
[null,null,null,null,null,null,null,null,null,null,null,null,null,null,null,null,null,null,null,null,null,null,"00:00:00",0,0,0,0,0]
[null,null,null,null,null,null,null,null,null,null,null,null,null,null,null,null,null,null,null,null,null,null,"00:00:00",0,0,0,0,0]
[null,null,null,null,null,null,null,null,null,null,null,null,null,null,null,null,null,null,null,null,null,null,"00:00:00",0,0,0,0,0]
[null,null,null,null,null,null,null,null,null,null,null,null,null,null,null,null,null,null,null,null,null,null,"00:00:00",0,0,0,0,0]
[null,null,null,null,null,null,null,null,null,null,null,null,null,null,null,null,null,null,null,null,null,null,"00:00:00",0,0,0,0,0]
[null,null,null,null,null,null,null,null,null,null,null,null,null,null,null,null,null,null,null,null,null,null,"00:00:00",0,0,0,0,0]
[null,null,null,null,null,null,null,null,null,null,null,null,null,null,null,null,null,null,null,null,null,null,"00:00:00",0,0,0,0,0]
[null,null,null,null,null,null,null,null,null,null,null,null,null,null,null,null,null,null,null,null,null,null,"00:00:00",0,0,0,0,0]
[null,null,null,null,null,null,null,null,null,null,null,null,null,null,null,null,null,null,null,null,null,null,"00:00:00",0,0,0,0,0]
[null,null,null,null,null,null,null,null,null,null,null,null,null,null,null,null,null,null,null,null,null,null,"00:00:00",0,0,0,0,0]
[null,null,null,null,null,null,null,null,null,null,null,null,null,null,null,null,null,null,null,null,null,null,"00:00:00",0,0,0,0,0]
[null,null,null,null,null,null,null,null,null,null,null,null,null,null,null,null,null,null,null,null,null,null,"00:00:00",0,{"$f":"P965*(P965-1)","v":0},{"$f":"Q965*4","v":0},{"$f":"IF(R965=\"\",0,((5-R965)*6))","v":0},{"$f":"IF(L965=\"市原市\",5)+IF(M965=\"○\",3)","v":0}]
[null,null,null,null,null,null,null,null,null,null,null,null,null,null,null,null,null,null,null,null,null,null,"00:00:00",0,0,0,0,0]
[null,null,null,null,null,null,null,null,null,null,null,null,null,null,null,null,null,null,null,null,null,null,"00:00:00",0,0,0,0,0]
[null,null,null,null,null,null,null,null,null,null,null,null,null,null,null,null,null,null,null,null,null,null,"00:00:00",0,0,0,0,0]
[null,null,null,null,null,null,null,null,null,null,null,null,null,null,null,null,null,null,null,null,null,null,"00:00:00",0,0,0,0,0]
[null,null,null,null,null,null,null,null,null,null,null,null,null,null,null,null,null,null,null,null,null,null,"00:00:00",0,0,0,0,0]
[null,null,null,null,null,null,null,null,null,null,null,null,null,null,null,null,null,null,null,null,null,null,"00:00:00",0,0,0,0,0]
[null,null,null,null,null,null,null,null,null,null,null,null,null,null,null,null,null,null,null,null,null,null,"00:00:00",0,0,0,0,0]
[null,null,null,null,null,null,null,null,null,null,null,null,null,null,null,null,null,null,null,null,null,null,"00:00:00",0,0,0,0,0]
[null,null,null,null,null,null,null,null,null,null,null,null,null,null,null,null,null,null,null,null,null,null,"00:00:00",0,0,0,0,0]
[null,null,null,null,null,null,null,null,null,null,null,null,null,null,null,null,null,null,null,null,null,null,"00:00:00",0,0,0,0,0]
[null,null,null,null,null,null,null,null,null,null,null,null,null,null,null,null,null,null,null,null,null,null,"00:00:00",0,0,0,0,0]
[null,null,null,null,null,null,null,null,null,null,null,null,null,null,null,null,null,null,null,null,null,null,"00:00:00",0,0,0,0,0]
[null,null,null,null,null,null,null,null,null,null,null,null,null,null,null,null,null,null,null,null,null,null,"00:00:00",0,0,0,0,0]
[null,null,null,null,null,null,null,null,null,null,null,null,null,null,null,null,null,null,null,null,null,null,"00:00:00",0,0,0,0,0]
[null,null,null,null,null,null,null,null,null,null,null,null,null,null,null,null,null,null,null,null,null,null,"00:00:00",0,0,0,0,0]
[null,null,null,null,null,null,null,null,null,null,null,null,null,null,null,null,null,null,null,null,null,null,"00:00:00",0,0,0,0,0]
[null,null,null,null,null,null,null,null,null,null,null,null,null,null,null,null,null,null,null,null,null,null,"00:00:00",0,0,0,0,0]
[null,null,null,null,null,null,null,null,null,null,null,null,null,null,null,null,null,null,null,null,null,null,"00:00:00",0,0,0,0,0]
[null,null,null,null,null,null,null,null,null,null,null,null,null,null,null,null,null,null,null,null,null,null,"00:00:00",0,0,0,0,0]
[null,null,null,null,null,null,null,null,null,null,null,null,null,null,null,null,null,null,null,null,null,null,"00:00:00",0,0,0,0,0]
[null,null,null,null,null,null,null,null,null,null,null,null,null,null,null,null,null,null,null,null,null,null,"00:00:00",0,0,0,0,0]
[null,null,null,null,null,null,null,null,null,null,null,null,null,null,null,null,null,null,null,null,null,null,"00:00:00",0,0,0,0,0]
[null,null,null,null,null,null,null,null,null,null,null,null,null,null,null,null,null,null,null,null,null,null,"00:00:00",0,0,0,0,0]
[null,null,null,null,null,null,null,null,null,null,null,null,null,null,null,null,null,null,null,null,null,null,"00:00:00",0,0,0,0,0]
[null,null,null,null,null,null,null,null,null,null,null,null,null,null,null,null,null,null,null,null,null,null,"00:00:00",0,0,0,0,0]
[null,null,null,null,null,null,null,null,null,null,null,null,null,null,null,null,null,null,null,null,null,null,{"$f":"IF(E991=\"\",0,(NOW()-E991)/(NOW()-MIN($E$5:$E$1004))*20)","v":"00:00:00"},0,0,0,0,0]
[null,null,null,null,null,null,null,null,null,null,null,null,null,null,null,null,null,null,null,null,null,null,"00:00:00",0,0,0,0,0]
[null,null,null,null,null,null,null,null,null,null,null,null,null,null,null,null,null,null,null,null,null,null,"00:00:00",0,0,0,0,0]
[null,null,null,null,null,null,null,null,null,null,null,null,null,null,null,null,null,null,null,null,null,null,"00:00:00",0,0,0,0,0]
[null,null,null,null,null,null,null,null,null,null,null,null,null,null,null,null,null,null,null,null,null,null,"00:00:00",0,0,0,0,0]
[null,null,null,null,null,null,null,null,null,null,null,null,null,null,null,null,null,null,null,null,null,null,"00:00:00",0,0,0,0,0]
[null,null,null,null,null,null,null,null,null,null,null,null,null,null,null,null,null,null,null,null,null,null,"00:00:00",0,0,0,0,0]
[null,null,null,null,null,null,null,null,null,null,null,null,null,null,null,null,null,null,null,null,null,null,"00:00:00",0,0,0,0,0]
[null,null,null,null,null,null,null,null,null,null,null,null,null,null,null,null,null,null,null,null,null,null,"00:00:00",0,0,0,0,0]
[null,null,null,null,null,null,null,null,null,null,null,null,null,null,null,null,null,null,null,null,null,null,"00:00:00",0,0,0,0,0]
[null,null,null,null,null,null,null,null,null,null,null,null,null,null,null,null,null,null,null,null,null,null,"00:00:00",0,0,0,0,0]
[null,null,null,null,null,null,null,null,null,null,null,null,null,null,null,null,null,null,null,null,null,null,"00:00:00",0,0,0,0,0]
[null,null,null,null,null,null,null,null,null,null,null,null,null,null,null,null,null,null,null,null,null,null,"00:00:00",0,0,0,0,0]
[null,null,null,null,null,null,null,null,null,null,null,null,null,null,null,null,null,null,null,null,null,null,"00:00:00",0,0,0,0,0]

{"sheet":"統計","index":6,"n_rows":62,"n_cols":59,"rows_kept":62,"cut":false,"hidden":false,"merged":[[1,26,1,27],[1,28,1,29],[1,30,1,31],[6,22,6,23],[6,24,6,25],[11,20,11,21],[11,22,11,23],[11,24,11,25],[11,26,11,27],[8,26,8,27],[11,28,11,29],[11,30,11,31],[8,24,8,25],[9,20,9,21],[9,22,9,23],[9,24,9,25],[6,26,6,27],[6,28,6,29],[6,30,6,31],[2,26,2,27],[2,28,2,29],[2,30,2,31],[42,2,42,6],[42,7,42,8],[32,2,32,6],[32,7,32,8],[33,2,33,6],[33,7,33,8],[7,7,7,8],[34,7,34,8],[35,7,35,8],[34,2,34,6],[36,7,36,8],[37,2,37,6],[37,7,37,8],[38,2,38,6],[38,7,38,8],[39,2,39,6],[39,7,39,8],[26,2,26,6],[26,7,26,8],[23,2,23,6],[23,7,23,8],[12,7,12,8],[13,7,13,8],[25,2,25,6],[46,2,46,6],[46,7,46,8],[43,2,43,6],[43,7,43,8],[44,2,44,6],[44,7,44,8],[45,2,45,6],[45,7,45,8],[9,7,9,8],[13,2,13,6],[15,2,15,6],[16,2,16,6],[16,7,16,8],[14,7,14,8],[15,7,15,8],[11,2,11,6],[14,2,14,6],[12,2,12,6],[40,2,40,6],[40,7,40,8],[41,2,41,6],[35,2,35,6],[41,7,41,8],[36,2,36,6],[25,7,25,8],[17,2,17,6],[17,7,17,8],[18,2,18,6],[18,7,18,8],[19,2,19,6],[19,7,19,8],[20,2,20,6],[20,7,20,8],[11,7,11,8],[10,2,10,6],[8,2,8,6],[9,2,9,6],[4,2,4,6],[5,2,5,6],[10,7,10,8],[4,7,4,8],[5,7,5,8],[6,7,6,8],[8,7,8,8],[6,2,6,6],[7,2,7,6],[3,10,3,15],[1,10,1,11],[2,10,2,11],[1,12,1,13],[1,14,1,15],[2,14,2,15],[2,12,2,13],[2,2,2,6],[3,2,3,6],[2,7,2,8],[3,7,3,8],[1,5,1,6],[1,1,1,4],[1,7,1,8],[52,7,52,8],[53,2,53,6],[21,2,21,6],[21,7,21,8],[54,7,54,8],[2,1,31,1],[47,2,47,6],[47,7,47,8],[48,2,48,6],[48,7,48,8],[49,2,49,6],[49,7,49,8],[27,2,27,6],[27,7,27,8],[28,2,28,6],[28,7,28,8],[29,2,29,6],[29,7,29,8],[30,2,30,6],[30,7,30,8],[31,2,31,6],[31,7,31,8],[22,2,22,6],[22,7,22,8],[53,7,53,8],[54,2,54,6],[24,2,24,6],[24,7,24,8],[60,2,60,6],[60,7,60,8],[61,2,61,6],[61,7,61,8],[32,1,61,1],[55,2,55,6],[55,7,55,8],[56,2,56,6],[56,7,56,8],[57,2,57,6],[57,7,57,8],[58,2,58,6],[58,7,58,8],[59,2,59,6],[59,7,59,8],[50,2,50,6],[50,7,50,8],[51,2,51,6],[51,7,51,8],[52,2,52,6],[15,20,15,21],[15,22,15,23],[15,24,15,25],[15,26,15,27],[15,28,15,29],[15,30,15,31],[15,32,15,33],[13,20,13,21],[13,22,13,23],[13,24,13,25],[13,28,13,29],[13,30,13,31],[13,32,13,33],[14,20,14,21],[14,22,14,23],[14,24,14,25],[14,26,14,27],[14,28,14,29],[14,30,14,31],[14,32,14,33],[13,26,13,27],[11,32,11,33],[12,20,12,21],[12,22,12,23],[12,24,12,25],[12,28,12,29],[12,30,12,31],[12,32,12,33],[12,26,12,27],[8,28,8,29],[8,30,8,31],[8,32,8,33],[9,26,9,27],[9,28,9,29],[9,30,9,31],[9,32,9,33],[10,20,10,21],[10,22,10,23],[10,24,10,25],[10,26,10,27],[10,28,10,29],[10,30,10,31],[10,32,10,33],[8,20,8,21],[8,22,8,23],[6,32,6,33],[7,26,7,27],[7,28,7,29],[7,30,7,31],[7,32,7,33],[5,26,5,27],[5,28,5,29],[5,30,5,31],[3,32,3,33],[4,26,4,27],[4,28,4,29],[4,30,4,31],[4,32,4,33],[5,32,5,33],[1,32,1,33],[7,20,7,21],[7,22,7,23],[7,24,7,25],[3,20,3,21],[3,22,3,23],[3,24,3,25],[4,20,4,21],[4,22,4,23],[4,24,4,25],[1,20,1,21],[1,22,1,23],[1,24,1,25],[2,20,2,21],[2,22,2,23],[2,24,2,25],[5,20,5,21],[5,22,5,23],[5,24,5,25],[6,20,6,21],[2,32,2,33],[3,26,3,27],[3,28,3,29],[3,30,3,31]]}
[]
[null,"保険市町村",null,null,null,{"$f":"MAX(記録台帳!B5:B505)","v":0},null,"人数",null,null,"県内",null,"県外",null,"合計",null,null,null,null,"番号","介護度マスタ",null,"性別マスタ",null,"介護者マスタ",null,"施設マスタ",null,"病院マスタ",null,"地域マスタ",null,"申込マスタ"]
[null,"県内","市原市",null,null,null,null,{"$f":"COUNTIF(記録台帳!$O$5:$O$505,統計!C3)","v":0},null,null,{"$f":"SUM(H3:I32)","v":0},null,{"$f":"SUM(H33:I62)","v":0},null,{"$f":"SUM(K3:N3)","v":0},null,null,null,null,1,"申請中",null,"男",null,"妻",null,"自宅介護",null,"辰巳病院",null,"市原市",null,"辰巳萬緑苑"]
[null,null,"千葉市",null,null,null,null,{"$f":"COUNTIF(記録台帳!$M$5:$M$505,統計!C4)","v":0},null,null,{"$f":"IF(F2-O3=0,\"\",\"未登録市町村あり\")","v":""},null,null,null,null,null,null,null,null,2,"要支援１",null,"女",null,"夫",null,"辰巳病院",null,"労災病院",null,"千葉市",null,"ナーシング・ヴィラ"]
[null,null,"木更津市",null,null,null,null,{"$f":"COUNTIF(記録台帳!$M$5:$M$505,統計!C5)","v":0},null,null,null,null,null,null,null,null,null,null,null,3,"要支援２",null,null,null,"長男",null,"辰巳彩風苑",null,"長谷川病院",null,"木更津市",null,"杏の里"]
[null,null,"袖ヶ浦市",null,null,null,null,{"$f":"COUNTIF(記録台帳!$O$5:$O$505,統計!C6)","v":0},null,null,null,null,null,null,null,null,null,null,null,4,1,null,null,null,"次男",null,"辰巳ナーシング・ヴィラ",null,"鑓田病院",null,"袖ヶ浦市",null,"ふるさと苑"]
[null,null,"長柄町",null,null,null,null,{"$f":"COUNTIF(記録台帳!$O$5:$O$505,統計!C7)","v":0},null,null,null,null,null,null,null,null,null,null,null,5,2,null,null,null,"三男",null,"杏の里",null,"帝京病院",null,"長柄町",null,"第２ふるさと苑"]
[null,null,"茂原市",null,null,null,null,{"$f":"COUNTIF(記録台帳!$O$5:$O$505,統計!C8)","v":0},null,null,null,null,null,null,null,null,null,null,null,6,3,null,null,null,"長女",null,"労災病院",null,"白金整形外科",null,"茂原市",null,"清流園"]
[null,null,"君津市",null,null,null,null,{"$f":"COUNTIF(記録台帳!$O$5:$O$505,統計!C9)","v":0},null,null,null,null,null,null,null,null,null,null,null,7,4,null,null,null,"次女",null,"長谷川病院",null,"辰巳台クリニック",null,"君津市",null,"あじさい苑"]
[null,null,"富津市",null,null,null,null,{"$f":"COUNTIF(記録台帳!$O$5:$O$505,統計!C10)","v":0},null,null,null,null,null,null,null,null,null,null,null,8,5,null,null,null,"三女",null,"鑓田病院",null,"ケアハウス辰巳彩風苑",null,"富津市",null,"リハパーク菊間"]
[null,null,"勝浦市",null,null,null,null,{"$f":"COUNTIF(記録台帳!$O$5:$O$505,統計!C11)","v":0},null,null,null,null,null,null,null,null,null,null,null,9,null,null,null,null,"孫",null,"帝京病院",null,null,null,"勝浦市",null,"春"]
[null,null,"船橋市",null,null,null,null,{"$f":"COUNTIF(記録台帳!$O$5:$O$505,統計!C12)","v":0},null,null,null,null,null,null,null,null,null,null,null,10,null,null,null,null,"妹",null,"白金整形外科",null,null,null,"船橋市",null,"市原園"]
[null,null,"市川市",null,null,null,null,{"$f":"COUNTIF(記録台帳!$O$5:$O$505,統計!C13)","v":0},null,null,null,null,null,null,null,null,null,null,null,11,null,null,null,null,"甥",null,null,null,null,null,"市川市",null,"トータス"]
[null,null,"松戸市",null,null,null,null,{"$f":"COUNTIF(記録台帳!$O$5:$O$505,統計!C14)","v":0},null,null,null,null,null,null,null,null,null,null,null,12,null,null,null,null,"姪",null,null,null,null,null,"松戸市",null,"クレイン"]
[null,null,"浦安市",null,null,null,null,{"$f":"COUNTIF(記録台帳!$O$5:$O$505,統計!C15)","v":0},null,null,null,null,null,null,null,null,null,null,null,13,null,null,null,null,null,null,null,null,null,null,"浦安市",null,"なんな苑"]
[null,null,null,null,null,null,null,{"$f":"COUNTIF(記録台帳!$O$5:$O$505,統計!C16)","v":0},null,null,null,null,null,null,null,null,null,null,null,14,null,null,null,null,null,null,null,null,null,null,null,null,"ユーアイ倶楽部"]
[null,null,null,null,null,null,null,{"$f":"COUNTIF(記録台帳!$O$5:$O$505,統計!C17)","v":0}]
[null,null,null,null,null,null,null,{"$f":"COUNTIF(記録台帳!$O$5:$O$505,統計!C18)","v":0}]
[null,null,null,null,null,null,null,{"$f":"COUNTIF(記録台帳!$O$5:$O$505,統計!C19)","v":0}]
[null,null,null,null,null,null,null,{"$f":"COUNTIF(記録台帳!$O$5:$O$505,統計!C20)","v":0}]
[null,null,null,null,null,null,null,{"$f":"COUNTIF(記録台帳!$O$5:$O$505,統計!C21)","v":0}]
[null,null,null,null,null,null,null,{"$f":"COUNTIF(記録台帳!$O$5:$O$505,統計!C22)","v":0}]
[null,null,null,null,null,null,null,{"$f":"COUNTIF(記録台帳!$O$5:$O$505,統計!C23)","v":0}]
[null,null,null,null,null,null,null,{"$f":"COUNTIF(記録台帳!$O$5:$O$505,統計!C24)","v":0}]
[null,null,null,null,null,null,null,{"$f":"COUNTIF(記録台帳!$O$5:$O$505,統計!C25)","v":0}]
[null,null,null,null,null,null,null,{"$f":"COUNTIF(記録台帳!$O$5:$O$505,統計!C26)","v":0}]
[null,null,null,null,null,null,null,{"$f":"COUNTIF(記録台帳!$O$5:$O$505,統計!C27)","v":0}]
[null,null,null,null,null,null,null,{"$f":"COUNTIF(記録台帳!$O$5:$O$505,統計!C28)","v":0}]
[null,null,null,null,null,null,null,{"$f":"COUNTIF(記録台帳!$O$5:$O$505,統計!C29)","v":0}]
[null,null,null,null,null,null,null,{"$f":"COUNTIF(記録台帳!$O$5:$O$505,統計!C30)","v":0}]
[null,null,null,null,null,null,null,{"$f":"COUNTIF(記録台帳!$O$5:$O$505,統計!C31)","v":0}]
[null,null,null,null,null,null,null,{"$f":"COUNTIF(記録台帳!$O$5:$O$505,統計!C32)","v":0},null,null,null,null,null,null,null,null,null,null,null,null,null,null,null,null,null,null,null,null,null,null,null,null,null,null,null,null,null,null,null,null,null,"申込日","氏名","(ﾌﾘｶﾞﾅ)","住所","居住区分","居住施設","介護保険被保険者番号","市町村","近隣判定","認定介護度","実質介護度","介護負担","問題行動","介護能力","緊急加点","居宅加点","コメント","性別"]
[null,"他県","東京都",null,null,null,null,{"$f":"COUNTIF(記録台帳!$O$5:$O$505,統計!C33)","v":0},null,null,null,null,null,null,null,null,null,null,null,null,null,null,null,null,null,null,null,null,null,null,null,null,null,null,null,null,null,null,null,null,null,{"$f":"IF(#REF!=\"\",#REF!,#REF!)","v":{"$error":"#REF!"}},{"$f":"#REF!","v":{"$error":"#REF!"}},{"$f":"#REF!","v":{"$error":"#REF!"}},{"$f":"#REF!","v":{"$error":"#REF!"}},{"$f":"#REF!","v":{"$error":"#REF!"}},{"$f":"#REF!","v":{"$error":"#REF!"}},{"$f":"#REF!","v":{"$error":"#REF!"}},{"$f":"#REF!","v":{"$error":"#REF!"}},{"$f":"#REF!","v":{"$error":"#REF!"}},{"$f":"#REF!","v":{"$error":"#REF!"}},{"$f":"K7","v":0},{"$f":"B7","v":0},{"$f":"D7","v":0},{"$f":"F7","v":0},{"$f":"P28","v":0},{"$f":"#REF!","v":{"$error":"#REF!"}},{"$f":"N7","v":0},{"$f":"#REF!","v":{"$error":"#REF!"}}]
[null,null,"神奈川県",null,null,null,null,{"$f":"COUNTIF(記録台帳!$O$5:$O$505,統計!C34)","v":0}]
[null,null,"埼玉県",null,null,null,null,{"$f":"COUNTIF(記録台帳!$O$5:$O$505,統計!C35)","v":0}]
[null,null,"茨城県",null,null,null,null,{"$f":"COUNTIF(記録台帳!$O$5:$O$505,統計!C36)","v":0}]
[null,null,"群馬県",null,null,null,null,{"$f":"COUNTIF(記録台帳!$O$5:$O$505,統計!C37)","v":0}]
[null,null,"栃木県",null,null,null,null,{"$f":"COUNTIF(記録台帳!$O$5:$O$505,統計!C38)","v":0}]
[null,null,null,null,null,null,null,{"$f":"COUNTIF(記録台帳!$O$5:$O$505,統計!C39)","v":0}]
[null,null,null,null,null,null,null,{"$f":"COUNTIF(記録台帳!$O$5:$O$505,統計!C40)","v":0}]
[null,null,null,null,null,null,null,{"$f":"COUNTIF(記録台帳!$O$5:$O$505,統計!C41)","v":0}]
[null,null,null,null,null,null,null,{"$f":"COUNTIF(記録台帳!$O$5:$O$505,統計!C42)","v":0}]
[null,null,null,null,null,null,null,{"$f":"COUNTIF(記録台帳!$O$5:$O$505,統計!C43)","v":0}]
[null,null,null,null,null,null,null,{"$f":"COUNTIF(記録台帳!$O$5:$O$505,統計!C44)","v":0}]
[null,null,null,null,null,null,null,{"$f":"COUNTIF(記録台帳!$O$5:$O$505,統計!C45)","v":0}]
[null,null,null,null,null,null,null,{"$f":"COUNTIF(記録台帳!$O$5:$O$505,統計!C46)","v":0}]
[null,null,null,null,null,null,null,{"$f":"COUNTIF(記録台帳!$O$5:$O$505,統計!C47)","v":0}]
[null,null,null,null,null,null,null,{"$f":"COUNTIF(記録台帳!$O$5:$O$505,統計!C48)","v":0}]
[null,null,null,null,null,null,null,{"$f":"COUNTIF(記録台帳!$O$5:$O$505,統計!C49)","v":0}]
[null,null,null,null,null,null,null,{"$f":"COUNTIF(記録台帳!$O$5:$O$505,統計!C50)","v":0}]
[null,null,null,null,null,null,null,{"$f":"COUNTIF(記録台帳!$O$5:$O$505,統計!C51)","v":0}]
[null,null,null,null,null,null,null,{"$f":"COUNTIF(記録台帳!$O$5:$O$505,統計!C52)","v":0}]
[null,null,null,null,null,null,null,{"$f":"COUNTIF(記録台帳!$O$5:$O$505,統計!C53)","v":0}]
[null,null,null,null,null,null,null,{"$f":"COUNTIF(記録台帳!$O$5:$O$505,統計!C54)","v":0}]
[null,null,null,null,null,null,null,{"$f":"COUNTIF(記録台帳!$O$5:$O$505,統計!C55)","v":0}]
[null,null,null,null,null,null,null,{"$f":"COUNTIF(記録台帳!$O$5:$O$505,統計!C56)","v":0}]
[null,null,null,null,null,null,null,{"$f":"COUNTIF(記録台帳!$O$5:$O$505,統計!C57)","v":0}]
[null,null,null,null,null,null,null,{"$f":"COUNTIF(記録台帳!$O$5:$O$505,統計!C58)","v":0}]
[null,null,null,null,null,null,null,{"$f":"COUNTIF(記録台帳!$O$5:$O$505,統計!C59)","v":0}]
[null,null,null,null,null,null,null,{"$f":"COUNTIF(記録台帳!$O$5:$O$505,統計!C60)","v":0}]
[null,null,null,null,null,null,null,{"$f":"COUNTIF(記録台帳!$O$5:$O$505,統計!C61)","v":0}]
[null,null,null,null,null,null,null,{"$f":"COUNTIF(記録台帳!$O$5:$O$505,統計!C62)","v":0}]

{"sheet":"宛名印刷","index":7,"n_rows":35,"n_cols":62,"rows_kept":35,"cut":false,"hidden":false,"merged":[[30,46,30,49],[31,45,32,59],[31,61,31,62],[33,45,34,54],[34,55,34,56],[25,46,25,49],[26,45,27,59],[26,61,26,62],[28,45,29,54],[29,55,29,56],[19,55,19,56],[20,46,20,49],[21,61,21,62],[21,45,22,59],[23,45,24,54],[24,55,24,56],[33,30,34,39],[34,40,34,41],[5,46,5,49],[6,61,6,62],[6,45,7,59],[8,45,9,54],[9,55,9,56],[10,46,10,49],[11,61,11,62],[11,45,12,59],[13,45,14,54],[14,55,14,56],[15,46,15,49],[16,61,16,62],[16,45,17,59],[18,45,19,54],[28,30,29,39],[29,40,29,41],[30,31,30,34],[31,27,31,28],[31,30,32,44],[23,30,24,39],[24,40,24,41],[25,31,25,34],[26,27,26,28],[26,30,27,44],[18,30,19,39],[19,40,19,41],[20,31,20,34],[21,27,21,28],[21,30,22,44],[13,30,14,39],[14,40,14,41],[15,31,15,34],[16,27,16,28],[16,30,17,44],[5,31,5,34],[6,30,7,44],[8,30,9,39],[9,40,9,41],[11,12,12,18],[10,31,10,34],[11,27,11,28],[11,30,12,44],[9,7,9,10],[11,9,18,10],[13,7,19,8],[1,25,1,27],[1,7,1,8],[1,11,1,12],[1,9,1,10],[1,13,1,14],[8,12,10,19],[6,27,6,28]]}
[null,null,null,null,null,null,null,"印刷はじめ",null,null,null,"印刷終わり"]
[null,null,null,null,null,null,null,1,null,"から",null,2,null,"まで",null,null,null,null,null,null,null,null,null,null,null,"宛名印刷"]
[null,"印刷番号"]
[]
[]
[null,null,null,null,null,null,null,null,null,null,null,null,null,{"$f":"IF(B2=\"\",0,MID(VLOOKUP(B2,記録台帳!B4:DM505,18),1,1))","v":0},{"$f":"IF(B2=\"\",0,MID(VLOOKUP(B2,記録台帳!B4:DM505,18),2,1))","v":0},{"$f":"IF(B2=\"\",0,MID(VLOOKUP(B2,記録台帳!B4:DM505,18),3,1))","v":0},{"$f":"IF(B2=\"\",0,MID(VLOOKUP(B2,記録台帳!B4:DM505,18),5,1))","v":0},{"$f":"IF(B2=\"\",0,MID(VLOOKUP(B2,記録台帳!B4:DM505,18),6,1))","v":0},{"$f":"IF(B2=\"\",0,MID(VLOOKUP(B2,記録台帳!B4:DM505,18),7,1))","v":0},{"$f":"IF(B2=\"\",0,MID(VLOOKUP(B2,記録台帳!B4:DM505,18),8,1))","v":0},null,null,null,null,null,null,null,null,null,null,"〒",{"$f":"IF(AB7=\"\",0,VLOOKUP(AB7,記録台帳!$B$4:$GB$505,18))","v":{"$error":"#N/A"}},null,null,null,null,null,null,null,null,null,null,null,null,null,"〒",{"$f":"IF(BJ7=\"\",0,VLOOKUP(BJ7,記録台帳!$B$4:$GB$505,18))","v":{"$error":"#N/A"}}]
[null,null,null,null,null,null,null,null,null,null,null,null,null,null,null,null,null,null,null,null,null,null,null,null,null,null,null,1,null,null,{"$f":"IF(AB7=\"\",\"\",(VLOOKUP(AB7,記録台帳!$B$4:$DM$505,19)))","v":{"$error":"#N/A"}},null,null,null,null,null,null,null,null,null,null,null,null,null,null,{"$f":"IF(BJ7=\"\",\"\",(VLOOKUP(BJ7,記録台帳!$B$4:$DM$505,19)))","v":{"$error":"#N/A"}},null,null,null,null,null,null,null,null,null,null,null,null,null,null,null,{"$f":"AB32+1","v":7}]
[null,null,null,null,null,null,null,null,null,null,null,null,null,null,null,null,null,null,null,null,null,null,null,{"$f":"MID(W3,2,1)","v":""}]
[null,null,null,null,null,null,null,null,null,null,null,null,{"$f":"IF(B2=\"\",\"\",(VLOOKUP(B2,記録台帳!B4:DM505,19)))","v":""},null,null,null,null,null,null,null,null,null,null,null,null,null,null,null,null,null,{"$f":"IF(AB7=\"\",\"\",(VLOOKUP(AB7,記録台帳!$B$4:$DM$505,15)))","v":{"$error":"#N/A"}},null,null,null,null,null,null,null,null,null,null,null,null,null,null,{"$f":"IF(BJ7=\"\",\"\",(VLOOKUP(BJ7,記録台帳!$B$4:$DM$505,15)))","v":{"$error":"#N/A"}}]
[null,null,null,null,null,null,null,"〒２９０－０１７８",null,null,null,null,null,null,null,null,null,null,null,null,null,null,null,null,null,null,null,null,null,null,null,null,null,null,null,null,null,null,null,null,"様",null,null,null,null,null,null,null,null,null,null,null,null,null,null,"様"]
[null,null,null,null,null,null,null,null,null,null,null,null,null,null,null,null,null,null,null,null,null,null,null,null,null,null,null,null,null,null,"〒",{"$f":"IF(AB12=\"\",0,VLOOKUP(AB12,記録台帳!$B$4:$GB$505,18))","v":{"$error":"#N/A"}},null,null,null,null,null,null,null,null,null,null,null,null,null,"〒",{"$f":"IF(BJ12=\"\",0,VLOOKUP(BJ12,記録台帳!$B$4:$GB$505,18))","v":{"$error":"#N/A"}}]
[null,null,null,null,null,null,null,null,null,"市原市神崎２６３番地１\n特別養護老人ホーム辰巳萬緑苑",null,null,{"$f":"IF(B2=\"\",\"\",(VLOOKUP(B2,記録台帳!B4:DM505,15)))","v":""},null,null,null,null,null,null,null,null,null,null,null,null,null,null,{"$f":"AB7+1","v":2},null,null,{"$f":"IF(AB12=\"\",\"\",(VLOOKUP(AB12,記録台帳!$B$4:$DM$505,19)))","v":{"$error":"#N/A"}},null,null,null,null,null,null,null,null,null,null,null,null,null,null,{"$f":"IF(BJ12=\"\",\"\",(VLOOKUP(BJ12,記録台帳!$B$4:$DM$505,19)))","v":{"$error":"#N/A"}},null,null,null,null,null,null,null,null,null,null,null,null,null,null,null,{"$f":"BJ7+1","v":8}]
[null,null,null,null,null,null,null,null,null,null,null,null,null,null,null,null,null,null,null,"様"]
[null,null,null,null,null,null,null,"℡０４３６（７５）２２５１",null,null,null,null,null,null,null,null,null,null,null,null,null,null,null,null,null,null,null,null,null,null,{"$f":"IF(AB12=\"\",\"\",(VLOOKUP(AB12,記録台帳!$B$4:$DM$505,15)))","v":{"$error":"#N/A"}},null,null,null,null,null,null,null,null,null,null,null,null,null,null,{"$f":"IF(BJ12=\"\",\"\",(VLOOKUP(BJ12,記録台帳!$B$4:$DM$505,15)))","v":{"$error":"#N/A"}}]
[null,null,null,null,null,null,null,null,null,null,null,null,null,null,null,null,null,null,null,null,null,null,null,null,null,null,null,null,null,null,null,null,null,null,null,null,null,null,null,null,"様",null,null,null,null,null,null,null,null,null,null,null,null,null,null,"様"]
[null,null,null,null,null,null,null,null,null,null,null,null,null,null,null,null,null,null,null,null,null,null,null,null,null,null,null,null,null,null,"〒",{"$f":"IF(AB17=\"\",0,VLOOKUP(AB17,記録台帳!$B$4:$GB$505,18))","v":{"$error":"#N/A"}},null,null,null,null,null,null,null,null,null,null,null,null,null,"〒",{"$f":"IF(BJ17=\"\",0,VLOOKUP(BJ17,記録台帳!$B$4:$GB$505,18))","v":{"$error":"#N/A"}}]
[null,null,null,null,null,null,null,null,null,null,null,null,null,null,null,null,null,null,null,null,null,null,null,null,"　",null,null,{"$f":"AB12+1","v":3},null,null,{"$f":"IF(AB17=\"\",\"\",(VLOOKUP(AB17,記録台帳!$B$4:$DM$505,19)))","v":{"$error":"#N/A"}},null,null,null,null,null,null,null,null,null,null,null,null,null,null,{"$f":"IF(BJ17=\"\",\"\",(VLOOKUP(BJ17,記録台帳!$B$4:$DM$505,19)))","v":{"$error":"#N/A"}},null,null,null,null,null,null,null,null,null,null,null,null,null,null,null,{"$f":"BJ12+1","v":9}]
[]
[null,null,null,null,null,null,null,null,null,null,null,null,null,null,null,null,null,null,null,null,null,null,null,null,null,null,null,null,null,null,{"$f":"IF(AB17=\"\",\"\",(VLOOKUP(AB17,記録台帳!$B$4:$DM$505,15)))","v":{"$error":"#N/A"}},null,null,null,null,null,null,null,null,null,null,null,null,null,null,{"$f":"IF(BJ17=\"\",\"\",(VLOOKUP(BJ17,記録台帳!$B$4:$DM$505,15)))","v":{"$error":"#N/A"}}]
[null,null,null,null,null,null,null,null,null,null,null,null,null,null,null,null,null,null,null,null,null,null,null,null,null,null,null,null,null,null,null,null,null,null,null,null,null,null,null,null,"様",null,null,null,null,null,null,null,null,null,null,null,null,null,null,"様"]
[null,null,null,null,null,null,null,null,null,null,null,null,null,null,null,null,null,null,null,null,null,null,null,null,null,null,null,null,null,null,"〒",{"$f":"IF(AB22=\"\",0,VLOOKUP(AB22,記録台帳!$B$4:$GB$505,18))","v":{"$error":"#N/A"}},null,null,null,null,null,null,null,null,null,null,null,null,null,"〒",{"$f":"IF(BJ22=\"\",0,VLOOKUP(BJ22,記録台帳!$B$4:$GB$505,18))","v":{"$error":"#N/A"}}]
[null,null,null,null,null,null,null,null,null,null,null,null,null,null,null,null,null,null,null,null,null,null,null,null,null,null,null,{"$f":"AB17+1","v":4},null,null,{"$f":"IF(AB22=\"\",\"\",(VLOOKUP(AB22,記録台帳!$B$4:$DM$505,19)))","v":{"$error":"#N/A"}},null,null,null,null,null,null,null,null,null,null,null,null,null,null,{"$f":"IF(BJ22=\"\",\"\",(VLOOKUP(BJ22,記録台帳!$B$4:$DM$505,19)))","v":{"$error":"#N/A"}},null,null,null,null,null,null,null,null,null,null,null,null,null,null,null,{"$f":"BJ17+1","v":10}]
[]
[null,null,null,null,null,null,null,null,null,null,null,null,null,null,null,null,null,null,null,null,null,null,null,null,null,null,null,null,null,null,{"$f":"IF(AB22=\"\",\"\",(VLOOKUP(AB22,記録台帳!$B$4:$DM$505,15)))","v":{"$error":"#N/A"}},null,null,null,null,null,null,null,null,null,null,null,null,null,null,{"$f":"IF(BJ22=\"\",\"\",(VLOOKUP(BJ22,記録台帳!$B$4:$DM$505,15)))","v":{"$error":"#N/A"}}]
[null,null,null,null,null,null,null,null,null,null,null,null,null,null,null,null,null,null,null,null,null,null,null,null,null,null,null,null,null,null,null,null,null,null,null,null,null,null,null,null,"様",null,null,null,null,null,null,null,null,null,null,null,null,null,null,"様"]
[null,null,null,null,null,null,null,null,null,null,null,null,null,null,null,null,null,null,null,null,null,null,null,null,null,null,null,null,null,null,"〒",{"$f":"IF(AB27=\"\",0,VLOOKUP(AB27,記録台帳!$B$4:$GB$505,18))","v":{"$error":"#N/A"}},null,null,null,null,null,null,null,null,null,null,null,null,null,"〒",{"$f":"IF(BJ27=\"\",0,VLOOKUP(BJ27,記録台帳!$B$4:$GB$505,18))","v":{"$error":"#N/A"}}]
[null,null,null,null,null,null,null,null,null,null,null,null,null,null,null,null,null,null,null,null,null,null,null,null,null,null,null,{"$f":"AB22+1","v":5},null,null,{"$f":"IF(AB27=\"\",\"\",(VLOOKUP(AB27,記録台帳!$B$4:$DM$505,19)))","v":{"$error":"#N/A"}},null,null,null,null,null,null,null,null,null,null,null,null,null,null,{"$f":"IF(BJ27=\"\",\"\",(VLOOKUP(BJ27,記録台帳!$B$4:$DM$505,19)))","v":{"$error":"#N/A"}},null,null,null,null,null,null,null,null,null,null,null,null,null,null,null,{"$f":"BJ22+1","v":11}]
[]
[null,null,null,null,null,null,null,null,null,null,null,null,null,null,null,null,null,null,null,null,null,null,null,null,null,null,null,null,null,null,{"$f":"IF(AB27=\"\",\"\",(VLOOKUP(AB27,記録台帳!$B$4:$DM$505,15)))","v":{"$error":"#N/A"}},null,null,null,null,null,null,null,null,null,null,null,null,null,null,{"$f":"IF(BJ27=\"\",\"\",(VLOOKUP(BJ27,記録台帳!$B$4:$DM$505,15)))","v":{"$error":"#N/A"}}]
[null,null,null,null,null,null,null,null,null,null,null,null,null,null,null,null,null,null,null,null,null,null,null,null,null,null,null,null,null,null,null,null,null,null,null,null,null,null,null,null,"様",null,null,null,null,null,null,null,null,null,null,null,null,null,null,"様"]
[null,null,null,null,null,null,null,null,null,null,null,null,null,null,null,null,null,null,null,null,null,null,null,null,null,null,null,null,null,null,"〒",{"$f":"IF(AB32=\"\",0,VLOOKUP(AB32,記録台帳!$B$4:$GB$505,18))","v":{"$error":"#N/A"}},null,null,null,null,null,null,null,null,null,null,null,null,null,"〒",{"$f":"IF(BJ32=\"\",0,VLOOKUP(BJ32,記録台帳!$B$4:$GB$505,18))","v":{"$error":"#N/A"}}]
[null,null,null,null,null,null,null,null,null,null,null,null,null,null,null,null,null,null,null,null,null,null,null,null,null,null,null,{"$f":"AB27+1","v":6},null,null,{"$f":"IF(AB32=\"\",\"\",(VLOOKUP(AB32,記録台帳!$B$4:$DM$505,19)))","v":{"$error":"#N/A"}},null,null,null,null,null,null,null,null,null,null,null,null,null,null,{"$f":"IF(BJ32=\"\",\"\",(VLOOKUP(BJ32,記録台帳!$B$4:$DM$505,19)))","v":{"$error":"#N/A"}},null,null,null,null,null,null,null,null,null,null,null,null,null,null,null,{"$f":"BJ27+1","v":12}]
[]
[null,null,null,null,null,null,null,null,null,null,null,null,null,null,null,null,null,null,null,null,null,null,null,null,null,null,null,null,null,null,{"$f":"IF(AB32=\"\",\"\",(VLOOKUP(AB32,記録台帳!$B$4:$DM$505,15)))","v":{"$error":"#N/A"}},null,null,null,null,null,null,null,null,null,null,null,null,null,null,{"$f":"IF(BJ32=\"\",\"\",(VLOOKUP(BJ32,記録台帳!$B$4:$DM$505,15)))","v":{"$error":"#N/A"}}]
[null,null,null,null,null,null,null,null,null,null,null,null,null,null,null,null,null,null,null,null,null,null,null,null,null,null,null,null,null,null,null,null,null,null,null,null,null,null,null,null,"様",null,null,null,null,null,null,null,null,null,null,null,null,null,null,"様"]

{"sheet":"市報告書","index":8,"n_rows":50,"n_cols":12,"rows_kept":50,"cut":false,"hidden":false,"merged":[[13,6,13,7],[21,6,21,7],[39,6,39,7]]}
[]
[]
[null,null,null,"別紙様式１"]
[]
[null,null,null,null,"特別養護老人ホーム新規入所者及び入所申込者等調査票(市町村長あて)"]
[]
[null,"年",null,null,null,"法人名",null,"社会福井法人琢心会"]
[null,26,null,null,null,"施設名",null,"特別養護老人ホーム辰巳萬緑苑"]
[null,null,null,null,null,"作成担当者名",null,"小出　浩丸"]
[null,"月"]
[null,9,null,{"$f":"\"平成\"&B8&\"年\"&B11&\"月2日から平成\"&IF(B11=12,B8+1,B8)&\"年\"&IF(B11=12,1,B11+1)&\"月1日までの貴市町村在住の新規入所者、入居申込者は以下のとおりです。\"","v":"平成26年9月2日から平成26年10月1日までの貴市町村在住の新規入所者、入居申込者は以下のとおりです。"}]
[]
[null,null,null,"１　新規入所者"]
["削除台帳から番号記入",null,null,"氏　　名","氏名(ﾌﾘｶﾞﾅ)","住　　所","入居年月日",null,"介護保険被保険者番号"]
[null,null,null,{"$f":"IF($B15=\"\",\"\",VLOOKUP($B15,削除台帳!$B$4:$O$505,3))","v":""},{"$f":"IF($B15=\"\",\"\",VLOOKUP($B15,削除台帳!$B$4:$O$505,4))","v":""},{"$f":"IF($B15=\"\",\"\",VLOOKUP($B15,削除台帳!$B$4:$O$505,7))","v":""},null,null,{"$f":"IF($B15=\"\",\"\",VLOOKUP($B15,削除台帳!$B$4:$O$505,11))","v":""}]
[null,null,null,{"$f":"IF($B16=\"\",\"\",VLOOKUP($B16,削除台帳!$B$4:$O$505,3))","v":""},{"$f":"IF($B16=\"\",\"\",VLOOKUP($B16,削除台帳!$B$4:$O$505,4))","v":""},{"$f":"IF($B16=\"\",\"\",VLOOKUP($B16,削除台帳!$B$4:$O$505,7))","v":""},null,null,{"$f":"IF($B16=\"\",\"\",VLOOKUP($B16,削除台帳!$B$4:$O$505,11))","v":""}]
[null,null,null,{"$f":"IF($B17=\"\",\"\",VLOOKUP($B17,削除台帳!$B$4:$O$505,3))","v":""},{"$f":"IF($B17=\"\",\"\",VLOOKUP($B17,削除台帳!$B$4:$O$505,4))","v":""},{"$f":"IF($B17=\"\",\"\",VLOOKUP($B17,削除台帳!$B$4:$O$505,7))","v":""},null,null,{"$f":"IF($B17=\"\",\"\",VLOOKUP($B17,削除台帳!$B$4:$O$505,11))","v":""}]
[null,null,null,{"$f":"IF($B18=\"\",\"\",VLOOKUP($B18,削除台帳!$B$4:$O$505,3))","v":""},{"$f":"IF($B18=\"\",\"\",VLOOKUP($B18,削除台帳!$B$4:$O$505,4))","v":""},{"$f":"IF($B18=\"\",\"\",VLOOKUP($B18,削除台帳!$B$4:$O$505,7))","v":""},null,null,{"$f":"IF($B18=\"\",\"\",VLOOKUP($B18,削除台帳!$B$4:$O$505,11))","v":""}]
[null,null,null,{"$f":"IF($B19=\"\",\"\",VLOOKUP($B19,削除台帳!$B$4:$O$505,3))","v":""},{"$f":"IF($B19=\"\",\"\",VLOOKUP($B19,削除台帳!$B$4:$O$505,4))","v":""},{"$f":"IF($B19=\"\",\"\",VLOOKUP($B19,削除台帳!$B$4:$O$505,7))","v":""},null,null,{"$f":"IF($B19=\"\",\"\",VLOOKUP($B19,削除台帳!$B$4:$O$505,11))","v":""}]
[]
[null,null,null,"２　新規入所申込者"]
["記録台帳から番号記入",null,null,"氏　　名","氏名(ﾌﾘｶﾞﾅ)","住　　所","現在の状況",null,"介護保険被保険者番号"]
[null,null,null,{"$f":"IF($B23=\"\",\"\",VLOOKUP($B23,記録台帳!$B$4:$O$505,5))","v":""},{"$f":"IF($B23=\"\",\"\",VLOOKUP($B23,記録台帳!$B$4:$O$505,6))","v":""},{"$f":"IF($B23=\"\",\"\",VLOOKUP($B23,記録台帳!$B$4:$O$505,9))","v":""},null,null,{"$f":"IF($B23=\"\",\"\",VLOOKUP($B23,記録台帳!$B$4:$O$505,13))","v":""}]
[null,null,null,{"$f":"IF($B24=\"\",\"\",VLOOKUP($B24,記録台帳!$B$4:$O$505,5))","v":""},{"$f":"IF($B24=\"\",\"\",VLOOKUP($B24,記録台帳!$B$4:$O$505,6))","v":""},{"$f":"IF($B24=\"\",\"\",VLOOKUP($B24,記録台帳!$B$4:$O$505,9))","v":""},null,null,{"$f":"IF($B24=\"\",\"\",VLOOKUP($B24,記録台帳!$B$4:$O$505,13))","v":""}]
[null,null,null,{"$f":"IF($B25=\"\",\"\",VLOOKUP($B25,記録台帳!$B$4:$O$505,5))","v":""},{"$f":"IF($B25=\"\",\"\",VLOOKUP($B25,記録台帳!$B$4:$O$505,6))","v":""},{"$f":"IF($B25=\"\",\"\",VLOOKUP($B25,記録台帳!$B$4:$O$505,9))","v":""},null,null,{"$f":"IF($B25=\"\",\"\",VLOOKUP($B25,記録台帳!$B$4:$O$505,13))","v":""},null,1,"居宅"]
[null,null,null,{"$f":"IF($B26=\"\",\"\",VLOOKUP($B26,記録台帳!$B$4:$O$505,5))","v":""},{"$f":"IF($B26=\"\",\"\",VLOOKUP($B26,記録台帳!$B$4:$O$505,6))","v":""},{"$f":"IF($B26=\"\",\"\",VLOOKUP($B26,記録台帳!$B$4:$O$505,9))","v":""},null,null,{"$f":"IF($B26=\"\",\"\",VLOOKUP($B26,記録台帳!$B$4:$O$505,13))","v":""},null,2,"病院"]
[null,null,null,{"$f":"IF($B27=\"\",\"\",VLOOKUP($B27,記録台帳!$B$4:$O$505,5))","v":""},{"$f":"IF($B27=\"\",\"\",VLOOKUP($B27,記録台帳!$B$4:$O$505,6))","v":""},{"$f":"IF($B27=\"\",\"\",VLOOKUP($B27,記録台帳!$B$4:$O$505,9))","v":""},null,null,{"$f":"IF($B27=\"\",\"\",VLOOKUP($B27,記録台帳!$B$4:$O$505,13))","v":""},null,3,"老人保健施設"]
[null,null,null,{"$f":"IF($B28=\"\",\"\",VLOOKUP($B28,記録台帳!$B$4:$O$505,5))","v":""},{"$f":"IF($B28=\"\",\"\",VLOOKUP($B28,記録台帳!$B$4:$O$505,6))","v":""},{"$f":"IF($B28=\"\",\"\",VLOOKUP($B28,記録台帳!$B$4:$O$505,9))","v":""},null,null,{"$f":"IF($B28=\"\",\"\",VLOOKUP($B28,記録台帳!$B$4:$O$505,13))","v":""},null,4,"療養病床郡"]
[null,null,null,{"$f":"IF($B29=\"\",\"\",VLOOKUP($B29,記録台帳!$B$4:$O$505,5))","v":""},{"$f":"IF($B29=\"\",\"\",VLOOKUP($B29,記録台帳!$B$4:$O$505,6))","v":""},{"$f":"IF($B29=\"\",\"\",VLOOKUP($B29,記録台帳!$B$4:$O$505,9))","v":""},null,null,{"$f":"IF($B29=\"\",\"\",VLOOKUP($B29,記録台帳!$B$4:$O$505,13))","v":""},null,5,"養護老人ホーム"]
[null,null,null,{"$f":"IF($B30=\"\",\"\",VLOOKUP($B30,記録台帳!$B$4:$O$505,5))","v":""},{"$f":"IF($B30=\"\",\"\",VLOOKUP($B30,記録台帳!$B$4:$O$505,6))","v":""},{"$f":"IF($B30=\"\",\"\",VLOOKUP($B30,記録台帳!$B$4:$O$505,9))","v":""},null,null,{"$f":"IF($B30=\"\",\"\",VLOOKUP($B30,記録台帳!$B$4:$O$505,13))","v":""},null,6,"その他"]
[null,null,null,{"$f":"IF($B31=\"\",\"\",VLOOKUP($B31,記録台帳!$B$4:$O$505,5))","v":""},{"$f":"IF($B31=\"\",\"\",VLOOKUP($B31,記録台帳!$B$4:$O$505,6))","v":""},{"$f":"IF($B31=\"\",\"\",VLOOKUP($B31,記録台帳!$B$4:$O$505,9))","v":""},null,null,{"$f":"IF($B31=\"\",\"\",VLOOKUP($B31,記録台帳!$B$4:$O$505,13))","v":""}]
[null,null,null,{"$f":"IF($B32=\"\",\"\",VLOOKUP($B32,記録台帳!$B$4:$O$505,5))","v":""},{"$f":"IF($B32=\"\",\"\",VLOOKUP($B32,記録台帳!$B$4:$O$505,6))","v":""},{"$f":"IF($B32=\"\",\"\",VLOOKUP($B32,記録台帳!$B$4:$O$505,9))","v":""},null,null,{"$f":"IF($B32=\"\",\"\",VLOOKUP($B32,記録台帳!$B$4:$O$505,13))","v":""}]
[null,null,null,{"$f":"IF($B33=\"\",\"\",VLOOKUP($B33,記録台帳!$B$4:$O$505,5))","v":""},{"$f":"IF($B33=\"\",\"\",VLOOKUP($B33,記録台帳!$B$4:$O$505,6))","v":""},{"$f":"IF($B33=\"\",\"\",VLOOKUP($B33,記録台帳!$B$4:$O$505,9))","v":""},null,null,{"$f":"IF($B33=\"\",\"\",VLOOKUP($B33,記録台帳!$B$4:$O$505,13))","v":""}]
[null,null,null,{"$f":"IF($B34=\"\",\"\",VLOOKUP($B34,記録台帳!$B$4:$O$505,5))","v":""},{"$f":"IF($B34=\"\",\"\",VLOOKUP($B34,記録台帳!$B$4:$O$505,6))","v":""},{"$f":"IF($B34=\"\",\"\",VLOOKUP($B34,記録台帳!$B$4:$O$505,9))","v":""},null,null,{"$f":"IF($B34=\"\",\"\",VLOOKUP($B34,記録台帳!$B$4:$O$505,13))","v":""}]
[null,null,null,{"$f":"IF($B35=\"\",\"\",VLOOKUP($B35,記録台帳!$B$4:$O$505,5))","v":""},{"$f":"IF($B35=\"\",\"\",VLOOKUP($B35,記録台帳!$B$4:$O$505,6))","v":""},{"$f":"IF($B35=\"\",\"\",VLOOKUP($B35,記録台帳!$B$4:$O$505,9))","v":""},null,null,{"$f":"IF($B35=\"\",\"\",VLOOKUP($B35,記録台帳!$B$4:$O$505,13))","v":""}]
[null,null,null,{"$f":"IF($B36=\"\",\"\",VLOOKUP($B36,記録台帳!$B$4:$O$505,5))","v":""},{"$f":"IF($B36=\"\",\"\",VLOOKUP($B36,記録台帳!$B$4:$O$505,6))","v":""},{"$f":"IF($B36=\"\",\"\",VLOOKUP($B36,記録台帳!$B$4:$O$505,9))","v":""},null,null,{"$f":"IF($B36=\"\",\"\",VLOOKUP($B36,記録台帳!$B$4:$O$505,13))","v":""}]
[null,null,null,{"$f":"IF($B37=\"\",\"\",VLOOKUP($B37,記録台帳!$B$4:$O$505,5))","v":""},{"$f":"IF($B37=\"\",\"\",VLOOKUP($B37,記録台帳!$B$4:$O$505,6))","v":""},{"$f":"IF($B37=\"\",\"\",VLOOKUP($B37,記録台帳!$B$4:$O$505,9))","v":""},null,null,{"$f":"IF($B37=\"\",\"\",VLOOKUP($B37,記録台帳!$B$4:$O$505,13))","v":""}]
[]
[null,null,null,"３　入所申込取り下げ者"]
["削除台帳から番号記入",null,null,"氏　　名","氏名(ﾌﾘｶﾞﾅ)","住　　所","現在の状況",null,"介護保険被保険者番号"]
[null,null,null,{"$f":"IF($B41=\"\",\"\",VLOOKUP($B41,削除台帳!$B$4:$O$505,3))","v":""},{"$f":"IF($B41=\"\",\"\",VLOOKUP($B41,削除台帳!$B$4:$O$505,4))","v":""},{"$f":"IF($B41=\"\",\"\",VLOOKUP($B41,削除台帳!$B$4:$O$505,7))","v":""},null,{"$f":"IF($B41=\"\",\"\",VLOOKUP($B41,削除台帳!$B$4:$O$505,5))","v":""},{"$f":"IF($B41=\"\",\"\",VLOOKUP($B41,削除台帳!$B$4:$O$505,11))","v":""}]
[null,null,null,{"$f":"IF($B42=\"\",\"\",VLOOKUP($B42,削除台帳!$B$4:$O$505,3))","v":""},{"$f":"IF($B42=\"\",\"\",VLOOKUP($B42,削除台帳!$B$4:$O$505,4))","v":""},{"$f":"IF($B42=\"\",\"\",VLOOKUP($B42,削除台帳!$B$4:$O$505,7))","v":""},null,{"$f":"IF($B42=\"\",\"\",VLOOKUP($B42,削除台帳!$B$4:$O$505,5))","v":""},{"$f":"IF($B42=\"\",\"\",VLOOKUP($B42,削除台帳!$B$4:$O$505,11))","v":""}]
[null,null,null,{"$f":"IF($B43=\"\",\"\",VLOOKUP($B43,削除台帳!$B$4:$O$505,3))","v":""},{"$f":"IF($B43=\"\",\"\",VLOOKUP($B43,削除台帳!$B$4:$O$505,4))","v":""},{"$f":"IF($B43=\"\",\"\",VLOOKUP($B43,削除台帳!$B$4:$O$505,7))","v":""},null,{"$f":"IF($B43=\"\",\"\",VLOOKUP($B43,削除台帳!$B$4:$O$505,5))","v":""},{"$f":"IF($B43=\"\",\"\",VLOOKUP($B43,削除台帳!$B$4:$O$505,11))","v":""}]
[null,null,null,{"$f":"IF($B44=\"\",\"\",VLOOKUP($B44,削除台帳!$B$4:$O$505,3))","v":""},{"$f":"IF($B44=\"\",\"\",VLOOKUP($B44,削除台帳!$B$4:$O$505,4))","v":""},{"$f":"IF($B44=\"\",\"\",VLOOKUP($B44,削除台帳!$B$4:$O$505,7))","v":""},null,{"$f":"IF($B44=\"\",\"\",VLOOKUP($B44,削除台帳!$B$4:$O$505,5))","v":""},{"$f":"IF($B44=\"\",\"\",VLOOKUP($B44,削除台帳!$B$4:$O$505,11))","v":""}]
[null,null,null,{"$f":"IF($B45=\"\",\"\",VLOOKUP($B45,削除台帳!$B$4:$O$505,3))","v":""},{"$f":"IF($B45=\"\",\"\",VLOOKUP($B45,削除台帳!$B$4:$O$505,4))","v":""},{"$f":"IF($B45=\"\",\"\",VLOOKUP($B45,削除台帳!$B$4:$O$505,7))","v":""},null,{"$f":"IF($B45=\"\",\"\",VLOOKUP($B45,削除台帳!$B$4:$O$505,5))","v":""},{"$f":"IF($B45=\"\",\"\",VLOOKUP($B45,削除台帳!$B$4:$O$505,11))","v":""}]
[null,null,null,"注2）　上表の２及び３中「現在の状況」欄は入所希望者及び申し込み取り下げ者が１－居宅、２－病院"]
[null,null,null,"３－介護老人保健施設、4－療養型病床群、５－養護老人ホーム、６－その他、のうちいずれの状況"]
[null,null,null,"にあるかを番号で記入してください。"]
[null,null,null,"注３)　表3の入所申し込み取り下げ者については、15年4月1日から運用されている入所指針に基づき、"]
[null,null,null,"入所待機者順位名簿作成のための調査を行ったところ、入所を取り下げた者を含めて記載してください。"]